Workbook

Sheet DATA
B1: Dev. | C1: Scenario | F1: Line Item | G1: 2013 | H1: 2014 | I1: 2015 | J1: 2016 | K1: 2017 | L1: 2018 | M1: 2019 | N1: 2020 | O1: 2021 | P1: 2022 | Q1: 2023 | R1: 2024 | S1: 2025 | T1: 2026 | U1: 2027 | V1: 2028 | W1: 2029 | X1: 2030 | Y1: 2031 | Z1: 2032 | AA1: 2033 | AB1: 2034 | AC1: 2035 | AD1: 2036 | AE1: 2037 | AF1: 2038 | AG1: 2039 | AH1: 2040 | AI1: 2041 | AJ1: 2042 | AK1: 2043 | AL1: 2044 | AM1: 2045 | AN1: 2046 | AO1: 2047 | AP1: 2048 | AQ1: 2049 | AR1: 2050 | AS1: 2051 | AT1: 2052 | AU1: 2053 | AV1: 2054 | AW1: 2055 | AX1: 2056 | AY1: 2057 | AZ1: 2058 | BA1: 2059 | BB1: 2060 | BC1: 2061 | BD1: 2062
A2: Data Source | B2: Plan | C2: Econ | D2: Rev | E2: Cap | F2: A | G2: B | H2: C | I2: D | J2: E | K2: F | L2: G | M2: H | N2: I | O2: J | P2: K | Q2: L | R2: M | S2: N | T2: O | U2: P | V2: Q | W2: R | X2: S | Y2: T | Z2: U | AA2: V | AB2: W | AC2: X | AD2: Y | AE2: Z | AF2: B | AG2: C | AH2: D | AI2: E | AJ2: F | AK2: G | AL2: H | AM2: I | AN2: J | AO2: K | AP2: L | AQ2: M | AR2: N | AS2: O | AT2: P | AU2: Q | AV2: R | AW2: S | AX2: T | AY2: U | AZ2: V | BA2: W | BB2: X | BC2: Y | BD2: Z
A3: 11.4 | B3: All Gas | C3: REF | D3: REF | E3: REF | F3: Development Plan | G3: All Gas | AF3: All Gas
A4: 11.4 | B4: All Gas | C4: REF | D4: REF | E4: REF | F4: Development Plan Scenario | G4: Economics:REF Rev:REF Cap:REF | AF4: Economics:REF Rev:REF Cap:REF
A5: 11.4 | B5: All Gas | C5: REF | D5: REF | E5: REF | F5: ELECTRIC OPERATIONS
A6: 11.4 | B6: All Gas | C6: REF | D6: REF | E6: REF | F6: PROJECTED OPERATING STATEMENT
A7: 11.4 | B7: All Gas | C7: REF | D7: REF | E7: REF | F7: In Millions of Dollars
A8: 11.4 | B8: All Gas | C8: REF | D8: REF | E8: REF | F8: For the year ended March 31 | G8: 2013 | H8: 2014 | I8: 2015 | J8: 2016 | K8: 2017 | L8: 2018 | M8: 2019 | N8: 2020 | O8: 2021 | P8: 2022 | Q8: 2023 | R8: 2024 | S8: 2025 | T8: 2026 | U8: 2027 | V8: 2028 | W8: 2029 | X8: 2030 | Y8: 2031 | Z8: 2032 | AA8: 2033 | AB8: 2034 | AC8: 2035 | AD8: 2036 | AE8: 2037 | AF8: 2038 | AG8: 2039 | AH8: 2040 | AI8: 2041 | AJ8: 2042 | AK8: 2043 | AL8: 2044 | AM8: 2045 | AN8: 2046 | AO8: 2047 | AP8: 2048 | AQ8: 2049 | AR8: 2050 | AS8: 2051 | AT8: 2052 | AU8: 2053 | AV8: 2054 | AW8: 2055 | AX8: 2056 | AY8: 2057 | AZ8: 2058 | BA8: 2059 | BB8: 2060 | BC8: 2061 | BD8: 2062
A9: 11.4 | B9: All Gas | C9: REF | D9: REF | E9: REF | F9: REVENUES
A10: 11.4 | B10: All Gas | C10: REF | D10: REF | E10: REF | F10: General Consumers Revenue at approved rates | G10: 1331 | H10: 1361 | I10: 1374 | J10: 1390 | K10: 1404 | L10: 1424 | M10: 1447 | N10: 1462 | O10: 1485 | P10: 1506 | Q10: 1529 | R10: 1552 | S10: 1575 | T10: 1598 | U10: 1621 | V10: 1644 | W10: 1669 | X10: 1693 | Y10: 1717 | Z10: 1741 | AA10: 1765 | AB10: 1790 | AC10: 1814 | AD10: 1838 | AE10: 1862 | AF10: 1886 | AG10: 1910 | AH10: 1935 | AI10: 1959 | AJ10: 1983 | AK10: 2007 | AL10: 2031 | AM10: 2056 | AN10: 2080 | AO10: 2104 | AP10: 2128 | AQ10: 2128 | AR10: 2128 | AS10: 2128 | AT10: 2128 | AU10: 2128 | AV10: 2128 | AW10: 2128 | AX10: 2128 | AY10: 2128 | AZ10: 2128 | BA10: 2128 | BB10: 2128 | BC10: 2128 | BD10: 2128
A11: 11.4 | B11: All Gas | C11: REF | D11: REF | E11: REF | F11: Additional General Consumers Revenue | G11: 0 | H11: 48 | I11: 97 | J11: 149 | K11: 204 | L11: 263 | M11: 325 | N11: 390 | O11: 461 | P11: 535 | Q11: 614 | R11: 698 | S11: 787 | T11: 880 | U11: 979 | V11: 1083 | W11: 1194 | X11: 1311 | Y11: 1434 | Z11: 1564 | AA11: 999 | AB11: 1054 | AC11: 1223 | AD11: 1281 | AE11: 1309 | AF11: 1471 | AG11: 1551 | AH11: 1597 | AI11: 1779 | AJ11: 1895 | AK11: 2039 | AL11: 2085 | AM11: 2257 | AN11: 2409 | AO11: 2540 | AP11: 2620 | AQ11: 2628 | AR11: 2675 | AS11: 2804 | AT11: 2875 | AU11: 2963 | AV11: 3096 | AW11: 3158 | AX11: 3236 | AY11: 3308 | AZ11: 3350 | BA11: 3440 | BB11: 3525 | BC11: 3614 | BD11: 3754
A12: 11.4 | B12: All Gas | C12: REF | D12: REF | E12: REF | F12: Extraprovincial | G12: 357 | H12: 344 | I12: 335 | J12: 374 | K12: 391 | L12: 418 | M12: 403 | N12: 401 | O12: 447 | P12: 457 | Q12: 451 | R12: 442 | S12: 440 | T12: 359 | U12: 343 | V12: 328 | W12: 312 | X12: 297 | Y12: 320 | Z12: 349 | AA12: 327 | AB12: 305 | AC12: 291 | AD12: 280 | AE12: 282 | AF12: 298 | AG12: 280 | AH12: 277 | AI12: 298 | AJ12: 287 | AK12: 283 | AL12: 290 | AM12: 310 | AN12: 300 | AO12: 295 | AP12: 284 | AQ12: 304 | AR12: 309 | AS12: 315 | AT12: 321 | AU12: 326 | AV12: 332 | AW12: 338 | AX12: 344 | AY12: 351 | AZ12: 357 | BA12: 363 | BB12: 370 | BC12: 377 | BD12: 383
A13: 11.4 | B13: All Gas | C13: REF | D13: REF | E13: REF | F13: Other | G13: 14 | H13: 15 | I13: 15 | J13: 15 | K13: 15 | L13: 16 | M13: 16 | N13: 16 | O13: 17 | P13: 17 | Q13: 17 | R13: 18 | S13: 18 | T13: 18 | U13: 19 | V13: 19 | W13: 19 | X13: 20 | Y13: 20 | Z13: 21 | AA13: 21 | AB13: 21 | AC13: 22 | AD13: 22 | AE13: 23 | AF13: 23 | AG13: 24 | AH13: 24 | AI13: 24 | AJ13: 25 | AK13: 25 | AL13: 26 | AM13: 26 | AN13: 27 | AO13: 27 | AP13: 28 | AQ13: 29 | AR13: 29 | AS13: 30 | AT13: 30 | AU13: 31 | AV13: 31 | AW13: 32 | AX13: 33 | AY13: 33 | AZ13: 34 | BA13: 35 | BB13: 35 | BC13: 36 | BD13: 37
A14: 11.4 | B14: All Gas | C14: REF | D14: REF | E14: REF | F14: Total Revenue | G14: 1702 | H14: 1768 | I14: 1821 | J14: 1928 | K14: 2014 | L14: 2120 | M14: 2192 | N14: 2270 | O14: 2409 | P14: 2516 | Q14: 2611 | R14: 2709 | S14: 2820 | T14: 2856 | U14: 2961 | V14: 3074 | W14: 3194 | X14: 3321 | Y14: 3491 | Z14: 3674 | AA14: 3113 | AB14: 3170 | AC14: 3349 | AD14: 3421 | AE14: 3476 | AF14: 3679 | AG14: 3765 | AH14: 3833 | AI14: 4061 | AJ14: 4191 | AK14: 4355 | AL14: 4432 | AM14: 4648 | AN14: 4816 | AO14: 4966 | AP14: 5060 | AQ14: 5088 | AR14: 5142 | AS14: 5277 | AT14: 5354 | AU14: 5448 | AV14: 5588 | AW14: 5657 | AX14: 5741 | AY14: 5820 | AZ14: 5869 | BA14: 5966 | BB14: 6058 | BC14: 6154 | BD14: 6302
A15: 11.4 | B15: All Gas | C15: REF | D15: REF | E15: REF
A16: 11.4 | B16: All Gas | C16: REF | D16: REF | E16: REF | F16: EXPENSES
A17: 11.4 | B17: All Gas | C17: REF | D17: REF | E17: REF | F17: Operating and Administrative | G17: 455 | H17: 471 | I17: 546 | J17: 559 | K17: 570 | L17: 593 | M17: 605 | N17: 616 | O17: 628 | P17: 641 | Q17: 660 | R17: 675 | S17: 690 | T17: 708 | U17: 721 | V17: 737 | W17: 761 | X17: 776 | Y17: 792 | Z17: 825 | AA17: 844 | AB17: 867 | AC17: 894 | AD17: 916 | AE17: 936 | AF17: 973 | AG17: 997 | AH17: 1020 | AI17: 1060 | AJ17: 1087 | AK17: 1114 | AL17: 1141 | AM17: 1185 | AN17: 1216 | AO17: 1247 | AP17: 1281 | AQ17: 1311 | AR17: 1343 | AS17: 1376 | AT17: 1410 | AU17: 1432 | AV17: 1467 | AW17: 1489 | AX17: 1512 | AY17: 1535 | AZ17: 1558 | BA17: 1582 | BB17: 1606 | BC17: 1631 | BD17: 1656
A18: 11.4 | B18: All Gas | C18: REF | D18: REF | E18: REF | F18: Finance Expense | G18: 451 | H18: 440 | I18: 536 | J18: 589 | K18: 658 | L18: 737 | M18: 857 | N18: 849 | O18: 849 | P18: 836 | Q18: 844 | R18: 859 | S18: 857 | T18: 866 | U18: 843 | V18: 827 | W18: 811 | X18: 789 | Y18: 815 | Z18: 802 | AA18: 779 | AB18: 789 | AC18: 857 | AD18: 863 | AE18: 867 | AF18: 902 | AG18: 905 | AH18: 903 | AI18: 967 | AJ18: 975 | AK18: 975 | AL18: 975 | AM18: 1021 | AN18: 1022 | AO18: 1044 | AP18: 1022 | AQ18: 1019 | AR18: 1001 | AS18: 989 | AT18: 977 | AU18: 998 | AV18: 996 | AW18: 978 | AX18: 976 | AY18: 961 | AZ18: 937 | BA18: 933 | BB18: 918 | BC18: 908 | BD18: 942
A19: 11.4 | B19: All Gas | C19: REF | D19: REF | E19: REF | F19: Depreciation and Amortization | G19: 399 | H19: 430 | I19: 439 | J19: 479 | K19: 488 | L19: 509 | M19: 544 | N19: 541 | O19: 537 | P19: 547 | Q19: 558 | R19: 559 | S19: 564 | T19: 581 | U19: 590 | V19: 590 | W19: 598 | X19: 608 | Y19: 635 | Z19: 663 | AA19: 598 | AB19: 582 | AC19: 615 | AD19: 621 | AE19: 627 | AF19: 682 | AG19: 690 | AH19: 696 | AI19: 733 | AJ19: 747 | AK19: 813 | AL19: 823 | AM19: 859 | AN19: 905 | AO19: 922 | AP19: 940 | AQ19: 964 | AR19: 979 | AS19: 1065 | AT19: 1090 | AU19: 1113 | AV19: 1191 | AW19: 1226 | AX19: 1262 | AY19: 1306 | AZ19: 1326 | BA19: 1369 | BB19: 1417 | BC19: 1461 | BD19: 1519
A20: 11.4 | B20: All Gas | C20: REF | D20: REF | E20: REF | F20: Water Rentals and Assessments | G20: 117 | H20: 116 | I20: 112 | J20: 112 | K20: 112 | L20: 113 | M20: 112 | N20: 112 | O20: 114 | P20: 114 | Q20: 113 | R20: 113 | S20: 113 | T20: 114 | U20: 115 | V20: 115 | W20: 114 | X20: 114 | Y20: 118 | Z20: 117 | AA20: 116 | AB20: 116 | AC20: 116 | AD20: 117 | AE20: 119 | AF20: 118 | AG20: 118 | AH20: 120 | AI20: 119 | AJ20: 118 | AK20: 119 | AL20: 121 | AM20: 120 | AN20: 120 | AO20: 120 | AP20: 121 | AQ20: 125 | AR20: 127 | AS20: 129 | AT20: 131 | AU20: 134 | AV20: 136 | AW20: 139 | AX20: 141 | AY20: 144 | AZ20: 146 | BA20: 149 | BB20: 151 | BC20: 154 | BD20: 157
A21: 11.4 | B21: All Gas | C21: REF | D21: REF | E21: REF | F21: Fuel and Power Purchased | G21: 143 | H21: 166 | I21: 167 | J21: 178 | K21: 191 | L21: 197 | M21: 206 | N21: 209 | O21: 218 | P21: 233 | Q21: 257 | R21: 278 | S21: 296 | T21: 277 | U21: 286 | V21: 307 | W21: 339 | X21: 362 | Y21: 357 | Z21: 421 | AA21: 454 | AB21: 488 | AC21: 527 | AD21: 554 | AE21: 568 | AF21: 636 | AG21: 678 | AH21: 706 | AI21: 787 | AJ21: 861 | AK21: 921 | AL21: 949 | AM21: 1033 | AN21: 1119 | AO21: 1194 | AP21: 1259 | AQ21: 1233 | AR21: 1256 | AS21: 1278 | AT21: 1301 | AU21: 1325 | AV21: 1348 | AW21: 1373 | AX21: 1397 | AY21: 1423 | AZ21: 1448 | BA21: 1474 | BB21: 1501 | BC21: 1528 | BD21: 1555
A22: 11.4 | B22: All Gas | C22: REF | D22: REF | E22: REF | F22: Capital and Other Taxes | G22: 87 | H22: 95 | I22: 99 | J22: 104 | K22: 108 | L22: 110 | M22: 110 | N22: 110 | O22: 111 | P22: 113 | Q22: 114 | R22: 116 | S22: 118 | T22: 119 | U22: 121 | V22: 123 | W22: 128 | X22: 132 | Y22: 135 | Z22: 137 | AA22: 139 | AB22: 142 | AC22: 145 | AD22: 149 | AE22: 152 | AF22: 155 | AG22: 159 | AH22: 163 | AI22: 165 | AJ22: 169 | AK22: 174 | AL22: 178 | AM22: 180 | AN22: 183 | AO22: 185 | AP22: 187 | AQ22: 188 | AR22: 190 | AS22: 192 | AT22: 195 | AU22: 197 | AV22: 200 | AW22: 202 | AX22: 204 | AY22: 206 | AZ22: 208 | BA22: 211 | BB22: 215 | BC22: 218 | BD22: 219
A23: 11.4 | B23: All Gas | C23: REF | D23: REF | E23: REF | F23: Corporate Allocation | G23: 9 | H23: 9 | I23: 8 | J23: 8 | K23: 8 | L23: 8 | M23: 8 | N23: 8 | O23: 8 | P23: 8 | Q23: 8 | R23: 8 | S23: 8 | T23: 8 | U23: 8 | V23: 8 | W23: 8 | X23: 8 | Y23: 7 | Z23: 7 | AA23: 7 | AB23: 7 | AC23: 7 | AD23: 7 | AE23: 7 | AF23: 7 | AG23: 7 | AH23: 7 | AI23: 7 | AJ23: 7 | AK23: 7 | AL23: 7 | AM23: 6 | AN23: 6 | AO23: 6 | AP23: 6 | AQ23: 6 | AR23: 6 | AS23: 6 | AT23: 6 | AU23: 6 | AV23: 6 | AW23: 6 | AX23: 6 | AY23: 6 | AZ23: 6 | BA23: 6 | BB23: 6 | BC23: 6 | BD23: 6
A24: 11.4 | B24: All Gas | C24: REF | D24: REF | E24: REF | F24: Total Expenses | G24: 1662 | H24: 1728 | I24: 1907 | J24: 2030 | K24: 2135 | L24: 2267 | M24: 2442 | N24: 2445 | O24: 2465 | P24: 2491 | Q24: 2555 | R24: 2608 | S24: 2646 | T24: 2674 | U24: 2685 | V24: 2707 | W24: 2759 | X24: 2788 | Y24: 2859 | Z24: 2970 | AA24: 2938 | AB24: 2991 | AC24: 3161 | AD24: 3226 | AE24: 3274 | AF24: 3472 | AG24: 3553 | AH24: 3615 | AI24: 3839 | AJ24: 3965 | AK24: 4122 | AL24: 4192 | AM24: 4404 | AN24: 4569 | AO24: 4718 | AP24: 4816 | AQ24: 4845 | AR24: 4901 | AS24: 5035 | AT24: 5111 | AU24: 5204 | AV24: 5343 | AW24: 5412 | AX24: 5497 | AY24: 5578 | AZ24: 5629 | BA24: 5724 | BB24: 5814 | BC24: 5905 | BD24: 6053
A25: 11.4 | B25: All Gas | C25: REF | D25: REF | E25: REF
A26: 11.4 | B26: All Gas | C26: REF | D26: REF | E26: REF | F26: Non-Controlling Interest | G26: -14 | H26: -24 | I26: -22 | J26: -17 | K26: -14 | L26: -13 | M26: -10 | N26: -5 | O26: -2 | P26: 1 | Q26: 2 | R26: 5 | S26: 6 | T26: 9 | U26: 1 | V26: 2 | W26: 3 | X26: 5 | Y26: 7 | Z26: 9 | AA26: 11 | AB26: 12 | AC26: 13 | AD26: 15 | AE26: 17 | AF26: 18 | AG26: 20 | AH26: 22 | AI26: 24 | AJ26: 25 | AK26: 27 | AL26: 29 | AM26: 32 | AN26: 33 | AO26: 35 | AP26: 36 | AQ26: 37 | AR26: 38 | AS26: 38 | AT26: 39 | AU26: 40 | AV26: 40 | AW26: 41 | AX26: 43 | AY26: 44 | AZ26: 46 | BA26: 47 | BB26: 49 | BC26: 51 | BD26: 53
A27: 11.4 | B27: All Gas | C27: REF | D27: REF | E27: REF
A28: 11.4 | B28: All Gas | C28: REF | D28: REF | E28: REF | F28: Net Income | G28: 54 | H28: 65 | I28: -65 | J28: -85 | K28: -106 | L28: -134 | M28: -241 | N28: -170 | O28: -54 | P28: 24 | Q28: 54 | R28: 96 | S28: 167 | T28: 173 | U28: 275 | V28: 365 | W28: 432 | X28: 527 | Y28: 625 | Z28: 695 | AA28: 164 | AB28: 167 | AC28: 175 | AD28: 180 | AE28: 185 | AF28: 188 | AG28: 192 | AH28: 196 | AI28: 198 | AJ28: 201 | AK28: 205 | AL28: 211 | AM28: 213 | AN28: 213 | AO28: 213 | AP28: 208 | AQ28: 207 | AR28: 203 | AS28: 204 | AT28: 204 | AU28: 205 | AV28: 205 | AW28: 203 | AX28: 201 | AY28: 198 | AZ28: 195 | BA28: 194 | BB28: 195 | BC28: 199 | BD28: 196
A29: 11.4 | B29: All Gas | C29: REF | D29: REF | E29: REF
A30: 11.4 | B30: All Gas | C30: REF | D30: REF | E30: REF | F30: Additional General Consumers Revenue Percent Increase | G30: 0 | H30: 0.035 | I30: 0.0343 | J30: 0.0343 | K30: 0.0343 | L30: 0.0343 | M30: 0.0343 | N30: 0.0343 | O30: 0.0343 | P30: 0.0343 | Q30: 0.0343 | R30: 0.0343 | S30: 0.0343 | T30: 0.0343 | U30: 0.0343 | V30: 0.0343 | W30: 0.0343 | X30: 0.0343 | Y30: 0.0343 | Z30: 0.0343 | AA30: -0.1751 | AB30: 0.0146 | AC30: 0.0539 | AD30: 0.0135 | AE30: 0.0034 | AF30: 0.0453 | AG30: 0.0177 | AH30: 0.0076 | AI30: 0.0455 | AJ30: 0.0249 | AK30: 0.0308 | AL30: 0.0051 | AM30: 0.0353 | AN30: 0.0288 | AO30: 0.0226 | AP30: 0.0108 | AQ30: 0.0017 | AR30: 0.0099 | AS30: 0.0269 | AT30: 0.0143 | AU30: 0.0176 | AV30: 0.0262 | AW30: 0.0119 | AX30: 0.0146 | AY30: 0.0135 | AZ30: 0.0078 | BA30: 0.0162 | BB30: 0.0153 | BC30: 0.0158 | BD30: 0.0243
A31: 11.4 | B31: All Gas | C31: REF | D31: REF | E31: REF | F31: Cumulative General Consumers Revenue Percent Increase | G31: 0 | H31: 0.035 | I31: 0.0705 | J31: 0.1072 | K31: 0.1451 | L31: 0.1844 | M31: 0.2249 | N31: 0.2669 | O31: 0.3103 | P31: 0.3553 | Q31: 0.4017 | R31: 0.4497 | S31: 0.4994 | T31: 0.5508 | U31: 0.604 | V31: 0.6589 | W31: 0.7158 | X31: 0.7746 | Y31: 0.8354 | Z31: 0.8983 | AA31: 0.5659 | AB31: 0.5888 | AC31: 0.6744 | AD31: 0.6971 | AE31: 0.7029 | AF31: 0.7801 | AG31: 0.8116 | AH31: 0.8253 | AI31: 0.9083 | AJ31: 0.9558 | AK31: 1.016 | AL31: 1.0263 | AM31: 1.0978 | AN31: 1.1583 | AO31: 1.2071 | AP31: 1.2309 | AQ31: 1.2348 | AR31: 1.257 | AS31: 1.3178 | AT31: 1.3509 | AU31: 1.3922 | AV31: 1.455 | AW31: 1.4841 | AX31: 1.5204 | AY31: 1.5545 | AZ31: 1.5744 | BA31: 1.6162 | BB31: 1.6562 | BC31: 1.6981 | BD31: 1.7638
A32: 11.4 | B32: All Gas | C32: REF | D32: REF | E32: REF | F32: Debt Ratio | G32: 76 | H32: 78 | I32: 84 | J32: 86 | K32: 87 | L32: 88 | M32: 90 | N32: 91 | O32: 91 | P32: 92 | Q32: 91 | R32: 91 | S32: 90 | T32: 89 | U32: 87 | V32: 85 | W32: 84 | X32: 81 | Y32: 78 | Z32: 75 | AA32: 74 | AB32: 74 | AC32: 74 | AD32: 73 | AE32: 73 | AF32: 73 | AG32: 72 | AH32: 72 | AI32: 72 | AJ32: 71 | AK32: 71 | AL32: 71 | AM32: 70 | AN32: 70 | AO32: 69 | AP32: 68 | AQ32: 67 | AR32: 66 | AS32: 66 | AT32: 65 | AU32: 64 | AV32: 64 | AW32: 63 | AX32: 62 | AY32: 61 | AZ32: 60 | BA32: 60 | BB32: 60 | BC32: 59 | BD32: 58
A33: 11.4 | B33: All Gas | C33: REF | D33: REF | E33: REF | F33: Interest Coverage Ratio | G33: 1.09 | H33: 1.11 | I33: 0.9 | J33: 0.89 | K33: 0.87 | L33: 0.84 | M33: 0.72 | N33: 0.8 | O33: 0.94 | P33: 1.03 | Q33: 1.06 | R33: 1.11 | S33: 1.19 | T33: 1.19 | U33: 1.31 | V33: 1.42 | W33: 1.49 | X33: 1.59 | Y33: 1.71 | Z33: 1.83 | AA33: 1.2 | AB33: 1.2 | AC33: 1.2 | AD33: 1.2 | AE33: 1.2 | AF33: 1.2 | AG33: 1.2 | AH33: 1.2 | AI33: 1.2 | AJ33: 1.2 | AK33: 1.2 | AL33: 1.2 | AM33: 1.2 | AN33: 1.2 | AO33: 1.2 | AP33: 1.2 | AQ33: 1.2 | AR33: 1.2 | AS33: 1.2 | AT33: 1.2 | AU33: 1.2 | AV33: 1.2 | AW33: 1.2 | AX33: 1.2 | AY33: 1.2 | AZ33: 1.2 | BA33: 1.2 | BB33: 1.2 | BC33: 1.2 | BD33: 1.2
A34: 11.4 | B34: All Gas | C34: REF | D34: REF | E34: REF | F34: Capital Coverage Ratio | G34: 1.09 | H34: 0.9 | I34: 0.67 | J34: 0.76 | K34: 0.96 | L34: 1.04 | M34: 0.76 | N34: 1.12 | O34: 1.23 | P34: 1.33 | Q34: 1.25 | R34: 1.32 | S34: 1.48 | T34: 1.61 | U34: 2.04 | V34: 1.96 | W34: 1.95 | X34: 2.02 | Y34: 2.12 | Z34: 2.67 | AA34: 1.34 | AB34: 1.16 | AC34: 1.14 | AD34: 1.11 | AE34: 1.08 | AF34: 1.1 | AG34: 1.07 | AH34: 1.02 | AI34: 1 | AJ34: 1.01 | AK34: 1.09 | AL34: 1.16 | AM34: 1.15 | AN34: 1.04 | AO34: 1.27 | AP34: 1.28 | AQ34: 1.3 | AR34: 1.32 | AS34: 1.28 | AT34: 1.3 | AU34: 1.3 | AV34: 1.35 | AW34: 1.35 | AX34: 1.35 | AY34: 1.36 | AZ34: 1.36 | BA34: 1.36 | BB34: 1.37 | BC34: 1.38 | BD34: 1.4
A35: 11.4 | B35: All Gas | C35: REF | D35: REF | E35: REF
A36: 11.4 | B36: All Gas | C36: REF | D36: REF | E36: REF | F36: Development Plan | G36: All Gas | AF36: All Gas
A37: 11.4 | B37: All Gas | C37: REF | D37: REF | E37: REF | F37: Development Plan Scenario | G37: Economics:REF Rev:REF Cap:REF | AF37: Economics:REF Rev:REF Cap:REF
A38: 11.4 | B38: All Gas | C38: REF | D38: REF | E38: REF | F38: ELECTRIC OPERATIONS
A39: 11.4 | B39: All Gas | C39: REF | D39: REF | E39: REF | F39: PROJECTED BALANCE SHEET
A40: 11.4 | B40: All Gas | C40: REF | D40: REF | E40: REF | F40: In Millions of Dollars
A41: 11.4 | B41: All Gas | C41: REF | D41: REF | E41: REF | F41: For the year ended March 31 | G41: 2013 | H41: 2014 | I41: 2015 | J41: 2016 | K41: 2017 | L41: 2018 | M41: 2019 | N41: 2020 | O41: 2021 | P41: 2022 | Q41: 2023 | R41: 2024 | S41: 2025 | T41: 2026 | U41: 2027 | V41: 2028 | W41: 2029 | X41: 2030 | Y41: 2031 | Z41: 2032 | AA41: 2033 | AB41: 2034 | AC41: 2035 | AD41: 2036 | AE41: 2037 | AF41: 2038 | AG41: 2039 | AH41: 2040 | AI41: 2041 | AJ41: 2042 | AK41: 2043 | AL41: 2044 | AM41: 2045 | AN41: 2046 | AO41: 2047 | AP41: 2048 | AQ41: 2049 | AR41: 2050 | AS41: 2051 | AT41: 2052 | AU41: 2053 | AV41: 2054 | AW41: 2055 | AX41: 2056 | AY41: 2057 | AZ41: 2058 | BA41: 2059 | BB41: 2060 | BC41: 2061 | BD41: 2062
A42: 11.4 | B42: All Gas | C42: REF | D42: REF | E42: REF | F42: ASSETS
A43: 11.4 | B43: All Gas | C43: REF | D43: REF | E43: REF
A44: 11.4 | B44: All Gas | C44: REF | D44: REF | E44: REF | F44: Plant in Service | G44: 15374 | H44: 16436 | I44: 18685 | J44: 19839 | K44: 20398 | L44: 23980 | M44: 24407 | N44: 24800 | O44: 25342 | P44: 25938 | Q44: 26692 | R44: 27257 | S44: 28038 | T44: 28877 | U44: 29539 | V44: 30026 | W44: 31028 | X44: 31581 | Y44: 33575 | Z44: 35016 | AA44: 35698 | AB44: 37132 | AC44: 37949 | AD44: 38489 | AE44: 39811 | AF44: 41216 | AG44: 41819 | AH44: 42813 | AI44: 44358 | AJ44: 46695 | AK44: 47370 | AL44: 48166 | AM44: 50790 | AN44: 52041 | AO44: 52713 | AP44: 53909 | AQ44: 54609 | AR44: 57300 | AS44: 58533 | AT44: 59902 | AU44: 61666 | AV44: 63072 | AW44: 64431 | AX44: 66237 | AY44: 67595 | AZ44: 68957 | BA44: 70797 | BB44: 72342 | BC44: 73784 | BD44: 76630
A45: 11.4 | B45: All Gas | C45: REF | D45: REF | E45: REF | F45: Accumulated Depreciation | G45: 5173 | H45: 5536 | I45: 5922 | J45: 6377 | K45: 6853 | L45: 7357 | M45: 7897 | N45: 8434 | O45: 8968 | P45: 9515 | Q45: 10075 | R45: 10637 | S45: 11205 | T45: 11790 | U45: 12384 | V45: 12978 | W45: 13581 | X45: 14194 | Y45: 14833 | Z45: 15501 | AA45: 16104 | AB45: 16691 | AC45: 17311 | AD45: 17937 | AE45: 18569 | AF45: 19255 | AG45: 19951 | AH45: 20653 | AI45: 21392 | AJ45: 22144 | AK45: 22963 | AL45: 23792 | AM45: 24657 | AN45: 25568 | AO45: 26497 | AP45: 27444 | AQ45: 28415 | AR45: 29401 | AS45: 30474 | AT45: 31572 | AU45: 32679 | AV45: 33865 | AW45: 35087 | AX45: 36344 | AY45: 37647 | AZ45: 38970 | BA45: 40337 | BB45: 41751 | BC45: 43211 | BD45: 44729
A46: 11.4 | B46: All Gas | C46: REF | D46: REF | E46: REF
A47: 11.4 | B47: All Gas | C47: REF | D47: REF | E47: REF | F47: Net Plant in Service | G47: 10201 | H47: 10900 | I47: 12763 | J47: 13462 | K47: 13545 | L47: 16623 | M47: 16510 | N47: 16366 | O47: 16374 | P47: 16423 | Q47: 16617 | R47: 16620 | S47: 16833 | T47: 17087 | U47: 17156 | V47: 17048 | W47: 17447 | X47: 17388 | Y47: 18742 | Z47: 19515 | AA47: 19594 | AB47: 20441 | AC47: 20638 | AD47: 20552 | AE47: 21243 | AF47: 21960 | AG47: 21869 | AH47: 22160 | AI47: 22966 | AJ47: 24551 | AK47: 24407 | AL47: 24374 | AM47: 26133 | AN47: 26473 | AO47: 26216 | AP47: 26465 | AQ47: 26195 | AR47: 27899 | AS47: 28059 | AT47: 28330 | AU47: 28987 | AV47: 29207 | AW47: 29345 | AX47: 29892 | AY47: 29948 | AZ47: 29988 | BA47: 30461 | BB47: 30591 | BC47: 30573 | BD47: 31901
A48: 11.4 | B48: All Gas | C48: REF | D48: REF | E48: REF
A49: 11.4 | B49: All Gas | C49: REF | D49: REF | E49: REF | F49: Construction in Progress | G49: 2106 | H49: 2867 | I49: 2331 | J49: 2516 | K49: 3042 | L49: 167 | M49: 219 | N49: 243 | O49: 286 | P49: 406 | Q49: 293 | R49: 459 | S49: 548 | T49: 408 | U49: 509 | V49: 979 | W49: 1282 | X49: 2038 | Y49: 1167 | Z49: 545 | AA49: 752 | AB49: 376 | AC49: 633 | AD49: 1307 | AE49: 1070 | AF49: 877 | AG49: 1646 | AH49: 1899 | AI49: 1489 | AJ49: 553 | AK49: 1425 | AL49: 2043 | AM49: 566 | AN49: 662 | AO49: 1239 | AP49: 1212 | AQ49: 1651 | AR49: 134 | AS49: 297 | AT49: 439 | AU49: 19 | AV49: 178 | AW49: 407 | AX49: 25 | AY49: 196 | AZ49: 442 | BA49: 395 | BB49: 954 | BC49: 1256 | BD49: -89
A50: 11.4 | B50: All Gas | C50: REF | D50: REF | E50: REF | F50: Current and Other Assets | G50: 1869 | H50: 1735 | I50: 1386 | J50: 1570 | K50: 1767 | L50: 2006 | M50: 1784 | N50: 1843 | O50: 1829 | P50: 1450 | Q50: 1470 | R50: 1662 | S50: 1798 | T50: 1741 | U50: 1847 | V50: 1964 | W50: 2146 | X50: 1983 | Y50: 1590 | Z50: 2133 | AA50: 1792 | AB50: 1676 | AC50: 1469 | AD50: 1526 | AE50: 1382 | AF50: 1221 | AG50: 1236 | AH50: 1125 | AI50: 1076 | AJ50: 1001 | AK50: 928 | AL50: 989 | AM50: 1101 | AN50: 796 | AO50: 893 | AP50: 989 | AQ50: 431 | AR50: 143 | AS50: 137 | AT50: 128 | AU50: 79 | AV50: -328 | AW50: -660 | AX50: -785 | AY50: -1172 | AZ50: -1241 | BA50: -1451 | BB50: -1644 | BC50: -1905 | BD50: -1883
A51: 11.4 | B51: All Gas | C51: REF | D51: REF | E51: REF | F51: Goodwill and Intangible Assets | G51: 180 | H51: 165 | I51: 150 | J51: 134 | K51: 123 | L51: 113 | M51: 105 | N51: 98 | O51: 92 | P51: 88 | Q51: 85 | R51: 83 | S51: 82 | T51: 82 | U51: 81 | V51: 80 | W51: 79 | X51: 78 | Y51: 77 | Z51: 76 | AA51: 76 | AB51: 75 | AC51: 74 | AD51: 73 | AE51: 72 | AF51: 71 | AG51: 71 | AH51: 70 | AI51: 69 | AJ51: 68 | AK51: 67 | AL51: 66 | AM51: 66 | AN51: 65 | AO51: 64 | AP51: 63 | AQ51: 62 | AR51: 61 | AS51: 61 | AT51: 60 | AU51: 59 | AV51: 58 | AW51: 57 | AX51: 57 | AY51: 56 | AZ51: 55 | BA51: 54 | BB51: 53 | BC51: 53 | BD51: 52
A52: 11.4 | B52: All Gas | C52: REF | D52: REF | E52: REF | F52: Regulated Assets | G52: 231 | H52: 225 | I52: 0 | J52: 0 | K52: 0 | L52: 0 | M52: 0 | N52: 0 | O52: 0 | P52: 0 | Q52: 0 | R52: 0 | S52: 0 | T52: 0 | U52: 0 | V52: 0 | W52: 0 | X52: 0 | Y52: 0 | Z52: 0 | AA52: 0 | AB52: 0 | AC52: 0 | AD52: 0 | AE52: 0 | AF52: 0 | AG52: 0 | AH52: 0 | AI52: 0 | AJ52: 0 | AK52: 0 | AL52: 0 | AM52: 0 | AN52: 0 | AO52: 0 | AP52: 0 | AQ52: 0 | AR52: 0 | AS52: 0 | AT52: 0 | AU52: 0 | AV52: 0 | AW52: 0 | AX52: 0 | AY52: 0 | AZ52: 0 | BA52: 0 | BB52: 0 | BC52: 0 | BD52: 0
A53: 11.4 | B53: All Gas | C53: REF | D53: REF | E53: REF | F53: Total Assets | G53: 14587 | H53: 15891 | I53: 16630 | J53: 17682 | K53: 18477 | L53: 18910 | M53: 18618 | N53: 18550 | O53: 18580 | P53: 18366 | Q53: 18465 | R53: 18824 | S53: 19262 | T53: 19318 | U53: 19592 | V53: 20071 | W53: 20953 | X53: 21488 | Y53: 21577 | Z53: 22270 | AA53: 22214 | AB53: 22568 | AC53: 22814 | AD53: 23458 | AE53: 23767 | AF53: 24129 | AG53: 24820 | AH53: 25254 | AI53: 25599 | AJ53: 26173 | AK53: 26826 | AL53: 27472 | AM53: 27866 | AN53: 27996 | AO53: 28412 | AP53: 28729 | AQ53: 28339 | AR53: 28237 | AS53: 28554 | AT53: 28957 | AU53: 29144 | AV53: 29115 | AW53: 29149 | AX53: 29189 | AY53: 29027 | AZ53: 29244 | BA53: 29459 | BB53: 29955 | BC53: 29976 | BD53: 29981
A54: 11.4 | B54: All Gas | C54: REF | D54: REF | E54: REF
A55: 11.4 | B55: All Gas | C55: REF | D55: REF | E55: REF
A56: 11.4 | B56: All Gas | C56: REF | D56: REF | E56: REF | F56: LIABILITIES AND EQUITY
A57: 11.4 | B57: All Gas | C57: REF | D57: REF | E57: REF
A58: 11.4 | B58: All Gas | C58: REF | D58: REF | E58: REF | F58: Long Term Debt | G58: 9289 | H58: 11260 | I58: 12419 | J58: 13704 | K58: 14404 | L58: 14777 | M58: 15272 | N58: 15038 | O58: 15161 | P58: 15312 | Q58: 15914 | R58: 16116 | S58: 15870 | T58: 16272 | U58: 16274 | V58: 16214 | W58: 16565 | X58: 16068 | Y58: 16258 | Z58: 16031 | AA58: 13805 | AB58: 14793 | AC58: 14320 | AD58: 15321 | AE58: 14973 | AF58: 15775 | AG58: 16677 | AH58: 16629 | AI58: 16779 | AJ58: 17278 | AK58: 18227 | AL58: 18825 | AM58: 18824 | AN58: 19022 | AO58: 19220 | AP58: 18819 | AQ58: 18292 | AR58: 18090 | AS58: 18490 | AT58: 18639 | AU58: 16239 | AV58: 17038 | AW58: 15838 | AX58: 16637 | AY58: 15629 | AZ58: 16029 | BA58: 16503 | BB58: 16702 | BC58: 16302 | BD58: 16252
A59: 11.4 | B59: All Gas | C59: REF | D59: REF | E59: REF | F59: Current and Other Liabilities | G59: 2231 | H59: 1502 | I59: 1845 | J59: 1752 | K59: 1997 | L59: 2213 | M59: 1680 | N59: 2028 | O59: 2005 | P59: 1638 | Q59: 1089 | R59: 1142 | S59: 1652 | T59: 1125 | U59: 1114 | V59: 1279 | W59: 1370 | X59: 1866 | Y59: 1132 | Z59: 1349 | AA59: 3346 | AB59: 2535 | AC59: 3070 | AD59: 2521 | AE59: 2982 | AF59: 2345 | AG59: 1932 | AH59: 2207 | AI59: 2193 | AJ59: 2056 | AK59: 1544 | AL59: 1368 | AM59: 1539 | AN59: 1247 | AO59: 1240 | AP59: 1740 | AQ59: 1659 | AR59: 1545 | AS59: 1248 | AT59: 1286 | AU59: 3647 | AV59: 2590 | AW59: 3599 | AX59: 2617 | AY59: 3242 | AZ59: 2842 | BA59: 2366 | BB59: 2444 | BC59: 2644 | BD59: 2481
A60: 11.4 | B60: All Gas | C60: REF | D60: REF | E60: REF | F60: Contributions in Aid of Construction | G60: 325 | H60: 334 | I60: 339 | J60: 344 | K60: 348 | L60: 358 | M60: 364 | N60: 371 | O60: 378 | P60: 385 | Q60: 392 | R60: 400 | S60: 407 | T60: 415 | U60: 422 | V60: 430 | W60: 438 | X60: 446 | Y60: 455 | Z60: 463 | AA60: 472 | AB60: 482 | AC60: 492 | AD60: 502 | AE60: 512 | AF60: 522 | AG60: 533 | AH60: 543 | AI60: 554 | AJ60: 565 | AK60: 577 | AL60: 588 | AM60: 600 | AN60: 611 | AO60: 622 | AP60: 634 | AQ60: 645 | AR60: 656 | AS60: 666 | AT60: 677 | AU60: 700 | AV60: 722 | AW60: 745 | AX60: 768 | AY60: 791 | AZ60: 813 | BA60: 836 | BB60: 859 | BC60: 881 | BD60: 904
A61: 11.4 | B61: All Gas | C61: REF | D61: REF | E61: REF | F61: Retained Earnings | G61: 2443 | H61: 2508 | I61: 2186 | J61: 2101 | K61: 1995 | L61: 1860 | M61: 1620 | N61: 1449 | O61: 1396 | P61: 1420 | Q61: 1474 | R61: 1570 | S61: 1737 | T61: 1910 | U61: 2186 | V61: 2550 | W61: 2983 | X61: 3510 | Y61: 4136 | Z61: 4831 | AA61: 4995 | AB61: 5162 | AC61: 5337 | AD61: 5518 | AE61: 5703 | AF61: 5891 | AG61: 6083 | AH61: 6279 | AI61: 6477 | AJ61: 6677 | AK61: 6883 | AL61: 7093 | AM61: 7306 | AN61: 7519 | AO61: 7732 | AP61: 7940 | AQ61: 8147 | AR61: 8350 | AS61: 8554 | AT61: 8758 | AU61: 8962 | AV61: 9167 | AW61: 9371 | AX61: 9571 | AY61: 9769 | AZ61: 9964 | BA61: 10158 | BB61: 10354 | BC61: 10552 | BD61: 10748
A62: 11.4 | B62: All Gas | C62: REF | D62: REF | E62: REF | F62: Accumulated Other Comprehensive Income | G62: 299 | H62: 287 | I62: -159 | J62: -219 | K62: -267 | L62: -298 | M62: -317 | N62: -337 | O62: -360 | P62: -388 | Q62: -404 | R62: -404 | S62: -404 | T62: -404 | U62: -404 | V62: -404 | W62: -404 | X62: -404 | Y62: -404 | Z62: -404 | AA62: -404 | AB62: -404 | AC62: -404 | AD62: -404 | AE62: -404 | AF62: -404 | AG62: -404 | AH62: -404 | AI62: -404 | AJ62: -404 | AK62: -404 | AL62: -404 | AM62: -404 | AN62: -404 | AO62: -404 | AP62: -404 | AQ62: -404 | AR62: -404 | AS62: -404 | AT62: -404 | AU62: -404 | AV62: -404 | AW62: -404 | AX62: -404 | AY62: -404 | AZ62: -404 | BA62: -404 | BB62: -404 | BC62: -404 | BD62: -404
A63: 11.4 | B63: All Gas | C63: REF | D63: REF | E63: REF | F63: Total Liabilities and Equity | G63: 14587 | H63: 15891 | I63: 16630 | J63: 17682 | K63: 18477 | L63: 18910 | M63: 18618 | N63: 18550 | O63: 18580 | P63: 18366 | Q63: 18465 | R63: 18824 | S63: 19262 | T63: 19318 | U63: 19592 | V63: 20071 | W63: 20953 | X63: 21488 | Y63: 21577 | Z63: 22270 | AA63: 22214 | AB63: 22568 | AC63: 22814 | AD63: 23458 | AE63: 23767 | AF63: 24129 | AG63: 24820 | AH63: 25254 | AI63: 25599 | AJ63: 26173 | AK63: 26826 | AL63: 27472 | AM63: 27866 | AN63: 27996 | AO63: 28412 | AP63: 28729 | AQ63: 28339 | AR63: 28237 | AS63: 28554 | AT63: 28957 | AU63: 29144 | AV63: 29115 | AW63: 29149 | AX63: 29189 | AY63: 29027 | AZ63: 29244 | BA63: 29459 | BB63: 29955 | BC63: 29976 | BD63: 29981
A64: 11.4 | B64: All Gas | C64: REF | D64: REF | E64: REF
A65: 11.4 | B65: All Gas | C65: REF | D65: REF | E65: REF
A66: 11.4 | B66: All Gas | C66: REF | D66: REF | E66: REF
A67: 11.4 | B67: All Gas | C67: REF | D67: REF | E67: REF
A68: 11.4 | B68: All Gas | C68: REF | D68: REF | E68: REF
A69: 11.4 | B69: All Gas | C69: REF | D69: REF | E69: REF | F69: Development Plan | G69: All Gas | AF69: All Gas
A70: 11.4 | B70: All Gas | C70: REF | D70: REF | E70: REF | F70: Development Plan Scenario | G70: Economics:REF Rev:REF Cap:REF | AF70: Economics:REF Rev:REF Cap:REF
A71: 11.4 | B71: All Gas | C71: REF | D71: REF | E71: REF | F71: ELECTRIC OPERATIONS
A72: 11.4 | B72: All Gas | C72: REF | D72: REF | E72: REF | F72: PROJECTED CASH FLOW STATEMENT
A73: 11.4 | B73: All Gas | C73: REF | D73: REF | E73: REF | F73: In Millions of Dollars
A74: 11.4 | B74: All Gas | C74: REF | D74: REF | E74: REF | F74: For the year ended March 31 | G74: 2013 | H74: 2014 | I74: 2015 | J74: 2016 | K74: 2017 | L74: 2018 | M74: 2019 | N74: 2020 | O74: 2021 | P74: 2022 | Q74: 2023 | R74: 2024 | S74: 2025 | T74: 2026 | U74: 2027 | V74: 2028 | W74: 2029 | X74: 2030 | Y74: 2031 | Z74: 2032 | AA74: 2033 | AB74: 2034 | AC74: 2035 | AD74: 2036 | AE74: 2037 | AF74: 2038 | AG74: 2039 | AH74: 2040 | AI74: 2041 | AJ74: 2042 | AK74: 2043 | AL74: 2044 | AM74: 2045 | AN74: 2046 | AO74: 2047 | AP74: 2048 | AQ74: 2049 | AR74: 2050 | AS74: 2051 | AT74: 2052 | AU74: 2053 | AV74: 2054 | AW74: 2055 | AX74: 2056 | AY74: 2057 | AZ74: 2058 | BA74: 2059 | BB74: 2060 | BC74: 2061 | BD74: 2062
A75: 11.4 | B75: All Gas | C75: REF | D75: REF | E75: REF | F75: OPERATING ACTIVITIES
A76: 11.4 | B76: All Gas | C76: REF | D76: REF | E76: REF | F76: Cash Receipts from Customers | G76: 1692 | H76: 1768 | I76: 1821 | J76: 1928 | K76: 2014 | L76: 2120 | M76: 2192 | N76: 2270 | O76: 2409 | P76: 2516 | Q76: 2611 | R76: 2709 | S76: 2820 | T76: 2856 | U76: 2961 | V76: 3074 | W76: 3194 | X76: 3321 | Y76: 3491 | Z76: 3674 | AA76: 3113 | AB76: 3170 | AC76: 3349 | AD76: 3421 | AE76: 3476 | AF76: 3679 | AG76: 3765 | AH76: 3833 | AI76: 4061 | AJ76: 4191 | AK76: 4355 | AL76: 4432 | AM76: 4648 | AN76: 4816 | AO76: 4966 | AP76: 5060 | AQ76: 5088 | AR76: 5142 | AS76: 5277 | AT76: 5354 | AU76: 5448 | AV76: 5588 | AW76: 5657 | AX76: 5741 | AY76: 5820 | AZ76: 5869 | BA76: 5966 | BB76: 6058 | BC76: 6154 | BD76: 6302
A77: 11.4 | B77: All Gas | C77: REF | D77: REF | E77: REF | F77: Cash Paid to Suppliers and Employees | G77: -782 | H77: -822 | I77: -898 | J77: -926 | K77: -952 | L77: -981 | M77: -1000 | N77: -1011 | O77: -1033 | P77: -1060 | Q77: -1102 | R77: -1138 | S77: -1170 | T77: -1169 | U77: -1191 | V77: -1227 | W77: -1283 | X77: -1322 | Y77: -1336 | Z77: -1429 | AA77: -1480 | AB77: -1532 | AC77: -1597 | AD77: -1645 | AE77: -1679 | AF77: -1782 | AG77: -1845 | AH77: -1897 | AI77: -2013 | AJ77: -2111 | AK77: -2196 | AL77: -2248 | AM77: -2370 | AN77: -2481 | AO77: -2582 | AP77: -2674 | AQ77: -2674 | AR77: -2722 | AS77: -2771 | AT77: -2822 | AU77: -2874 | AV77: -2924 | AW77: -2975 | AX77: -3027 | AY77: -3079 | AZ77: -3133 | BA77: -3189 | BB77: -3247 | BC77: -3304 | BD77: -3360
A78: 11.4 | B78: All Gas | C78: REF | D78: REF | E78: REF | F78: Interest Paid | G78: -465 | H78: -473 | I78: -562 | J78: -626 | K78: -694 | L78: -804 | M78: -924 | N78: -905 | O78: -912 | P78: -900 | Q78: -886 | R78: -883 | S78: -883 | T78: -901 | U78: -881 | V78: -874 | W78: -864 | X78: -844 | Y78: -874 | Z78: -833 | AA78: -820 | AB78: -824 | AC78: -896 | AD78: -899 | AE78: -909 | AF78: -941 | AG78: -943 | AH78: -945 | AI78: -1007 | AJ78: -1020 | AK78: -1020 | AL78: -1022 | AM78: -1078 | AN78: -1089 | AO78: -1104 | AP78: -1092 | AQ78: -1094 | AR78: -1066 | AS78: -1043 | AT78: -1040 | AU78: -1071 | AV78: -1065 | AW78: -1043 | AX78: -1042 | AY78: -1025 | AZ78: -987 | BA78: -999 | BB78: -976 | BC78: -962 | BD78: -1002
A79: 11.4 | B79: All Gas | C79: REF | D79: REF | E79: REF | F79: Interest Received | G79: 28 | H79: 17 | I79: 24 | J79: 26 | K79: 31 | L79: 39 | M79: 41 | N79: 37 | O79: 35 | P79: 33 | Q79: 16 | R79: 14 | S79: 20 | T79: 22 | U79: 25 | V79: 33 | W79: 41 | X79: 41 | Y79: 44 | Z79: 17 | AA79: 25 | AB79: 24 | AC79: 25 | AD79: 20 | AE79: 29 | AF79: 25 | AG79: 23 | AH79: 28 | AI79: 26 | AJ79: 28 | AK79: 30 | AL79: 31 | AM79: 40 | AN79: 42 | AO79: 42 | AP79: 54 | AQ79: 49 | AR79: 43 | AS79: 39 | AT79: 48 | AU79: 56 | AV79: 49 | AW79: 45 | AX79: 43 | AY79: 42 | AZ79: 40 | BA79: 49 | BB79: 47 | BC79: 42 | BD79: 48
A80: 11.4 | B80: All Gas | C80: REF | D80: REF | E80: REF | F80: Cash from Operating Activities | G80: 474 | H80: 489 | I80: 385 | J80: 402 | K80: 399 | L80: 374 | M80: 309 | N80: 390 | O80: 499 | P80: 588 | Q80: 639 | R80: 702 | S80: 786 | T80: 807 | U80: 914 | V80: 1006 | W80: 1089 | X80: 1196 | Y80: 1325 | Z80: 1429 | AA80: 838 | AB80: 837 | AC80: 881 | AD80: 897 | AE80: 917 | AF80: 981 | AG80: 1000 | AH80: 1019 | AI80: 1067 | AJ80: 1088 | AK80: 1168 | AL80: 1193 | AM80: 1240 | AN80: 1287 | AO80: 1323 | AP80: 1348 | AQ80: 1370 | AR80: 1398 | AS80: 1501 | AT80: 1539 | AU80: 1559 | AV80: 1649 | AW80: 1683 | AX80: 1716 | AY80: 1758 | AZ80: 1790 | BA80: 1827 | BB80: 1882 | BC80: 1931 | BD80: 1988
A81: 11.4 | B81: All Gas | C81: REF | D81: REF | E81: REF
A82: 11.4 | B82: All Gas | C82: REF | D82: REF | E82: REF | F82: FINANCING ACTIVITIES
A83: 11.4 | B83: All Gas | C83: REF | D83: REF | E83: REF | F83: Proceeds from Long Term Debt | G83: 836 | H83: 2170 | I83: 1360 | J83: 1590 | K83: 1180 | L83: 1180 | M83: 790 | N83: 390 | O83: 790 | P83: 590 | Q83: 560 | R83: 190 | S83: 190 | T83: 390 | U83: -10 | V83: -10 | W83: 590 | X83: 160 | Y83: 190 | Z83: -10 | AA83: -40 | AB83: 2340 | AC83: 1320 | AD83: 2380 | AE83: 1320 | AF83: 1940 | AG83: 1580 | AH83: 950 | AI83: 1180 | AJ83: 1380 | AK83: 1130 | AL83: 770 | AM83: 380 | AN83: 180 | AO83: 170 | AP83: 180 | AQ83: -20 | AR83: -60 | AS83: 380 | AT83: 180 | AU83: -50 | AV83: 2130 | AW83: 1110 | AX83: 2180 | AY83: 910 | AZ83: 1940 | BA83: 1570 | BB83: 1350 | BC83: 980 | BD83: 1190
A84: 11.4 | B84: All Gas | C84: REF | D84: REF | E84: REF | F84: Sinking Fund Withdrawals | G84: 129 | H84: 393 | I84: 102 | J84: 26 | K84: 0 | L84: 7 | M84: 416 | N84: 156 | O84: 260 | P84: 676 | Q84: 156 | R84: 0 | S84: 0 | T84: 310 | U84: 0 | V84: 0 | W84: 60 | X84: 250 | Y84: 700 | Z84: 13 | AA84: 230 | AB84: 0 | AC84: 302 | AD84: 148 | AE84: 200 | AF84: 285 | AG84: 100 | AH84: 227 | AI84: 167 | AJ84: 168 | AK84: 171 | AL84: 50 | AM84: 0 | AN84: 400 | AO84: 0 | AP84: 0 | AQ84: 600 | AR84: 266 | AS84: 0 | AT84: 0 | AU84: 50 | AV84: 400 | AW84: 400 | AX84: 0 | AY84: 400 | AZ84: 7 | BA84: 200 | BB84: 125 | BC84: 200 | BD84: 0
A85: 11.4 | B85: All Gas | C85: REF | D85: REF | E85: REF | F85: Retirement of Long Term Debt | G85: -119 | H85: -808 | I85: -176 | J85: -312 | K85: -347 | L85: -530 | M85: -829 | N85: -306 | O85: -635 | P85: -679 | Q85: -432 | R85: 0 | S85: 0 | T85: -450 | U85: 0 | V85: 0 | W85: -60 | X85: -220 | Y85: -700 | Z85: -13 | AA85: -200 | AB85: -2179 | AC85: -1344 | AD85: -1865 | AE85: -1330 | AF85: -1700 | AG85: -1190 | AH85: -660 | AI85: -1040 | AJ85: -1040 | AK85: -840 | AL85: -240 | AM85: -190 | AN85: -390 | AO85: 10 | AP85: 10 | AQ85: -590 | AR85: -485 | AS85: -190 | AT85: 10 | AU85: -10 | AV85: -2340 | AW85: -1320 | AX85: -2380 | AY85: -1320 | AZ85: -1947 | BA85: -1580 | BB85: -1075 | BC85: -1180 | BD85: -1380
A86: 11.4 | B86: All Gas | C86: REF | D86: REF | E86: REF | F86: Other Financing Activities | G86: -42 | H86: -7 | I86: -20 | J86: -19 | K86: -17 | L86: -13 | M86: -25 | N86: -14 | O86: -57 | P86: -9 | Q86: 3 | R86: 4 | S86: 4 | T86: 3 | U86: 4 | V86: 5 | W86: 7 | X86: 8 | Y86: 9 | Z86: -10 | AA86: -10 | AB86: -10 | AC86: -10 | AD86: -10 | AE86: -8 | AF86: -8 | AG86: -8 | AH86: -9 | AI86: -9 | AJ86: -9 | AK86: -10 | AL86: -35 | AM86: -16 | AN86: -17 | AO86: -21 | AP86: -17 | AQ86: -17 | AR86: -17 | AS86: -17 | AT86: -18 | AU86: -18 | AV86: -18 | AW86: -19 | AX86: -19 | AY86: -20 | AZ86: -20 | BA86: -21 | BB86: -21 | BC86: -22 | BD86: -36
A87: 11.4 | B87: All Gas | C87: REF | D87: REF | E87: REF | F87: Cash from Financing Activities | G87: 804 | H87: 1748 | I87: 1266 | J87: 1285 | K87: 816 | L87: 643 | M87: 353 | N87: 226 | O87: 358 | P87: 578 | Q87: 287 | R87: 194 | S87: 194 | T87: 253 | U87: -6 | V87: -5 | W87: 597 | X87: 198 | Y87: 199 | Z87: -20 | AA87: -20 | AB87: 151 | AC87: 268 | AD87: 652 | AE87: 182 | AF87: 517 | AG87: 482 | AH87: 508 | AI87: 297 | AJ87: 498 | AK87: 452 | AL87: 545 | AM87: 174 | AN87: 173 | AO87: 159 | AP87: 173 | AQ87: -27 | AR87: -296 | AS87: 173 | AT87: 172 | AU87: -28 | AV87: 172 | AW87: 171 | AX87: -219 | AY87: -30 | AZ87: -20 | BA87: 169 | BB87: 379 | BC87: -22 | BD87: -226
A88: 11.4 | B88: All Gas | C88: REF | D88: REF | E88: REF
A89: 11.4 | B89: All Gas | C89: REF | D89: REF | E89: REF | F89: INVESTING ACTIVITIES
A90: 11.4 | B90: All Gas | C90: REF | D90: REF | E90: REF | F90: Property Plant and Equipment net of contributions | G90: -1379 | H90: -1914 | I90: -1752 | J90: -1340 | K90: -1078 | L90: -692 | M90: -463 | N90: -401 | O90: -569 | P90: -699 | Q90: -625 | R90: -712 | S90: -852 | T90: -681 | U90: -744 | V90: -937 | W90: -1285 | X90: -1290 | Y90: -1102 | Z90: -798 | AA90: -868 | AB90: -1037 | AC90: -1052 | AD90: -1191 | AE90: -1064 | AF90: -1188 | AG90: -1349 | AH90: -1223 | AI90: -1110 | AJ90: -1377 | AK90: -1521 | AL90: -1388 | AM90: -1121 | AN90: -1321 | AO90: -1222 | AP90: -1143 | AQ90: -1113 | AR90: -1148 | AS90: -1369 | AT90: -1485 | AU90: -1315 | AV90: -1534 | AW90: -1558 | AX90: -1393 | AY90: -1496 | AZ90: -1576 | BA90: -1760 | BB90: -2069 | BC90: -1709 | BD90: -1466
A91: 11.4 | B91: All Gas | C91: REF | D91: REF | E91: REF | F91: Sinking Fund Payment | G91: -107 | H91: -208 | I91: -124 | J91: -188 | K91: -157 | L91: -227 | M91: -189 | N91: -215 | O91: -248 | P91: -299 | Q91: -172 | R91: -166 | S91: -176 | T91: -185 | U91: -178 | V91: -185 | W91: -194 | X91: -203 | Y91: -202 | Z91: -176 | AA91: -182 | AB91: -178 | AC91: -188 | AD91: -184 | AE91: -189 | AF91: -190 | AG91: -188 | AH91: -196 | AI91: -197 | AJ91: -200 | AK91: -205 | AL91: -210 | AM91: -221 | AN91: -232 | AO91: -224 | AP91: -193 | AQ91: -203 | AR91: -181 | AS91: -174 | AT91: -182 | AU91: -191 | AV91: -196 | AW91: -185 | AX91: -173 | AY91: -179 | AZ91: -166 | BA91: -172 | BB91: -171 | BC91: -176 | BD91: -173
A92: 11.4 | B92: All Gas | C92: REF | D92: REF | E92: REF | F92: Other Investing Activities | G92: -17 | H92: -16 | I92: -21 | J92: -20 | K92: -32 | L92: -42 | M92: -28 | N92: -28 | O92: -33 | P92: -38 | Q92: -29 | R92: -32 | S92: -25 | T92: -25 | U92: -28 | V92: -26 | W92: -26 | X92: -26 | Y92: -26 | Z92: -26 | AA92: -27 | AB92: -27 | AC92: -27 | AD92: -27 | AE92: -27 | AF92: -28 | AG92: -28 | AH92: -28 | AI92: -28 | AJ92: -28 | AK92: -29 | AL92: -29 | AM92: -29 | AN92: -29 | AO92: -30 | AP92: -30 | AQ92: -30 | AR92: -30 | AS92: -31 | AT92: -30 | AU92: -15 | AV92: -15 | AW92: -14 | AX92: -14 | AY92: -13 | AZ92: -36 | BA92: -37 | BB92: -37 | BC92: -38 | BD92: -38
A93: 11.4 | B93: All Gas | C93: REF | D93: REF | E93: REF | F93: Cash from Investing Activities | G93: -1503 | H93: -2138 | I93: -1897 | J93: -1547 | K93: -1267 | L93: -960 | M93: -680 | N93: -645 | O93: -849 | P93: -1036 | Q93: -825 | R93: -911 | S93: -1053 | T93: -891 | U93: -950 | V93: -1148 | W93: -1505 | X93: -1520 | Y93: -1331 | Z93: -1000 | AA93: -1077 | AB93: -1242 | AC93: -1267 | AD93: -1402 | AE93: -1280 | AF93: -1406 | AG93: -1565 | AH93: -1448 | AI93: -1335 | AJ93: -1605 | AK93: -1754 | AL93: -1627 | AM93: -1371 | AN93: -1582 | AO93: -1476 | AP93: -1366 | AQ93: -1346 | AR93: -1360 | AS93: -1574 | AT93: -1697 | AU93: -1521 | AV93: -1744 | AW93: -1757 | AX93: -1579 | AY93: -1688 | AZ93: -1779 | BA93: -1969 | BB93: -2278 | BC93: -1923 | BD93: -1677
A94: 11.4 | B94: All Gas | C94: REF | D94: REF | E94: REF
A95: 11.4 | B95: All Gas | C95: REF | D95: REF | E95: REF | F95: Net Increase (Decrease) in Cash | G95: -225 | H95: 100 | I95: -246 | J95: 140 | K95: -52 | L95: 57 | M95: -18 | N95: -28 | O95: 7 | P95: 129 | Q95: 101 | R95: -15 | S95: -73 | T95: 169 | U95: -42 | V95: -147 | W95: 181 | X95: -126 | Y95: 193 | Z95: 409 | AA95: -259 | AB95: -253 | AC95: -117 | AD95: 147 | AE95: -182 | AF95: 92 | AG95: -83 | AH95: 79 | AI95: 29 | AJ95: -19 | AK95: -134 | AL95: 110 | AM95: 43 | AN95: -122 | AO95: 6 | AP95: 155 | AQ95: -3 | AR95: -258 | AS95: 100 | AT95: 14 | AU95: 11 | AV95: 76 | AW95: 98 | AX95: -83 | AY95: 40 | AZ95: -9 | BA95: 27 | BB95: -17 | BC95: -14 | BD95: 84
A96: 11.4 | B96: All Gas | C96: REF | D96: REF | E96: REF | F96: Cash at Beginning of Year | G96: 43 | H96: -182 | I96: -83 | J96: -329 | K96: -189 | L96: -241 | M96: -184 | N96: -203 | O96: -230 | P96: -223 | Q96: -94 | R96: 6 | S96: -8 | T96: -81 | U96: 88 | V96: 46 | W96: -101 | X96: 80 | Y96: -46 | Z96: 147 | AA96: 556 | AB96: 298 | AC96: 45 | AD96: -73 | AE96: 74 | AF96: -107 | AG96: -15 | AH96: -98 | AI96: -20 | AJ96: 9 | AK96: -10 | AL96: -144 | AM96: -33 | AN96: 9 | AO96: -112 | AP96: -106 | AQ96: 49 | AR96: 46 | AS96: -212 | AT96: -112 | AU96: -97 | AV96: -87 | AW96: -11 | AX96: 87 | AY96: 4 | AZ96: 44 | BA96: 35 | BB96: 61 | BC96: 44 | BD96: 30
A97: 11.4 | B97: All Gas | C97: REF | D97: REF | E97: REF | F97: Cash at End of Year | G97: -182 | H97: -83 | I97: -329 | J97: -189 | K97: -241 | L97: -184 | M97: -203 | N97: -230 | O97: -223 | P97: -94 | Q97: 6 | R97: -8 | S97: -81 | T97: 88 | U97: 46 | V97: -101 | W97: 80 | X97: -46 | Y97: 147 | Z97: 556 | AA97: 298 | AB97: 45 | AC97: -73 | AD97: 74 | AE97: -107 | AF97: -15 | AG97: -98 | AH97: -20 | AI97: 9 | AJ97: -10 | AK97: -144 | AL97: -33 | AM97: 9 | AN97: -112 | AO97: -106 | AP97: 49 | AQ97: 46 | AR97: -212 | AS97: -112 | AT97: -97 | AU97: -87 | AV97: -11 | AW97: 87 | AX97: 4 | AY97: 44 | AZ97: 35 | BA97: 61 | BB97: 44 | BC97: 30 | BD97: 115
A98: 11.4 | B98: All Gas | C98: REF | D98: REF | E98: REF
A99: 11.4 | B99: All Gas | C99: REF | D99: REF | E99: REF
A100: 11.4 | B100: All Gas | C100: REF | D100: REF | E100: REF
A101: 11.4 | B101: All Gas | C101: REF | D101: REF | E101: REF
A102: SP-080 | B102: All Gas | C102: REF | D102: REF | E102: REF | F102: Net Debt (from SP-080) | G102: 9664.9 | H102: 11099.3 | I102: 12578.1 | J102: 13589.3 | K102: 14334.9 | L102: 14710.1 | M102: 14920.3 | N102: 14976 | O102: 15136.4 | P102: 15289.3 | Q102: 15303.5 | R102: 15342 | S102: 15432.4 | T102: 15330.5 | U102: 15183.7 | V102: 15136 | W102: 15351.3 | X102: 15466.9 | Y102: 15263.2 | Z102: 14671.1 | AA102: 14739.8 | AB102: 14977.8 | AC102: 15187.4 | AD102: 15521 | AE102: 15705.4 | AF102: 15949.9 | AG102: 16336.3 | AH102: 16579.9 | AI102: 16660.2 | AJ102: 16986.5 | AK102: 17376.2 | AL102: 17634.1 | AM102: 17558.8 | AN102: 17636.9 | AO102: 17585.3 | AP102: 17424.9 | AQ102: 17213.3 | AR102: 17009.6 | AS102: 16925.1 | AT102: 16918.5 | AU102: 16706.5 | AV102: 16623.9 | AW102: 16531 | AX102: 16240.2 | AY102: 16010.3 | AZ102: 15853.1 | BA102: 15843.3 | BB102: 16088.5 | BC102: 15926.5 | BD102: 15478.7
A103: SP-080 | B103: K22 Gas | C103: REF | D103: REF | E103: REF | F103: Net Debt (from SP-080) | G103: 9665.17 | H103: 11100.4 | I103: 12549.4 | J103: 13586.4 | K103: 14358 | L103: 14964.4 | M103: 15656.6 | N103: 16534.2 | O103: 17595 | P103: 18543.2 | Q103: 19205.3 | R103: 19395.3 | S103: 19384.7 | T103: 19276.5 | U103: 19028.3 | V103: 18982 | W103: 19121.7 | X103: 18892.3 | Y103: 18608.3 | Z103: 18416.2 | AA103: 18642.3 | AB103: 18705.3 | AC103: 18544.7 | AD103: 18629.9 | AE103: 18868.3 | AF103: 18936.2 | AG103: 19092.4 | AH103: 19403.3 | AI103: 19681.7 | AJ103: 19622.3 | AK103: 19748.2 | AL103: 19980.9 | AM103: 20027.4 | AN103: 19933.1 | AO103: 19668.3 | AP103: 19385.7 | AQ103: 19065.2 | AR103: 18756.5 | AS103: 18424 | AT103: 18102.5 | AU103: 17782.9 | AV103: 17476.9 | AW103: 17111.1 | AX103: 16750.6 | AY103: 16312.2 | AZ103: 16060 | BA103: 15838.8 | BB103: 15420.7 | BC103: 15085.5 | BD103: 15268
A104: SP-080 | B104: Gas C26 | C104: REF | D104: REF | E104: REF | F104: Net Debt (from SP-080) | G104: 9664.9 | H104: 11100 | I104: 12590.2 | J104: 13630.3 | K104: 14443.4 | L104: 15000.1 | M104: 15438 | N104: 15781 | O104: 16253.6 | P104: 17275.9 | Q104: 18746.7 | R104: 20128.1 | S104: 21167 | T104: 21971.3 | U104: 22342.6 | V104: 22285.7 | W104: 22195.3 | X104: 21818 | Y104: 21266 | Z104: 20402.2 | AA104: 20188 | AB104: 20016.1 | AC104: 19801.3 | AD104: 19624.8 | AE104: 19597 | AF104: 19638.9 | AG104: 19539.2 | AH104: 19579.4 | AI104: 19860.3 | AJ104: 19973.9 | AK104: 20036.4 | AL104: 20031.1 | AM104: 20172.5 | AN104: 20124.2 | AO104: 19896.7 | AP104: 19646.3 | AQ104: 19353.6 | AR104: 19076.5 | AS104: 18919.1 | AT104: 18844.5 | AU104: 18561.3 | AV104: 18249.4 | AW104: 17871.2 | AX104: 17474 | AY104: 17011.6 | AZ104: 16557.4 | BA104: 16106.7 | BB104: 15626.5 | BC104: 15135.1 | BD104: 14641.7
A105: SP-080 | B105: K19 Gas 250 MW | C105: REF | D105: REF | E105: REF | F105: Net Debt (from SP-080) | G105: 9665.17 | H105: 11103.2 | I105: 12736.7 | J105: 14275.5 | K105: 15771.6 | L105: 17128.8 | M105: 18176.9 | N105: 18956.4 | O105: 19247.1 | P105: 19314.5 | Q105: 19376.3 | R105: 19410.2 | S105: 19232.1 | T105: 19075 | U105: 18787.2 | V105: 18664.6 | W105: 18818.9 | X105: 18779 | Y105: 18675.2 | Z105: 18100.1 | AA105: 17965.8 | AB105: 17834.6 | AC105: 17671.5 | AD105: 17775.3 | AE105: 18031.6 | AF105: 18118.7 | AG105: 18297.8 | AH105: 18624.5 | AI105: 18912.7 | AJ105: 18881.6 | AK105: 19021.3 | AL105: 19275.8 | AM105: 19344.4 | AN105: 19276.7 | AO105: 19029.2 | AP105: 18761.1 | AQ105: 18450.5 | AR105: 18164 | AS105: 17850.3 | AT105: 17586.1 | AU105: 17455 | AV105: 17423.9 | AW105: 17097.2 | AX105: 16692.5 | AY105: 16218.5 | AZ105: 15911.7 | BA105: 15732.8 | BB105: 15643 | BC105: 15759.2 | BD105: 15561.2
A106: SP-080 | B106: K19 C25 250 MW | C106: REF | D106: REF | E106: REF | F106: Net Debt (from SP-080) | G106: 9665.17 | H106: 11102.8 | I106: 12770 | J106: 14390.2 | K106: 16061.9 | L106: 17629.9 | M106: 18947 | N106: 20015 | O106: 21146.8 | P106: 22668.5 | Q106: 24026 | R106: 25084 | S106: 25892.7 | T106: 26450.3 | U106: 26423.6 | V106: 26167.6 | W106: 25956.9 | X106: 25486.4 | Y106: 24804.2 | Z106: 23784.9 | AA106: 23458.5 | AB106: 23163.3 | AC106: 22827.6 | AD106: 22530.4 | AE106: 22260.8 | AF106: 21995.8 | AG106: 21928.5 | AH106: 21973.2 | AI106: 21854.1 | AJ106: 21698.1 | AK106: 21600.9 | AL106: 21544.3 | AM106: 21459.9 | AN106: 21649.2 | AO106: 21353.7 | AP106: 21005.8 | AQ106: 20616.1 | AR106: 20246.9 | AS106: 19859.8 | AT106: 19517.5 | AU106: 19163.2 | AV106: 18830.4 | AW106: 18421.5 | AX106: 17982.8 | AY106: 17472.8 | AZ106: 16958.9 | BA106: 16478.1 | BB106: 15965.3 | BC106: 15489.4 | BD106: 14994.5
A107: SP-080 | B107: K19 Sales C25 750MW | C107: REF | D107: REF | E107: REF | F107: Net Debt (from SP-080) | G107: 9665.17 | H107: 11100.4 | I107: 12760.4 | J107: 14385.5 | K107: 16071.6 | L107: 17663.8 | M107: 19070.5 | N107: 20210.9 | O107: 21529.8 | P107: 23081 | Q107: 24453.4 | R107: 25543.3 | S107: 26391.8 | T107: 26984.1 | U107: 26946.7 | V107: 26640.1 | W107: 26362 | X107: 25829.5 | Y107: 25087.6 | Z107: 23993.4 | AA107: 23655.1 | AB107: 23347.9 | AC107: 23003.5 | AD107: 22695.5 | AE107: 22411.9 | AF107: 22134 | AG107: 21897.9 | AH107: 21863.3 | AI107: 21960.6 | AJ107: 21822.8 | AK107: 21709.1 | AL107: 21637.9 | AM107: 21544 | AN107: 21728.4 | AO107: 21424.3 | AP107: 21067.6 | AQ107: 20673.7 | AR107: 20297.5 | AS107: 19898 | AT107: 19552.8 | AU107: 19198.4 | AV107: 18892.1 | AW107: 18506.7 | AX107: 18084.4 | AY107: 17564.8 | AZ107: 17041.5 | BA107: 16559.8 | BB107: 16047.6 | BC107: 15568.6 | BD107: 15077.4
A108: SP-080 | B108: K19 Imp C31 750 MW | C108: REF | D108: REF | E108: REF | F108: Net Debt (from SP-080) | G108: 9665.17 | H108: 11100.4 | I108: 12762.1 | J108: 14341.5 | K108: 15847.7 | L108: 17218.2 | M108: 18391.4 | N108: 19239 | O108: 19831.5 | P108: 19895 | Q108: 19999.7 | R108: 20167.8 | S108: 20297.4 | T108: 20437.8 | U108: 21087.3 | V108: 22497.4 | W108: 23992.1 | X108: 25005.3 | Y108: 25671.6 | Z108: 25690.4 | AA108: 25903.1 | AB108: 25595.2 | AC108: 25194 | AD108: 24827.2 | AE108: 24486.2 | AF108: 24154.8 | AG108: 23858.3 | AH108: 23777 | AI108: 23812.3 | AJ108: 23624.1 | AK108: 23458.2 | AL108: 23335.4 | AM108: 23184.2 | AN108: 23317 | AO108: 22965.3 | AP108: 22557.5 | AQ108: 22111.5 | AR108: 21676.4 | AS108: 21214.2 | AT108: 20821.1 | AU108: 20421.9 | AV108: 20065.4 | AW108: 19621.4 | AX108: 19132.1 | AY108: 18544.1 | AZ108: 17949.8 | BA108: 17406.2 | BB108: 16799.6 | BC108: 16219.2 | BD108: 15598.2
A109: SP-080 | B109: K19 Imp Gas 750 MW | C109: REF | D109: REF | E109: REF | F109: Net Debt (from SP-080) | G109: 9665.17 | H109: 11100.4 | I109: 12734.1 | J109: 14276.2 | K109: 15783.3 | L109: 17156.3 | M109: 18330.7 | N109: 19195.2 | O109: 19806.1 | P109: 19897.3 | Q109: 19860 | R109: 19777.8 | S109: 19612.7 | T109: 19439.4 | U109: 19130.6 | V109: 18888.8 | W109: 18784.2 | X109: 18707.2 | Y109: 18683.1 | Z109: 18231.2 | AA109: 18213.9 | AB109: 18239.5 | AC109: 18090.9 | AD109: 17943.1 | AE109: 18072.7 | AF109: 18338.8 | AG109: 18553.8 | AH109: 18497.1 | AI109: 18473.8 | AJ109: 18573.3 | AK109: 18937.8 | AL109: 19237.8 | AM109: 19424.3 | AN109: 19366.9 | AO109: 19134.9 | AP109: 18873.9 | AQ109: 18574.1 | AR109: 18295.2 | AS109: 17993.7 | AT109: 17742.3 | AU109: 17480.7 | AV109: 17274.7 | AW109: 16973.2 | AX109: 16616.5 | AY109: 16159.6 | AZ109: 15702.1 | BA109: 15284.8 | BB109: 15169 | BC109: 15414.6 | BD109: 15240.1
A110: 11.1 | B110: All Gas | C110: REF | D110: REF | E110: REF | F110: Plan-related Net Capital Expenditures | G110: 256 | H110: 402 | I110: 196 | J110: 11 | K110: 12 | L110: 11 | M110: 0 | N110: 0 | O110: 109 | P110: 157 | Q110: 19 | R110: 89 | S110: 221 | T110: 21 | U110: 96 | V110: 139 | W110: 229 | X110: 317 | Y110: 183 | Z110: 17 | AA110: 110 | AB110: 249 | AC110: 264 | AD110: 366 | AE110: 197 | AF110: 276 | AG110: 393 | AH110: 212 | AI110: 21 | AJ110: 282 | AK110: 432 | AL110: 340 | AM110: 23 | AN110: 66 | AO110: 96 | AP110: 15 | AQ110: 0 | AR110: 20 | AS110: 167 | AT110: 235 | AU110: 55 | AV110: 157 | AW110: 227 | AX110: 37 | AY110: 189 | AZ110: 244 | BA110: 403 | BB110: 686 | BC110: 299 | BD110: 30
A111: 11.1 | B111: K22 Gas | C111: REF | D111: REF | E111: REF | F111: Plan-related Net Capital Expenditures | G111: 255 | H111: 402 | I111: 238 | J111: 123 | K111: 128 | L111: 328 | M111: 554 | N111: 901 | O111: 1078 | P111: 1015 | Q111: 768 | R111: 288 | S111: 70 | T111: 0 | U111: 0 | V111: 127 | W111: 184 | X111: 23 | Y111: 105 | Z111: 479 | AA111: 368 | AB111: 196 | AC111: 18 | AD111: 244 | AE111: 375 | AF111: 202 | AG111: 283 | AH111: 402 | AI111: 318 | AJ111: 22 | AK111: 294 | AL111: 442 | AM111: 238 | AN111: 24 | AO111: 0 | AP111: 3 | AQ111: 3 | AR111: 23 | AS111: 22 | AT111: 24 | AU111: 28 | AV111: 1 | AW111: 32 | AX111: 45 | AY111: 52 | AZ111: 212 | BA111: 250 | BB111: 77 | BC111: 185 | BD111: 697
A112: 11.1 | B112: Gas C26 | C112: REF | D112: REF | E112: REF | F112: Plan-related Net Capital Expenditures | G112: 256 | H112: 402 | I112: 244 | J112: 80 | K112: 138 | L112: 251 | M112: 293 | N112: 366 | O112: 516 | P112: 1134 | Q112: 1601 | R112: 1561 | S112: 1307 | T112: 1120 | U112: 837 | V112: 335 | W112: 56 | X112: 0 | Y112: 0 | Z112: 0 | AA112: 0 | AB112: 0 | AC112: 0 | AD112: 0 | AE112: 126 | AF112: 191 | AG112: 28 | AH112: 130 | AI112: 313 | AJ112: 167 | AK112: 199 | AL112: 175 | AM112: 318 | AN112: 33 | AO112: 5 | AP112: 0 | AQ112: 0 | AR112: 20 | AS112: 167 | AT112: 238 | AU112: 59 | AV112: 4 | AW112: 4 | AX112: 4 | AY112: 27 | AZ112: 0 | BA112: 0 | BB112: 0 | BC112: 0 | BD112: 0
A113: 11.1 | B113: K19 Gas 250 MW | C113: REF | D113: REF | E113: REF | F113: Plan-related Net Capital Expenditures | G113: 255 | H113: 405 | I113: 407 | J113: 589 | K113: 813 | L113: 1039 | M113: 879 | N113: 758 | O113: 286 | P113: 64 | Q113: 113 | R113: 164 | S113: 20 | T113: 0 | U113: 0 | V113: 98 | W113: 241 | X113: 239 | Y113: 325 | Z113: 186 | AA113: 17 | AB113: 0 | AC113: 0 | AD113: 244 | AE113: 375 | AF113: 202 | AG113: 283 | AH113: 407 | AI113: 318 | AJ113: 22 | AK113: 288 | AL113: 442 | AM113: 241 | AN113: 27 | AO113: 3 | AP113: 0 | AQ113: 0 | AR113: 27 | AS113: 23 | AT113: 57 | AU113: 220 | AV113: 281 | AW113: 84 | AX113: 12 | AY113: 35 | AZ113: 172 | BA113: 308 | BB113: 419 | BC113: 608 | BD113: 306
A114: 11.1 | B114: K19 C25 250 MW | C114: REF | D114: REF | E114: REF | F114: Plan-related Net Capital Expenditures | G114: 255 | H114: 405 | I114: 455 | J114: 708 | K114: 1044 | L114: 1320 | M114: 1230 | N114: 1149 | O114: 1249 | P114: 1656 | Q114: 1546 | R114: 1320 | S114: 1167 | T114: 936 | U114: 481 | V114: 55 | W114: 0 | X114: 4 | Y114: 0 | Z114: 0 | AA114: 0 | AB114: 0 | AC114: 0 | AD114: 4 | AE114: 1 | AF114: 0 | AG114: 163 | AH114: 240 | AI114: 30 | AJ114: 0 | AK114: 140 | AL114: 219 | AM114: 183 | AN114: 358 | AO114: 38 | AP114: 0 | AQ114: 0 | AR114: 27 | AS114: 27 | AT114: 60 | AU114: 70 | AV114: 63 | AW114: 54 | AX114: 20 | AY114: 59 | AZ114: 14 | BA114: 60 | BB114: 47 | BC114: 96 | BD114: 73
A115: 11.1 | B115: K19 Sales C25 750MW | C115: REF | D115: REF | E115: REF | F115: Plan-related Net Capital Expenditures | G115: 255 | H115: 402 | I115: 454 | J115: 712 | K115: 1058 | L115: 1342 | M115: 1328 | N115: 1234 | O115: 1405 | P115: 1656 | Q115: 1546 | R115: 1320 | S115: 1167 | T115: 936 | U115: 481 | V115: 55 | W115: 0 | X115: 4 | Y115: 0 | Z115: 0 | AA115: 0 | AB115: 0 | AC115: 0 | AD115: 4 | AE115: 0 | AF115: 1 | AG115: 0 | AH115: 171 | AI115: 241 | AJ115: 30 | AK115: 140 | AL115: 219 | AM115: 183 | AN115: 358 | AO115: 38 | AP115: 0 | AQ115: 0 | AR115: 28 | AS115: 29 | AT115: 67 | AU115: 81 | AV115: 94 | AW115: 88 | AX115: 52 | AY115: 59 | AZ115: 14 | BA115: 60 | BB115: 47 | BC115: 96 | BD115: 73
A116: 11.1 | B116: K19 Imp C31 750 MW | C116: REF | D116: REF | E116: REF | F116: Plan-related Net Capital Expenditures | G116: 255 | H116: 402 | I116: 455 | J116: 663 | K116: 870 | L116: 1106 | M116: 1076 | N116: 918 | O116: 639 | P116: 130 | Q116: 249 | R116: 375 | S116: 431 | T116: 476 | U116: 1130 | V116: 1857 | W116: 1811 | X116: 1549 | Y116: 1365 | Z116: 1067 | AA116: 548 | AB116: 64 | AC116: 0 | AD116: 0 | AE116: 0 | AF116: 1 | AG116: 0 | AH116: 171 | AI116: 241 | AJ116: 35 | AK116: 140 | AL116: 219 | AM116: 183 | AN116: 352 | AO116: 38 | AP116: 0 | AQ116: 0 | AR116: 28 | AS116: 25 | AT116: 69 | AU116: 77 | AV116: 91 | AW116: 82 | AX116: 43 | AY116: 39 | AZ116: 4 | BA116: 41 | BB116: 11 | BC116: 44 | BD116: 10
A117: 11.1 | B117: K19 Imp Gas 750 MW | C117: REF | D117: REF | E117: REF | F117: Plan-related Net Capital Expenditures | G117: 255 | H117: 402 | I117: 408 | J117: 595 | K117: 828 | L117: 1061 | M117: 1025 | N117: 864 | O117: 578 | P117: 64 | Q117: 0 | R117: 0 | S117: 0 | T117: 0 | U117: 0 | V117: 0 | W117: 0 | X117: 239 | Y117: 459 | Z117: 305 | AA117: 135 | AB117: 160 | AC117: 26 | AD117: 0 | AE117: 250 | AF117: 384 | AG117: 305 | AH117: 25 | AI117: 0 | AJ117: 137 | AK117: 487 | AL117: 474 | AM117: 351 | AN117: 27 | AO117: 3 | AP117: 0 | AQ117: 0 | AR117: 28 | AS117: 25 | AT117: 63 | AU117: 77 | AV117: 91 | AW117: 82 | AX117: 43 | AY117: 35 | AZ117: 0 | BA117: 36 | BB117: 368 | BC117: 747 | BD117: 353
A118: 1PUB-088b | B118: All Gas | C118: REF | D118: REF | E118: REF | F118: Capitalized Interest | G118: 143 | H118: 161 | I118: 134 | J118: 153 | K118: 170 | L118: 118 | M118: 12 | N118: 13 | O118: 18 | P118: 22 | Q118: 19 | R118: 26 | S118: 37 | T118: 28 | U118: 36 | V118: 45 | W118: 67 | X118: 100 | Y118: 70 | Z118: 33 | AA118: 40 | AB118: 47 | AC118: 20 | AD118: 39 | AE118: 60 | AF118: 38 | AG118: 53 | AH118: 76 | AI118: 24 | AJ118: 27 | AK118: 53 | AL118: 78 | AM118: 44 | AN118: 42 | AO118: 21 | AP118: 17 | AQ118: 15 | AR118: 15 | AS118: 31 | AT118: 42 | AU118: 26 | AV118: 28 | AW118: 38 | AX118: 28 | AY118: 27 | AZ118: 39 | BA118: 37 | BB118: 59 | BC118: 86 | BD118: 36
A119: 1PUB-088b | B119: K22 Gas | C119: REF | D119: REF | E119: REF | F119: Capitalized Interest | G119: 142 | H119: 161 | I119: 191 | J119: 231 | K119: 256 | L119: 190 | M119: 107 | N119: 151 | O119: 214 | P119: 277 | Q119: 313 | R119: 114 | S119: 28 | T119: 26 | U119: 33 | V119: 39 | W119: 69 | X119: 81 | Y119: 37 | Z119: 42 | AA119: 62 | AB119: 73 | AC119: 19 | AD119: 21 | AE119: 43 | AF119: 66 | AG119: 43 | AH119: 58 | AI119: 60 | AJ119: 29 | AK119: 32 | AL119: 58 | AM119: 85 | AN119: 50 | AO119: 15 | AP119: 15 | AQ119: 15 | AR119: 15 | AS119: 27 | AT119: 28 | AU119: 23 | AV119: 24 | AW119: 24 | AX119: 27 | AY119: 28 | AZ119: 29 | BA119: 40 | BB119: 28 | BC119: 29 | BD119: 53
A120: 1PUB-088b | B120: Gas C26 | C120: REF | D120: REF | E120: REF | F120: Capitalized Interest | G120: 143 | H120: 161 | I120: 150 | J120: 180 | K120: 204 | L120: 162 | M120: 71 | N120: 94 | O120: 128 | P120: 165 | Q120: 234 | R120: 333 | S120: 423 | T120: 498 | U120: 438 | V120: 209 | W120: 63 | X120: 79 | Y120: 34 | Z120: 26 | AA120: 38 | AB120: 36 | AC120: 11 | AD120: 15 | AE120: 22 | AF120: 35 | AG120: 30 | AH120: 35 | AI120: 28 | AJ120: 27 | AK120: 38 | AL120: 37 | AM120: 49 | AN120: 44 | AO120: 15 | AP120: 15 | AQ120: 15 | AR120: 15 | AS120: 31 | AT120: 42 | AU120: 26 | AV120: 24 | AW120: 23 | AX120: 24 | AY120: 22 | AZ120: 23 | BA120: 23 | BB120: 24 | BC120: 24 | BD120: 24
A121: 1PUB-088b | B121: K19 Gas 250 MW | C121: REF | D121: REF | E121: REF | F121: Capitalized Interest | G121: 142 | H121: 161 | I121: 168 | J121: 217 | K121: 273 | L121: 274 | M121: 228 | N121: 261 | O121: 97 | P121: 14 | Q121: 20 | R121: 32 | S121: 30 | T121: 26 | U121: 33 | V121: 38 | W121: 68 | X121: 87 | Y121: 56 | Z121: 61 | AA121: 44 | AB121: 36 | AC121: 11 | AD121: 21 | AE121: 43 | AF121: 66 | AG121: 43 | AH121: 58 | AI121: 60 | AJ121: 29 | AK121: 32 | AL121: 58 | AM121: 85 | AN121: 50 | AO121: 15 | AP121: 15 | AQ121: 15 | AR121: 15 | AS121: 27 | AT121: 29 | AU121: 30 | AV121: 45 | AW121: 29 | AX121: 26 | AY121: 23 | AZ121: 27 | BA121: 40 | BB121: 38 | BC121: 61 | BD121: 87
A122: 1PUB-088b | B122: K19 C25 250 MW | C122: REF | D122: REF | E122: REF | F122: Capitalized Interest | G122: 142 | H122: 161 | I122: 184 | J122: 246 | K122: 313 | L122: 329 | M122: 301 | N122: 358 | O122: 242 | P122: 224 | Q122: 318 | R122: 411 | S122: 489 | T122: 435 | U122: 227 | V122: 40 | W122: 59 | X122: 79 | Y122: 34 | Z122: 26 | AA122: 38 | AB122: 36 | AC122: 11 | AD122: 15 | AE122: 19 | AF122: 23 | AG122: 32 | AH122: 45 | AI122: 18 | AJ122: 20 | AK122: 28 | AL122: 43 | AM122: 42 | AN122: 55 | AO122: 18 | AP122: 15 | AQ122: 15 | AR122: 15 | AS122: 27 | AT122: 29 | AU122: 26 | AV122: 30 | AW122: 26 | AX122: 26 | AY122: 24 | AZ122: 25 | BA122: 27 | BB122: 29 | BC122: 32 | BD122: 36
A123: 1PUB-088b | B123: K19 Sales C25 750MW | C123: REF | D123: REF | E123: REF | F123: Capitalized Interest | G123: 142 | H123: 161 | I123: 184 | J123: 246 | K123: 313 | L123: 330 | M123: 306 | N123: 369 | O123: 240 | P123: 224 | Q123: 318 | R123: 411 | S123: 489 | T123: 435 | U123: 227 | V123: 40 | W123: 59 | X123: 79 | Y123: 34 | Z123: 26 | AA123: 38 | AB123: 36 | AC123: 11 | AD123: 15 | AE123: 19 | AF123: 23 | AG123: 27 | AH123: 36 | AI123: 28 | AJ123: 23 | AK123: 28 | AL123: 43 | AM123: 42 | AN123: 55 | AO123: 18 | AP123: 15 | AQ123: 15 | AR123: 15 | AS123: 28 | AT123: 30 | AU123: 27 | AV123: 32 | AW123: 30 | AX123: 25 | AY123: 24 | AZ123: 25 | BA123: 27 | BB123: 29 | BC123: 32 | BD123: 36
A124: 1PUB-088b | B124: K19 Imp C31 750 MW | C124: REF | D124: REF | E124: REF | F124: Capitalized Interest | G124: 142 | H124: 161 | I124: 184 | J124: 245 | K124: 305 | L124: 309 | M124: 270 | N124: 316 | O124: 142 | P124: 60 | Q124: 72 | R124: 97 | S124: 125 | T124: 151 | U124: 203 | V124: 291 | W124: 426 | X124: 545 | Y124: 585 | Z124: 486 | AA124: 257 | AB124: 41 | AC124: 11 | AD124: 15 | AE124: 19 | AF124: 23 | AG124: 27 | AH124: 36 | AI124: 28 | AJ124: 23 | AK124: 28 | AL124: 43 | AM124: 42 | AN124: 55 | AO124: 18 | AP124: 15 | AQ124: 15 | AR124: 15 | AS124: 27 | AT124: 30 | AU124: 27 | AV124: 32 | AW124: 30 | AX124: 25 | AY124: 23 | AZ124: 23 | BA124: 24 | BB124: 24 | BC124: 25 | BD124: 25
A125: 1PUB-088b | B125: K19 Imp Gas 750 MW | C125: REF | D125: REF | E125: REF | F125: Capitalized Interest | G125: 142 | H125: 161 | I125: 168 | J125: 217 | K125: 274 | L125: 276 | M125: 234 | N125: 276 | O125: 96 | P125: 14 | Q125: 17 | R125: 23 | S125: 28 | T125: 26 | U125: 33 | V125: 36 | W125: 59 | X125: 85 | Y125: 58 | Z125: 41 | AA125: 43 | AB125: 47 | AC125: 14 | AD125: 15 | AE125: 25 | AF125: 48 | AG125: 71 | AH125: 40 | AI125: 15 | AJ125: 23 | AK125: 45 | AL125: 62 | AM125: 85 | AN125: 50 | AO125: 15 | AP125: 15 | AQ125: 15 | AR125: 15 | AS125: 27 | AT125: 30 | AU125: 27 | AV125: 32 | AW125: 30 | AX125: 25 | AY125: 23 | AZ125: 23 | BA125: 24 | BB125: 33 | BC125: 64 | BD125: 51
A126: 1PUB-081a | B126: All Gas | C126: REF | D126: REF | E126: REF | F126: Gross Interest | G126: 533 | H126: 522 | I126: 586 | J126: 647 | K126: 723 | L126: 752 | M126: 762 | N126: 753 | O126: 754 | P126: 742 | Q126: 733 | R126: 754 | S126: 767 | T126: 766 | U126: 756 | V126: 758 | W126: 771 | X126: 779 | Y126: 778 | Z126: 708
A127: 1PUB-081a | B127: All Gas | C127: REF | D127: REF | E127: REF | F127: Provincial Guarantee Fee | G127: 93 | H127: 102 | I127: 114 | J127: 129 | K127: 141 | L127: 150 | M127: 156 | N127: 157 | O127: 158 | P127: 160 | Q127: 158 | R127: 159 | S127: 162 | T127: 164 | U127: 162 | V127: 162 | W127: 164 | X127: 168 | Y127: 168 | Z127: 162
A128: 1PUB-081a | B128: All Gas | C128: REF | D128: REF | E128: REF | F128: Interest Income + Interest Allocated to Construction | G128: -175 | H128: -184 | I128: -164 | J128: -186 | K128: -206 | L128: -165 | M128: -62 | N128: -60 | O128: -63 | P128: -65 | Q128: -47 | R128: -54 | S128: -71 | T128: -65 | U128: -75 | V128: -93 | W128: -124 | X128: -158 | Y128: -131 | Z128: -68
A129: 1PUB-081a | B129: Gas C26 | C129: REF | D129: REF | E129: REF | F129: Gross Interest | G129: 533 | H129: 523 | I129: 591 | J129: 653 | K129: 729 | L129: 763 | M129: 792 | N129: 798 | O129: 817 | P129: 836 | Q129: 886 | R129: 980 | S129: 1055 | T129: 1107 | U129: 1137 | V129: 1160 | W129: 1171 | X129: 1166 | Y129: 1148 | Z129: 1068
A130: 1PUB-081a | B130: Gas C26 | C130: REF | D130: REF | E130: REF | F130: Provincial Guarantee Fee | G130: 93 | H130: 102 | I130: 114 | J130: 129 | K130: 141 | L130: 151 | M130: 159 | N130: 162 | O130: 166 | P130: 171 | Q130: 178 | R130: 193 | S130: 210 | T130: 223 | U130: 229 | V130: 235 | W130: 238 | X130: 239 | Y130: 237 | Z130: 230
A131: 1PUB-081a | B131: Gas C26 | C131: REF | D131: REF | E131: REF | F131: Interest Income + Interest Allocated to Construction | G131: -175 | H131: -184 | I131: -180 | J131: -214 | K131: -239 | L131: -209 | M131: -121 | N131: -141 | O131: -173 | P131: -208 | Q131: -262 | R131: -362 | S131: -459 | T131: -538 | U131: -481 | V131: -265 | W131: -131 | X131: -152 | Y131: -115 | Z131: -84
A132: 1PUB-081a | B132: K22 Gas | C132: REF | D132: REF | E132: REF | F132: Gross Interest | G132: 533 | H132: 523 | I132: 590 | J132: 652 | K132: 727 | L132: 760 | M132: 788 | N132: 815 | O132: 861 | P132: 896 | Q132: 930 | R132: 976 | S132: 996 | T132: 992 | U132: 979 | V132: 980 | W132: 992 | X132: 993 | Y132: 983 | Z132: 920
A133: 1PUB-081a | B133: K22 Gas | C133: REF | D133: REF | E133: REF | F133: Provincial Guarantee Fee | G133: 93 | H133: 102 | I133: 114 | J133: 128 | K133: 141 | L133: 150 | M133: 159 | N133: 164 | O133: 174 | P133: 185 | Q133: 191 | R133: 198 | S133: 203 | T133: 205 | U133: 202 | V133: 204 | W133: 204 | X133: 207 | Y133: 205 | Z133: 200
A134: 1PUB-081a | B134: K22 Gas | C134: REF | D134: REF | E134: REF | F134: Interest Income + Interest Allocated to Construction | G134: -175 | H134: -183 | I134: -221 | J134: -264 | K134: -292 | L134: -237 | M134: -157 | N134: -198 | O134: -260 | P134: -321 | Q134: -341 | R134: -143 | S134: -65 | T134: -68 | U134: -78 | V134: -95 | W134: -136 | X134: -152 | Y134: -114 | Z134: -94
A135: 1PUB-081a | B135: K19 Sales C25 750MW | C135: REF | D135: REF | E135: REF | F135: Gross Interest | G135: 533 | H135: 523 | I135: 592 | J135: 668 | K135: 778 | L135: 868 | M135: 944 | N135: 1001 | O135: 1064 | P135: 1126 | Q135: 1187 | R135: 1277 | S135: 1345 | T135: 1390 | U135: 1406 | V135: 1414 | W135: 1418 | X135: 1406 | Y135: 1383 | Z135: 1299
A136: 1PUB-081a | B136: K19 Sales C25 750MW | C136: REF | D136: REF | E136: REF | F136: Provincial Guarantee Fee | G136: 93 | H136: 102 | I136: 114 | J136: 131 | K136: 149 | L136: 168 | M136: 186 | N136: 199 | O136: 211 | P136: 224 | Q136: 236 | R136: 250 | S136: 266 | T136: 276 | U136: 281 | V136: 283 | W136: 284 | X136: 285 | Y136: 283 | Z136: 276
A137: 1PUB-081a | B137: K19 Sales C25 750MW | C137: REF | D137: REF | E137: REF | F137: Interest Income + Interest Allocated to Construction | G137: -175 | H137: -183 | I137: -214 | J137: -280 | K137: -349 | L137: -377 | M137: -356 | N137: -417 | O137: -285 | P137: -267 | Q137: -348 | R137: -445 | S137: -533 | T137: -484 | U137: -284 | V137: -113 | W137: -148 | X137: -176 | Y137: -143 | Z137: -116
A138: 1PUB-081a | B138: K19 Gas 250 MW | C138: REF | D138: REF | E138: REF | F138: Gross Interest | G138: 533 | H138: 523 | I138: 591 | J138: 664 | K138: 769 | L138: 842 | M138: 902 | N138: 940 | O138: 967 | P138: 963 | Q138: 948 | R138: 973 | S138: 984 | T138: 976 | U138: 964 | V138: 963 | W138: 972 | X138: 979 | Y138: 979 | Z138: 918
A139: 1PUB-081a | B139: K19 Gas 250 MW | C139: REF | D139: REF | E139: REF | F139: Provincial Guarantee Fee | G139: 93 | H139: 102 | I139: 114 | J139: 130 | K139: 148 | L139: 165 | M139: 181 | N139: 190 | O139: 198 | P139: 201 | Q139: 198 | R139: 200 | S139: 204 | T139: 204 | U139: 201 | V139: 202 | W139: 202 | X139: 205 | Y139: 204 | Z139: 204
A140: 1PUB-081a | B140: K19 Gas 250 MW | C140: REF | D140: REF | E140: REF | F140: Interest Income + Interest Allocated to Construction | G140: -175 | H140: -183 | I140: -199 | J140: -251 | K140: -309 | L140: -321 | M140: -278 | N140: -309 | O140: -143 | P140: -57 | Q140: -50 | R140: -64 | S140: -70 | T140: -70 | U140: -85 | V140: -101 | W140: -143 | X140: -164 | Y140: -139 | Z140: -120
A141: 1PUB-081a | B141: K19 C25 250 MW | C141: REF | D141: REF | E141: REF | F141: Gross Interest | G141: 533 | H141: 523 | I141: 590 | J141: 667 | K141: 777 | L141: 866 | M141: 938 | N141: 991 | O141: 1047 | P141: 1103 | Q141: 1162 | R141: 1251 | S141: 1318 | T141: 1359 | U141: 1375 | V141: 1386 | W141: 1389 | X141: 1380 | Y141: 1362 | Z141: 1280
A142: 1PUB-081a | B142: K19 C25 250 MW | C142: REF | D142: REF | E142: REF | F142: Provincial Guarantee Fee | G142: 93 | H142: 102 | I142: 114 | J142: 131 | K142: 149 | L142: 168 | M142: 186 | N142: 197 | O142: 209 | P142: 220 | Q142: 232 | R142: 246 | S142: 261 | T142: 271 | U142: 275 | V142: 278 | W142: 280 | X142: 279 | Y142: 277 | Z142: 272
A143: 1PUB-081a | B143: K19 C25 250 MW | C143: REF | D143: REF | E143: REF | F143: Interest Income + Interest Allocated to Construction | G143: -175 | H143: -183 | I143: -215 | J143: -280 | K143: -349 | L143: -376 | M143: -351 | N143: -406 | O143: -287 | P143: -267 | Q143: -348 | R143: -444 | S143: -533 | T143: -483 | U143: -283 | V143: -111 | W143: -146 | X143: -174 | Y143: -140 | Z143: -113
A144: 1PUB-081a | B144: K19 Imp C31 750 MW | C144: REF | D144: REF | E144: REF | F144: Gross Interest | G144: 533 | H144: 523 | I144: 592 | J144: 667 | K144: 772 | L144: 844 | M144: 908 | N144: 950 | O144: 986 | P144: 991 | Q144: 977 | R144: 1013 | S144: 1035 | T144: 1042 | U144: 1060 | V144: 1122 | W144: 1210 | X144: 1281 | Y144: 1335 | Z144: 1317
A145: 1PUB-081a | B145: K19 Imp C31 750 MW | C145: REF | D145: REF | E145: REF | F145: Provincial Guarantee Fee | G145: 93 | H145: 102 | I145: 114 | J145: 131 | K145: 148 | L145: 165 | M145: 182 | N145: 192 | O145: 201 | P145: 207 | Q145: 204 | R145: 206 | S145: 211 | T145: 214 | U145: 214 | V145: 223 | W145: 240 | X145: 257 | Y145: 268 | Z145: 276
A146: 1PUB-081a | B146: K19 Imp C31 750 MW | C146: REF | D146: REF | E146: REF | F146: Interest Income + Interest Allocated to Construction | G146: -175 | H146: -183 | I146: -214 | J146: -279 | K146: -341 | L146: -356 | M146: -320 | N146: -364 | O146: -188 | P146: -104 | Q146: -102 | R146: -129 | S146: -166 | T146: -196 | U146: -257 | V146: -357 | W146: -504 | X146: -628 | Y146: -677 | Z146: -558
A147: 1PUB-081a | B147: K19 Imp Gas 750 MW | C147: REF | D147: REF | E147: REF | F147: Gross Interest | G147: 533 | H147: 523 | I147: 591 | J147: 665 | K147: 769 | L147: 843 | M147: 907 | N147: 949 | O147: 987 | P147: 993 | Q147: 977 | R147: 994 | S147: 1002 | T147: 994 | U147: 982 | V147: 979 | W147: 980 | X147: 976 | Y147: 976 | Z147: 920
A148: 1PUB-081a | B148: K19 Imp Gas 750 MW | C148: REF | D148: REF | E148: REF | F148: Provincial Guarantee Fee | G148: 93 | H148: 102 | I148: 114 | J148: 130 | K148: 148 | L148: 165 | M148: 181 | N148: 191 | O148: 200 | P148: 207 | Q148: 204 | R148: 204 | S148: 207 | T148: 208 | U148: 204 | V148: 206 | W148: 206 | X148: 205 | Y148: 204 | Z148: 204
A149: 1PUB-081a | B149: K19 Imp Gas 750 MW | C149: REF | D149: REF | E149: REF | F149: Interest Income + Interest Allocated to Construction | G149: -175 | H149: -183 | I149: -199 | J149: -251 | K149: -310 | L149: -323 | M149: -284 | N149: -324 | O149: -142 | P149: -57 | Q149: -47 | R149: -56 | S149: -69 | T149: -71 | U149: -86 | V149: -100 | W149: -135 | X149: -165 | Y149: -143 | Z149: -102

Sheet Imports
A1: PLAN "A" (use yellow dropdown menu to select plan)
A2: Development Plan | C2: All Gas | G2: Nominal Discount Rate | J2: 0.0705 | L2: Target Year for 75/25 d/e: | O2: 2032 | P2: Target Int Coverage ratio: | R2: 1.2 | T2: Analyze Sunk Costs | V2: No
A3: Development Plan Scenario | C3: Economics:REF Rev:REF Cap:REF | D3: Import Case Adjustment | F3: Yes | G3: Total Rate Increase (MH pro forma) | J3: =NPV($J$2,C10:AZ10) -> 11208.7414 | N3: Column | O3: =HLOOKUP(O2,$C$221:$AZ$222,2,FALSE) -> V | P3: Rev % incr: | Q3: 0.03348759594 | BD3: Yes
A4: ELECTRIC OPERATIONS | D4: Default Load Growth? | F4: Yes | G4: Total Rate Increase (adjusted) | J4: =NPV($J$2,C11:AZ11) -> 10182.91975 | N4: Row | O4: =ROW(A63) -> 63 | BD4: No
A5: PROJECTED OPERATING STATEMENT | D5: Load Growth Change (%) | F5: 0 | G5: Equiv. Even-Ann Rate Increase (MH) | J5: =(AZ59+1)^(1/49)-1 -> 0.02096378899 | N5: Ref: | O5: =INDIRECT(O3&O4) -> 75.00015252 | AL5: CAGR 2012-2048
A6: In Millions of Dollars | D6: Apply Load Gr Post 2047 | F6: No | G6: Equiv. Even-Ann Rate Increase (adjusted) | J6: =(AZ60+1)^(1/49)-1 -> 0.01867703357 | AL6: =RATE(35,,-C9,AL9) -> 0.01349748045
A7: For the year ended March 31 | C7: 2013 | D7: 2014 | E7: 2015 | F7: 2016 | G7: 2017 | H7: 2018 | I7: 2019 | J7: 2020 | K7: 2021 | L7: 2022 | M7: 2023 | N7: 2024 | O7: 2025 | P7: 2026 | Q7: 2027 | R7: 2028 | S7: 2029 | T7: 2030 | U7: 2031 | V7: 2032 | W7: 2033 | X7: 2034 | Y7: 2035 | Z7: 2036 | AA7: 2037 | AB7: 2038 | AC7: 2039 | AD7: 2040 | AE7: 2041 | AF7: 2042 | AG7: 2043 | AH7: 2044 | AI7: 2045 | AJ7: 2046 | AK7: 2047 | AL7: 2048 | AM7: 2049 | AN7: 2050 | AO7: 2051 | AP7: 2052 | AQ7: 2053 | AR7: 2054 | AS7: 2055 | AT7: 2056 | AU7: 2057 | AV7: 2058 | AW7: 2059 | AX7: 2060 | AY7: 2061 | AZ7: 2062
A8: REVENUES
A9: General Consumers Revenue at approved rates | C9: =SUMIFS(DATA!G$3:G$101,DATA!$F$3:$F$101,$A9,DATA!$B$3:$B$101,$C$2) -> 1331 | D9: =IF($F$4="Yes",SUMIFS(DATA!H$3:H$101,DATA!$F$3:$F$101,$A9,DATA!$B$3:$B$101,$C$2),C9*((1+(D158*(1+$F$5))))) -> 1361 | E9: =IF($F$4="Yes",SUMIFS(DATA!I$3:I$101,DATA!$F$3:$F$101,$A9,DATA!$B$3:$B$101,$C$2),D9*((1+(E158*(1+$F$5))))) -> 1374 | F9: =IF($F$4="Yes",SUMIFS(DATA!J$3:J$101,DATA!$F$3:$F$101,$A9,DATA!$B$3:$B$101,$C$2),E9*((1+(F158*(1+$F$5))))) -> 1390 | G9: =IF($F$4="Yes",SUMIFS(DATA!K$3:K$101,DATA!$F$3:$F$101,$A9,DATA!$B$3:$B$101,$C$2),F9*((1+(G158*(1+$F$5))))) -> 1404 | H9: =IF($F$4="Yes",SUMIFS(DATA!L$3:L$101,DATA!$F$3:$F$101,$A9,DATA!$B$3:$B$101,$C$2),G9*((1+(H158*(1+$F$5))))) -> 1424 | I9: =IF($F$4="Yes",SUMIFS(DATA!M$3:M$101,DATA!$F$3:$F$101,$A9,DATA!$B$3:$B$101,$C$2),H9*((1+(I158*(1+$F$5))))) -> 1447 | J9: =IF($F$4="Yes",SUMIFS(DATA!N$3:N$101,DATA!$F$3:$F$101,$A9,DATA!$B$3:$B$101,$C$2),I9*((1+(J158*(1+$F$5))))) -> 1462 | K9: =IF($F$4="Yes",SUMIFS(DATA!O$3:O$101,DATA!$F$3:$F$101,$A9,DATA!$B$3:$B$101,$C$2),J9*((1+(K158*(1+$F$5))))) -> 1485 | L9: =IF($F$4="Yes",SUMIFS(DATA!P$3:P$101,DATA!$F$3:$F$101,$A9,DATA!$B$3:$B$101,$C$2),K9*((1+(L158*(1+$F$5))))) -> 1506 | M9: =IF($F$4="Yes",SUMIFS(DATA!Q$3:Q$101,DATA!$F$3:$F$101,$A9,DATA!$B$3:$B$101,$C$2),L9*((1+(M158*(1+$F$5))))) -> 1529 | N9: =IF($F$4="Yes",SUMIFS(DATA!R$3:R$101,DATA!$F$3:$F$101,$A9,DATA!$B$3:$B$101,$C$2),M9*((1+(N158*(1+$F$5))))) -> 1552 | O9: =IF($F$4="Yes",SUMIFS(DATA!S$3:S$101,DATA!$F$3:$F$101,$A9,DATA!$B$3:$B$101,$C$2),N9*((1+(O158*(1+$F$5))))) -> 1575 | P9: =IF($F$4="Yes",SUMIFS(DATA!T$3:T$101,DATA!$F$3:$F$101,$A9,DATA!$B$3:$B$101,$C$2),O9*((1+(P158*(1+$F$5))))) -> 1598 | Q9: =IF($F$4="Yes",SUMIFS(DATA!U$3:U$101,DATA!$F$3:$F$101,$A9,DATA!$B$3:$B$101,$C$2),P9*((1+(Q158*(1+$F$5))))) -> 1621 | R9: =IF($F$4="Yes",SUMIFS(DATA!V$3:V$101,DATA!$F$3:$F$101,$A9,DATA!$B$3:$B$101,$C$2),Q9*((1+(R158*(1+$F$5))))) -> 1644 | S9: =IF($F$4="Yes",SUMIFS(DATA!W$3:W$101,DATA!$F$3:$F$101,$A9,DATA!$B$3:$B$101,$C$2),R9*((1+(S158*(1+$F$5))))) -> 1669 | T9: =IF($F$4="Yes",SUMIFS(DATA!X$3:X$101,DATA!$F$3:$F$101,$A9,DATA!$B$3:$B$101,$C$2),S9*((1+(T158*(1+$F$5))))) -> 1693 | U9: =IF($F$4="Yes",SUMIFS(DATA!Y$3:Y$101,DATA!$F$3:$F$101,$A9,DATA!$B$3:$B$101,$C$2),T9*((1+(U158*(1+$F$5))))) -> 1717 | V9: =IF($F$4="Yes",SUMIFS(DATA!Z$3:Z$101,DATA!$F$3:$F$101,$A9,DATA!$B$3:$B$101,$C$2),U9*((1+(V158*(1+$F$5))))) -> 1741 | W9: =IF($F$4="Yes",SUMIFS(DATA!AA$3:AA$101,DATA!$F$3:$F$101,$A9,DATA!$B$3:$B$101,$C$2),V9*((1+(W158*(1+$F$5))))) -> 1765 | X9: =IF($F$4="Yes",SUMIFS(DATA!AB$3:AB$101,DATA!$F$3:$F$101,$A9,DATA!$B$3:$B$101,$C$2),W9*((1+(X158*(1+$F$5))))) -> 1790 | Y9: =IF($F$4="Yes",SUMIFS(DATA!AC$3:AC$101,DATA!$F$3:$F$101,$A9,DATA!$B$3:$B$101,$C$2),X9*((1+(Y158*(1+$F$5))))) -> 1814 | Z9: =IF($F$4="Yes",SUMIFS(DATA!AD$3:AD$101,DATA!$F$3:$F$101,$A9,DATA!$B$3:$B$101,$C$2),Y9*((1+(Z158*(1+$F$5))))) -> 1838 | AA9: =IF($F$4="Yes",SUMIFS(DATA!AE$3:AE$101,DATA!$F$3:$F$101,$A9,DATA!$B$3:$B$101,$C$2),Z9*((1+(AA158*(1+$F$5))))) -> 1862 | AB9: =IF($F$4="Yes",SUMIFS(DATA!AF$3:AF$101,DATA!$F$3:$F$101,$A9,DATA!$B$3:$B$101,$C$2),AA9*((1+(AB158*(1+$F$5))))) -> 1886 | AC9: =IF($F$4="Yes",SUMIFS(DATA!AG$3:AG$101,DATA!$F$3:$F$101,$A9,DATA!$B$3:$B$101,$C$2),AB9*((1+(AC158*(1+$F$5))))) -> 1910 | AD9: =IF($F$4="Yes",SUMIFS(DATA!AH$3:AH$101,DATA!$F$3:$F$101,$A9,DATA!$B$3:$B$101,$C$2),AC9*((1+(AD158*(1+$F$5))))) -> 1935 | AE9: =IF($F$4="Yes",SUMIFS(DATA!AI$3:AI$101,DATA!$F$3:$F$101,$A9,DATA!$B$3:$B$101,$C$2),AD9*((1+(AE158*(1+$F$5))))) -> 1959 | AF9: =IF($F$4="Yes",SUMIFS(DATA!AJ$3:AJ$101,DATA!$F$3:$F$101,$A9,DATA!$B$3:$B$101,$C$2),AE9*((1+(AF158*(1+$F$5))))) -> 1983 | AG9: =IF($F$4="Yes",SUMIFS(DATA!AK$3:AK$101,DATA!$F$3:$F$101,$A9,DATA!$B$3:$B$101,$C$2),AF9*((1+(AG158*(1+$F$5))))) -> 2007 | AH9: =IF($F$4="Yes",SUMIFS(DATA!AL$3:AL$101,DATA!$F$3:$F$101,$A9,DATA!$B$3:$B$101,$C$2),AG9*((1+(AH158*(1+$F$5))))) -> 2031 | AI9: =IF($F$4="Yes",SUMIFS(DATA!AM$3:AM$101,DATA!$F$3:$F$101,$A9,DATA!$B$3:$B$101,$C$2),AH9*((1+(AI158*(1+$F$5))))) -> 2056 | AJ9: =IF($F$4="Yes",SUMIFS(DATA!AN$3:AN$101,DATA!$F$3:$F$101,$A9,DATA!$B$3:$B$101,$C$2),AI9*((1+(AJ158*(1+$F$5))))) -> 2080 | AK9: =IF($F$4="Yes",SUMIFS(DATA!AO$3:AO$101,DATA!$F$3:$F$101,$A9,DATA!$B$3:$B$101,$C$2),AJ9*((1+(AK158*(1+$F$5))))) -> 2104 | AL9: =IF($F$4="Yes",SUMIFS(DATA!AP$3:AP$101,DATA!$F$3:$F$101,$A9,DATA!$B$3:$B$101,$C$2),AK9*((1+(AL158*(1+$F$5))))) -> 2128 | AM9: =IF($F$4="Yes",SUMIFS(DATA!AQ$3:AQ$101,DATA!$F$3:$F$101,$A9,DATA!$B$3:$B$101,$C$2),IF($F$6="No",$AL$9,AL9*(1+$AL$6))) -> 2128 | AN9: =IF($F$4="Yes",SUMIFS(DATA!AR$3:AR$101,DATA!$F$3:$F$101,$A9,DATA!$B$3:$B$101,$C$2),IF($F$6="No",$AL$9,AM9*(1+$AL$6))) -> 2128 | AO9: =IF($F$4="Yes",SUMIFS(DATA!AS$3:AS$101,DATA!$F$3:$F$101,$A9,DATA!$B$3:$B$101,$C$2),IF($F$6="No",$AL$9,AN9*(1+$AL$6))) -> 2128 | AP9: =IF($F$4="Yes",SUMIFS(DATA!AT$3:AT$101,DATA!$F$3:$F$101,$A9,DATA!$B$3:$B$101,$C$2),IF($F$6="No",$AL$9,AO9*(1+$AL$6))) -> 2128 | AQ9: =IF($F$4="Yes",SUMIFS(DATA!AU$3:AU$101,DATA!$F$3:$F$101,$A9,DATA!$B$3:$B$101,$C$2),IF($F$6="No",$AL$9,AP9*(1+$AL$6))) -> 2128 | AR9: =IF($F$4="Yes",SUMIFS(DATA!AV$3:AV$101,DATA!$F$3:$F$101,$A9,DATA!$B$3:$B$101,$C$2),IF($F$6="No",$AL$9,AQ9*(1+$AL$6))) -> 2128 | AS9: =IF($F$4="Yes",SUMIFS(DATA!AW$3:AW$101,DATA!$F$3:$F$101,$A9,DATA!$B$3:$B$101,$C$2),IF($F$6="No",$AL$9,AR9*(1+$AL$6))) -> 2128 | AT9: =IF($F$4="Yes",SUMIFS(DATA!AX$3:AX$101,DATA!$F$3:$F$101,$A9,DATA!$B$3:$B$101,$C$2),IF($F$6="No",$AL$9,AS9*(1+$AL$6))) -> 2128 | AU9: =IF($F$4="Yes",SUMIFS(DATA!AY$3:AY$101,DATA!$F$3:$F$101,$A9,DATA!$B$3:$B$101,$C$2),IF($F$6="No",$AL$9,AT9*(1+$AL$6))) -> 2128 | AV9: =IF($F$4="Yes",SUMIFS(DATA!AZ$3:AZ$101,DATA!$F$3:$F$101,$A9,DATA!$B$3:$B$101,$C$2),IF($F$6="No",$AL$9,AU9*(1+$AL$6))) -> 2128 | AW9: =IF($F$4="Yes",SUMIFS(DATA!BA$3:BA$101,DATA!$F$3:$F$101,$A9,DATA!$B$3:$B$101,$C$2),IF($F$6="No",$AL$9,AV9*(1+$AL$6))) -> 2128 | AX9: =IF($F$4="Yes",SUMIFS(DATA!BB$3:BB$101,DATA!$F$3:$F$101,$A9,DATA!$B$3:$B$101,$C$2),IF($F$6="No",$AL$9,AW9*(1+$AL$6))) -> 2128 | AY9: =IF($F$4="Yes",SUMIFS(DATA!BC$3:BC$101,DATA!$F$3:$F$101,$A9,DATA!$B$3:$B$101,$C$2),IF($F$6="No",$AL$9,AX9*(1+$AL$6))) -> 2128 | AZ9: =IF($F$4="Yes",SUMIFS(DATA!BD$3:BD$101,DATA!$F$3:$F$101,$A9,DATA!$B$3:$B$101,$C$2),IF($F$6="No",$AL$9,AY9*(1+$AL$6))) -> 2128
A10: Additional General Consumers Revenue | B10: [Original] | C10: =SUMIFS(DATA!G$3:G$101,DATA!$F$3:$F$101,$A10,DATA!$B$3:$B$101,$C$2) -> 0 | D10: =SUMIFS(DATA!H$3:H$101,DATA!$F$3:$F$101,$A10,DATA!$B$3:$B$101,$C$2) -> 48 | E10: =SUMIFS(DATA!I$3:I$101,DATA!$F$3:$F$101,$A10,DATA!$B$3:$B$101,$C$2) -> 97 | F10: =SUMIFS(DATA!J$3:J$101,DATA!$F$3:$F$101,$A10,DATA!$B$3:$B$101,$C$2) -> 149 | G10: =SUMIFS(DATA!K$3:K$101,DATA!$F$3:$F$101,$A10,DATA!$B$3:$B$101,$C$2) -> 204 | H10: =SUMIFS(DATA!L$3:L$101,DATA!$F$3:$F$101,$A10,DATA!$B$3:$B$101,$C$2) -> 263 | I10: =SUMIFS(DATA!M$3:M$101,DATA!$F$3:$F$101,$A10,DATA!$B$3:$B$101,$C$2) -> 325 | J10: =SUMIFS(DATA!N$3:N$101,DATA!$F$3:$F$101,$A10,DATA!$B$3:$B$101,$C$2) -> 390 | K10: =SUMIFS(DATA!O$3:O$101,DATA!$F$3:$F$101,$A10,DATA!$B$3:$B$101,$C$2) -> 461 | L10: =SUMIFS(DATA!P$3:P$101,DATA!$F$3:$F$101,$A10,DATA!$B$3:$B$101,$C$2) -> 535 | M10: =SUMIFS(DATA!Q$3:Q$101,DATA!$F$3:$F$101,$A10,DATA!$B$3:$B$101,$C$2) -> 614 | N10: =SUMIFS(DATA!R$3:R$101,DATA!$F$3:$F$101,$A10,DATA!$B$3:$B$101,$C$2) -> 698 | O10: =SUMIFS(DATA!S$3:S$101,DATA!$F$3:$F$101,$A10,DATA!$B$3:$B$101,$C$2) -> 787 | P10: =SUMIFS(DATA!T$3:T$101,DATA!$F$3:$F$101,$A10,DATA!$B$3:$B$101,$C$2) -> 880 | Q10: =SUMIFS(DATA!U$3:U$101,DATA!$F$3:$F$101,$A10,DATA!$B$3:$B$101,$C$2) -> 979 | R10: =SUMIFS(DATA!V$3:V$101,DATA!$F$3:$F$101,$A10,DATA!$B$3:$B$101,$C$2) -> 1083 | S10: =SUMIFS(DATA!W$3:W$101,DATA!$F$3:$F$101,$A10,DATA!$B$3:$B$101,$C$2) -> 1194 | T10: =SUMIFS(DATA!X$3:X$101,DATA!$F$3:$F$101,$A10,DATA!$B$3:$B$101,$C$2) -> 1311 | U10: =SUMIFS(DATA!Y$3:Y$101,DATA!$F$3:$F$101,$A10,DATA!$B$3:$B$101,$C$2) -> 1434 | V10: =SUMIFS(DATA!Z$3:Z$101,DATA!$F$3:$F$101,$A10,DATA!$B$3:$B$101,$C$2) -> 1564 | W10: =SUMIFS(DATA!AA$3:AA$101,DATA!$F$3:$F$101,$A10,DATA!$B$3:$B$101,$C$2) -> 999 | X10: =SUMIFS(DATA!AB$3:AB$101,DATA!$F$3:$F$101,$A10,DATA!$B$3:$B$101,$C$2) -> 1054 | Y10: =SUMIFS(DATA!AC$3:AC$101,DATA!$F$3:$F$101,$A10,DATA!$B$3:$B$101,$C$2) -> 1223 | Z10: =SUMIFS(DATA!AD$3:AD$101,DATA!$F$3:$F$101,$A10,DATA!$B$3:$B$101,$C$2) -> 1281 | AA10: =SUMIFS(DATA!AE$3:AE$101,DATA!$F$3:$F$101,$A10,DATA!$B$3:$B$101,$C$2) -> 1309 | AB10: =SUMIFS(DATA!AF$3:AF$101,DATA!$F$3:$F$101,$A10,DATA!$B$3:$B$101,$C$2) -> 1471 | AC10: =SUMIFS(DATA!AG$3:AG$101,DATA!$F$3:$F$101,$A10,DATA!$B$3:$B$101,$C$2) -> 1551 | AD10: =SUMIFS(DATA!AH$3:AH$101,DATA!$F$3:$F$101,$A10,DATA!$B$3:$B$101,$C$2) -> 1597 | AE10: =SUMIFS(DATA!AI$3:AI$101,DATA!$F$3:$F$101,$A10,DATA!$B$3:$B$101,$C$2) -> 1779 | AF10: =SUMIFS(DATA!AJ$3:AJ$101,DATA!$F$3:$F$101,$A10,DATA!$B$3:$B$101,$C$2) -> 1895 | AG10: =SUMIFS(DATA!AK$3:AK$101,DATA!$F$3:$F$101,$A10,DATA!$B$3:$B$101,$C$2) -> 2039 | AH10: =SUMIFS(DATA!AL$3:AL$101,DATA!$F$3:$F$101,$A10,DATA!$B$3:$B$101,$C$2) -> 2085 | AI10: =SUMIFS(DATA!AM$3:AM$101,DATA!$F$3:$F$101,$A10,DATA!$B$3:$B$101,$C$2) -> 2257 | AJ10: =SUMIFS(DATA!AN$3:AN$101,DATA!$F$3:$F$101,$A10,DATA!$B$3:$B$101,$C$2) -> 2409 | AK10: =SUMIFS(DATA!AO$3:AO$101,DATA!$F$3:$F$101,$A10,DATA!$B$3:$B$101,$C$2) -> 2540 | AL10: =SUMIFS(DATA!AP$3:AP$101,DATA!$F$3:$F$101,$A10,DATA!$B$3:$B$101,$C$2) -> 2620 | AM10: =SUMIFS(DATA!AQ$3:AQ$101,DATA!$F$3:$F$101,$A10,DATA!$B$3:$B$101,$C$2) -> 2628 | AN10: =SUMIFS(DATA!AR$3:AR$101,DATA!$F$3:$F$101,$A10,DATA!$B$3:$B$101,$C$2) -> 2675 | AO10: =SUMIFS(DATA!AS$3:AS$101,DATA!$F$3:$F$101,$A10,DATA!$B$3:$B$101,$C$2) -> 2804 | AP10: =SUMIFS(DATA!AT$3:AT$101,DATA!$F$3:$F$101,$A10,DATA!$B$3:$B$101,$C$2) -> 2875 | AQ10: =SUMIFS(DATA!AU$3:AU$101,DATA!$F$3:$F$101,$A10,DATA!$B$3:$B$101,$C$2) -> 2963 | AR10: =SUMIFS(DATA!AV$3:AV$101,DATA!$F$3:$F$101,$A10,DATA!$B$3:$B$101,$C$2) -> 3096 | AS10: =SUMIFS(DATA!AW$3:AW$101,DATA!$F$3:$F$101,$A10,DATA!$B$3:$B$101,$C$2) -> 3158 | AT10: =SUMIFS(DATA!AX$3:AX$101,DATA!$F$3:$F$101,$A10,DATA!$B$3:$B$101,$C$2) -> 3236 | AU10: =SUMIFS(DATA!AY$3:AY$101,DATA!$F$3:$F$101,$A10,DATA!$B$3:$B$101,$C$2) -> 3308 | AV10: =SUMIFS(DATA!AZ$3:AZ$101,DATA!$F$3:$F$101,$A10,DATA!$B$3:$B$101,$C$2) -> 3350 | AW10: =SUMIFS(DATA!BA$3:BA$101,DATA!$F$3:$F$101,$A10,DATA!$B$3:$B$101,$C$2) -> 3440 | AX10: =SUMIFS(DATA!BB$3:BB$101,DATA!$F$3:$F$101,$A10,DATA!$B$3:$B$101,$C$2) -> 3525 | AY10: =SUMIFS(DATA!BC$3:BC$101,DATA!$F$3:$F$101,$A10,DATA!$B$3:$B$101,$C$2) -> 3614 | AZ10: =SUMIFS(DATA!BD$3:BD$101,DATA!$F$3:$F$101,$A10,DATA!$B$3:$B$101,$C$2) -> 3754
A11: Additional General Consumers Revenue | B11: [Formula] | C11: =C9*C60 -> 0 | D11: 47.635 | E11: =E9*E60 -> 95.71237531 | F11: 146.6171894 | G11: 200.069803 | H11: 257.401433 | I11: 318.7744301 | J11: 381.823448 | K11: 450.546829 | L11: 522.6516097 | M11: 599.6058531 | N11: 680.9795824 | O11: 766.956703 | P11: 857.7284813 | Q11: 953.4938314 | R11: 1054.459613 | S11: 1162.23367 | T11: 1275.121019 | U11: 1394.001425 | V11: 1519.122766 | W11: 812.2350805 | X11: 854.7276788 | Y11: 1000.223505 | Z11: 1065.357059 | AA11: 1150.24439 | AB11: 1243.175965 | AC11: 1318.711979 | AD11: 1437.912269 | AE11: 1625.918837 | AF11: 1640.766808 | AG11: 1762.395117 | AH11: 1791.334606 | AI11: =AI9*AI60 -> 1925.071455 | AJ11: 2041.342942 | AK11: 2228.972924 | AL11: 2218.340652 | AM11: 2238.951934 | AN11: 2277.61956 | AO11: 2399.81604 | AP11: 2464.632506 | AQ11: 2517.816591 | AR11: 2633.726849 | AS11: 2685.988892 | AT11: 2775.747261 | AU11: 2866.126675 | AV11: 2891.563255 | AW11: 2927.80248 | AX11: 2963.830922 | AY11: 3047.848756 | AZ11: 3141.396227
A12: Current Year's General Consumers Revenue Change | C12: 0 | D12: =D11-C11 -> 47.635 | E12: =E11-D11 -> 48.07737531 | F12: =F11-E11 -> 50.90481405 | G12: 53.45261359 | H12: 57.33163009 | I12: 61.37299705 | J12: 63.04901787 | K12: 68.72338099 | L12: 72.10478079 | M12: =M11-L11 -> 76.95424332 | N12: 81.37372932 | O12: 85.97712065 | P12: 90.7717783 | Q12: 95.76535005 | R12: 100.9657814 | S12: 107.7740574 | T12: 112.8873488 | U12: 118.8804058 | V12: 125.1213409 | W12: -706.8876852 | X12: 42.49259833 | Y12: 145.4958258 | Z12: 65.13355429 | AA12: 84.88733098 | AB12: 92.9315749 | AC12: 75.5360141 | AD12: 119.2002904 | AE12: 188.006568 | AF12: 14.84797101 | AG12: 121.6283082 | AH12: 28.9394893 | AI12: 133.7368487 | AJ12: 116.2714872 | AK12: 187.6299818 | AL12: -10.63227178 | AM12: 20.61128202 | AN12: 38.66762584 | AO12: 122.1964801 | AP12: 64.81646584 | AQ12: 53.18408514 | AR12: 115.9102585 | AS12: 52.2620424 | AT12: 89.75836956 | AU12: 90.37941345 | AV12: 25.43658001 | AW12: 36.23922499 | AX12: 36.02844279 | AY12: 84.0178335 | AZ12: 93.54747081
A13: Extraprovincial | C13: =SUMIFS(DATA!G$3:G$101,DATA!$F$3:$F$101,$A13,DATA!$B$3:$B$101,$C$2) -> 357 | D13: =SUMIFS(DATA!H$3:H$101,DATA!$F$3:$F$101,$A13,DATA!$B$3:$B$101,$C$2) -> 344 | E13: =SUMIFS(DATA!I$3:I$101,DATA!$F$3:$F$101,$A13,DATA!$B$3:$B$101,$C$2) -> 335 | F13: =SUMIFS(DATA!J$3:J$101,DATA!$F$3:$F$101,$A13,DATA!$B$3:$B$101,$C$2) -> 374 | G13: =SUMIFS(DATA!K$3:K$101,DATA!$F$3:$F$101,$A13,DATA!$B$3:$B$101,$C$2) -> 391 | H13: =SUMIFS(DATA!L$3:L$101,DATA!$F$3:$F$101,$A13,DATA!$B$3:$B$101,$C$2) -> 418 | I13: =SUMIFS(DATA!M$3:M$101,DATA!$F$3:$F$101,$A13,DATA!$B$3:$B$101,$C$2) -> 403 | J13: =SUMIFS(DATA!N$3:N$101,DATA!$F$3:$F$101,$A13,DATA!$B$3:$B$101,$C$2) -> 401 | K13: =SUMIFS(DATA!O$3:O$101,DATA!$F$3:$F$101,$A13,DATA!$B$3:$B$101,$C$2) -> 447 | L13: =SUMIFS(DATA!P$3:P$101,DATA!$F$3:$F$101,$A13,DATA!$B$3:$B$101,$C$2) -> 457 | M13: =SUMIFS(DATA!Q$3:Q$101,DATA!$F$3:$F$101,$A13,DATA!$B$3:$B$101,$C$2) -> 451 | N13: =SUMIFS(DATA!R$3:R$101,DATA!$F$3:$F$101,$A13,DATA!$B$3:$B$101,$C$2) -> 442 | O13: =SUMIFS(DATA!S$3:S$101,DATA!$F$3:$F$101,$A13,DATA!$B$3:$B$101,$C$2) -> 440 | P13: =SUMIFS(DATA!T$3:T$101,DATA!$F$3:$F$101,$A13,DATA!$B$3:$B$101,$C$2) -> 359 | Q13: =SUMIFS(DATA!U$3:U$101,DATA!$F$3:$F$101,$A13,DATA!$B$3:$B$101,$C$2) -> 343 | R13: =SUMIFS(DATA!V$3:V$101,DATA!$F$3:$F$101,$A13,DATA!$B$3:$B$101,$C$2) -> 328 | S13: =SUMIFS(DATA!W$3:W$101,DATA!$F$3:$F$101,$A13,DATA!$B$3:$B$101,$C$2) -> 312 | T13: =SUMIFS(DATA!X$3:X$101,DATA!$F$3:$F$101,$A13,DATA!$B$3:$B$101,$C$2) -> 297 | U13: =SUMIFS(DATA!Y$3:Y$101,DATA!$F$3:$F$101,$A13,DATA!$B$3:$B$101,$C$2) -> 320 | V13: =SUMIFS(DATA!Z$3:Z$101,DATA!$F$3:$F$101,$A13,DATA!$B$3:$B$101,$C$2) -> 349 | W13: =SUMIFS(DATA!AA$3:AA$101,DATA!$F$3:$F$101,$A13,DATA!$B$3:$B$101,$C$2) -> 327 | X13: =SUMIFS(DATA!AB$3:AB$101,DATA!$F$3:$F$101,$A13,DATA!$B$3:$B$101,$C$2) -> 305 | Y13: =SUMIFS(DATA!AC$3:AC$101,DATA!$F$3:$F$101,$A13,DATA!$B$3:$B$101,$C$2) -> 291 | Z13: =SUMIFS(DATA!AD$3:AD$101,DATA!$F$3:$F$101,$A13,DATA!$B$3:$B$101,$C$2) -> 280 | AA13: =SUMIFS(DATA!AE$3:AE$101,DATA!$F$3:$F$101,$A13,DATA!$B$3:$B$101,$C$2) -> 282 | AB13: =SUMIFS(DATA!AF$3:AF$101,DATA!$F$3:$F$101,$A13,DATA!$B$3:$B$101,$C$2) -> 298 | AC13: =SUMIFS(DATA!AG$3:AG$101,DATA!$F$3:$F$101,$A13,DATA!$B$3:$B$101,$C$2) -> 280 | AD13: =SUMIFS(DATA!AH$3:AH$101,DATA!$F$3:$F$101,$A13,DATA!$B$3:$B$101,$C$2) -> 277 | AE13: =SUMIFS(DATA!AI$3:AI$101,DATA!$F$3:$F$101,$A13,DATA!$B$3:$B$101,$C$2) -> 298 | AF13: =SUMIFS(DATA!AJ$3:AJ$101,DATA!$F$3:$F$101,$A13,DATA!$B$3:$B$101,$C$2) -> 287 | AG13: =SUMIFS(DATA!AK$3:AK$101,DATA!$F$3:$F$101,$A13,DATA!$B$3:$B$101,$C$2) -> 283 | AH13: =SUMIFS(DATA!AL$3:AL$101,DATA!$F$3:$F$101,$A13,DATA!$B$3:$B$101,$C$2) -> 290 | AI13: =SUMIFS(DATA!AM$3:AM$101,DATA!$F$3:$F$101,$A13,DATA!$B$3:$B$101,$C$2) -> 310 | AJ13: =SUMIFS(DATA!AN$3:AN$101,DATA!$F$3:$F$101,$A13,DATA!$B$3:$B$101,$C$2) -> 300 | AK13: =SUMIFS(DATA!AO$3:AO$101,DATA!$F$3:$F$101,$A13,DATA!$B$3:$B$101,$C$2) -> 295 | AL13: =SUMIFS(DATA!AP$3:AP$101,DATA!$F$3:$F$101,$A13,DATA!$B$3:$B$101,$C$2) -> 284 | AM13: =SUMIFS(DATA!AQ$3:AQ$101,DATA!$F$3:$F$101,$A13,DATA!$B$3:$B$101,$C$2) -> 304 | AN13: =SUMIFS(DATA!AR$3:AR$101,DATA!$F$3:$F$101,$A13,DATA!$B$3:$B$101,$C$2) -> 309 | AO13: =SUMIFS(DATA!AS$3:AS$101,DATA!$F$3:$F$101,$A13,DATA!$B$3:$B$101,$C$2) -> 315 | AP13: =SUMIFS(DATA!AT$3:AT$101,DATA!$F$3:$F$101,$A13,DATA!$B$3:$B$101,$C$2) -> 321 | AQ13: =SUMIFS(DATA!AU$3:AU$101,DATA!$F$3:$F$101,$A13,DATA!$B$3:$B$101,$C$2) -> 326 | AR13: =SUMIFS(DATA!AV$3:AV$101,DATA!$F$3:$F$101,$A13,DATA!$B$3:$B$101,$C$2) -> 332 | AS13: =SUMIFS(DATA!AW$3:AW$101,DATA!$F$3:$F$101,$A13,DATA!$B$3:$B$101,$C$2) -> 338 | AT13: =SUMIFS(DATA!AX$3:AX$101,DATA!$F$3:$F$101,$A13,DATA!$B$3:$B$101,$C$2) -> 344 | AU13: =SUMIFS(DATA!AY$3:AY$101,DATA!$F$3:$F$101,$A13,DATA!$B$3:$B$101,$C$2) -> 351 | AV13: =SUMIFS(DATA!AZ$3:AZ$101,DATA!$F$3:$F$101,$A13,DATA!$B$3:$B$101,$C$2) -> 357 | AW13: =SUMIFS(DATA!BA$3:BA$101,DATA!$F$3:$F$101,$A13,DATA!$B$3:$B$101,$C$2) -> 363 | AX13: =SUMIFS(DATA!BB$3:BB$101,DATA!$F$3:$F$101,$A13,DATA!$B$3:$B$101,$C$2) -> 370 | AY13: =SUMIFS(DATA!BC$3:BC$101,DATA!$F$3:$F$101,$A13,DATA!$B$3:$B$101,$C$2) -> 377 | AZ13: =SUMIFS(DATA!BD$3:BD$101,DATA!$F$3:$F$101,$A13,DATA!$B$3:$B$101,$C$2) -> 383
A14: Other | C14: =SUMIFS(DATA!G$3:G$101,DATA!$F$3:$F$101,$A14,DATA!$B$3:$B$101,$C$2) -> 14 | D14: =SUMIFS(DATA!H$3:H$101,DATA!$F$3:$F$101,$A14,DATA!$B$3:$B$101,$C$2) -> 15 | E14: =SUMIFS(DATA!I$3:I$101,DATA!$F$3:$F$101,$A14,DATA!$B$3:$B$101,$C$2) -> 15 | F14: =SUMIFS(DATA!J$3:J$101,DATA!$F$3:$F$101,$A14,DATA!$B$3:$B$101,$C$2) -> 15 | G14: =SUMIFS(DATA!K$3:K$101,DATA!$F$3:$F$101,$A14,DATA!$B$3:$B$101,$C$2) -> 15 | H14: =SUMIFS(DATA!L$3:L$101,DATA!$F$3:$F$101,$A14,DATA!$B$3:$B$101,$C$2) -> 16 | I14: =SUMIFS(DATA!M$3:M$101,DATA!$F$3:$F$101,$A14,DATA!$B$3:$B$101,$C$2) -> 16 | J14: =SUMIFS(DATA!N$3:N$101,DATA!$F$3:$F$101,$A14,DATA!$B$3:$B$101,$C$2) -> 16 | K14: =SUMIFS(DATA!O$3:O$101,DATA!$F$3:$F$101,$A14,DATA!$B$3:$B$101,$C$2) -> 17 | L14: =SUMIFS(DATA!P$3:P$101,DATA!$F$3:$F$101,$A14,DATA!$B$3:$B$101,$C$2) -> 17 | M14: =SUMIFS(DATA!Q$3:Q$101,DATA!$F$3:$F$101,$A14,DATA!$B$3:$B$101,$C$2) -> 17 | N14: =SUMIFS(DATA!R$3:R$101,DATA!$F$3:$F$101,$A14,DATA!$B$3:$B$101,$C$2) -> 18 | O14: =SUMIFS(DATA!S$3:S$101,DATA!$F$3:$F$101,$A14,DATA!$B$3:$B$101,$C$2) -> 18 | P14: =SUMIFS(DATA!T$3:T$101,DATA!$F$3:$F$101,$A14,DATA!$B$3:$B$101,$C$2) -> 18 | Q14: =SUMIFS(DATA!U$3:U$101,DATA!$F$3:$F$101,$A14,DATA!$B$3:$B$101,$C$2) -> 19 | R14: =SUMIFS(DATA!V$3:V$101,DATA!$F$3:$F$101,$A14,DATA!$B$3:$B$101,$C$2) -> 19 | S14: =SUMIFS(DATA!W$3:W$101,DATA!$F$3:$F$101,$A14,DATA!$B$3:$B$101,$C$2) -> 19 | T14: =SUMIFS(DATA!X$3:X$101,DATA!$F$3:$F$101,$A14,DATA!$B$3:$B$101,$C$2) -> 20 | U14: =SUMIFS(DATA!Y$3:Y$101,DATA!$F$3:$F$101,$A14,DATA!$B$3:$B$101,$C$2) -> 20 | V14: =SUMIFS(DATA!Z$3:Z$101,DATA!$F$3:$F$101,$A14,DATA!$B$3:$B$101,$C$2) -> 21 | W14: =SUMIFS(DATA!AA$3:AA$101,DATA!$F$3:$F$101,$A14,DATA!$B$3:$B$101,$C$2) -> 21 | X14: =SUMIFS(DATA!AB$3:AB$101,DATA!$F$3:$F$101,$A14,DATA!$B$3:$B$101,$C$2) -> 21 | Y14: =SUMIFS(DATA!AC$3:AC$101,DATA!$F$3:$F$101,$A14,DATA!$B$3:$B$101,$C$2) -> 22 | Z14: =SUMIFS(DATA!AD$3:AD$101,DATA!$F$3:$F$101,$A14,DATA!$B$3:$B$101,$C$2) -> 22 | AA14: =SUMIFS(DATA!AE$3:AE$101,DATA!$F$3:$F$101,$A14,DATA!$B$3:$B$101,$C$2) -> 23 | AB14: =SUMIFS(DATA!AF$3:AF$101,DATA!$F$3:$F$101,$A14,DATA!$B$3:$B$101,$C$2) -> 23 | AC14: =SUMIFS(DATA!AG$3:AG$101,DATA!$F$3:$F$101,$A14,DATA!$B$3:$B$101,$C$2) -> 24 | AD14: =SUMIFS(DATA!AH$3:AH$101,DATA!$F$3:$F$101,$A14,DATA!$B$3:$B$101,$C$2) -> 24 | AE14: =SUMIFS(DATA!AI$3:AI$101,DATA!$F$3:$F$101,$A14,DATA!$B$3:$B$101,$C$2) -> 24 | AF14: =SUMIFS(DATA!AJ$3:AJ$101,DATA!$F$3:$F$101,$A14,DATA!$B$3:$B$101,$C$2) -> 25 | AG14: =SUMIFS(DATA!AK$3:AK$101,DATA!$F$3:$F$101,$A14,DATA!$B$3:$B$101,$C$2) -> 25 | AH14: =SUMIFS(DATA!AL$3:AL$101,DATA!$F$3:$F$101,$A14,DATA!$B$3:$B$101,$C$2) -> 26 | AI14: =SUMIFS(DATA!AM$3:AM$101,DATA!$F$3:$F$101,$A14,DATA!$B$3:$B$101,$C$2) -> 26 | AJ14: =SUMIFS(DATA!AN$3:AN$101,DATA!$F$3:$F$101,$A14,DATA!$B$3:$B$101,$C$2) -> 27 | AK14: =SUMIFS(DATA!AO$3:AO$101,DATA!$F$3:$F$101,$A14,DATA!$B$3:$B$101,$C$2) -> 27 | AL14: =SUMIFS(DATA!AP$3:AP$101,DATA!$F$3:$F$101,$A14,DATA!$B$3:$B$101,$C$2) -> 28 | AM14: =SUMIFS(DATA!AQ$3:AQ$101,DATA!$F$3:$F$101,$A14,DATA!$B$3:$B$101,$C$2) -> 29 | AN14: =SUMIFS(DATA!AR$3:AR$101,DATA!$F$3:$F$101,$A14,DATA!$B$3:$B$101,$C$2) -> 29 | AO14: =SUMIFS(DATA!AS$3:AS$101,DATA!$F$3:$F$101,$A14,DATA!$B$3:$B$101,$C$2) -> 30 | AP14: =SUMIFS(DATA!AT$3:AT$101,DATA!$F$3:$F$101,$A14,DATA!$B$3:$B$101,$C$2) -> 30 | AQ14: =SUMIFS(DATA!AU$3:AU$101,DATA!$F$3:$F$101,$A14,DATA!$B$3:$B$101,$C$2) -> 31 | AR14: =SUMIFS(DATA!AV$3:AV$101,DATA!$F$3:$F$101,$A14,DATA!$B$3:$B$101,$C$2) -> 31 | AS14: =SUMIFS(DATA!AW$3:AW$101,DATA!$F$3:$F$101,$A14,DATA!$B$3:$B$101,$C$2) -> 32 | AT14: =SUMIFS(DATA!AX$3:AX$101,DATA!$F$3:$F$101,$A14,DATA!$B$3:$B$101,$C$2) -> 33 | AU14: =SUMIFS(DATA!AY$3:AY$101,DATA!$F$3:$F$101,$A14,DATA!$B$3:$B$101,$C$2) -> 33 | AV14: =SUMIFS(DATA!AZ$3:AZ$101,DATA!$F$3:$F$101,$A14,DATA!$B$3:$B$101,$C$2) -> 34 | AW14: =SUMIFS(DATA!BA$3:BA$101,DATA!$F$3:$F$101,$A14,DATA!$B$3:$B$101,$C$2) -> 35 | AX14: =SUMIFS(DATA!BB$3:BB$101,DATA!$F$3:$F$101,$A14,DATA!$B$3:$B$101,$C$2) -> 35 | AY14: =SUMIFS(DATA!BC$3:BC$101,DATA!$F$3:$F$101,$A14,DATA!$B$3:$B$101,$C$2) -> 36 | AZ14: =SUMIFS(DATA!BD$3:BD$101,DATA!$F$3:$F$101,$A14,DATA!$B$3:$B$101,$C$2) -> 37
A15: Total Revenue | B15: [Formula] | C15: =IF($F$3="No",SUM(C9,C11,C13:C14),SUM(C9,C11,C13:C14)) -> 1702 | D15: =IF($F$3="No",SUM(D9,D11,D13:D14),SUM(D9,D11,D13:D14)) -> 1767.635 | E15: =IF($F$3="No",SUM(E9,E11,E13:E14),SUM(E9,E11,E13:E14,'Financial Adjustments'!E93)) -> 1832.100959 | F15: =IF($F$3="No",SUM(F9,F11,F13:F14),SUM(F9,F11,F13:F14,'Financial Adjustments'!F93)) -> 1943.361155 | G15: =IF($F$3="No",SUM(G9,G11,G13:G14),SUM(G9,G11,G13:G14,'Financial Adjustments'!G93)) -> 2032.338957 | H15: =IF($F$3="No",SUM(H9,H11,H13:H14),SUM(H9,H11,H13:H14,'Financial Adjustments'!H93)) -> 2150.235286 | I15: =IF($F$3="No",SUM(I9,I11,I13:I14),SUM(I9,I11,I13:I14,'Financial Adjustments'!I93)) -> 2230.986426 | J15: =IF($F$3="No",SUM(J9,J11,J13:J14),SUM(J9,J11,J13:J14,'Financial Adjustments'!J93)) -> 2308.174439 | K15: =IF($F$3="No",SUM(K9,K11,K13:K14),SUM(K9,K11,K13:K14,'Financial Adjustments'!K93)) -> 2460.420589 | L15: =IF($F$3="No",SUM(L9,L11,L13:L14),SUM(L9,L11,L13:L14,'Financial Adjustments'!L93)) -> 2562.711079 | M15: =IF($F$3="No",SUM(M9,M11,M13:M14),SUM(M9,M11,M13:M14,'Financial Adjustments'!M93)) -> 2679.182789 | N15: =IF($F$3="No",SUM(N9,N11,N13:N14),SUM(N9,N11,N13:N14,'Financial Adjustments'!N93)) -> 2792.743684 | O15: =IF($F$3="No",SUM(O9,O11,O13:O14),SUM(O9,O11,O13:O14,'Financial Adjustments'!O93)) -> 2905.148582 | P15: =IF($F$3="No",SUM(P9,P11,P13:P14),SUM(P9,P11,P13:P14,'Financial Adjustments'!P93)) -> 2937.218036 | Q15: =IF($F$3="No",SUM(Q9,Q11,Q13:Q14),SUM(Q9,Q11,Q13:Q14,'Financial Adjustments'!Q93)) -> 3047.556251 | R15: =IF($F$3="No",SUM(R9,R11,R13:R14),SUM(R9,R11,R13:R14,'Financial Adjustments'!R93)) -> 3166.709457 | S15: =IF($F$3="No",SUM(S9,S11,S13:S14),SUM(S9,S11,S13:S14,'Financial Adjustments'!S93)) -> 3302.858373 | T15: =IF($F$3="No",SUM(T9,T11,T13:T14),SUM(T9,T11,T13:T14,'Financial Adjustments'!T93)) -> 3498.216269 | U15: =IF($F$3="No",SUM(U9,U11,U13:U14),SUM(U9,U11,U13:U14,'Financial Adjustments'!U93)) -> 3653.396492 | V15: =IF($F$3="No",SUM(V9,V11,V13:V14),SUM(V9,V11,V13:V14,'Financial Adjustments'!V93)) -> 3850.648444 | W15: =IF($F$3="No",SUM(W9,W11,W13:W14),SUM(W9,W11,W13:W14,'Financial Adjustments'!W93)) -> 3166.587442 | X15: =IF($F$3="No",SUM(X9,X11,X13:X14),SUM(X9,X11,X13:X14,'Financial Adjustments'!X93)) -> 3228.736236 | Y15: =IF($F$3="No",SUM(Y9,Y11,Y13:Y14),SUM(Y9,Y11,Y13:Y14,'Financial Adjustments'!Y93)) -> 3399.837572 | Z15: =IF($F$3="No",SUM(Z9,Z11,Z13:Z14),SUM(Z9,Z11,Z13:Z14,'Financial Adjustments'!Z93)) -> 3476.61216 | AA15: =IF($F$3="No",SUM(AA9,AA11,AA13:AA14),SUM(AA9,AA11,AA13:AA14,'Financial Adjustments'!AA93)) -> 3561.981088 | AB15: =IF($F$3="No",SUM(AB9,AB11,AB13:AB14),SUM(AB9,AB11,AB13:AB14,'Financial Adjustments'!AB93)) -> 3766.559902 | AC15: =IF($F$3="No",SUM(AC9,AC11,AC13:AC14),SUM(AC9,AC11,AC13:AC14,'Financial Adjustments'!AC93)) -> 3858.958324 | AD15: =IF($F$3="No",SUM(AD9,AD11,AD13:AD14),SUM(AD9,AD11,AD13:AD14,'Financial Adjustments'!AD93)) -> 3971.847131 | AE15: =IF($F$3="No",SUM(AE9,AE11,AE13:AE14),SUM(AE9,AE11,AE13:AE14,'Financial Adjustments'!AE93)) -> 4217.993815 | AF15: =IF($F$3="No",SUM(AF9,AF11,AF13:AF14),SUM(AF9,AF11,AF13:AF14,'Financial Adjustments'!AF93)) -> 4339.564899 | AG15: =IF($F$3="No",SUM(AG9,AG11,AG13:AG14),SUM(AG9,AG11,AG13:AG14,'Financial Adjustments'!AG93)) -> 4499.745279 | AH15: =IF($F$3="No",SUM(AH9,AH11,AH13:AH14),SUM(AH9,AH11,AH13:AH14,'Financial Adjustments'!AH93)) -> 4540.931697 | AI15: =IF($F$3="No",SUM(AI9,AI11,AI13:AI14),SUM(AI9,AI11,AI13:AI14,'Financial Adjustments'!AI93)) -> 4729.509917 | AJ15: =IF($F$3="No",SUM(AJ9,AJ11,AJ13:AJ14),SUM(AJ9,AJ11,AJ13:AJ14,'Financial Adjustments'!AJ93)) -> 4905.256231 | AK15: =IF($F$3="No",SUM(AK9,AK11,AK13:AK14),SUM(AK9,AK11,AK13:AK14,'Financial Adjustments'!AK93)) -> 5150.332818 | AL15: =IF($F$3="No",SUM(AL9,AL11,AL13:AL14),SUM(AL9,AL11,AL13:AL14,'Financial Adjustments'!AL93)) -> 5178.159468 | AM15: =IF($F$3="No",SUM(AM9,AM11,AM13:AM14),SUM(AM9,AM11,AM13:AM14,'Financial Adjustments'!AM93)) -> 5208.139365 | AN15: =IF($F$3="No",SUM(AN9,AN11,AN13:AN14),SUM(AN9,AN11,AN13:AN14,'Financial Adjustments'!AN93)) -> 5260.954364 | AO15: =IF($F$3="No",SUM(AO9,AO11,AO13:AO14),SUM(AO9,AO11,AO13:AO14,'Financial Adjustments'!AO93)) -> 5399.462871 | AP15: =IF($F$3="No",SUM(AP9,AP11,AP13:AP14),SUM(AP9,AP11,AP13:AP14,'Financial Adjustments'!AP93)) -> 5479.75898 | AQ15: =IF($F$3="No",SUM(AQ9,AQ11,AQ13:AQ14),SUM(AQ9,AQ11,AQ13:AQ14,'Financial Adjustments'!AQ93)) -> 5548.593341 | AR15: =IF($F$3="No",SUM(AR9,AR11,AR13:AR14),SUM(AR9,AR11,AR13:AR14,'Financial Adjustments'!AR93)) -> 5680.327581 | AS15: =IF($F$3="No",SUM(AS9,AS11,AS13:AS14),SUM(AS9,AS11,AS13:AS14,'Financial Adjustments'!AS93)) -> 5749.590437 | AT15: =IF($F$3="No",SUM(AT9,AT11,AT13:AT14),SUM(AT9,AT11,AT13:AT14,'Financial Adjustments'!AT93)) -> 5856.529634 | AU15: =IF($F$3="No",SUM(AU9,AU11,AU13:AU14),SUM(AU9,AU11,AU13:AU14,'Financial Adjustments'!AU93)) -> 5964.273131 | AV15: =IF($F$3="No",SUM(AV9,AV11,AV13:AV14),SUM(AV9,AV11,AV13:AV14,'Financial Adjustments'!AV93)) -> 6007.260347 | AW15: =IF($F$3="No",SUM(AW9,AW11,AW13:AW14),SUM(AW9,AW11,AW13:AW14,'Financial Adjustments'!AW93)) -> 6061.240119 | AX15: =IF($F$3="No",SUM(AX9,AX11,AX13:AX14),SUM(AX9,AX11,AX13:AX14,'Financial Adjustments'!AX93)) -> 6115.20244 | AY15: =IF($F$3="No",SUM(AY9,AY11,AY13:AY14),SUM(AY9,AY11,AY13:AY14,'Financial Adjustments'!AY93)) -> 6218.350961 | AZ15: =IF($F$3="No",SUM(AZ9,AZ11,AZ13:AZ14),SUM(AZ9,AZ11,AZ13:AZ14,'Financial Adjustments'!AZ93)) -> 6330.229471
A16: Total Revenue | B16: [original] | C16: =SUMIFS(DATA!G$3:G$101,DATA!$F$3:$F$101,$A16,DATA!$B$3:$B$101,$C$2) -> 1702 | D16: =SUMIFS(DATA!H$3:H$101,DATA!$F$3:$F$101,$A16,DATA!$B$3:$B$101,$C$2) -> 1768 | E16: =SUMIFS(DATA!I$3:I$101,DATA!$F$3:$F$101,$A16,DATA!$B$3:$B$101,$C$2) -> 1821 | F16: =SUMIFS(DATA!J$3:J$101,DATA!$F$3:$F$101,$A16,DATA!$B$3:$B$101,$C$2) -> 1928 | G16: =SUMIFS(DATA!K$3:K$101,DATA!$F$3:$F$101,$A16,DATA!$B$3:$B$101,$C$2) -> 2014 | H16: =SUMIFS(DATA!L$3:L$101,DATA!$F$3:$F$101,$A16,DATA!$B$3:$B$101,$C$2) -> 2120 | I16: =SUMIFS(DATA!M$3:M$101,DATA!$F$3:$F$101,$A16,DATA!$B$3:$B$101,$C$2) -> 2192 | J16: =SUMIFS(DATA!N$3:N$101,DATA!$F$3:$F$101,$A16,DATA!$B$3:$B$101,$C$2) -> 2270 | K16: =SUMIFS(DATA!O$3:O$101,DATA!$F$3:$F$101,$A16,DATA!$B$3:$B$101,$C$2) -> 2409 | L16: =SUMIFS(DATA!P$3:P$101,DATA!$F$3:$F$101,$A16,DATA!$B$3:$B$101,$C$2) -> 2516 | M16: =SUMIFS(DATA!Q$3:Q$101,DATA!$F$3:$F$101,$A16,DATA!$B$3:$B$101,$C$2) -> 2611 | N16: =SUMIFS(DATA!R$3:R$101,DATA!$F$3:$F$101,$A16,DATA!$B$3:$B$101,$C$2) -> 2709 | O16: =SUMIFS(DATA!S$3:S$101,DATA!$F$3:$F$101,$A16,DATA!$B$3:$B$101,$C$2) -> 2820 | P16: =SUMIFS(DATA!T$3:T$101,DATA!$F$3:$F$101,$A16,DATA!$B$3:$B$101,$C$2) -> 2856 | Q16: =SUMIFS(DATA!U$3:U$101,DATA!$F$3:$F$101,$A16,DATA!$B$3:$B$101,$C$2) -> 2961 | R16: =SUMIFS(DATA!V$3:V$101,DATA!$F$3:$F$101,$A16,DATA!$B$3:$B$101,$C$2) -> 3074 | S16: =SUMIFS(DATA!W$3:W$101,DATA!$F$3:$F$101,$A16,DATA!$B$3:$B$101,$C$2) -> 3194 | T16: =SUMIFS(DATA!X$3:X$101,DATA!$F$3:$F$101,$A16,DATA!$B$3:$B$101,$C$2) -> 3321 | U16: =SUMIFS(DATA!Y$3:Y$101,DATA!$F$3:$F$101,$A16,DATA!$B$3:$B$101,$C$2) -> 3491 | V16: =SUMIFS(DATA!Z$3:Z$101,DATA!$F$3:$F$101,$A16,DATA!$B$3:$B$101,$C$2) -> 3674 | W16: =SUMIFS(DATA!AA$3:AA$101,DATA!$F$3:$F$101,$A16,DATA!$B$3:$B$101,$C$2) -> 3113 | X16: =SUMIFS(DATA!AB$3:AB$101,DATA!$F$3:$F$101,$A16,DATA!$B$3:$B$101,$C$2) -> 3170 | Y16: =SUMIFS(DATA!AC$3:AC$101,DATA!$F$3:$F$101,$A16,DATA!$B$3:$B$101,$C$2) -> 3349 | Z16: =SUMIFS(DATA!AD$3:AD$101,DATA!$F$3:$F$101,$A16,DATA!$B$3:$B$101,$C$2) -> 3421 | AA16: =SUMIFS(DATA!AE$3:AE$101,DATA!$F$3:$F$101,$A16,DATA!$B$3:$B$101,$C$2) -> 3476 | AB16: =SUMIFS(DATA!AF$3:AF$101,DATA!$F$3:$F$101,$A16,DATA!$B$3:$B$101,$C$2) -> 3679 | AC16: =SUMIFS(DATA!AG$3:AG$101,DATA!$F$3:$F$101,$A16,DATA!$B$3:$B$101,$C$2) -> 3765 | AD16: =SUMIFS(DATA!AH$3:AH$101,DATA!$F$3:$F$101,$A16,DATA!$B$3:$B$101,$C$2) -> 3833 | AE16: =SUMIFS(DATA!AI$3:AI$101,DATA!$F$3:$F$101,$A16,DATA!$B$3:$B$101,$C$2) -> 4061 | AF16: =SUMIFS(DATA!AJ$3:AJ$101,DATA!$F$3:$F$101,$A16,DATA!$B$3:$B$101,$C$2) -> 4191 | AG16: =SUMIFS(DATA!AK$3:AK$101,DATA!$F$3:$F$101,$A16,DATA!$B$3:$B$101,$C$2) -> 4355 | AH16: =SUMIFS(DATA!AL$3:AL$101,DATA!$F$3:$F$101,$A16,DATA!$B$3:$B$101,$C$2) -> 4432 | AI16: =SUMIFS(DATA!AM$3:AM$101,DATA!$F$3:$F$101,$A16,DATA!$B$3:$B$101,$C$2) -> 4648 | AJ16: =SUMIFS(DATA!AN$3:AN$101,DATA!$F$3:$F$101,$A16,DATA!$B$3:$B$101,$C$2) -> 4816 | AK16: =SUMIFS(DATA!AO$3:AO$101,DATA!$F$3:$F$101,$A16,DATA!$B$3:$B$101,$C$2) -> 4966 | AL16: =SUMIFS(DATA!AP$3:AP$101,DATA!$F$3:$F$101,$A16,DATA!$B$3:$B$101,$C$2) -> 5060 | AM16: =SUMIFS(DATA!AQ$3:AQ$101,DATA!$F$3:$F$101,$A16,DATA!$B$3:$B$101,$C$2) -> 5088 | AN16: =SUMIFS(DATA!AR$3:AR$101,DATA!$F$3:$F$101,$A16,DATA!$B$3:$B$101,$C$2) -> 5142 | AO16: =SUMIFS(DATA!AS$3:AS$101,DATA!$F$3:$F$101,$A16,DATA!$B$3:$B$101,$C$2) -> 5277 | AP16: =SUMIFS(DATA!AT$3:AT$101,DATA!$F$3:$F$101,$A16,DATA!$B$3:$B$101,$C$2) -> 5354 | AQ16: =SUMIFS(DATA!AU$3:AU$101,DATA!$F$3:$F$101,$A16,DATA!$B$3:$B$101,$C$2) -> 5448 | AR16: =SUMIFS(DATA!AV$3:AV$101,DATA!$F$3:$F$101,$A16,DATA!$B$3:$B$101,$C$2) -> 5588 | AS16: =SUMIFS(DATA!AW$3:AW$101,DATA!$F$3:$F$101,$A16,DATA!$B$3:$B$101,$C$2) -> 5657 | AT16: =SUMIFS(DATA!AX$3:AX$101,DATA!$F$3:$F$101,$A16,DATA!$B$3:$B$101,$C$2) -> 5741 | AU16: =SUMIFS(DATA!AY$3:AY$101,DATA!$F$3:$F$101,$A16,DATA!$B$3:$B$101,$C$2) -> 5820 | AV16: =SUMIFS(DATA!AZ$3:AZ$101,DATA!$F$3:$F$101,$A16,DATA!$B$3:$B$101,$C$2) -> 5869 | AW16: =SUMIFS(DATA!BA$3:BA$101,DATA!$F$3:$F$101,$A16,DATA!$B$3:$B$101,$C$2) -> 5966 | AX16: =SUMIFS(DATA!BB$3:BB$101,DATA!$F$3:$F$101,$A16,DATA!$B$3:$B$101,$C$2) -> 6058 | AY16: =SUMIFS(DATA!BC$3:BC$101,DATA!$F$3:$F$101,$A16,DATA!$B$3:$B$101,$C$2) -> 6154 | AZ16: =SUMIFS(DATA!BD$3:BD$101,DATA!$F$3:$F$101,$A16,DATA!$B$3:$B$101,$C$2) -> 6302
B17: [Difference] | C17: =C15-C16 -> 0 | D17: =D15-D16 -> -0.365 | E17: =E15-E16 -> 11.10095941 | F17: =F15-F16 -> 15.36115518 | G17: =G15-G16 -> 18.33895676 | H17: =H15-H16 -> 30.23528557 | I17: =I15-I16 -> 38.98642627 | J17: =J15-J16 -> 38.17443853 | K17: =K15-K16 -> 51.4205889 | L17: =L15-L16 -> 46.71107892 | M17: =M15-M16 -> 68.18278918 | N17: =N15-N16 -> 83.7436835 | O17: =O15-O16 -> 85.14858217 | P17: =P15-P16 -> 81.21803645 | Q17: =Q15-Q16 -> 86.55625055 | R17: =R15-R16 -> 92.70945662 | S17: =S15-S16 -> 108.858373 | T17: =T15-T16 -> 177.2162691 | U17: =U15-U16 -> 162.396492 | V17: =V15-V16 -> 176.6484439 | W17: =W15-W16 -> 53.58744158 | X17: =X15-X16 -> 58.73623648 | Y17: =Y15-Y16 -> 50.83757244 | Z17: =Z15-Z16 -> 55.61215987 | AA17: =AA15-AA16 -> 85.98108848 | AB17: =AB15-AB16 -> 87.55990197 | AC17: =AC15-AC16 -> 93.9583238 | AD17: =AD15-AD16 -> 138.8471314 | AE17: =AE15-AE16 -> 156.993815 | AF17: =AF15-AF16 -> 148.5648987 | AG17: =AG15-AG16 -> 144.745279 | AH17: =AH15-AH16 -> 108.931697 | AI17: =AI15-AI16 -> 81.50991655 | AJ17: =AJ15-AJ16 -> 89.25623114 | AK17: =AK15-AK16 -> 184.3328177 | AL17: =AL15-AL16 -> 118.1594678 | AM17: =AM15-AM16 -> 120.1393648 | AN17: =AN15-AN16 -> 118.9543644 | AO17: =AO15-AO16 -> 122.462871 | AP17: =AP15-AP16 -> 125.7589798 | AQ17: =AQ15-AQ16 -> 100.5933415 | AR17: =AR15-AR16 -> 92.32758143 | AS17: =AS15-AS16 -> 92.59043702 | AT17: =AT15-AT16 -> 115.5296344 | AU17: =AU15-AU16 -> 144.2731306 | AV17: =AV15-AV16 -> 138.2603468 | AW17: =AW15-AW16 -> 95.24011943 | AX17: =AX15-AX16 -> 57.20243973 | AY17: =AY15-AY16 -> 64.35096054 | AZ17: =AZ15-AZ16 -> 28.22947103
A19: EXPENSES
A20: Operating and Administrative | C20: =SUMIFS(DATA!G$3:G$101,DATA!$F$3:$F$101,$A20,DATA!$B$3:$B$101,$C$2) -> 455 | D20: =SUMIFS(DATA!H$3:H$101,DATA!$F$3:$F$101,$A20,DATA!$B$3:$B$101,$C$2) -> 471 | E20: =IF($F$3="no",SUMIFS(DATA!I$3:I$101,DATA!$F$3:$F$101,$A20,DATA!$B$3:$B$101,$C$2),SUMIFS(DATA!I$3:I$101,DATA!$F$3:$F$101,$A20,DATA!$B$3:$B$101,$C$2)+'Financial Adjustments'!E95) -> 650.7199028 | F20: =IF($F$3="no",SUMIFS(DATA!J$3:J$101,DATA!$F$3:$F$101,$A20,DATA!$B$3:$B$101,$C$2),SUMIFS(DATA!J$3:J$101,DATA!$F$3:$F$101,$A20,DATA!$B$3:$B$101,$C$2)+'Financial Adjustments'!F95) -> 686.1433322 | G20: =IF($F$3="no",SUMIFS(DATA!K$3:K$101,DATA!$F$3:$F$101,$A20,DATA!$B$3:$B$101,$C$2),SUMIFS(DATA!K$3:K$101,DATA!$F$3:$F$101,$A20,DATA!$B$3:$B$101,$C$2)+'Financial Adjustments'!G95) -> 676.8750727 | H20: =IF($F$3="no",SUMIFS(DATA!L$3:L$101,DATA!$F$3:$F$101,$A20,DATA!$B$3:$B$101,$C$2),SUMIFS(DATA!L$3:L$101,DATA!$F$3:$F$101,$A20,DATA!$B$3:$B$101,$C$2)+'Financial Adjustments'!H95) -> 690.1418669 | I20: =IF($F$3="no",SUMIFS(DATA!M$3:M$101,DATA!$F$3:$F$101,$A20,DATA!$B$3:$B$101,$C$2),SUMIFS(DATA!M$3:M$101,DATA!$F$3:$F$101,$A20,DATA!$B$3:$B$101,$C$2)+'Financial Adjustments'!I95) -> 699.1099098 | J20: =IF($F$3="no",SUMIFS(DATA!N$3:N$101,DATA!$F$3:$F$101,$A20,DATA!$B$3:$B$101,$C$2),SUMIFS(DATA!N$3:N$101,DATA!$F$3:$F$101,$A20,DATA!$B$3:$B$101,$C$2)+'Financial Adjustments'!J95) -> 687.9837144 | K20: =IF($F$3="no",SUMIFS(DATA!O$3:O$101,DATA!$F$3:$F$101,$A20,DATA!$B$3:$B$101,$C$2),SUMIFS(DATA!O$3:O$101,DATA!$F$3:$F$101,$A20,DATA!$B$3:$B$101,$C$2)+'Financial Adjustments'!K95) -> 689.2093739 | L20: =IF($F$3="no",SUMIFS(DATA!P$3:P$101,DATA!$F$3:$F$101,$A20,DATA!$B$3:$B$101,$C$2),SUMIFS(DATA!P$3:P$101,DATA!$F$3:$F$101,$A20,DATA!$B$3:$B$101,$C$2)+'Financial Adjustments'!L95) -> 694.5858081 | M20: =IF($F$3="no",SUMIFS(DATA!Q$3:Q$101,DATA!$F$3:$F$101,$A20,DATA!$B$3:$B$101,$C$2),SUMIFS(DATA!Q$3:Q$101,DATA!$F$3:$F$101,$A20,DATA!$B$3:$B$101,$C$2)+'Financial Adjustments'!M95) -> 746.1248936 | N20: =IF($F$3="no",SUMIFS(DATA!R$3:R$101,DATA!$F$3:$F$101,$A20,DATA!$B$3:$B$101,$C$2),SUMIFS(DATA!R$3:R$101,DATA!$F$3:$F$101,$A20,DATA!$B$3:$B$101,$C$2)+'Financial Adjustments'!N95) -> 772.0579017 | O20: =IF($F$3="no",SUMIFS(DATA!S$3:S$101,DATA!$F$3:$F$101,$A20,DATA!$B$3:$B$101,$C$2),SUMIFS(DATA!S$3:S$101,DATA!$F$3:$F$101,$A20,DATA!$B$3:$B$101,$C$2)+'Financial Adjustments'!O95) -> 791.7537956 | P20: =IF($F$3="no",SUMIFS(DATA!T$3:T$101,DATA!$F$3:$F$101,$A20,DATA!$B$3:$B$101,$C$2),SUMIFS(DATA!T$3:T$101,DATA!$F$3:$F$101,$A20,DATA!$B$3:$B$101,$C$2)+'Financial Adjustments'!P95) -> 803.5623625 | Q20: =IF($F$3="no",SUMIFS(DATA!U$3:U$101,DATA!$F$3:$F$101,$A20,DATA!$B$3:$B$101,$C$2),SUMIFS(DATA!U$3:U$101,DATA!$F$3:$F$101,$A20,DATA!$B$3:$B$101,$C$2)+'Financial Adjustments'!Q95) -> 989.5730625 | R20: =IF($F$3="no",SUMIFS(DATA!V$3:V$101,DATA!$F$3:$F$101,$A20,DATA!$B$3:$B$101,$C$2),SUMIFS(DATA!V$3:V$101,DATA!$F$3:$F$101,$A20,DATA!$B$3:$B$101,$C$2)+'Financial Adjustments'!R95) -> 893.5359468 | S20: =IF($F$3="no",SUMIFS(DATA!W$3:W$101,DATA!$F$3:$F$101,$A20,DATA!$B$3:$B$101,$C$2),SUMIFS(DATA!W$3:W$101,DATA!$F$3:$F$101,$A20,DATA!$B$3:$B$101,$C$2)+'Financial Adjustments'!S95) -> 914.1993469 | T20: =IF($F$3="no",SUMIFS(DATA!X$3:X$101,DATA!$F$3:$F$101,$A20,DATA!$B$3:$B$101,$C$2),SUMIFS(DATA!X$3:X$101,DATA!$F$3:$F$101,$A20,DATA!$B$3:$B$101,$C$2)+'Financial Adjustments'!T95) -> 934.4343111 | U20: =IF($F$3="no",SUMIFS(DATA!Y$3:Y$101,DATA!$F$3:$F$101,$A20,DATA!$B$3:$B$101,$C$2),SUMIFS(DATA!Y$3:Y$101,DATA!$F$3:$F$101,$A20,DATA!$B$3:$B$101,$C$2)+'Financial Adjustments'!U95) -> 928.9795145 | V20: =IF($F$3="no",SUMIFS(DATA!Z$3:Z$101,DATA!$F$3:$F$101,$A20,DATA!$B$3:$B$101,$C$2),SUMIFS(DATA!Z$3:Z$101,DATA!$F$3:$F$101,$A20,DATA!$B$3:$B$101,$C$2)+'Financial Adjustments'!V95) -> 943.7899843 | W20: =IF($F$3="no",SUMIFS(DATA!AA$3:AA$101,DATA!$F$3:$F$101,$A20,DATA!$B$3:$B$101,$C$2),SUMIFS(DATA!AA$3:AA$101,DATA!$F$3:$F$101,$A20,DATA!$B$3:$B$101,$C$2)+'Financial Adjustments'!W95) -> 962.7979593 | X20: =IF($F$3="no",SUMIFS(DATA!AB$3:AB$101,DATA!$F$3:$F$101,$A20,DATA!$B$3:$B$101,$C$2),SUMIFS(DATA!AB$3:AB$101,DATA!$F$3:$F$101,$A20,DATA!$B$3:$B$101,$C$2)+'Financial Adjustments'!X95) -> 996.80631 | Y20: =IF($F$3="no",SUMIFS(DATA!AC$3:AC$101,DATA!$F$3:$F$101,$A20,DATA!$B$3:$B$101,$C$2),SUMIFS(DATA!AC$3:AC$101,DATA!$F$3:$F$101,$A20,DATA!$B$3:$B$101,$C$2)+'Financial Adjustments'!Y95) -> 1033.630412 | Z20: =IF($F$3="no",SUMIFS(DATA!AD$3:AD$101,DATA!$F$3:$F$101,$A20,DATA!$B$3:$B$101,$C$2),SUMIFS(DATA!AD$3:AD$101,DATA!$F$3:$F$101,$A20,DATA!$B$3:$B$101,$C$2)+'Financial Adjustments'!Z95) -> 1062.976633 | AA20: =IF($F$3="no",SUMIFS(DATA!AE$3:AE$101,DATA!$F$3:$F$101,$A20,DATA!$B$3:$B$101,$C$2),SUMIFS(DATA!AE$3:AE$101,DATA!$F$3:$F$101,$A20,DATA!$B$3:$B$101,$C$2)+'Financial Adjustments'!AA95) -> 1092.111746 | AB20: =IF($F$3="no",SUMIFS(DATA!AF$3:AF$101,DATA!$F$3:$F$101,$A20,DATA!$B$3:$B$101,$C$2),SUMIFS(DATA!AF$3:AF$101,DATA!$F$3:$F$101,$A20,DATA!$B$3:$B$101,$C$2)+'Financial Adjustments'!AB95) -> 1147.787637 | AC20: =IF($F$3="no",SUMIFS(DATA!AG$3:AG$101,DATA!$F$3:$F$101,$A20,DATA!$B$3:$B$101,$C$2),SUMIFS(DATA!AG$3:AG$101,DATA!$F$3:$F$101,$A20,DATA!$B$3:$B$101,$C$2)+'Financial Adjustments'!AC95) -> 1199.10354 | AD20: =IF($F$3="no",SUMIFS(DATA!AH$3:AH$101,DATA!$F$3:$F$101,$A20,DATA!$B$3:$B$101,$C$2),SUMIFS(DATA!AH$3:AH$101,DATA!$F$3:$F$101,$A20,DATA!$B$3:$B$101,$C$2)+'Financial Adjustments'!AD95) -> 1256.972123 | AE20: =IF($F$3="no",SUMIFS(DATA!AI$3:AI$101,DATA!$F$3:$F$101,$A20,DATA!$B$3:$B$101,$C$2),SUMIFS(DATA!AI$3:AI$101,DATA!$F$3:$F$101,$A20,DATA!$B$3:$B$101,$C$2)+'Financial Adjustments'!AE95) -> 1295.150093 | AF20: =IF($F$3="no",SUMIFS(DATA!AJ$3:AJ$101,DATA!$F$3:$F$101,$A20,DATA!$B$3:$B$101,$C$2),SUMIFS(DATA!AJ$3:AJ$101,DATA!$F$3:$F$101,$A20,DATA!$B$3:$B$101,$C$2)+'Financial Adjustments'!AF95) -> 1330.960752 | AG20: =IF($F$3="no",SUMIFS(DATA!AK$3:AK$101,DATA!$F$3:$F$101,$A20,DATA!$B$3:$B$101,$C$2),SUMIFS(DATA!AK$3:AK$101,DATA!$F$3:$F$101,$A20,DATA!$B$3:$B$101,$C$2)+'Financial Adjustments'!AG95) -> 1367.030246 | AH20: =IF($F$3="no",SUMIFS(DATA!AL$3:AL$101,DATA!$F$3:$F$101,$A20,DATA!$B$3:$B$101,$C$2),SUMIFS(DATA!AL$3:AL$101,DATA!$F$3:$F$101,$A20,DATA!$B$3:$B$101,$C$2)+'Financial Adjustments'!AH95) -> 1337.867215 | AI20: =IF($F$3="no",SUMIFS(DATA!AM$3:AM$101,DATA!$F$3:$F$101,$A20,DATA!$B$3:$B$101,$C$2),SUMIFS(DATA!AM$3:AM$101,DATA!$F$3:$F$101,$A20,DATA!$B$3:$B$101,$C$2)+'Financial Adjustments'!AI95) -> 1362.189184 | AJ20: =IF($F$3="no",SUMIFS(DATA!AN$3:AN$101,DATA!$F$3:$F$101,$A20,DATA!$B$3:$B$101,$C$2),SUMIFS(DATA!AN$3:AN$101,DATA!$F$3:$F$101,$A20,DATA!$B$3:$B$101,$C$2)+'Financial Adjustments'!AJ95) -> 1385.92809 | AK20: =IF($F$3="no",SUMIFS(DATA!AO$3:AO$101,DATA!$F$3:$F$101,$A20,DATA!$B$3:$B$101,$C$2),SUMIFS(DATA!AO$3:AO$101,DATA!$F$3:$F$101,$A20,DATA!$B$3:$B$101,$C$2)+'Financial Adjustments'!AK95) -> 1493.033816 | AL20: =IF($F$3="no",SUMIFS(DATA!AP$3:AP$101,DATA!$F$3:$F$101,$A20,DATA!$B$3:$B$101,$C$2),SUMIFS(DATA!AP$3:AP$101,DATA!$F$3:$F$101,$A20,DATA!$B$3:$B$101,$C$2)+'Financial Adjustments'!AL95) -> 1455.656984 | AM20: =IF($F$3="no",SUMIFS(DATA!AQ$3:AQ$101,DATA!$F$3:$F$101,$A20,DATA!$B$3:$B$101,$C$2),SUMIFS(DATA!AQ$3:AQ$101,DATA!$F$3:$F$101,$A20,DATA!$B$3:$B$101,$C$2)+'Financial Adjustments'!AM95) -> 1483.335442 | AN20: =IF($F$3="no",SUMIFS(DATA!AR$3:AR$101,DATA!$F$3:$F$101,$A20,DATA!$B$3:$B$101,$C$2),SUMIFS(DATA!AR$3:AR$101,DATA!$F$3:$F$101,$A20,DATA!$B$3:$B$101,$C$2)+'Financial Adjustments'!AN95) -> 1509.18514 | AO20: =IF($F$3="no",SUMIFS(DATA!AS$3:AS$101,DATA!$F$3:$F$101,$A20,DATA!$B$3:$B$101,$C$2),SUMIFS(DATA!AS$3:AS$101,DATA!$F$3:$F$101,$A20,DATA!$B$3:$B$101,$C$2)+'Financial Adjustments'!AO95) -> 1543.156302 | AP20: =IF($F$3="no",SUMIFS(DATA!AT$3:AT$101,DATA!$F$3:$F$101,$A20,DATA!$B$3:$B$101,$C$2),SUMIFS(DATA!AT$3:AT$101,DATA!$F$3:$F$101,$A20,DATA!$B$3:$B$101,$C$2)+'Financial Adjustments'!AP95) -> 1577.707874 | AQ20: =IF($F$3="no",SUMIFS(DATA!AU$3:AU$101,DATA!$F$3:$F$101,$A20,DATA!$B$3:$B$101,$C$2),SUMIFS(DATA!AU$3:AU$101,DATA!$F$3:$F$101,$A20,DATA!$B$3:$B$101,$C$2)+'Financial Adjustments'!AQ95) -> 1564.746872 | AR20: =IF($F$3="no",SUMIFS(DATA!AV$3:AV$101,DATA!$F$3:$F$101,$A20,DATA!$B$3:$B$101,$C$2),SUMIFS(DATA!AV$3:AV$101,DATA!$F$3:$F$101,$A20,DATA!$B$3:$B$101,$C$2)+'Financial Adjustments'!AR95) -> 1615.610756 | AS20: =IF($F$3="no",SUMIFS(DATA!AW$3:AW$101,DATA!$F$3:$F$101,$A20,DATA!$B$3:$B$101,$C$2),SUMIFS(DATA!AW$3:AW$101,DATA!$F$3:$F$101,$A20,DATA!$B$3:$B$101,$C$2)+'Financial Adjustments'!AS95) -> 1659.279414 | AT20: =IF($F$3="no",SUMIFS(DATA!AX$3:AX$101,DATA!$F$3:$F$101,$A20,DATA!$B$3:$B$101,$C$2),SUMIFS(DATA!AX$3:AX$101,DATA!$F$3:$F$101,$A20,DATA!$B$3:$B$101,$C$2)+'Financial Adjustments'!AT95) -> 1701.429931 | AU20: =IF($F$3="no",SUMIFS(DATA!AY$3:AY$101,DATA!$F$3:$F$101,$A20,DATA!$B$3:$B$101,$C$2),SUMIFS(DATA!AY$3:AY$101,DATA!$F$3:$F$101,$A20,DATA!$B$3:$B$101,$C$2)+'Financial Adjustments'!AU95) -> 1741.755699 | AV20: =IF($F$3="no",SUMIFS(DATA!AZ$3:AZ$101,DATA!$F$3:$F$101,$A20,DATA!$B$3:$B$101,$C$2),SUMIFS(DATA!AZ$3:AZ$101,DATA!$F$3:$F$101,$A20,DATA!$B$3:$B$101,$C$2)+'Financial Adjustments'!AV95) -> 1780.526613 | AW20: =IF($F$3="no",SUMIFS(DATA!BA$3:BA$101,DATA!$F$3:$F$101,$A20,DATA!$B$3:$B$101,$C$2),SUMIFS(DATA!BA$3:BA$101,DATA!$F$3:$F$101,$A20,DATA!$B$3:$B$101,$C$2)+'Financial Adjustments'!AW95) -> 1824.460101 | AX20: =IF($F$3="no",SUMIFS(DATA!BB$3:BB$101,DATA!$F$3:$F$101,$A20,DATA!$B$3:$B$101,$C$2),SUMIFS(DATA!BB$3:BB$101,DATA!$F$3:$F$101,$A20,DATA!$B$3:$B$101,$C$2)+'Financial Adjustments'!AX95) -> 1852.132534 | AY20: =IF($F$3="no",SUMIFS(DATA!BC$3:BC$101,DATA!$F$3:$F$101,$A20,DATA!$B$3:$B$101,$C$2),SUMIFS(DATA!BC$3:BC$101,DATA!$F$3:$F$101,$A20,DATA!$B$3:$B$101,$C$2)+'Financial Adjustments'!AY95) -> 1863.426593 | AZ20: =IF($F$3="no",SUMIFS(DATA!BD$3:BD$101,DATA!$F$3:$F$101,$A20,DATA!$B$3:$B$101,$C$2),SUMIFS(DATA!BD$3:BD$101,DATA!$F$3:$F$101,$A20,DATA!$B$3:$B$101,$C$2)+'Financial Adjustments'!AZ95) -> 1872.413699
A21: Gross Interest | B21: 1 PUB-081a | C21: =SUMIFS(DATA!G$3:G$307,DATA!$F$3:$F$307,$A21,DATA!$B$3:$B$307,$C$2) -> 533 | D21: =SUMIFS(DATA!H$3:H$307,DATA!$F$3:$F$307,$A21,DATA!$B$3:$B$307,$C$2) -> 522 | E21: =SUMIFS(DATA!I$3:I$307,DATA!$F$3:$F$307,$A21,DATA!$B$3:$B$307,$C$2) -> 586 | F21: =SUMIFS(DATA!J$3:J$307,DATA!$F$3:$F$307,$A21,DATA!$B$3:$B$307,$C$2) -> 647 | G21: =SUMIFS(DATA!K$3:K$307,DATA!$F$3:$F$307,$A21,DATA!$B$3:$B$307,$C$2) -> 723 | H21: =SUMIFS(DATA!L$3:L$307,DATA!$F$3:$F$307,$A21,DATA!$B$3:$B$307,$C$2) -> 752 | I21: =SUMIFS(DATA!M$3:M$307,DATA!$F$3:$F$307,$A21,DATA!$B$3:$B$307,$C$2) -> 762 | J21: =SUMIFS(DATA!N$3:N$307,DATA!$F$3:$F$307,$A21,DATA!$B$3:$B$307,$C$2) -> 753 | K21: =SUMIFS(DATA!O$3:O$307,DATA!$F$3:$F$307,$A21,DATA!$B$3:$B$307,$C$2) -> 754 | L21: =SUMIFS(DATA!P$3:P$307,DATA!$F$3:$F$307,$A21,DATA!$B$3:$B$307,$C$2) -> 742 | M21: =SUMIFS(DATA!Q$3:Q$307,DATA!$F$3:$F$307,$A21,DATA!$B$3:$B$307,$C$2) -> 733 | N21: =SUMIFS(DATA!R$3:R$307,DATA!$F$3:$F$307,$A21,DATA!$B$3:$B$307,$C$2) -> 754 | O21: =SUMIFS(DATA!S$3:S$307,DATA!$F$3:$F$307,$A21,DATA!$B$3:$B$307,$C$2) -> 767 | P21: =SUMIFS(DATA!T$3:T$307,DATA!$F$3:$F$307,$A21,DATA!$B$3:$B$307,$C$2) -> 766 | Q21: =SUMIFS(DATA!U$3:U$307,DATA!$F$3:$F$307,$A21,DATA!$B$3:$B$307,$C$2) -> 756 | R21: =SUMIFS(DATA!V$3:V$307,DATA!$F$3:$F$307,$A21,DATA!$B$3:$B$307,$C$2) -> 758 | S21: =SUMIFS(DATA!W$3:W$307,DATA!$F$3:$F$307,$A21,DATA!$B$3:$B$307,$C$2) -> 771 | T21: =SUMIFS(DATA!X$3:X$307,DATA!$F$3:$F$307,$A21,DATA!$B$3:$B$307,$C$2) -> 779 | U21: =SUMIFS(DATA!Y$3:Y$307,DATA!$F$3:$F$307,$A21,DATA!$B$3:$B$307,$C$2) -> 778 | V21: =SUMIFS(DATA!Z$3:Z$307,DATA!$F$3:$F$307,$A21,DATA!$B$3:$B$307,$C$2) -> 708
A22: Annual Change in Gross Interest | B22: [Formula] | D22: =D21-C21 -> -11 | E22: =E21-D21 -> 64 | F22: =F21-E21 -> 61 | G22: 76 | H22: 29 | I22: 10 | J22: -9 | K22: 1 | L22: -12 | M22: -9 | N22: 21 | O22: 13 | P22: -1 | Q22: -10 | R22: 2 | S22: 13 | T22: 8 | U22: -1 | V22: -70
A23: Provincial Guarantee Fee | B23: 1 PUB-081a | C23: =SUMIFS(DATA!G$3:G$307,DATA!$F$3:$F$307,$A23,DATA!$B$3:$B$307,$C$2) -> 93 | D23: =SUMIFS(DATA!H$3:H$307,DATA!$F$3:$F$307,$A23,DATA!$B$3:$B$307,$C$2) -> 102 | E23: =SUMIFS(DATA!I$3:I$307,DATA!$F$3:$F$307,$A23,DATA!$B$3:$B$307,$C$2) -> 114 | F23: =SUMIFS(DATA!J$3:J$307,DATA!$F$3:$F$307,$A23,DATA!$B$3:$B$307,$C$2) -> 129 | G23: =SUMIFS(DATA!K$3:K$307,DATA!$F$3:$F$307,$A23,DATA!$B$3:$B$307,$C$2) -> 141 | H23: =SUMIFS(DATA!L$3:L$307,DATA!$F$3:$F$307,$A23,DATA!$B$3:$B$307,$C$2) -> 150 | I23: =SUMIFS(DATA!M$3:M$307,DATA!$F$3:$F$307,$A23,DATA!$B$3:$B$307,$C$2) -> 156 | J23: =SUMIFS(DATA!N$3:N$307,DATA!$F$3:$F$307,$A23,DATA!$B$3:$B$307,$C$2) -> 157 | K23: =SUMIFS(DATA!O$3:O$307,DATA!$F$3:$F$307,$A23,DATA!$B$3:$B$307,$C$2) -> 158 | L23: =SUMIFS(DATA!P$3:P$307,DATA!$F$3:$F$307,$A23,DATA!$B$3:$B$307,$C$2) -> 160 | M23: =SUMIFS(DATA!Q$3:Q$307,DATA!$F$3:$F$307,$A23,DATA!$B$3:$B$307,$C$2) -> 158 | N23: =SUMIFS(DATA!R$3:R$307,DATA!$F$3:$F$307,$A23,DATA!$B$3:$B$307,$C$2) -> 159 | O23: =SUMIFS(DATA!S$3:S$307,DATA!$F$3:$F$307,$A23,DATA!$B$3:$B$307,$C$2) -> 162 | P23: =SUMIFS(DATA!T$3:T$307,DATA!$F$3:$F$307,$A23,DATA!$B$3:$B$307,$C$2) -> 164 | Q23: =SUMIFS(DATA!U$3:U$307,DATA!$F$3:$F$307,$A23,DATA!$B$3:$B$307,$C$2) -> 162 | R23: =SUMIFS(DATA!V$3:V$307,DATA!$F$3:$F$307,$A23,DATA!$B$3:$B$307,$C$2) -> 162 | S23: =SUMIFS(DATA!W$3:W$307,DATA!$F$3:$F$307,$A23,DATA!$B$3:$B$307,$C$2) -> 164 | T23: =SUMIFS(DATA!X$3:X$307,DATA!$F$3:$F$307,$A23,DATA!$B$3:$B$307,$C$2) -> 168 | U23: =SUMIFS(DATA!Y$3:Y$307,DATA!$F$3:$F$307,$A23,DATA!$B$3:$B$307,$C$2) -> 168 | V23: =SUMIFS(DATA!Z$3:Z$307,DATA!$F$3:$F$307,$A23,DATA!$B$3:$B$307,$C$2) -> 162
A24: Total Interest on Debt | C24: =SUM(C21,C23) -> 626 | D24: =SUM(D21,D23) -> 624 | E24: 700 | F24: 776 | G24: 864 | H24: 902 | I24: 918 | J24: 910 | K24: 912 | L24: 902 | M24: 891 | N24: 913 | O24: 929 | P24: 930 | Q24: 918 | R24: 920 | S24: 935 | T24: 947 | U24: 946 | V24: 870
A25: Re-created Annual Change in Gross Interest | E25: =E90*(E138*E139+(1-E138)*E142) -> 55.8638 | F25: 71.0605 | G25: 41.65 | H25: 22.9395 | I25: 31.185 | J25: -14.742 | K25: 7.749 | L25: 9.513 | M25: 37.926 | N25: 12.726 | O25: -15.498 | P25: 25.326 | Q25: 0.126 | R25: -3.78 | S25: 22.113 | T25: -31.311 | U25: 11.97 | V25: -14.301 | W25: =W90*(W138*W139+(1-W138)*W142) -> -140.238 | X25: 62.244 | Y25: -29.799 | Z25: 63.063 | AA25: -21.924 | AB25: 50.526 | AC25: 56.826 | AD25: -3.024 | AE25: 9.45 | AF25: 31.437 | AG25: 59.787 | AH25: 37.674 | AI25: -0.063 | AJ25: 12.474 | AK25: 12.474 | AL25: -25.263 | AM25: -33.201 | AN25: -12.726 | AO25: 25.2 | AP25: 9.387 | AQ25: -151.2 | AR25: 50.337 | AS25: -75.6 | AT25: 50.337 | AU25: -63.504 | AV25: 25.2 | AW25: 29.862 | AX25: 12.537 | AY25: -25.2 | AZ25: -3.15
A26: Re-created Gross Interest | B26: =SUM(C26:V26)/SUM(C21:V21)-1 -> 0.02138527607 | C26: =C$21 -> 533 | D26: =D$21 -> 522 | E26: =D26+E25 -> 577.8638 | F26: =E26+F25 -> 648.9243 | G26: 690.5743 | H26: 713.5138 | I26: 744.6988 | J26: 729.9568 | K26: 737.7058 | L26: 747.2188 | M26: 785.1448 | N26: 797.8708 | O26: 782.3728 | P26: 807.6988 | Q26: 807.8248 | R26: 804.0448 | S26: 826.1578 | T26: 794.8468 | U26: 806.8168 | V26: 792.5158 | W26: 652.2778 | X26: 714.5218 | Y26: 684.7228 | Z26: 747.7858 | AA26: 725.8618 | AB26: 776.3878 | AC26: 833.2138 | AD26: 830.1898 | AE26: 839.6398 | AF26: 871.0768 | AG26: 930.8638 | AH26: 968.5378 | AI26: 968.4748 | AJ26: 980.9488 | AK26: 993.4228 | AL26: 968.1598 | AM26: 934.9588 | AN26: 922.2328 | AO26: 947.4328 | AP26: 956.8198 | AQ26: 805.6198 | AR26: 855.9568 | AS26: 780.3568 | AT26: 830.6938 | AU26: 767.1898 | AV26: 792.3898 | AW26: 822.2518 | AX26: 834.7888 | AY26: 809.5888 | AZ26: 806.4388
A27: Re-created Provincial Guarantee Fee | B27: [Formula] | C27: 93 | D27: =(C$89)*0.01 -> 92.89 | E27: =(D$89)*0.01 -> 112.6 | F27: 124.19 | G27: 137.04 | H27: 144.04 | I27: 147.77 | J27: 152.72 | K27: 150.38 | L27: 151.61 | M27: 153.12 | N27: 159.14 | O27: 161.16 | P27: 158.7 | Q27: 162.72 | R27: 162.74 | S27: 162.14 | T27: 165.65 | U27: 160.68 | V27: 162.58 | W27: 160.31 | X27: 138.05 | Y27: 147.93 | Z27: 143.2 | AA27: 153.21 | AB27: 149.73 | AC27: 157.75 | AD27: 166.77 | AE27: 166.29 | AF27: 167.79 | AG27: 172.78 | AH27: 182.27 | AI27: 188.25 | AJ27: 188.24 | AK27: 190.22 | AL27: 192.2 | AM27: 188.19 | AN27: 182.92 | AO27: 180.9 | AP27: 184.9 | AQ27: 186.39 | AR27: 162.39 | AS27: 170.38 | AT27: 158.38 | AU27: 166.37 | AV27: 156.29 | AW27: 160.29 | AX27: 165.03 | AY27: 167.02 | AZ27: 163.02
A28: Re-created Total Interest on Debt | B28: =SUM(C28:V28)/SUM(C24:V24)-1 -> 0.01342066578 | C28: =SUM(C26,C27) -> 626 | D28: =SUM(D26,D27) -> 614.89 | E28: 690.4638 | F28: 773.1143 | G28: 827.6143 | H28: 857.5538 | I28: 892.4688 | J28: 882.6768 | K28: 888.0858 | L28: 898.8288 | M28: 938.2648 | N28: 957.0108 | O28: 943.5328 | P28: 966.3988 | Q28: 970.5448 | R28: 966.7848 | S28: 988.2978 | T28: 960.4968 | U28: 967.4968 | V28: 955.0958 | W28: 812.5878 | X28: 852.5718 | Y28: 832.6528 | Z28: 890.9858 | AA28: 879.0718 | AB28: 926.1178 | AC28: 990.9638 | AD28: 996.9598 | AE28: 1005.9298 | AF28: 1038.8668 | AG28: 1103.6438 | AH28: 1150.8078 | AI28: 1156.7248 | AJ28: 1169.1888 | AK28: 1183.6428 | AL28: 1160.3598 | AM28: 1123.1488 | AN28: 1105.1528 | AO28: 1128.3328 | AP28: 1141.7198 | AQ28: 992.0098 | AR28: 1018.3468 | AS28: 950.7368 | AT28: 989.0738 | AU28: 933.5598 | AV28: 948.6798 | AW28: 982.5418 | AX28: 999.8188 | AY28: 976.6088 | AZ28: 969.4588
A30: Interest Income + Interest Allocated to Construction | C30: =SUMIFS(DATA!G$3:G$307,DATA!$F$3:$F$307,$A30,DATA!$B$3:$B$307,$C$2) -> -175 | D30: =SUMIFS(DATA!H$3:H$307,DATA!$F$3:$F$307,$A30,DATA!$B$3:$B$307,$C$2) -> -184 | E30: =SUMIFS(DATA!I$3:I$307,DATA!$F$3:$F$307,$A30,DATA!$B$3:$B$307,$C$2) -> -164 | F30: =SUMIFS(DATA!J$3:J$307,DATA!$F$3:$F$307,$A30,DATA!$B$3:$B$307,$C$2) -> -186 | G30: =SUMIFS(DATA!K$3:K$307,DATA!$F$3:$F$307,$A30,DATA!$B$3:$B$307,$C$2) -> -206 | H30: =SUMIFS(DATA!L$3:L$307,DATA!$F$3:$F$307,$A30,DATA!$B$3:$B$307,$C$2) -> -165 | I30: =SUMIFS(DATA!M$3:M$307,DATA!$F$3:$F$307,$A30,DATA!$B$3:$B$307,$C$2) -> -62 | J30: =SUMIFS(DATA!N$3:N$307,DATA!$F$3:$F$307,$A30,DATA!$B$3:$B$307,$C$2) -> -60 | K30: =SUMIFS(DATA!O$3:O$307,DATA!$F$3:$F$307,$A30,DATA!$B$3:$B$307,$C$2) -> -63 | L30: =SUMIFS(DATA!P$3:P$307,DATA!$F$3:$F$307,$A30,DATA!$B$3:$B$307,$C$2) -> -65 | M30: =SUMIFS(DATA!Q$3:Q$307,DATA!$F$3:$F$307,$A30,DATA!$B$3:$B$307,$C$2) -> -47 | N30: =SUMIFS(DATA!R$3:R$307,DATA!$F$3:$F$307,$A30,DATA!$B$3:$B$307,$C$2) -> -54 | O30: =SUMIFS(DATA!S$3:S$307,DATA!$F$3:$F$307,$A30,DATA!$B$3:$B$307,$C$2) -> -71 | P30: =SUMIFS(DATA!T$3:T$307,DATA!$F$3:$F$307,$A30,DATA!$B$3:$B$307,$C$2) -> -65 | Q30: =SUMIFS(DATA!U$3:U$307,DATA!$F$3:$F$307,$A30,DATA!$B$3:$B$307,$C$2) -> -75 | R30: =SUMIFS(DATA!V$3:V$307,DATA!$F$3:$F$307,$A30,DATA!$B$3:$B$307,$C$2) -> -93 | S30: =SUMIFS(DATA!W$3:W$307,DATA!$F$3:$F$307,$A30,DATA!$B$3:$B$307,$C$2) -> -124 | T30: =SUMIFS(DATA!X$3:X$307,DATA!$F$3:$F$307,$A30,DATA!$B$3:$B$307,$C$2) -> -158 | U30: =SUMIFS(DATA!Y$3:Y$307,DATA!$F$3:$F$307,$A30,DATA!$B$3:$B$307,$C$2) -> -131 | V30: =SUMIFS(DATA!Z$3:Z$307,DATA!$F$3:$F$307,$A30,DATA!$B$3:$B$307,$C$2) -> -68
A31: Total Finance Expense | B31: 1-PUB-081a | C31: =SUM(C24,C30) -> 451 | D31: 440 | E31: 536 | F31: 590 | G31: 658 | H31: 737 | I31: 856 | J31: 850 | K31: =SUM(K24,K30) -> 849 | L31: 837 | M31: 844 | N31: 859 | O31: 858 | P31: 865 | Q31: 843 | R31: 827 | S31: 811 | T31: 789 | U31: 815 | V31: 802
A32: Finance Expense | C32: =SUMIFS(DATA!G$3:G$101,DATA!$F$3:$F$101,$A32,DATA!$B$3:$B$101,$C$2) -> 451 | D32: =SUMIFS(DATA!H$3:H$101,DATA!$F$3:$F$101,$A32,DATA!$B$3:$B$101,$C$2) -> 440 | E32: =IF($F$3="No",SUMIFS(DATA!I$3:I$101,DATA!$F$3:$F$101,$A32,DATA!$B$3:$B$101,$C$2),SUMIFS(DATA!I$3:I$101,DATA!$F$3:$F$101,$A32,DATA!$B$3:$B$101,$C$2)+Imports!E166) -> 536 | F32: =IF($F$3="No",SUMIFS(DATA!J$3:J$101,DATA!$F$3:$F$101,$A32,DATA!$B$3:$B$101,$C$2),SUMIFS(DATA!J$3:J$101,DATA!$F$3:$F$101,$A32,DATA!$B$3:$B$101,$C$2)+Imports!F166) -> 589 | G32: =IF($F$3="No",SUMIFS(DATA!K$3:K$101,DATA!$F$3:$F$101,$A32,DATA!$B$3:$B$101,$C$2),SUMIFS(DATA!K$3:K$101,DATA!$F$3:$F$101,$A32,DATA!$B$3:$B$101,$C$2)+Imports!G166) -> 658 | H32: =IF($F$3="No",SUMIFS(DATA!L$3:L$101,DATA!$F$3:$F$101,$A32,DATA!$B$3:$B$101,$C$2),SUMIFS(DATA!L$3:L$101,DATA!$F$3:$F$101,$A32,DATA!$B$3:$B$101,$C$2)+Imports!H166) -> 737 | I32: =IF($F$3="No",SUMIFS(DATA!M$3:M$101,DATA!$F$3:$F$101,$A32,DATA!$B$3:$B$101,$C$2),SUMIFS(DATA!M$3:M$101,DATA!$F$3:$F$101,$A32,DATA!$B$3:$B$101,$C$2)+Imports!I166) -> 856.9777895 | J32: =IF($F$3="No",SUMIFS(DATA!N$3:N$101,DATA!$F$3:$F$101,$A32,DATA!$B$3:$B$101,$C$2),SUMIFS(DATA!N$3:N$101,DATA!$F$3:$F$101,$A32,DATA!$B$3:$B$101,$C$2)+Imports!J166) -> 848.978692 | K32: =IF($F$3="No",SUMIFS(DATA!O$3:O$101,DATA!$F$3:$F$101,$A32,DATA!$B$3:$B$101,$C$2),SUMIFS(DATA!O$3:O$101,DATA!$F$3:$F$101,$A32,DATA!$B$3:$B$101,$C$2)+Imports!K166) -> 843.1597801 | L32: =IF($F$3="No",SUMIFS(DATA!P$3:P$101,DATA!$F$3:$F$101,$A32,DATA!$B$3:$B$101,$C$2),SUMIFS(DATA!P$3:P$101,DATA!$F$3:$F$101,$A32,DATA!$B$3:$B$101,$C$2)+Imports!L166) -> 822.4944716 | M32: =IF($F$3="No",SUMIFS(DATA!Q$3:Q$101,DATA!$F$3:$F$101,$A32,DATA!$B$3:$B$101,$C$2),SUMIFS(DATA!Q$3:Q$101,DATA!$F$3:$F$101,$A32,DATA!$B$3:$B$101,$C$2)+Imports!M166) -> 829.8331004 | N32: =IF($F$3="No",SUMIFS(DATA!R$3:R$101,DATA!$F$3:$F$101,$A32,DATA!$B$3:$B$101,$C$2),SUMIFS(DATA!R$3:R$101,DATA!$F$3:$F$101,$A32,DATA!$B$3:$B$101,$C$2)+Imports!N166) -> 840.4911754 | O32: =IF($F$3="No",SUMIFS(DATA!S$3:S$101,DATA!$F$3:$F$101,$A32,DATA!$B$3:$B$101,$C$2),SUMIFS(DATA!S$3:S$101,DATA!$F$3:$F$101,$A32,DATA!$B$3:$B$101,$C$2)+Imports!O166) -> 828.050018 | P32: =IF($F$3="No",SUMIFS(DATA!T$3:T$101,DATA!$F$3:$F$101,$A32,DATA!$B$3:$B$101,$C$2),SUMIFS(DATA!T$3:T$101,DATA!$F$3:$F$101,$A32,DATA!$B$3:$B$101,$C$2)+Imports!P166) -> 837.6392762 | Q32: =IF($F$3="No",SUMIFS(DATA!U$3:U$101,DATA!$F$3:$F$101,$A32,DATA!$B$3:$B$101,$C$2),SUMIFS(DATA!U$3:U$101,DATA!$F$3:$F$101,$A32,DATA!$B$3:$B$101,$C$2)+Imports!Q166) -> 812.8017094 | R32: =IF($F$3="No",SUMIFS(DATA!V$3:V$101,DATA!$F$3:$F$101,$A32,DATA!$B$3:$B$101,$C$2),SUMIFS(DATA!V$3:V$101,DATA!$F$3:$F$101,$A32,DATA!$B$3:$B$101,$C$2)+Imports!R166) -> 796.6826507 | S32: =IF($F$3="No",SUMIFS(DATA!W$3:W$101,DATA!$F$3:$F$101,$A32,DATA!$B$3:$B$101,$C$2),SUMIFS(DATA!W$3:W$101,DATA!$F$3:$F$101,$A32,DATA!$B$3:$B$101,$C$2)+Imports!S166) -> 776.5883459 | T32: =IF($F$3="No",SUMIFS(DATA!X$3:X$101,DATA!$F$3:$F$101,$A32,DATA!$B$3:$B$101,$C$2),SUMIFS(DATA!X$3:X$101,DATA!$F$3:$F$101,$A32,DATA!$B$3:$B$101,$C$2)+Imports!T166) -> 755.3617959 | U32: =IF($F$3="No",SUMIFS(DATA!Y$3:Y$101,DATA!$F$3:$F$101,$A32,DATA!$B$3:$B$101,$C$2),SUMIFS(DATA!Y$3:Y$101,DATA!$F$3:$F$101,$A32,DATA!$B$3:$B$101,$C$2)+Imports!U166) -> 781.8296833 | V32: =IF($F$3="No",SUMIFS(DATA!Z$3:Z$101,DATA!$F$3:$F$101,$A32,DATA!$B$3:$B$101,$C$2),SUMIFS(DATA!Z$3:Z$101,DATA!$F$3:$F$101,$A32,DATA!$B$3:$B$101,$C$2)+Imports!V166) -> 777.4746497 | W32: =IF($F$3="No",SUMIFS(DATA!AA$3:AA$101,DATA!$F$3:$F$101,$A32,DATA!$B$3:$B$101,$C$2),SUMIFS(DATA!AA$3:AA$101,DATA!$F$3:$F$101,$A32,DATA!$B$3:$B$101,$C$2)+Imports!W166) -> 758.9676863 | X32: =IF($F$3="No",SUMIFS(DATA!AB$3:AB$101,DATA!$F$3:$F$101,$A32,DATA!$B$3:$B$101,$C$2),SUMIFS(DATA!AB$3:AB$101,DATA!$F$3:$F$101,$A32,DATA!$B$3:$B$101,$C$2)+Imports!X166) -> 765.7487714 | Y32: =IF($F$3="No",SUMIFS(DATA!AC$3:AC$101,DATA!$F$3:$F$101,$A32,DATA!$B$3:$B$101,$C$2),SUMIFS(DATA!AC$3:AC$101,DATA!$F$3:$F$101,$A32,DATA!$B$3:$B$101,$C$2)+Imports!Y166) -> 827.5770545 | Z32: =IF($F$3="No",SUMIFS(DATA!AD$3:AD$101,DATA!$F$3:$F$101,$A32,DATA!$B$3:$B$101,$C$2),SUMIFS(DATA!AD$3:AD$101,DATA!$F$3:$F$101,$A32,DATA!$B$3:$B$101,$C$2)+Imports!Z166) -> 832.8970534 | AA32: =IF($F$3="No",SUMIFS(DATA!AE$3:AE$101,DATA!$F$3:$F$101,$A32,DATA!$B$3:$B$101,$C$2),SUMIFS(DATA!AE$3:AE$101,DATA!$F$3:$F$101,$A32,DATA!$B$3:$B$101,$C$2)+Imports!AA166) -> 849.1099188 | AB32: =IF($F$3="No",SUMIFS(DATA!AF$3:AF$101,DATA!$F$3:$F$101,$A32,DATA!$B$3:$B$101,$C$2),SUMIFS(DATA!AF$3:AF$101,DATA!$F$3:$F$101,$A32,DATA!$B$3:$B$101,$C$2)+Imports!AB166) -> 879.7611422 | AC32: =IF($F$3="No",SUMIFS(DATA!AG$3:AG$101,DATA!$F$3:$F$101,$A32,DATA!$B$3:$B$101,$C$2),SUMIFS(DATA!AG$3:AG$101,DATA!$F$3:$F$101,$A32,DATA!$B$3:$B$101,$C$2)+Imports!AC166) -> 872.4145479 | AD32: =IF($F$3="No",SUMIFS(DATA!AH$3:AH$101,DATA!$F$3:$F$101,$A32,DATA!$B$3:$B$101,$C$2),SUMIFS(DATA!AH$3:AH$101,DATA!$F$3:$F$101,$A32,DATA!$B$3:$B$101,$C$2)+Imports!AD166) -> 877.7927853 | AE32: =IF($F$3="No",SUMIFS(DATA!AI$3:AI$101,DATA!$F$3:$F$101,$A32,DATA!$B$3:$B$101,$C$2),SUMIFS(DATA!AI$3:AI$101,DATA!$F$3:$F$101,$A32,DATA!$B$3:$B$101,$C$2)+Imports!AE166) -> 959.1678465 | AF32: =IF($F$3="No",SUMIFS(DATA!AJ$3:AJ$101,DATA!$F$3:$F$101,$A32,DATA!$B$3:$B$101,$C$2),SUMIFS(DATA!AJ$3:AJ$101,DATA!$F$3:$F$101,$A32,DATA!$B$3:$B$101,$C$2)+Imports!AF166) -> 952.8605846 | AG32: =IF($F$3="No",SUMIFS(DATA!AK$3:AK$101,DATA!$F$3:$F$101,$A32,DATA!$B$3:$B$101,$C$2),SUMIFS(DATA!AK$3:AK$101,DATA!$F$3:$F$101,$A32,DATA!$B$3:$B$101,$C$2)+Imports!AG166) -> 945.1894727 | AH32: =IF($F$3="No",SUMIFS(DATA!AL$3:AL$101,DATA!$F$3:$F$101,$A32,DATA!$B$3:$B$101,$C$2),SUMIFS(DATA!AL$3:AL$101,DATA!$F$3:$F$101,$A32,DATA!$B$3:$B$101,$C$2)+Imports!AH166) -> 957.6599624 | AI32: =IF($F$3="No",SUMIFS(DATA!AM$3:AM$101,DATA!$F$3:$F$101,$A32,DATA!$B$3:$B$101,$C$2),SUMIFS(DATA!AM$3:AM$101,DATA!$F$3:$F$101,$A32,DATA!$B$3:$B$101,$C$2)+Imports!AI166) -> 999.0716774 | AJ32: =IF($F$3="No",SUMIFS(DATA!AN$3:AN$101,DATA!$F$3:$F$101,$A32,DATA!$B$3:$B$101,$C$2),SUMIFS(DATA!AN$3:AN$101,DATA!$F$3:$F$101,$A32,DATA!$B$3:$B$101,$C$2)+Imports!AJ166) -> 1010.645078 | AK32: =IF($F$3="No",SUMIFS(DATA!AO$3:AO$101,DATA!$F$3:$F$101,$A32,DATA!$B$3:$B$101,$C$2),SUMIFS(DATA!AO$3:AO$101,DATA!$F$3:$F$101,$A32,DATA!$B$3:$B$101,$C$2)+Imports!AK166) -> 1046.141753 | AL32: =IF($F$3="No",SUMIFS(DATA!AP$3:AP$101,DATA!$F$3:$F$101,$A32,DATA!$B$3:$B$101,$C$2),SUMIFS(DATA!AP$3:AP$101,DATA!$F$3:$F$101,$A32,DATA!$B$3:$B$101,$C$2)+Imports!AL166) -> 1027.017068 | AM32: =IF($F$3="No",SUMIFS(DATA!AQ$3:AQ$101,DATA!$F$3:$F$101,$A32,DATA!$B$3:$B$101,$C$2),SUMIFS(DATA!AQ$3:AQ$101,DATA!$F$3:$F$101,$A32,DATA!$B$3:$B$101,$C$2)+Imports!AM166) -> 1024.76871 | AN32: =IF($F$3="No",SUMIFS(DATA!AR$3:AR$101,DATA!$F$3:$F$101,$A32,DATA!$B$3:$B$101,$C$2),SUMIFS(DATA!AR$3:AR$101,DATA!$F$3:$F$101,$A32,DATA!$B$3:$B$101,$C$2)+Imports!AN166) -> 1010.136471 | AO32: =IF($F$3="No",SUMIFS(DATA!AS$3:AS$101,DATA!$F$3:$F$101,$A32,DATA!$B$3:$B$101,$C$2),SUMIFS(DATA!AS$3:AS$101,DATA!$F$3:$F$101,$A32,DATA!$B$3:$B$101,$C$2)+Imports!AO166) -> 1000.898662 | AP32: =IF($F$3="No",SUMIFS(DATA!AT$3:AT$101,DATA!$F$3:$F$101,$A32,DATA!$B$3:$B$101,$C$2),SUMIFS(DATA!AT$3:AT$101,DATA!$F$3:$F$101,$A32,DATA!$B$3:$B$101,$C$2)+Imports!AP166) -> 991.7996476 | AQ32: =IF($F$3="No",SUMIFS(DATA!AU$3:AU$101,DATA!$F$3:$F$101,$A32,DATA!$B$3:$B$101,$C$2),SUMIFS(DATA!AU$3:AU$101,DATA!$F$3:$F$101,$A32,DATA!$B$3:$B$101,$C$2)+Imports!AQ166) -> 1017.812838 | AR32: =IF($F$3="No",SUMIFS(DATA!AV$3:AV$101,DATA!$F$3:$F$101,$A32,DATA!$B$3:$B$101,$C$2),SUMIFS(DATA!AV$3:AV$101,DATA!$F$3:$F$101,$A32,DATA!$B$3:$B$101,$C$2)+Imports!AR166) -> 997.0980756 | AS32: =IF($F$3="No",SUMIFS(DATA!AW$3:AW$101,DATA!$F$3:$F$101,$A32,DATA!$B$3:$B$101,$C$2),SUMIFS(DATA!AW$3:AW$101,DATA!$F$3:$F$101,$A32,DATA!$B$3:$B$101,$C$2)+Imports!AS166) -> 961.303776 | AT32: =IF($F$3="No",SUMIFS(DATA!AX$3:AX$101,DATA!$F$3:$F$101,$A32,DATA!$B$3:$B$101,$C$2),SUMIFS(DATA!AX$3:AX$101,DATA!$F$3:$F$101,$A32,DATA!$B$3:$B$101,$C$2)+Imports!AT166) -> 962.1833664 | AU32: =IF($F$3="No",SUMIFS(DATA!AY$3:AY$101,DATA!$F$3:$F$101,$A32,DATA!$B$3:$B$101,$C$2),SUMIFS(DATA!AY$3:AY$101,DATA!$F$3:$F$101,$A32,DATA!$B$3:$B$101,$C$2)+Imports!AU166) -> 957.3772208 | AV32: =IF($F$3="No",SUMIFS(DATA!AZ$3:AZ$101,DATA!$F$3:$F$101,$A32,DATA!$B$3:$B$101,$C$2),SUMIFS(DATA!AZ$3:AZ$101,DATA!$F$3:$F$101,$A32,DATA!$B$3:$B$101,$C$2)+Imports!AV166) -> 920.9364513 | AW32: =IF($F$3="No",SUMIFS(DATA!BA$3:BA$101,DATA!$F$3:$F$101,$A32,DATA!$B$3:$B$101,$C$2),SUMIFS(DATA!BA$3:BA$101,DATA!$F$3:$F$101,$A32,DATA!$B$3:$B$101,$C$2)+Imports!AW166) -> 873.2339903 | AX32: =IF($F$3="No",SUMIFS(DATA!BB$3:BB$101,DATA!$F$3:$F$101,$A32,DATA!$B$3:$B$101,$C$2),SUMIFS(DATA!BB$3:BB$101,DATA!$F$3:$F$101,$A32,DATA!$B$3:$B$101,$C$2)+Imports!AX166) -> 837.8260421 | AY32: =IF($F$3="No",SUMIFS(DATA!BC$3:BC$101,DATA!$F$3:$F$101,$A32,DATA!$B$3:$B$101,$C$2),SUMIFS(DATA!BC$3:BC$101,DATA!$F$3:$F$101,$A32,DATA!$B$3:$B$101,$C$2)+Imports!AY166) -> 849.4803072 | AZ32: =IF($F$3="No",SUMIFS(DATA!BD$3:BD$101,DATA!$F$3:$F$101,$A32,DATA!$B$3:$B$101,$C$2),SUMIFS(DATA!BD$3:BD$101,DATA!$F$3:$F$101,$A32,DATA!$B$3:$B$101,$C$2)+Imports!AZ166) -> 871.5050035
A33: Depreciation and Amortization | C33: =SUMIFS(DATA!G$3:G$101,DATA!$F$3:$F$101,$A33,DATA!$B$3:$B$101,$C$2) -> 399 | D33: =SUMIFS(DATA!H$3:H$101,DATA!$F$3:$F$101,$A33,DATA!$B$3:$B$101,$C$2) -> 430 | E33: =IF($F$3="No",SUMIFS(DATA!I$3:I$101,DATA!$F$3:$F$101,$A33,DATA!$B$3:$B$101,$C$2),SUMIFS(DATA!I$3:I$101,DATA!$F$3:$F$101,$A33,DATA!$B$3:$B$101,$C$2)+Imports!E167) -> 439 | F33: =IF($F$3="No",SUMIFS(DATA!J$3:J$101,DATA!$F$3:$F$101,$A33,DATA!$B$3:$B$101,$C$2),SUMIFS(DATA!J$3:J$101,DATA!$F$3:$F$101,$A33,DATA!$B$3:$B$101,$C$2)+Imports!F167) -> 479 | G33: =IF($F$3="No",SUMIFS(DATA!K$3:K$101,DATA!$F$3:$F$101,$A33,DATA!$B$3:$B$101,$C$2),SUMIFS(DATA!K$3:K$101,DATA!$F$3:$F$101,$A33,DATA!$B$3:$B$101,$C$2)+Imports!G167) -> 488 | H33: =IF($F$3="No",SUMIFS(DATA!L$3:L$101,DATA!$F$3:$F$101,$A33,DATA!$B$3:$B$101,$C$2),SUMIFS(DATA!L$3:L$101,DATA!$F$3:$F$101,$A33,DATA!$B$3:$B$101,$C$2)+Imports!H167) -> 509 | I33: =IF($F$3="No",SUMIFS(DATA!M$3:M$101,DATA!$F$3:$F$101,$A33,DATA!$B$3:$B$101,$C$2),SUMIFS(DATA!M$3:M$101,DATA!$F$3:$F$101,$A33,DATA!$B$3:$B$101,$C$2)+Imports!I167) -> 543.9871106 | J33: =IF($F$3="No",SUMIFS(DATA!N$3:N$101,DATA!$F$3:$F$101,$A33,DATA!$B$3:$B$101,$C$2),SUMIFS(DATA!N$3:N$101,DATA!$F$3:$F$101,$A33,DATA!$B$3:$B$101,$C$2)+Imports!J167) -> 540.9871106 | K33: =IF($F$3="No",SUMIFS(DATA!O$3:O$101,DATA!$F$3:$F$101,$A33,DATA!$B$3:$B$101,$C$2),SUMIFS(DATA!O$3:O$101,DATA!$F$3:$F$101,$A33,DATA!$B$3:$B$101,$C$2)+Imports!K167) -> 533.5285099 | L33: =IF($F$3="No",SUMIFS(DATA!P$3:P$101,DATA!$F$3:$F$101,$A33,DATA!$B$3:$B$101,$C$2),SUMIFS(DATA!P$3:P$101,DATA!$F$3:$F$101,$A33,DATA!$B$3:$B$101,$C$2)+Imports!L167) -> 538.6688274 | M33: =IF($F$3="No",SUMIFS(DATA!Q$3:Q$101,DATA!$F$3:$F$101,$A33,DATA!$B$3:$B$101,$C$2),SUMIFS(DATA!Q$3:Q$101,DATA!$F$3:$F$101,$A33,DATA!$B$3:$B$101,$C$2)+Imports!M167) -> 549.1003007 | N33: =IF($F$3="No",SUMIFS(DATA!R$3:R$101,DATA!$F$3:$F$101,$A33,DATA!$B$3:$B$101,$C$2),SUMIFS(DATA!R$3:R$101,DATA!$F$3:$F$101,$A33,DATA!$B$3:$B$101,$C$2)+Imports!N167) -> 547.3734822 | O33: =IF($F$3="No",SUMIFS(DATA!S$3:S$101,DATA!$F$3:$F$101,$A33,DATA!$B$3:$B$101,$C$2),SUMIFS(DATA!S$3:S$101,DATA!$F$3:$F$101,$A33,DATA!$B$3:$B$101,$C$2)+Imports!O167) -> 545.6518406 | P33: =IF($F$3="No",SUMIFS(DATA!T$3:T$101,DATA!$F$3:$F$101,$A33,DATA!$B$3:$B$101,$C$2),SUMIFS(DATA!T$3:T$101,DATA!$F$3:$F$101,$A33,DATA!$B$3:$B$101,$C$2)+Imports!P167) -> 562.7191842 | Q33: =IF($F$3="No",SUMIFS(DATA!U$3:U$101,DATA!$F$3:$F$101,$A33,DATA!$B$3:$B$101,$C$2),SUMIFS(DATA!U$3:U$101,DATA!$F$3:$F$101,$A33,DATA!$B$3:$B$101,$C$2)+Imports!Q167) -> 569.7151405 | R33: =IF($F$3="No",SUMIFS(DATA!V$3:V$101,DATA!$F$3:$F$101,$A33,DATA!$B$3:$B$101,$C$2),SUMIFS(DATA!V$3:V$101,DATA!$F$3:$F$101,$A33,DATA!$B$3:$B$101,$C$2)+Imports!R167) -> 568.646543 | S33: =IF($F$3="No",SUMIFS(DATA!W$3:W$101,DATA!$F$3:$F$101,$A33,DATA!$B$3:$B$101,$C$2),SUMIFS(DATA!W$3:W$101,DATA!$F$3:$F$101,$A33,DATA!$B$3:$B$101,$C$2)+Imports!S167) -> 572.6525581 | T33: =IF($F$3="No",SUMIFS(DATA!X$3:X$101,DATA!$F$3:$F$101,$A33,DATA!$B$3:$B$101,$C$2),SUMIFS(DATA!X$3:X$101,DATA!$F$3:$F$101,$A33,DATA!$B$3:$B$101,$C$2)+Imports!T167) -> 581.4463093 | U33: =IF($F$3="No",SUMIFS(DATA!Y$3:Y$101,DATA!$F$3:$F$101,$A33,DATA!$B$3:$B$101,$C$2),SUMIFS(DATA!Y$3:Y$101,DATA!$F$3:$F$101,$A33,DATA!$B$3:$B$101,$C$2)+Imports!U167) -> 608.6888343 | V33: =IF($F$3="No",SUMIFS(DATA!Z$3:Z$101,DATA!$F$3:$F$101,$A33,DATA!$B$3:$B$101,$C$2),SUMIFS(DATA!Z$3:Z$101,DATA!$F$3:$F$101,$A33,DATA!$B$3:$B$101,$C$2)+Imports!V167) -> 641.3517402 | W33: =IF($F$3="No",SUMIFS(DATA!AA$3:AA$101,DATA!$F$3:$F$101,$A33,DATA!$B$3:$B$101,$C$2),SUMIFS(DATA!AA$3:AA$101,DATA!$F$3:$F$101,$A33,DATA!$B$3:$B$101,$C$2)+Imports!W167) -> 577.644567 | X33: =IF($F$3="No",SUMIFS(DATA!AB$3:AB$101,DATA!$F$3:$F$101,$A33,DATA!$B$3:$B$101,$C$2),SUMIFS(DATA!AB$3:AB$101,DATA!$F$3:$F$101,$A33,DATA!$B$3:$B$101,$C$2)+Imports!X167) -> 558.510517 | Y33: =IF($F$3="No",SUMIFS(DATA!AC$3:AC$101,DATA!$F$3:$F$101,$A33,DATA!$B$3:$B$101,$C$2),SUMIFS(DATA!AC$3:AC$101,DATA!$F$3:$F$101,$A33,DATA!$B$3:$B$101,$C$2)+Imports!Y167) -> 587.6325015 | Z33: =IF($F$3="No",SUMIFS(DATA!AD$3:AD$101,DATA!$F$3:$F$101,$A33,DATA!$B$3:$B$101,$C$2),SUMIFS(DATA!AD$3:AD$101,DATA!$F$3:$F$101,$A33,DATA!$B$3:$B$101,$C$2)+Imports!Z167) -> 591.5717047 | AA33: =IF($F$3="No",SUMIFS(DATA!AE$3:AE$101,DATA!$F$3:$F$101,$A33,DATA!$B$3:$B$101,$C$2),SUMIFS(DATA!AE$3:AE$101,DATA!$F$3:$F$101,$A33,DATA!$B$3:$B$101,$C$2)+Imports!AA167) -> 603.2755533 | AB33: =IF($F$3="No",SUMIFS(DATA!AF$3:AF$101,DATA!$F$3:$F$101,$A33,DATA!$B$3:$B$101,$C$2),SUMIFS(DATA!AF$3:AF$101,DATA!$F$3:$F$101,$A33,DATA!$B$3:$B$101,$C$2)+Imports!AB167) -> 654.4919343 | AC33: =IF($F$3="No",SUMIFS(DATA!AG$3:AG$101,DATA!$F$3:$F$101,$A33,DATA!$B$3:$B$101,$C$2),SUMIFS(DATA!AG$3:AG$101,DATA!$F$3:$F$101,$A33,DATA!$B$3:$B$101,$C$2)+Imports!AC167) -> 654.3172822 | AD33: =IF($F$3="No",SUMIFS(DATA!AH$3:AH$101,DATA!$F$3:$F$101,$A33,DATA!$B$3:$B$101,$C$2),SUMIFS(DATA!AH$3:AH$101,DATA!$F$3:$F$101,$A33,DATA!$B$3:$B$101,$C$2)+Imports!AD167) -> 662.486608 | AE33: =IF($F$3="No",SUMIFS(DATA!AI$3:AI$101,DATA!$F$3:$F$101,$A33,DATA!$B$3:$B$101,$C$2),SUMIFS(DATA!AI$3:AI$101,DATA!$F$3:$F$101,$A33,DATA!$B$3:$B$101,$C$2)+Imports!AE167) -> 708.558269 | AF33: =IF($F$3="No",SUMIFS(DATA!AJ$3:AJ$101,DATA!$F$3:$F$101,$A33,DATA!$B$3:$B$101,$C$2),SUMIFS(DATA!AJ$3:AJ$101,DATA!$F$3:$F$101,$A33,DATA!$B$3:$B$101,$C$2)+Imports!AF167) -> 717.7404583 | AG33: =IF($F$3="No",SUMIFS(DATA!AK$3:AK$101,DATA!$F$3:$F$101,$A33,DATA!$B$3:$B$101,$C$2),SUMIFS(DATA!AK$3:AK$101,DATA!$F$3:$F$101,$A33,DATA!$B$3:$B$101,$C$2)+Imports!AG167) -> 778.0925703 | AH33: =IF($F$3="No",SUMIFS(DATA!AL$3:AL$101,DATA!$F$3:$F$101,$A33,DATA!$B$3:$B$101,$C$2),SUMIFS(DATA!AL$3:AL$101,DATA!$F$3:$F$101,$A33,DATA!$B$3:$B$101,$C$2)+Imports!AH167) -> 791.7943749 | AI33: =IF($F$3="No",SUMIFS(DATA!AM$3:AM$101,DATA!$F$3:$F$101,$A33,DATA!$B$3:$B$101,$C$2),SUMIFS(DATA!AM$3:AM$101,DATA!$F$3:$F$101,$A33,DATA!$B$3:$B$101,$C$2)+Imports!AI167) -> 830.9240328 | AJ33: =IF($F$3="No",SUMIFS(DATA!AN$3:AN$101,DATA!$F$3:$F$101,$A33,DATA!$B$3:$B$101,$C$2),SUMIFS(DATA!AN$3:AN$101,DATA!$F$3:$F$101,$A33,DATA!$B$3:$B$101,$C$2)+Imports!AJ167) -> 879.476001 | AK33: =IF($F$3="No",SUMIFS(DATA!AO$3:AO$101,DATA!$F$3:$F$101,$A33,DATA!$B$3:$B$101,$C$2),SUMIFS(DATA!AO$3:AO$101,DATA!$F$3:$F$101,$A33,DATA!$B$3:$B$101,$C$2)+Imports!AK167) -> 898.9523271 | AL33: =IF($F$3="No",SUMIFS(DATA!AP$3:AP$101,DATA!$F$3:$F$101,$A33,DATA!$B$3:$B$101,$C$2),SUMIFS(DATA!AP$3:AP$101,DATA!$F$3:$F$101,$A33,DATA!$B$3:$B$101,$C$2)+Imports!AL167) -> 919.3552633 | AM33: =IF($F$3="No",SUMIFS(DATA!AQ$3:AQ$101,DATA!$F$3:$F$101,$A33,DATA!$B$3:$B$101,$C$2),SUMIFS(DATA!AQ$3:AQ$101,DATA!$F$3:$F$101,$A33,DATA!$B$3:$B$101,$C$2)+Imports!AM167) -> 945.6978827 | AN33: =IF($F$3="No",SUMIFS(DATA!AR$3:AR$101,DATA!$F$3:$F$101,$A33,DATA!$B$3:$B$101,$C$2),SUMIFS(DATA!AR$3:AR$101,DATA!$F$3:$F$101,$A33,DATA!$B$3:$B$101,$C$2)+Imports!AN167) -> 962.9545904 | AO33: =IF($F$3="No",SUMIFS(DATA!AS$3:AS$101,DATA!$F$3:$F$101,$A33,DATA!$B$3:$B$101,$C$2),SUMIFS(DATA!AS$3:AS$101,DATA!$F$3:$F$101,$A33,DATA!$B$3:$B$101,$C$2)+Imports!AO167) -> 1050.075055 | AP33: =IF($F$3="No",SUMIFS(DATA!AT$3:AT$101,DATA!$F$3:$F$101,$A33,DATA!$B$3:$B$101,$C$2),SUMIFS(DATA!AT$3:AT$101,DATA!$F$3:$F$101,$A33,DATA!$B$3:$B$101,$C$2)+Imports!AP167) -> 1075.75877 | AQ33: =IF($F$3="No",SUMIFS(DATA!AU$3:AU$101,DATA!$F$3:$F$101,$A33,DATA!$B$3:$B$101,$C$2),SUMIFS(DATA!AU$3:AU$101,DATA!$F$3:$F$101,$A33,DATA!$B$3:$B$101,$C$2)+Imports!AQ167) -> 1100.395125 | AR33: =IF($F$3="No",SUMIFS(DATA!AV$3:AV$101,DATA!$F$3:$F$101,$A33,DATA!$B$3:$B$101,$C$2),SUMIFS(DATA!AV$3:AV$101,DATA!$F$3:$F$101,$A33,DATA!$B$3:$B$101,$C$2)+Imports!AR167) -> 1178.24588 | AS33: =IF($F$3="No",SUMIFS(DATA!AW$3:AW$101,DATA!$F$3:$F$101,$A33,DATA!$B$3:$B$101,$C$2),SUMIFS(DATA!AW$3:AW$101,DATA!$F$3:$F$101,$A33,DATA!$B$3:$B$101,$C$2)+Imports!AS167) -> 1215.129065 | AT33: =IF($F$3="No",SUMIFS(DATA!AX$3:AX$101,DATA!$F$3:$F$101,$A33,DATA!$B$3:$B$101,$C$2),SUMIFS(DATA!AX$3:AX$101,DATA!$F$3:$F$101,$A33,DATA!$B$3:$B$101,$C$2)+Imports!AT167) -> 1251.844447 | AU33: =IF($F$3="No",SUMIFS(DATA!AY$3:AY$101,DATA!$F$3:$F$101,$A33,DATA!$B$3:$B$101,$C$2),SUMIFS(DATA!AY$3:AY$101,DATA!$F$3:$F$101,$A33,DATA!$B$3:$B$101,$C$2)+Imports!AU167) -> 1293.757742 | AV33: =IF($F$3="No",SUMIFS(DATA!AZ$3:AZ$101,DATA!$F$3:$F$101,$A33,DATA!$B$3:$B$101,$C$2),SUMIFS(DATA!AZ$3:AZ$101,DATA!$F$3:$F$101,$A33,DATA!$B$3:$B$101,$C$2)+Imports!AV167) -> 1309.29549 | AW33: =IF($F$3="No",SUMIFS(DATA!BA$3:BA$101,DATA!$F$3:$F$101,$A33,DATA!$B$3:$B$101,$C$2),SUMIFS(DATA!BA$3:BA$101,DATA!$F$3:$F$101,$A33,DATA!$B$3:$B$101,$C$2)+Imports!AW167) -> 1345.644574 | AX33: =IF($F$3="No",SUMIFS(DATA!BB$3:BB$101,DATA!$F$3:$F$101,$A33,DATA!$B$3:$B$101,$C$2),SUMIFS(DATA!BB$3:BB$101,DATA!$F$3:$F$101,$A33,DATA!$B$3:$B$101,$C$2)+Imports!AX167) -> 1375.947615 | AY33: =IF($F$3="No",SUMIFS(DATA!BC$3:BC$101,DATA!$F$3:$F$101,$A33,DATA!$B$3:$B$101,$C$2),SUMIFS(DATA!BC$3:BC$101,DATA!$F$3:$F$101,$A33,DATA!$B$3:$B$101,$C$2)+Imports!AY167) -> 1413.979603 | AZ33: =IF($F$3="No",SUMIFS(DATA!BD$3:BD$101,DATA!$F$3:$F$101,$A33,DATA!$B$3:$B$101,$C$2),SUMIFS(DATA!BD$3:BD$101,DATA!$F$3:$F$101,$A33,DATA!$B$3:$B$101,$C$2)+Imports!AZ167) -> 1468.62623
A34: Water Rentals and Assessments | C34: =SUMIFS(DATA!G$3:G$101,DATA!$F$3:$F$101,$A34,DATA!$B$3:$B$101,$C$2) -> 117 | D34: =SUMIFS(DATA!H$3:H$101,DATA!$F$3:$F$101,$A34,DATA!$B$3:$B$101,$C$2) -> 116 | E34: =SUMIFS(DATA!I$3:I$101,DATA!$F$3:$F$101,$A34,DATA!$B$3:$B$101,$C$2) -> 112 | F34: =SUMIFS(DATA!J$3:J$101,DATA!$F$3:$F$101,$A34,DATA!$B$3:$B$101,$C$2) -> 112 | G34: =SUMIFS(DATA!K$3:K$101,DATA!$F$3:$F$101,$A34,DATA!$B$3:$B$101,$C$2) -> 112 | H34: =SUMIFS(DATA!L$3:L$101,DATA!$F$3:$F$101,$A34,DATA!$B$3:$B$101,$C$2) -> 113 | I34: =SUMIFS(DATA!M$3:M$101,DATA!$F$3:$F$101,$A34,DATA!$B$3:$B$101,$C$2) -> 112 | J34: =SUMIFS(DATA!N$3:N$101,DATA!$F$3:$F$101,$A34,DATA!$B$3:$B$101,$C$2) -> 112 | K34: =SUMIFS(DATA!O$3:O$101,DATA!$F$3:$F$101,$A34,DATA!$B$3:$B$101,$C$2) -> 114 | L34: =SUMIFS(DATA!P$3:P$101,DATA!$F$3:$F$101,$A34,DATA!$B$3:$B$101,$C$2) -> 114 | M34: =SUMIFS(DATA!Q$3:Q$101,DATA!$F$3:$F$101,$A34,DATA!$B$3:$B$101,$C$2) -> 113 | N34: =SUMIFS(DATA!R$3:R$101,DATA!$F$3:$F$101,$A34,DATA!$B$3:$B$101,$C$2) -> 113 | O34: =SUMIFS(DATA!S$3:S$101,DATA!$F$3:$F$101,$A34,DATA!$B$3:$B$101,$C$2) -> 113 | P34: =SUMIFS(DATA!T$3:T$101,DATA!$F$3:$F$101,$A34,DATA!$B$3:$B$101,$C$2) -> 114 | Q34: =SUMIFS(DATA!U$3:U$101,DATA!$F$3:$F$101,$A34,DATA!$B$3:$B$101,$C$2) -> 115 | R34: =SUMIFS(DATA!V$3:V$101,DATA!$F$3:$F$101,$A34,DATA!$B$3:$B$101,$C$2) -> 115 | S34: =SUMIFS(DATA!W$3:W$101,DATA!$F$3:$F$101,$A34,DATA!$B$3:$B$101,$C$2) -> 114 | T34: =SUMIFS(DATA!X$3:X$101,DATA!$F$3:$F$101,$A34,DATA!$B$3:$B$101,$C$2) -> 114 | U34: =SUMIFS(DATA!Y$3:Y$101,DATA!$F$3:$F$101,$A34,DATA!$B$3:$B$101,$C$2) -> 118 | V34: =SUMIFS(DATA!Z$3:Z$101,DATA!$F$3:$F$101,$A34,DATA!$B$3:$B$101,$C$2) -> 117 | W34: =SUMIFS(DATA!AA$3:AA$101,DATA!$F$3:$F$101,$A34,DATA!$B$3:$B$101,$C$2) -> 116 | X34: =SUMIFS(DATA!AB$3:AB$101,DATA!$F$3:$F$101,$A34,DATA!$B$3:$B$101,$C$2) -> 116 | Y34: =SUMIFS(DATA!AC$3:AC$101,DATA!$F$3:$F$101,$A34,DATA!$B$3:$B$101,$C$2) -> 116 | Z34: =SUMIFS(DATA!AD$3:AD$101,DATA!$F$3:$F$101,$A34,DATA!$B$3:$B$101,$C$2) -> 117 | AA34: =SUMIFS(DATA!AE$3:AE$101,DATA!$F$3:$F$101,$A34,DATA!$B$3:$B$101,$C$2) -> 119 | AB34: =SUMIFS(DATA!AF$3:AF$101,DATA!$F$3:$F$101,$A34,DATA!$B$3:$B$101,$C$2) -> 118 | AC34: =SUMIFS(DATA!AG$3:AG$101,DATA!$F$3:$F$101,$A34,DATA!$B$3:$B$101,$C$2) -> 118 | AD34: =SUMIFS(DATA!AH$3:AH$101,DATA!$F$3:$F$101,$A34,DATA!$B$3:$B$101,$C$2) -> 120 | AE34: =SUMIFS(DATA!AI$3:AI$101,DATA!$F$3:$F$101,$A34,DATA!$B$3:$B$101,$C$2) -> 119 | AF34: =SUMIFS(DATA!AJ$3:AJ$101,DATA!$F$3:$F$101,$A34,DATA!$B$3:$B$101,$C$2) -> 118 | AG34: =SUMIFS(DATA!AK$3:AK$101,DATA!$F$3:$F$101,$A34,DATA!$B$3:$B$101,$C$2) -> 119 | AH34: =SUMIFS(DATA!AL$3:AL$101,DATA!$F$3:$F$101,$A34,DATA!$B$3:$B$101,$C$2) -> 121 | AI34: =SUMIFS(DATA!AM$3:AM$101,DATA!$F$3:$F$101,$A34,DATA!$B$3:$B$101,$C$2) -> 120 | AJ34: =SUMIFS(DATA!AN$3:AN$101,DATA!$F$3:$F$101,$A34,DATA!$B$3:$B$101,$C$2) -> 120 | AK34: =SUMIFS(DATA!AO$3:AO$101,DATA!$F$3:$F$101,$A34,DATA!$B$3:$B$101,$C$2) -> 120 | AL34: =SUMIFS(DATA!AP$3:AP$101,DATA!$F$3:$F$101,$A34,DATA!$B$3:$B$101,$C$2) -> 121 | AM34: =SUMIFS(DATA!AQ$3:AQ$101,DATA!$F$3:$F$101,$A34,DATA!$B$3:$B$101,$C$2) -> 125 | AN34: =SUMIFS(DATA!AR$3:AR$101,DATA!$F$3:$F$101,$A34,DATA!$B$3:$B$101,$C$2) -> 127 | AO34: =SUMIFS(DATA!AS$3:AS$101,DATA!$F$3:$F$101,$A34,DATA!$B$3:$B$101,$C$2) -> 129 | AP34: =SUMIFS(DATA!AT$3:AT$101,DATA!$F$3:$F$101,$A34,DATA!$B$3:$B$101,$C$2) -> 131 | AQ34: =SUMIFS(DATA!AU$3:AU$101,DATA!$F$3:$F$101,$A34,DATA!$B$3:$B$101,$C$2) -> 134 | AR34: =SUMIFS(DATA!AV$3:AV$101,DATA!$F$3:$F$101,$A34,DATA!$B$3:$B$101,$C$2) -> 136 | AS34: =SUMIFS(DATA!AW$3:AW$101,DATA!$F$3:$F$101,$A34,DATA!$B$3:$B$101,$C$2) -> 139 | AT34: =SUMIFS(DATA!AX$3:AX$101,DATA!$F$3:$F$101,$A34,DATA!$B$3:$B$101,$C$2) -> 141 | AU34: =SUMIFS(DATA!AY$3:AY$101,DATA!$F$3:$F$101,$A34,DATA!$B$3:$B$101,$C$2) -> 144 | AV34: =SUMIFS(DATA!AZ$3:AZ$101,DATA!$F$3:$F$101,$A34,DATA!$B$3:$B$101,$C$2) -> 146 | AW34: =SUMIFS(DATA!BA$3:BA$101,DATA!$F$3:$F$101,$A34,DATA!$B$3:$B$101,$C$2) -> 149 | AX34: =SUMIFS(DATA!BB$3:BB$101,DATA!$F$3:$F$101,$A34,DATA!$B$3:$B$101,$C$2) -> 151 | AY34: =SUMIFS(DATA!BC$3:BC$101,DATA!$F$3:$F$101,$A34,DATA!$B$3:$B$101,$C$2) -> 154 | AZ34: =SUMIFS(DATA!BD$3:BD$101,DATA!$F$3:$F$101,$A34,DATA!$B$3:$B$101,$C$2) -> 157
A35: Fuel and Power Purchased | C35: =SUMIFS(DATA!G$3:G$101,DATA!$F$3:$F$101,$A35,DATA!$B$3:$B$101,$C$2) -> 143 | D35: =SUMIFS(DATA!H$3:H$101,DATA!$F$3:$F$101,$A35,DATA!$B$3:$B$101,$C$2) -> 166 | E35: =SUMIFS(DATA!I$3:I$101,DATA!$F$3:$F$101,$A35,DATA!$B$3:$B$101,$C$2) -> 167 | F35: =SUMIFS(DATA!J$3:J$101,DATA!$F$3:$F$101,$A35,DATA!$B$3:$B$101,$C$2) -> 178 | G35: =SUMIFS(DATA!K$3:K$101,DATA!$F$3:$F$101,$A35,DATA!$B$3:$B$101,$C$2) -> 191 | H35: =SUMIFS(DATA!L$3:L$101,DATA!$F$3:$F$101,$A35,DATA!$B$3:$B$101,$C$2) -> 197 | I35: =SUMIFS(DATA!M$3:M$101,DATA!$F$3:$F$101,$A35,DATA!$B$3:$B$101,$C$2) -> 206 | J35: =SUMIFS(DATA!N$3:N$101,DATA!$F$3:$F$101,$A35,DATA!$B$3:$B$101,$C$2) -> 209 | K35: =SUMIFS(DATA!O$3:O$101,DATA!$F$3:$F$101,$A35,DATA!$B$3:$B$101,$C$2) -> 218 | L35: =SUMIFS(DATA!P$3:P$101,DATA!$F$3:$F$101,$A35,DATA!$B$3:$B$101,$C$2) -> 233 | M35: =SUMIFS(DATA!Q$3:Q$101,DATA!$F$3:$F$101,$A35,DATA!$B$3:$B$101,$C$2) -> 257 | N35: =SUMIFS(DATA!R$3:R$101,DATA!$F$3:$F$101,$A35,DATA!$B$3:$B$101,$C$2) -> 278 | O35: =SUMIFS(DATA!S$3:S$101,DATA!$F$3:$F$101,$A35,DATA!$B$3:$B$101,$C$2) -> 296 | P35: =SUMIFS(DATA!T$3:T$101,DATA!$F$3:$F$101,$A35,DATA!$B$3:$B$101,$C$2) -> 277 | Q35: =SUMIFS(DATA!U$3:U$101,DATA!$F$3:$F$101,$A35,DATA!$B$3:$B$101,$C$2) -> 286 | R35: =SUMIFS(DATA!V$3:V$101,DATA!$F$3:$F$101,$A35,DATA!$B$3:$B$101,$C$2) -> 307 | S35: =SUMIFS(DATA!W$3:W$101,DATA!$F$3:$F$101,$A35,DATA!$B$3:$B$101,$C$2) -> 339 | T35: =SUMIFS(DATA!X$3:X$101,DATA!$F$3:$F$101,$A35,DATA!$B$3:$B$101,$C$2) -> 362 | U35: =SUMIFS(DATA!Y$3:Y$101,DATA!$F$3:$F$101,$A35,DATA!$B$3:$B$101,$C$2) -> 357 | V35: =SUMIFS(DATA!Z$3:Z$101,DATA!$F$3:$F$101,$A35,DATA!$B$3:$B$101,$C$2) -> 421 | W35: =SUMIFS(DATA!AA$3:AA$101,DATA!$F$3:$F$101,$A35,DATA!$B$3:$B$101,$C$2) -> 454 | X35: =SUMIFS(DATA!AB$3:AB$101,DATA!$F$3:$F$101,$A35,DATA!$B$3:$B$101,$C$2) -> 488 | Y35: =SUMIFS(DATA!AC$3:AC$101,DATA!$F$3:$F$101,$A35,DATA!$B$3:$B$101,$C$2) -> 527 | Z35: =SUMIFS(DATA!AD$3:AD$101,DATA!$F$3:$F$101,$A35,DATA!$B$3:$B$101,$C$2) -> 554 | AA35: =SUMIFS(DATA!AE$3:AE$101,DATA!$F$3:$F$101,$A35,DATA!$B$3:$B$101,$C$2) -> 568 | AB35: =SUMIFS(DATA!AF$3:AF$101,DATA!$F$3:$F$101,$A35,DATA!$B$3:$B$101,$C$2) -> 636 | AC35: =SUMIFS(DATA!AG$3:AG$101,DATA!$F$3:$F$101,$A35,DATA!$B$3:$B$101,$C$2) -> 678 | AD35: =SUMIFS(DATA!AH$3:AH$101,DATA!$F$3:$F$101,$A35,DATA!$B$3:$B$101,$C$2) -> 706 | AE35: =SUMIFS(DATA!AI$3:AI$101,DATA!$F$3:$F$101,$A35,DATA!$B$3:$B$101,$C$2) -> 787 | AF35: =SUMIFS(DATA!AJ$3:AJ$101,DATA!$F$3:$F$101,$A35,DATA!$B$3:$B$101,$C$2) -> 861 | AG35: =SUMIFS(DATA!AK$3:AK$101,DATA!$F$3:$F$101,$A35,DATA!$B$3:$B$101,$C$2) -> 921 | AH35: =SUMIFS(DATA!AL$3:AL$101,DATA!$F$3:$F$101,$A35,DATA!$B$3:$B$101,$C$2) -> 949 | AI35: =SUMIFS(DATA!AM$3:AM$101,DATA!$F$3:$F$101,$A35,DATA!$B$3:$B$101,$C$2) -> 1033 | AJ35: =SUMIFS(DATA!AN$3:AN$101,DATA!$F$3:$F$101,$A35,DATA!$B$3:$B$101,$C$2) -> 1119 | AK35: =SUMIFS(DATA!AO$3:AO$101,DATA!$F$3:$F$101,$A35,DATA!$B$3:$B$101,$C$2) -> 1194 | AL35: =SUMIFS(DATA!AP$3:AP$101,DATA!$F$3:$F$101,$A35,DATA!$B$3:$B$101,$C$2) -> 1259 | AM35: =SUMIFS(DATA!AQ$3:AQ$101,DATA!$F$3:$F$101,$A35,DATA!$B$3:$B$101,$C$2) -> 1233 | AN35: =SUMIFS(DATA!AR$3:AR$101,DATA!$F$3:$F$101,$A35,DATA!$B$3:$B$101,$C$2) -> 1256 | AO35: =SUMIFS(DATA!AS$3:AS$101,DATA!$F$3:$F$101,$A35,DATA!$B$3:$B$101,$C$2) -> 1278 | AP35: =SUMIFS(DATA!AT$3:AT$101,DATA!$F$3:$F$101,$A35,DATA!$B$3:$B$101,$C$2) -> 1301 | AQ35: =SUMIFS(DATA!AU$3:AU$101,DATA!$F$3:$F$101,$A35,DATA!$B$3:$B$101,$C$2) -> 1325 | AR35: =SUMIFS(DATA!AV$3:AV$101,DATA!$F$3:$F$101,$A35,DATA!$B$3:$B$101,$C$2) -> 1348 | AS35: =SUMIFS(DATA!AW$3:AW$101,DATA!$F$3:$F$101,$A35,DATA!$B$3:$B$101,$C$2) -> 1373 | AT35: =SUMIFS(DATA!AX$3:AX$101,DATA!$F$3:$F$101,$A35,DATA!$B$3:$B$101,$C$2) -> 1397 | AU35: =SUMIFS(DATA!AY$3:AY$101,DATA!$F$3:$F$101,$A35,DATA!$B$3:$B$101,$C$2) -> 1423 | AV35: =SUMIFS(DATA!AZ$3:AZ$101,DATA!$F$3:$F$101,$A35,DATA!$B$3:$B$101,$C$2) -> 1448 | AW35: =SUMIFS(DATA!BA$3:BA$101,DATA!$F$3:$F$101,$A35,DATA!$B$3:$B$101,$C$2) -> 1474 | AX35: =SUMIFS(DATA!BB$3:BB$101,DATA!$F$3:$F$101,$A35,DATA!$B$3:$B$101,$C$2) -> 1501 | AY35: =SUMIFS(DATA!BC$3:BC$101,DATA!$F$3:$F$101,$A35,DATA!$B$3:$B$101,$C$2) -> 1528 | AZ35: =SUMIFS(DATA!BD$3:BD$101,DATA!$F$3:$F$101,$A35,DATA!$B$3:$B$101,$C$2) -> 1555
A36: Capital Taxes | C36: =SUM(C50,C94)*0.005 -> 60.5345 | D36: =SUM(D50,D94)*0.005 -> 68.029675 | E36: 73.34796229 | F36: 77.41920212 | G36: 80.1608951 | H36: 81.02115194 | I36: 80.58101181 | J36: 79.82487835 | K36: 79.82011928 | L36: 80.04581479 | M36: 80.3748513 | N36: 80.76951525 | O36: 81.27036512 | P36: 81.91982471 | Q36: 81.72541859 | R36: 83.2202489 | S36: 86.1004928 | T36: 89.71851701 | U36: 92.49203494 | V36: 94.47616906 | W36: 95.96666446 | X36: 97.66048915 | Y36: 99.15844069 | Z36: 101.601571 | AA36: 104.5197487 | AB36: 106.3120501 | AC36: 108.1947423 | AD36: 110.990648 | AE36: 114.0131799 | AF36: 115.3682906 | AG36: 117.5871133 | AH36: 121.001825 | AI36: 121.351992 | AJ36: 123.7014478 | AK36: 125.6744085 | AL36: 126.1645717 | AM36: 126.2057513 | AN36: 126.5014605 | AO36: 127.3531855 | AP36: 128.6205968 | AQ36: 128.9844201 | AR36: 128.0344166 | AS36: 127.0686171 | AT36: 126.8678175 | AU36: 127.5535914 | AV36: 126.6730312 | AW36: 123.8175415 | AX36: 123.9881122 | AY36: 126.0074781 | AZ36: 124.0159019
A37: Other Taxes | C37: 26.464825 | D37: 26.972575 | E37: 25.44078439 | F37: 25.35970271 | G37: 26.36950857 | H37: 26.6820727 | I37: 26.87192917 | J37: 27.7166299 | K37: 28.49348308 | L37: 29.43317086 | M37: 29.83537947 | N37: 31.12297383 | O37: 31.99911318 | P37: 32.91244772 | Q37: 34.0430629 | R37: 35.02067133 | S37: 36.68548645 | T37: 37.58496184 | U37: 39.75636064 | V37: 41.06877553 | W37: 42.1077466 | X37: 43.14121683 | Y37: 44.82818505 | Z37: 46.10165238 | AA37: 47.17961917 | AB37: 48.59408402 | AC37: 50.04829778 | AD37: 51.34876081 | AE37: 52.72172168 | AF37: 54.0604311 | AG37: 56.16888873 | AH37: 57.98759563 | AI37: 59.18847098 | AJ37: 60.81217398 | AK37: 62.48074624 | AL37: 64.58344654 | AM37: 65.91554933 | AN37: 67.20424903 | AO37: 69.2531974 | AP37: 70.98114505 | AQ37: 73.24859174 | AR37: 75.58178704 | AS37: 76.65698169 | AT37: 79.35117554 | AU37: 81.15338457 | AV37: 83.31557722 | AW37: 85.52126895 | AX37: 87.67320977 | AY37: 90.26514966 | AZ37: 92.62408808
A38: Capital and Other Taxes | B38: [Formula] | C38: =SUM(C36:C37) -> 86.999325 | D38: =SUM(D36:D37) -> 95.00225 | E38: 98.78874667 | F38: 102.7789048 | G38: 106.5304037 | H38: 107.7032246 | I38: 107.452941 | J38: 107.5415083 | K38: 108.3136024 | L38: 109.4789857 | M38: 110.2102308 | N38: 111.8924891 | O38: 113.2694783 | P38: 114.8322724 | Q38: 115.7684815 | R38: 118.2409202 | S38: 122.7859793 | T38: 127.3034789 | U38: 132.2483956 | V38: 135.5449446 | W38: 138.0744111 | X38: 140.801706 | Y38: 143.9866257 | Z38: 147.7032234 | AA38: 151.6993679 | AB38: 154.9061341 | AC38: 158.2430401 | AD38: 162.3394088 | AE38: 166.7349016 | AF38: 169.4287217 | AG38: 173.7560021 | AH38: 178.9894207 | AI38: 180.540463 | AJ38: 184.5136217 | AK38: 188.1551547 | AL38: 190.7480183 | AM38: 192.1213007 | AN38: 193.7057095 | AO38: 196.6063829 | AP38: 199.6017418 | AQ38: 202.2330119 | AR38: 203.6162036 | AS38: 203.7255988 | AT38: 206.2189931 | AU38: 208.7069759 | AV38: 209.9886084 | AW38: 209.3388105 | AX38: 211.661322 | AY38: 216.2726277 | AZ38: 216.63999
A39: Capital and Other Taxes | C39: =SUMIFS(DATA!G$3:G$101,DATA!$F$3:$F$101,$A39,DATA!$B$3:$B$101,$C$2) -> 87 | D39: =SUMIFS(DATA!H$3:H$101,DATA!$F$3:$F$101,$A39,DATA!$B$3:$B$101,$C$2) -> 95 | E39: =SUMIFS(DATA!I$3:I$101,DATA!$F$3:$F$101,$A39,DATA!$B$3:$B$101,$C$2) -> 99 | F39: =SUMIFS(DATA!J$3:J$101,DATA!$F$3:$F$101,$A39,DATA!$B$3:$B$101,$C$2) -> 104 | G39: =SUMIFS(DATA!K$3:K$101,DATA!$F$3:$F$101,$A39,DATA!$B$3:$B$101,$C$2) -> 108 | H39: =SUMIFS(DATA!L$3:L$101,DATA!$F$3:$F$101,$A39,DATA!$B$3:$B$101,$C$2) -> 110 | I39: =SUMIFS(DATA!M$3:M$101,DATA!$F$3:$F$101,$A39,DATA!$B$3:$B$101,$C$2) -> 110 | J39: =SUMIFS(DATA!N$3:N$101,DATA!$F$3:$F$101,$A39,DATA!$B$3:$B$101,$C$2) -> 110 | K39: =SUMIFS(DATA!O$3:O$101,DATA!$F$3:$F$101,$A39,DATA!$B$3:$B$101,$C$2) -> 111 | L39: =SUMIFS(DATA!P$3:P$101,DATA!$F$3:$F$101,$A39,DATA!$B$3:$B$101,$C$2) -> 113 | M39: =SUMIFS(DATA!Q$3:Q$101,DATA!$F$3:$F$101,$A39,DATA!$B$3:$B$101,$C$2) -> 114 | N39: =SUMIFS(DATA!R$3:R$101,DATA!$F$3:$F$101,$A39,DATA!$B$3:$B$101,$C$2) -> 116 | O39: =SUMIFS(DATA!S$3:S$101,DATA!$F$3:$F$101,$A39,DATA!$B$3:$B$101,$C$2) -> 118 | P39: =SUMIFS(DATA!T$3:T$101,DATA!$F$3:$F$101,$A39,DATA!$B$3:$B$101,$C$2) -> 119 | Q39: =SUMIFS(DATA!U$3:U$101,DATA!$F$3:$F$101,$A39,DATA!$B$3:$B$101,$C$2) -> 121 | R39: =SUMIFS(DATA!V$3:V$101,DATA!$F$3:$F$101,$A39,DATA!$B$3:$B$101,$C$2) -> 123 | S39: =SUMIFS(DATA!W$3:W$101,DATA!$F$3:$F$101,$A39,DATA!$B$3:$B$101,$C$2) -> 128 | T39: =SUMIFS(DATA!X$3:X$101,DATA!$F$3:$F$101,$A39,DATA!$B$3:$B$101,$C$2) -> 132 | U39: =SUMIFS(DATA!Y$3:Y$101,DATA!$F$3:$F$101,$A39,DATA!$B$3:$B$101,$C$2) -> 135 | V39: =SUMIFS(DATA!Z$3:Z$101,DATA!$F$3:$F$101,$A39,DATA!$B$3:$B$101,$C$2) -> 137 | W39: =SUMIFS(DATA!AA$3:AA$101,DATA!$F$3:$F$101,$A39,DATA!$B$3:$B$101,$C$2) -> 139 | X39: =SUMIFS(DATA!AB$3:AB$101,DATA!$F$3:$F$101,$A39,DATA!$B$3:$B$101,$C$2) -> 142 | Y39: =SUMIFS(DATA!AC$3:AC$101,DATA!$F$3:$F$101,$A39,DATA!$B$3:$B$101,$C$2) -> 145 | Z39: =SUMIFS(DATA!AD$3:AD$101,DATA!$F$3:$F$101,$A39,DATA!$B$3:$B$101,$C$2) -> 149 | AA39: =SUMIFS(DATA!AE$3:AE$101,DATA!$F$3:$F$101,$A39,DATA!$B$3:$B$101,$C$2) -> 152 | AB39: =SUMIFS(DATA!AF$3:AF$101,DATA!$F$3:$F$101,$A39,DATA!$B$3:$B$101,$C$2) -> 155 | AC39: =SUMIFS(DATA!AG$3:AG$101,DATA!$F$3:$F$101,$A39,DATA!$B$3:$B$101,$C$2) -> 159 | AD39: =SUMIFS(DATA!AH$3:AH$101,DATA!$F$3:$F$101,$A39,DATA!$B$3:$B$101,$C$2) -> 163 | AE39: =SUMIFS(DATA!AI$3:AI$101,DATA!$F$3:$F$101,$A39,DATA!$B$3:$B$101,$C$2) -> 165 | AF39: =SUMIFS(DATA!AJ$3:AJ$101,DATA!$F$3:$F$101,$A39,DATA!$B$3:$B$101,$C$2) -> 169 | AG39: =SUMIFS(DATA!AK$3:AK$101,DATA!$F$3:$F$101,$A39,DATA!$B$3:$B$101,$C$2) -> 174 | AH39: =SUMIFS(DATA!AL$3:AL$101,DATA!$F$3:$F$101,$A39,DATA!$B$3:$B$101,$C$2) -> 178 | AI39: =SUMIFS(DATA!AM$3:AM$101,DATA!$F$3:$F$101,$A39,DATA!$B$3:$B$101,$C$2) -> 180 | AJ39: =SUMIFS(DATA!AN$3:AN$101,DATA!$F$3:$F$101,$A39,DATA!$B$3:$B$101,$C$2) -> 183 | AK39: =SUMIFS(DATA!AO$3:AO$101,DATA!$F$3:$F$101,$A39,DATA!$B$3:$B$101,$C$2) -> 185 | AL39: =SUMIFS(DATA!AP$3:AP$101,DATA!$F$3:$F$101,$A39,DATA!$B$3:$B$101,$C$2) -> 187 | AM39: =SUMIFS(DATA!AQ$3:AQ$101,DATA!$F$3:$F$101,$A39,DATA!$B$3:$B$101,$C$2) -> 188 | AN39: =SUMIFS(DATA!AR$3:AR$101,DATA!$F$3:$F$101,$A39,DATA!$B$3:$B$101,$C$2) -> 190 | AO39: =SUMIFS(DATA!AS$3:AS$101,DATA!$F$3:$F$101,$A39,DATA!$B$3:$B$101,$C$2) -> 192 | AP39: =SUMIFS(DATA!AT$3:AT$101,DATA!$F$3:$F$101,$A39,DATA!$B$3:$B$101,$C$2) -> 195 | AQ39: =SUMIFS(DATA!AU$3:AU$101,DATA!$F$3:$F$101,$A39,DATA!$B$3:$B$101,$C$2) -> 197 | AR39: =SUMIFS(DATA!AV$3:AV$101,DATA!$F$3:$F$101,$A39,DATA!$B$3:$B$101,$C$2) -> 200 | AS39: =SUMIFS(DATA!AW$3:AW$101,DATA!$F$3:$F$101,$A39,DATA!$B$3:$B$101,$C$2) -> 202 | AT39: =SUMIFS(DATA!AX$3:AX$101,DATA!$F$3:$F$101,$A39,DATA!$B$3:$B$101,$C$2) -> 204 | AU39: =SUMIFS(DATA!AY$3:AY$101,DATA!$F$3:$F$101,$A39,DATA!$B$3:$B$101,$C$2) -> 206 | AV39: =SUMIFS(DATA!AZ$3:AZ$101,DATA!$F$3:$F$101,$A39,DATA!$B$3:$B$101,$C$2) -> 208 | AW39: =SUMIFS(DATA!BA$3:BA$101,DATA!$F$3:$F$101,$A39,DATA!$B$3:$B$101,$C$2) -> 211 | AX39: =SUMIFS(DATA!BB$3:BB$101,DATA!$F$3:$F$101,$A39,DATA!$B$3:$B$101,$C$2) -> 215 | AY39: =SUMIFS(DATA!BC$3:BC$101,DATA!$F$3:$F$101,$A39,DATA!$B$3:$B$101,$C$2) -> 218 | AZ39: =SUMIFS(DATA!BD$3:BD$101,DATA!$F$3:$F$101,$A39,DATA!$B$3:$B$101,$C$2) -> 219
A40: Corporate Allocation | C40: =SUMIFS(DATA!G$3:G$101,DATA!$F$3:$F$101,$A40,DATA!$B$3:$B$101,$C$2) -> 9 | D40: =SUMIFS(DATA!H$3:H$101,DATA!$F$3:$F$101,$A40,DATA!$B$3:$B$101,$C$2) -> 9 | E40: =SUMIFS(DATA!I$3:I$101,DATA!$F$3:$F$101,$A40,DATA!$B$3:$B$101,$C$2) -> 8 | F40: =SUMIFS(DATA!J$3:J$101,DATA!$F$3:$F$101,$A40,DATA!$B$3:$B$101,$C$2) -> 8 | G40: =SUMIFS(DATA!K$3:K$101,DATA!$F$3:$F$101,$A40,DATA!$B$3:$B$101,$C$2) -> 8 | H40: =SUMIFS(DATA!L$3:L$101,DATA!$F$3:$F$101,$A40,DATA!$B$3:$B$101,$C$2) -> 8 | I40: =SUMIFS(DATA!M$3:M$101,DATA!$F$3:$F$101,$A40,DATA!$B$3:$B$101,$C$2) -> 8 | J40: =SUMIFS(DATA!N$3:N$101,DATA!$F$3:$F$101,$A40,DATA!$B$3:$B$101,$C$2) -> 8 | K40: =SUMIFS(DATA!O$3:O$101,DATA!$F$3:$F$101,$A40,DATA!$B$3:$B$101,$C$2) -> 8 | L40: =SUMIFS(DATA!P$3:P$101,DATA!$F$3:$F$101,$A40,DATA!$B$3:$B$101,$C$2) -> 8 | M40: =SUMIFS(DATA!Q$3:Q$101,DATA!$F$3:$F$101,$A40,DATA!$B$3:$B$101,$C$2) -> 8 | N40: =SUMIFS(DATA!R$3:R$101,DATA!$F$3:$F$101,$A40,DATA!$B$3:$B$101,$C$2) -> 8 | O40: =SUMIFS(DATA!S$3:S$101,DATA!$F$3:$F$101,$A40,DATA!$B$3:$B$101,$C$2) -> 8 | P40: =SUMIFS(DATA!T$3:T$101,DATA!$F$3:$F$101,$A40,DATA!$B$3:$B$101,$C$2) -> 8 | Q40: =SUMIFS(DATA!U$3:U$101,DATA!$F$3:$F$101,$A40,DATA!$B$3:$B$101,$C$2) -> 8 | R40: =SUMIFS(DATA!V$3:V$101,DATA!$F$3:$F$101,$A40,DATA!$B$3:$B$101,$C$2) -> 8 | S40: =SUMIFS(DATA!W$3:W$101,DATA!$F$3:$F$101,$A40,DATA!$B$3:$B$101,$C$2) -> 8 | T40: =SUMIFS(DATA!X$3:X$101,DATA!$F$3:$F$101,$A40,DATA!$B$3:$B$101,$C$2) -> 8 | U40: =SUMIFS(DATA!Y$3:Y$101,DATA!$F$3:$F$101,$A40,DATA!$B$3:$B$101,$C$2) -> 7 | V40: =SUMIFS(DATA!Z$3:Z$101,DATA!$F$3:$F$101,$A40,DATA!$B$3:$B$101,$C$2) -> 7 | W40: =SUMIFS(DATA!AA$3:AA$101,DATA!$F$3:$F$101,$A40,DATA!$B$3:$B$101,$C$2) -> 7 | X40: =SUMIFS(DATA!AB$3:AB$101,DATA!$F$3:$F$101,$A40,DATA!$B$3:$B$101,$C$2) -> 7 | Y40: =SUMIFS(DATA!AC$3:AC$101,DATA!$F$3:$F$101,$A40,DATA!$B$3:$B$101,$C$2) -> 7 | Z40: =SUMIFS(DATA!AD$3:AD$101,DATA!$F$3:$F$101,$A40,DATA!$B$3:$B$101,$C$2) -> 7 | AA40: =SUMIFS(DATA!AE$3:AE$101,DATA!$F$3:$F$101,$A40,DATA!$B$3:$B$101,$C$2) -> 7 | AB40: =SUMIFS(DATA!AF$3:AF$101,DATA!$F$3:$F$101,$A40,DATA!$B$3:$B$101,$C$2) -> 7 | AC40: =SUMIFS(DATA!AG$3:AG$101,DATA!$F$3:$F$101,$A40,DATA!$B$3:$B$101,$C$2) -> 7 | AD40: =SUMIFS(DATA!AH$3:AH$101,DATA!$F$3:$F$101,$A40,DATA!$B$3:$B$101,$C$2) -> 7 | AE40: =SUMIFS(DATA!AI$3:AI$101,DATA!$F$3:$F$101,$A40,DATA!$B$3:$B$101,$C$2) -> 7 | AF40: =SUMIFS(DATA!AJ$3:AJ$101,DATA!$F$3:$F$101,$A40,DATA!$B$3:$B$101,$C$2) -> 7 | AG40: =SUMIFS(DATA!AK$3:AK$101,DATA!$F$3:$F$101,$A40,DATA!$B$3:$B$101,$C$2) -> 7 | AH40: =SUMIFS(DATA!AL$3:AL$101,DATA!$F$3:$F$101,$A40,DATA!$B$3:$B$101,$C$2) -> 7 | AI40: =SUMIFS(DATA!AM$3:AM$101,DATA!$F$3:$F$101,$A40,DATA!$B$3:$B$101,$C$2) -> 6 | AJ40: =SUMIFS(DATA!AN$3:AN$101,DATA!$F$3:$F$101,$A40,DATA!$B$3:$B$101,$C$2) -> 6 | AK40: =SUMIFS(DATA!AO$3:AO$101,DATA!$F$3:$F$101,$A40,DATA!$B$3:$B$101,$C$2) -> 6 | AL40: =SUMIFS(DATA!AP$3:AP$101,DATA!$F$3:$F$101,$A40,DATA!$B$3:$B$101,$C$2) -> 6 | AM40: =SUMIFS(DATA!AQ$3:AQ$101,DATA!$F$3:$F$101,$A40,DATA!$B$3:$B$101,$C$2) -> 6 | AN40: =SUMIFS(DATA!AR$3:AR$101,DATA!$F$3:$F$101,$A40,DATA!$B$3:$B$101,$C$2) -> 6 | AO40: =SUMIFS(DATA!AS$3:AS$101,DATA!$F$3:$F$101,$A40,DATA!$B$3:$B$101,$C$2) -> 6 | AP40: =SUMIFS(DATA!AT$3:AT$101,DATA!$F$3:$F$101,$A40,DATA!$B$3:$B$101,$C$2) -> 6 | AQ40: =SUMIFS(DATA!AU$3:AU$101,DATA!$F$3:$F$101,$A40,DATA!$B$3:$B$101,$C$2) -> 6 | AR40: =SUMIFS(DATA!AV$3:AV$101,DATA!$F$3:$F$101,$A40,DATA!$B$3:$B$101,$C$2) -> 6 | AS40: =SUMIFS(DATA!AW$3:AW$101,DATA!$F$3:$F$101,$A40,DATA!$B$3:$B$101,$C$2) -> 6 | AT40: =SUMIFS(DATA!AX$3:AX$101,DATA!$F$3:$F$101,$A40,DATA!$B$3:$B$101,$C$2) -> 6 | AU40: =SUMIFS(DATA!AY$3:AY$101,DATA!$F$3:$F$101,$A40,DATA!$B$3:$B$101,$C$2) -> 6 | AV40: =SUMIFS(DATA!AZ$3:AZ$101,DATA!$F$3:$F$101,$A40,DATA!$B$3:$B$101,$C$2) -> 6 | AW40: =SUMIFS(DATA!BA$3:BA$101,DATA!$F$3:$F$101,$A40,DATA!$B$3:$B$101,$C$2) -> 6 | AX40: =SUMIFS(DATA!BB$3:BB$101,DATA!$F$3:$F$101,$A40,DATA!$B$3:$B$101,$C$2) -> 6 | AY40: =SUMIFS(DATA!BC$3:BC$101,DATA!$F$3:$F$101,$A40,DATA!$B$3:$B$101,$C$2) -> 6 | AZ40: =SUMIFS(DATA!BD$3:BD$101,DATA!$F$3:$F$101,$A40,DATA!$B$3:$B$101,$C$2) -> 6
A41: Total Expenses | B41: [Formula] | C41: =IF(F3="No",SUM(C20,C32:C35,C39:C40),SUM(C20,C32:C35,C39:C40)) -> 1661 | D41: =IF(G3="No",SUM(D20,D32:D35,D39:D40),SUM(D20,D32:D35,D39:D40)) -> 1727 | E41: =IF(H3="No",SUM(E20,E32:E35,E39:E40),SUM(E20,E32:E35,E39:E40,'Financial Adjustments'!E94)) -> 2012.243502 | F41: =IF(I3="No",SUM(F20,F32:F35,F39:F40),SUM(F20,F32:F35,F39:F40,'Financial Adjustments'!F94)) -> 2157.313187 | G41: =IF(J3="No",SUM(G20,G32:G35,G39:G40),SUM(G20,G32:G35,G39:G40,'Financial Adjustments'!G94)) -> 2243.600361 | H41: =IF(K3="No",SUM(H20,H32:H35,H39:H40),SUM(H20,H32:H35,H39:H40,'Financial Adjustments'!H94)) -> 2366.383919 | I41: =IF(L3="No",SUM(I20,I32:I35,I39:I40),SUM(I20,I32:I35,I39:I40,'Financial Adjustments'!I94)) -> 2538.827769 | J41: =IF(M3="No",SUM(J20,J32:J35,J39:J40),SUM(J20,J32:J35,J39:J40,'Financial Adjustments'!J94)) -> 2520.111948 | K41: =IF(N3="No",SUM(K20,K32:K35,K39:K40),SUM(K20,K32:K35,K39:K40,'Financial Adjustments'!K94)) -> 2520.025884 | L41: =IF(O3="No",SUM(L20,L32:L35,L39:L40),SUM(L20,L32:L35,L39:L40,'Financial Adjustments'!L94)) -> 2526.596663 | M41: =IF(P3="No",SUM(M20,M32:M35,M39:M40),SUM(M20,M32:M35,M39:M40,'Financial Adjustments'!M94)) -> 2615.697417 | N41: =IF(Q3="No",SUM(N20,N32:N35,N39:N40),SUM(N20,N32:N35,N39:N40,'Financial Adjustments'!N94)) -> 2673.613453 | O41: =IF(R3="No",SUM(O20,O32:O35,O39:O40),SUM(O20,O32:O35,O39:O40,'Financial Adjustments'!O94)) -> 2698.635945 | P41: =IF(S3="No",SUM(P20,P32:P35,P39:P40),SUM(P20,P32:P35,P39:P40,'Financial Adjustments'!P94)) -> 2715.681855 | Q41: =IF(T3="No",SUM(Q20,Q32:Q35,Q39:Q40),SUM(Q20,Q32:Q35,Q39:Q40,'Financial Adjustments'!Q94)) -> 2896.780902 | R41: =IF(U3="No",SUM(R20,R32:R35,R39:R40),SUM(R20,R32:R35,R39:R40,'Financial Adjustments'!R94)) -> 2807.082958 | S41: =IF(V3="No",SUM(S20,S32:S35,S39:S40),SUM(S20,S32:S35,S39:S40,'Financial Adjustments'!S94)) -> 2842.613585 | T41: =IF(W3="No",SUM(T20,T32:T35,T39:T40),SUM(T20,T32:T35,T39:T40,'Financial Adjustments'!T94)) -> 2877.169193 | U41: =IF(X3="No",SUM(U20,U32:U35,U39:U40),SUM(U20,U32:U35,U39:U40,'Financial Adjustments'!U94)) -> 2926.199484 | V41: =IF(Y3="No",SUM(V20,V32:V35,V39:V40),SUM(V20,V32:V35,V39:V40,'Financial Adjustments'!V94)) -> 3025.284709 | W41: =IF(Z3="No",SUM(W20,W32:W35,W39:W40),SUM(W20,W32:W35,W39:W40,'Financial Adjustments'!W94)) -> 2995.793904 | X41: =IF(AA3="No",SUM(X20,X32:X35,X39:X40),SUM(X20,X32:X35,X39:X40,'Financial Adjustments'!X94)) -> 3053.627126 | Y41: =IF(AB3="No",SUM(Y20,Y32:Y35,Y39:Y40),SUM(Y20,Y32:Y35,Y39:Y40,'Financial Adjustments'!Y94)) -> 3216.810327 | Z41: =IF(AC3="No",SUM(Z20,Z32:Z35,Z39:Z40),SUM(Z20,Z32:Z35,Z39:Z40,'Financial Adjustments'!Z94)) -> 3286.607809 | AA41: =IF(AD3="No",SUM(AA20,AA32:AA35,AA39:AA40),SUM(AA20,AA32:AA35,AA39:AA40,'Financial Adjustments'!AA94)) -> 3363.072591 | AB41: =IF(AE3="No",SUM(AB20,AB32:AB35,AB39:AB40),SUM(AB20,AB32:AB35,AB39:AB40,'Financial Adjustments'!AB94)) -> 3565.426518 | AC41: =IF(AF3="No",SUM(AC20,AC32:AC35,AC39:AC40),SUM(AC20,AC32:AC35,AC39:AC40,'Financial Adjustments'!AC94)) -> 3653.86031 | AD41: =IF(AG3="No",SUM(AD20,AD32:AD35,AD39:AD40),SUM(AD20,AD32:AD35,AD39:AD40,'Financial Adjustments'!AD94)) -> 3759.643856 | AE41: =IF(AH3="No",SUM(AE20,AE32:AE35,AE39:AE40),SUM(AE20,AE32:AE35,AE39:AE40,'Financial Adjustments'!AE94)) -> 3997.676582 | AF41: =IF(AI3="No",SUM(AF20,AF32:AF35,AF39:AF40),SUM(AF20,AF32:AF35,AF39:AF40,'Financial Adjustments'!AF94)) -> 4119.066934 | AG41: =IF(AJ3="No",SUM(AG20,AG32:AG35,AG39:AG40),SUM(AG20,AG32:AG35,AG39:AG40,'Financial Adjustments'!AG94)) -> 4273.119181 | AH41: =IF(AK3="No",SUM(AH20,AH32:AH35,AH39:AH40),SUM(AH20,AH32:AH35,AH39:AH40,'Financial Adjustments'!AH94)) -> 4304.548568 | AI41: =IF(AL3="No",SUM(AI20,AI32:AI35,AI39:AI40),SUM(AI20,AI32:AI35,AI39:AI40,'Financial Adjustments'!AI94)) -> 4488.677278 | AJ41: =IF(AM3="No",SUM(AJ20,AJ32:AJ35,AJ39:AJ40),SUM(AJ20,AJ32:AJ35,AJ39:AJ40,'Financial Adjustments'!AJ94)) -> 4661.626056 | AK41: =IF(AN3="No",SUM(AK20,AK32:AK35,AK39:AK40),SUM(AK20,AK32:AK35,AK39:AK40,'Financial Adjustments'!AK94)) -> 4901.171336 | AL41: =IF(AO3="No",SUM(AL20,AL32:AL35,AL39:AL40),SUM(AL20,AL32:AL35,AL39:AL40,'Financial Adjustments'!AL94)) -> 4933.190823 | AM41: =IF(AP3="No",SUM(AM20,AM32:AM35,AM39:AM40),SUM(AM20,AM32:AM35,AM39:AM40,'Financial Adjustments'!AM94)) -> 4963.210448 | AN41: =IF(AQ3="No",SUM(AN20,AN32:AN35,AN39:AN40),SUM(AN20,AN32:AN35,AN39:AN40,'Financial Adjustments'!AN94)) -> 5017.917967 | AO41: =IF(AR3="No",SUM(AO20,AO32:AO35,AO39:AO40),SUM(AO20,AO32:AO35,AO39:AO40,'Financial Adjustments'!AO94)) -> 5154.991336 | AP41: =IF(AS3="No",SUM(AP20,AP32:AP35,AP39:AP40),SUM(AP20,AP32:AP35,AP39:AP40,'Financial Adjustments'!AP94)) -> 5233.333112 | AQ41: =IF(AT3="No",SUM(AQ20,AQ32:AQ35,AQ39:AQ40),SUM(AQ20,AQ32:AQ35,AQ39:AQ40,'Financial Adjustments'!AQ94)) -> 5299.212859 | AR41: =IF(AU3="No",SUM(AR20,AR32:AR35,AR39:AR40),SUM(AR20,AR32:AR35,AR39:AR40,'Financial Adjustments'!AR94)) -> 5434.389379 | AS41: =IF(AV3="No",SUM(AS20,AS32:AS35,AS39:AS40),SUM(AS20,AS32:AS35,AS39:AS40,'Financial Adjustments'!AS94)) -> 5508.308747 | AT41: =IF(AW3="No",SUM(AT20,AT32:AT35,AT39:AT40),SUM(AT20,AT32:AT35,AT39:AT40,'Financial Adjustments'!AT94)) -> 5615.200973 | AU41: =IF(AX3="No",SUM(AU20,AU32:AU35,AU39:AU40),SUM(AU20,AU32:AU35,AU39:AU40,'Financial Adjustments'!AU94)) -> 5722.765268 | AV41: =IF(AY3="No",SUM(AV20,AV32:AV35,AV39:AV40),SUM(AV20,AV32:AV35,AV39:AV40,'Financial Adjustments'!AV94)) -> 5768.748905 | AW41: =IF(AZ3="No",SUM(AW20,AW32:AW35,AW39:AW40),SUM(AW20,AW32:AW35,AW39:AW40,'Financial Adjustments'!AW94)) -> 5832.428842 | AX41: =IF(BA3="No",SUM(AX20,AX32:AX35,AX39:AX40),SUM(AX20,AX32:AX35,AX39:AX40,'Financial Adjustments'!AX94)) -> 5887.079991 | AY41: =IF(BB3="No",SUM(AY20,AY32:AY35,AY39:AY40),SUM(AY20,AY32:AY35,AY39:AY40,'Financial Adjustments'!AY94)) -> 5980.127431 | AZ41: =IF(BC3="No",SUM(AZ20,AZ32:AZ35,AZ39:AZ40),SUM(AZ20,AZ32:AZ35,AZ39:AZ40,'Financial Adjustments'!AZ94)) -> 6095.836197
A42: Total Expenses | B42: [original] | C42: =SUMIFS(DATA!G$3:G$101,DATA!$F$3:$F$101,$A42,DATA!$B$3:$B$101,$C$2) -> 1662 | D42: =SUMIFS(DATA!H$3:H$101,DATA!$F$3:$F$101,$A42,DATA!$B$3:$B$101,$C$2) -> 1728 | E42: =SUMIFS(DATA!I$3:I$101,DATA!$F$3:$F$101,$A42,DATA!$B$3:$B$101,$C$2) -> 1907 | F42: =SUMIFS(DATA!J$3:J$101,DATA!$F$3:$F$101,$A42,DATA!$B$3:$B$101,$C$2) -> 2030 | G42: =SUMIFS(DATA!K$3:K$101,DATA!$F$3:$F$101,$A42,DATA!$B$3:$B$101,$C$2) -> 2135 | H42: =SUMIFS(DATA!L$3:L$101,DATA!$F$3:$F$101,$A42,DATA!$B$3:$B$101,$C$2) -> 2267 | I42: =SUMIFS(DATA!M$3:M$101,DATA!$F$3:$F$101,$A42,DATA!$B$3:$B$101,$C$2) -> 2442 | J42: =SUMIFS(DATA!N$3:N$101,DATA!$F$3:$F$101,$A42,DATA!$B$3:$B$101,$C$2) -> 2445 | K42: =SUMIFS(DATA!O$3:O$101,DATA!$F$3:$F$101,$A42,DATA!$B$3:$B$101,$C$2) -> 2465 | L42: =SUMIFS(DATA!P$3:P$101,DATA!$F$3:$F$101,$A42,DATA!$B$3:$B$101,$C$2) -> 2491 | M42: =SUMIFS(DATA!Q$3:Q$101,DATA!$F$3:$F$101,$A42,DATA!$B$3:$B$101,$C$2) -> 2555 | N42: =SUMIFS(DATA!R$3:R$101,DATA!$F$3:$F$101,$A42,DATA!$B$3:$B$101,$C$2) -> 2608 | O42: =SUMIFS(DATA!S$3:S$101,DATA!$F$3:$F$101,$A42,DATA!$B$3:$B$101,$C$2) -> 2646 | P42: =SUMIFS(DATA!T$3:T$101,DATA!$F$3:$F$101,$A42,DATA!$B$3:$B$101,$C$2) -> 2674 | Q42: =SUMIFS(DATA!U$3:U$101,DATA!$F$3:$F$101,$A42,DATA!$B$3:$B$101,$C$2) -> 2685 | R42: =SUMIFS(DATA!V$3:V$101,DATA!$F$3:$F$101,$A42,DATA!$B$3:$B$101,$C$2) -> 2707 | S42: =SUMIFS(DATA!W$3:W$101,DATA!$F$3:$F$101,$A42,DATA!$B$3:$B$101,$C$2) -> 2759 | T42: =SUMIFS(DATA!X$3:X$101,DATA!$F$3:$F$101,$A42,DATA!$B$3:$B$101,$C$2) -> 2788 | U42: =SUMIFS(DATA!Y$3:Y$101,DATA!$F$3:$F$101,$A42,DATA!$B$3:$B$101,$C$2) -> 2859 | V42: =SUMIFS(DATA!Z$3:Z$101,DATA!$F$3:$F$101,$A42,DATA!$B$3:$B$101,$C$2) -> 2970 | W42: =SUMIFS(DATA!AA$3:AA$101,DATA!$F$3:$F$101,$A42,DATA!$B$3:$B$101,$C$2) -> 2938 | X42: =SUMIFS(DATA!AB$3:AB$101,DATA!$F$3:$F$101,$A42,DATA!$B$3:$B$101,$C$2) -> 2991 | Y42: =SUMIFS(DATA!AC$3:AC$101,DATA!$F$3:$F$101,$A42,DATA!$B$3:$B$101,$C$2) -> 3161 | Z42: =SUMIFS(DATA!AD$3:AD$101,DATA!$F$3:$F$101,$A42,DATA!$B$3:$B$101,$C$2) -> 3226 | AA42: =SUMIFS(DATA!AE$3:AE$101,DATA!$F$3:$F$101,$A42,DATA!$B$3:$B$101,$C$2) -> 3274 | AB42: =SUMIFS(DATA!AF$3:AF$101,DATA!$F$3:$F$101,$A42,DATA!$B$3:$B$101,$C$2) -> 3472 | AC42: =SUMIFS(DATA!AG$3:AG$101,DATA!$F$3:$F$101,$A42,DATA!$B$3:$B$101,$C$2) -> 3553 | AD42: =SUMIFS(DATA!AH$3:AH$101,DATA!$F$3:$F$101,$A42,DATA!$B$3:$B$101,$C$2) -> 3615 | AE42: =SUMIFS(DATA!AI$3:AI$101,DATA!$F$3:$F$101,$A42,DATA!$B$3:$B$101,$C$2) -> 3839 | AF42: =SUMIFS(DATA!AJ$3:AJ$101,DATA!$F$3:$F$101,$A42,DATA!$B$3:$B$101,$C$2) -> 3965 | AG42: =SUMIFS(DATA!AK$3:AK$101,DATA!$F$3:$F$101,$A42,DATA!$B$3:$B$101,$C$2) -> 4122 | AH42: =SUMIFS(DATA!AL$3:AL$101,DATA!$F$3:$F$101,$A42,DATA!$B$3:$B$101,$C$2) -> 4192 | AI42: =SUMIFS(DATA!AM$3:AM$101,DATA!$F$3:$F$101,$A42,DATA!$B$3:$B$101,$C$2) -> 4404 | AJ42: =SUMIFS(DATA!AN$3:AN$101,DATA!$F$3:$F$101,$A42,DATA!$B$3:$B$101,$C$2) -> 4569 | AK42: =SUMIFS(DATA!AO$3:AO$101,DATA!$F$3:$F$101,$A42,DATA!$B$3:$B$101,$C$2) -> 4718 | AL42: =SUMIFS(DATA!AP$3:AP$101,DATA!$F$3:$F$101,$A42,DATA!$B$3:$B$101,$C$2) -> 4816 | AM42: =SUMIFS(DATA!AQ$3:AQ$101,DATA!$F$3:$F$101,$A42,DATA!$B$3:$B$101,$C$2) -> 4845 | AN42: =SUMIFS(DATA!AR$3:AR$101,DATA!$F$3:$F$101,$A42,DATA!$B$3:$B$101,$C$2) -> 4901 | AO42: =SUMIFS(DATA!AS$3:AS$101,DATA!$F$3:$F$101,$A42,DATA!$B$3:$B$101,$C$2) -> 5035 | AP42: =SUMIFS(DATA!AT$3:AT$101,DATA!$F$3:$F$101,$A42,DATA!$B$3:$B$101,$C$2) -> 5111 | AQ42: =SUMIFS(DATA!AU$3:AU$101,DATA!$F$3:$F$101,$A42,DATA!$B$3:$B$101,$C$2) -> 5204 | AR42: =SUMIFS(DATA!AV$3:AV$101,DATA!$F$3:$F$101,$A42,DATA!$B$3:$B$101,$C$2) -> 5343 | AS42: =SUMIFS(DATA!AW$3:AW$101,DATA!$F$3:$F$101,$A42,DATA!$B$3:$B$101,$C$2) -> 5412 | AT42: =SUMIFS(DATA!AX$3:AX$101,DATA!$F$3:$F$101,$A42,DATA!$B$3:$B$101,$C$2) -> 5497 | AU42: =SUMIFS(DATA!AY$3:AY$101,DATA!$F$3:$F$101,$A42,DATA!$B$3:$B$101,$C$2) -> 5578 | AV42: =SUMIFS(DATA!AZ$3:AZ$101,DATA!$F$3:$F$101,$A42,DATA!$B$3:$B$101,$C$2) -> 5629 | AW42: =SUMIFS(DATA!BA$3:BA$101,DATA!$F$3:$F$101,$A42,DATA!$B$3:$B$101,$C$2) -> 5724 | AX42: =SUMIFS(DATA!BB$3:BB$101,DATA!$F$3:$F$101,$A42,DATA!$B$3:$B$101,$C$2) -> 5814 | AY42: =SUMIFS(DATA!BC$3:BC$101,DATA!$F$3:$F$101,$A42,DATA!$B$3:$B$101,$C$2) -> 5905 | AZ42: =SUMIFS(DATA!BD$3:BD$101,DATA!$F$3:$F$101,$A42,DATA!$B$3:$B$101,$C$2) -> 6053
A44: Non-Controlling Interest | C44: =SUMIFS(DATA!G$3:G$101,DATA!$F$3:$F$101,$A44,DATA!$B$3:$B$101,$C$2) -> -14 | D44: =SUMIFS(DATA!H$3:H$101,DATA!$F$3:$F$101,$A44,DATA!$B$3:$B$101,$C$2) -> -24 | E44: =SUMIFS(DATA!I$3:I$101,DATA!$F$3:$F$101,$A44,DATA!$B$3:$B$101,$C$2) -> -22 | F44: =SUMIFS(DATA!J$3:J$101,DATA!$F$3:$F$101,$A44,DATA!$B$3:$B$101,$C$2) -> -17 | G44: =SUMIFS(DATA!K$3:K$101,DATA!$F$3:$F$101,$A44,DATA!$B$3:$B$101,$C$2) -> -14 | H44: =SUMIFS(DATA!L$3:L$101,DATA!$F$3:$F$101,$A44,DATA!$B$3:$B$101,$C$2) -> -13 | I44: =SUMIFS(DATA!M$3:M$101,DATA!$F$3:$F$101,$A44,DATA!$B$3:$B$101,$C$2) -> -10 | J44: =SUMIFS(DATA!N$3:N$101,DATA!$F$3:$F$101,$A44,DATA!$B$3:$B$101,$C$2) -> -5 | K44: =SUMIFS(DATA!O$3:O$101,DATA!$F$3:$F$101,$A44,DATA!$B$3:$B$101,$C$2) -> -2 | L44: =SUMIFS(DATA!P$3:P$101,DATA!$F$3:$F$101,$A44,DATA!$B$3:$B$101,$C$2) -> 1 | M44: =SUMIFS(DATA!Q$3:Q$101,DATA!$F$3:$F$101,$A44,DATA!$B$3:$B$101,$C$2) -> 2 | N44: =SUMIFS(DATA!R$3:R$101,DATA!$F$3:$F$101,$A44,DATA!$B$3:$B$101,$C$2) -> 5 | O44: =SUMIFS(DATA!S$3:S$101,DATA!$F$3:$F$101,$A44,DATA!$B$3:$B$101,$C$2) -> 6 | P44: =SUMIFS(DATA!T$3:T$101,DATA!$F$3:$F$101,$A44,DATA!$B$3:$B$101,$C$2) -> 9 | Q44: =SUMIFS(DATA!U$3:U$101,DATA!$F$3:$F$101,$A44,DATA!$B$3:$B$101,$C$2) -> 1 | R44: =SUMIFS(DATA!V$3:V$101,DATA!$F$3:$F$101,$A44,DATA!$B$3:$B$101,$C$2) -> 2 | S44: =SUMIFS(DATA!W$3:W$101,DATA!$F$3:$F$101,$A44,DATA!$B$3:$B$101,$C$2) -> 3 | T44: =SUMIFS(DATA!X$3:X$101,DATA!$F$3:$F$101,$A44,DATA!$B$3:$B$101,$C$2) -> 5 | U44: =SUMIFS(DATA!Y$3:Y$101,DATA!$F$3:$F$101,$A44,DATA!$B$3:$B$101,$C$2) -> 7 | V44: =SUMIFS(DATA!Z$3:Z$101,DATA!$F$3:$F$101,$A44,DATA!$B$3:$B$101,$C$2) -> 9 | W44: =SUMIFS(DATA!AA$3:AA$101,DATA!$F$3:$F$101,$A44,DATA!$B$3:$B$101,$C$2) -> 11 | X44: =SUMIFS(DATA!AB$3:AB$101,DATA!$F$3:$F$101,$A44,DATA!$B$3:$B$101,$C$2) -> 12 | Y44: =SUMIFS(DATA!AC$3:AC$101,DATA!$F$3:$F$101,$A44,DATA!$B$3:$B$101,$C$2) -> 13 | Z44: =SUMIFS(DATA!AD$3:AD$101,DATA!$F$3:$F$101,$A44,DATA!$B$3:$B$101,$C$2) -> 15 | AA44: =SUMIFS(DATA!AE$3:AE$101,DATA!$F$3:$F$101,$A44,DATA!$B$3:$B$101,$C$2) -> 17 | AB44: =SUMIFS(DATA!AF$3:AF$101,DATA!$F$3:$F$101,$A44,DATA!$B$3:$B$101,$C$2) -> 18 | AC44: =SUMIFS(DATA!AG$3:AG$101,DATA!$F$3:$F$101,$A44,DATA!$B$3:$B$101,$C$2) -> 20 | AD44: =SUMIFS(DATA!AH$3:AH$101,DATA!$F$3:$F$101,$A44,DATA!$B$3:$B$101,$C$2) -> 22 | AE44: =SUMIFS(DATA!AI$3:AI$101,DATA!$F$3:$F$101,$A44,DATA!$B$3:$B$101,$C$2) -> 24 | AF44: =SUMIFS(DATA!AJ$3:AJ$101,DATA!$F$3:$F$101,$A44,DATA!$B$3:$B$101,$C$2) -> 25 | AG44: =SUMIFS(DATA!AK$3:AK$101,DATA!$F$3:$F$101,$A44,DATA!$B$3:$B$101,$C$2) -> 27 | AH44: =SUMIFS(DATA!AL$3:AL$101,DATA!$F$3:$F$101,$A44,DATA!$B$3:$B$101,$C$2) -> 29 | AI44: =SUMIFS(DATA!AM$3:AM$101,DATA!$F$3:$F$101,$A44,DATA!$B$3:$B$101,$C$2) -> 32 | AJ44: =SUMIFS(DATA!AN$3:AN$101,DATA!$F$3:$F$101,$A44,DATA!$B$3:$B$101,$C$2) -> 33 | AK44: =SUMIFS(DATA!AO$3:AO$101,DATA!$F$3:$F$101,$A44,DATA!$B$3:$B$101,$C$2) -> 35 | AL44: =SUMIFS(DATA!AP$3:AP$101,DATA!$F$3:$F$101,$A44,DATA!$B$3:$B$101,$C$2) -> 36 | AM44: =SUMIFS(DATA!AQ$3:AQ$101,DATA!$F$3:$F$101,$A44,DATA!$B$3:$B$101,$C$2) -> 37 | AN44: =SUMIFS(DATA!AR$3:AR$101,DATA!$F$3:$F$101,$A44,DATA!$B$3:$B$101,$C$2) -> 38 | AO44: =SUMIFS(DATA!AS$3:AS$101,DATA!$F$3:$F$101,$A44,DATA!$B$3:$B$101,$C$2) -> 38 | AP44: =SUMIFS(DATA!AT$3:AT$101,DATA!$F$3:$F$101,$A44,DATA!$B$3:$B$101,$C$2) -> 39 | AQ44: =SUMIFS(DATA!AU$3:AU$101,DATA!$F$3:$F$101,$A44,DATA!$B$3:$B$101,$C$2) -> 40 | AR44: =SUMIFS(DATA!AV$3:AV$101,DATA!$F$3:$F$101,$A44,DATA!$B$3:$B$101,$C$2) -> 40 | AS44: =SUMIFS(DATA!AW$3:AW$101,DATA!$F$3:$F$101,$A44,DATA!$B$3:$B$101,$C$2) -> 41 | AT44: =SUMIFS(DATA!AX$3:AX$101,DATA!$F$3:$F$101,$A44,DATA!$B$3:$B$101,$C$2) -> 43 | AU44: =SUMIFS(DATA!AY$3:AY$101,DATA!$F$3:$F$101,$A44,DATA!$B$3:$B$101,$C$2) -> 44 | AV44: =SUMIFS(DATA!AZ$3:AZ$101,DATA!$F$3:$F$101,$A44,DATA!$B$3:$B$101,$C$2) -> 46 | AW44: =SUMIFS(DATA!BA$3:BA$101,DATA!$F$3:$F$101,$A44,DATA!$B$3:$B$101,$C$2) -> 47 | AX44: =SUMIFS(DATA!BB$3:BB$101,DATA!$F$3:$F$101,$A44,DATA!$B$3:$B$101,$C$2) -> 49 | AY44: =SUMIFS(DATA!BC$3:BC$101,DATA!$F$3:$F$101,$A44,DATA!$B$3:$B$101,$C$2) -> 51 | AZ44: =SUMIFS(DATA!BD$3:BD$101,DATA!$F$3:$F$101,$A44,DATA!$B$3:$B$101,$C$2) -> 53
A45: Sunk Cost | B45: [Formula] | D45: =IF($V$2="No",0,IF($C$2=$B$146,D146,IF($C$2=$B$147,D147,IF($C$2=$B$148,D148,IF($C$2=$B$149,D149,IF($C$2=$B$150,D150,0)))))) -> 0 | E45: =IF($V$2="No",0,IF($C$2=$B$146,E146,IF($C$2=$B$147,E147,IF($C$2=$B$148,E148,IF($C$2=$B$149,E149,IF($C$2=$B$150,E150,0)))))) -> 0 | F45: 0 | G45: 0 | H45: 0 | I45: 0 | J45: 0 | K45: 0 | L45: 0 | M45: 0 | N45: 0 | O45: 0 | P45: 0 | Q45: 0 | R45: 0 | S45: 0 | T45: 0 | U45: 0 | V45: 0 | W45: 0 | X45: 0 | Y45: 0 | Z45: 0 | AA45: 0 | AB45: 0 | AC45: 0 | AD45: 0 | AE45: 0 | AF45: 0 | AG45: 0 | AH45: 0 | AI45: 0 | AJ45: 0 | AK45: 0 | AL45: 0 | AM45: 0 | AN45: 0 | AO45: 0 | AP45: 0 | AQ45: 0 | AR45: 0 | AS45: 0 | AT45: 0 | AU45: 0 | AV45: 0 | AW45: 0 | AX45: 0 | AY45: 0 | AZ45: 0
A46: Net Income | B46: [Formula] | C46: =C15-C41-C44+C45 -> 55 | D46: =D15-D41-D44+D45 -> 64.635 | E46: -158.1425429 | F46: -196.9520322 | G46: -197.2614039 | H46: -203.1486338 | I46: -297.8413425 | J46: -206.9375091 | K46: -57.60529487 | L46: 35.1144163 | M46: =M15-M41-M44+M45 -> 61.48537192 | N46: =N15-N41-N44+N45 -> 114.1302307 | O46: =O15-O41-O44+O45 -> 200.5126372 | P46: =P15-P41-P44+P45 -> 212.5361812 | Q46: =Q15-Q41-Q44+Q45 -> 149.7753483 | R46: =R15-R41-R44+R45 -> 357.6264982 | S46: =S15-S41-S44+S45 -> 457.2447877 | T46: =T15-T41-T44+T45 -> 616.0470759 | U46: 720.1970084 | V46: =V15-V41-V44+V45 -> 816.3637346 | W46: =W15-W41-W44+W45 -> 159.7935373 | X46: =X15-X41-X44+X45 -> 163.1091101 | Y46: =Y15-Y41-Y44+Y45 -> 170.0272456 | Z46: =Z15-Z41-Z44+Z45 -> 175.0043506 | AA46: =AA15-AA41-AA44+AA45 -> 181.9084973 | AB46: =AB15-AB41-AB44+AB45 -> 183.1333844 | AC46: =AC15-AC41-AC44+AC45 -> 185.0980141 | AD46: 190.2032753 | AE46: =AE15-AE41-AE44+AE45 -> 196.317233 | AF46: =AF15-AF41-AF44+AF45 -> 195.4979647 | AG46: =AG15-AG41-AG44+AG45 -> 199.6260981 | AH46: =AH15-AH41-AH44+AH45 -> 207.3831293 | AI46: =AI15-AI41-AI44+AI45 -> 208.8326383 | AJ46: =AJ15-AJ41-AJ44+AJ45 -> 210.6301751 | AK46: =AK15-AK41-AK44+AK45 -> 214.1614814 | AL46: =AL15-AL41-AL44+AL45 -> 208.9686448 | AM46: 207.9289165 | AN46: =AN15-AN41-AN44+AN45 -> 205.0363976 | AO46: =AO15-AO41-AO44+AO45 -> 206.4715351 | AP46: =AP15-AP41-AP44+AP45 -> 207.4258677 | AQ46: =AQ15-AQ41-AQ44+AQ45 -> 209.3804825 | AR46: =AR15-AR41-AR44+AR45 -> 205.9382024 | AS46: =AS15-AS41-AS44+AS45 -> 200.2816897 | AT46: =AT15-AT41-AT44+AT45 -> 198.3286609 | AU46: =AU15-AU41-AU44+AU45 -> 197.5078621 | AV46: 192.511442 | AW46: =AW15-AW41-AW44+AW45 -> 181.8112773 | AX46: =AX15-AX41-AX44+AX45 -> 179.1224487 | AY46: =AY15-AY41-AY44+AY45 -> 187.2235297 | AZ46: =AZ15-AZ41-AZ44+AZ45 -> 181.3932743
A47: Net Income | B47: [Original] | C47: =SUMIFS(DATA!G$3:G$101,DATA!$F$3:$F$101,$A47,DATA!$B$3:$B$101,$C$2) -> 54 | D47: =SUMIFS(DATA!H$3:H$101,DATA!$F$3:$F$101,$A47,DATA!$B$3:$B$101,$C$2) -> 65 | E47: =SUMIFS(DATA!I$3:I$101,DATA!$F$3:$F$101,$A47,DATA!$B$3:$B$101,$C$2) -> -65 | F47: =SUMIFS(DATA!J$3:J$101,DATA!$F$3:$F$101,$A47,DATA!$B$3:$B$101,$C$2) -> -85 | G47: =SUMIFS(DATA!K$3:K$101,DATA!$F$3:$F$101,$A47,DATA!$B$3:$B$101,$C$2) -> -106 | H47: =SUMIFS(DATA!L$3:L$101,DATA!$F$3:$F$101,$A47,DATA!$B$3:$B$101,$C$2) -> -134 | I47: =SUMIFS(DATA!M$3:M$101,DATA!$F$3:$F$101,$A47,DATA!$B$3:$B$101,$C$2) -> -241 | J47: =SUMIFS(DATA!N$3:N$101,DATA!$F$3:$F$101,$A47,DATA!$B$3:$B$101,$C$2) -> -170 | K47: =SUMIFS(DATA!O$3:O$101,DATA!$F$3:$F$101,$A47,DATA!$B$3:$B$101,$C$2) -> -54 | L47: =SUMIFS(DATA!P$3:P$101,DATA!$F$3:$F$101,$A47,DATA!$B$3:$B$101,$C$2) -> 24 | M47: =SUMIFS(DATA!Q$3:Q$101,DATA!$F$3:$F$101,$A47,DATA!$B$3:$B$101,$C$2) -> 54 | N47: =SUMIFS(DATA!R$3:R$101,DATA!$F$3:$F$101,$A47,DATA!$B$3:$B$101,$C$2) -> 96 | O47: =SUMIFS(DATA!S$3:S$101,DATA!$F$3:$F$101,$A47,DATA!$B$3:$B$101,$C$2) -> 167 | P47: =SUMIFS(DATA!T$3:T$101,DATA!$F$3:$F$101,$A47,DATA!$B$3:$B$101,$C$2) -> 173 | Q47: =SUMIFS(DATA!U$3:U$101,DATA!$F$3:$F$101,$A47,DATA!$B$3:$B$101,$C$2) -> 275 | R47: =SUMIFS(DATA!V$3:V$101,DATA!$F$3:$F$101,$A47,DATA!$B$3:$B$101,$C$2) -> 365 | S47: =SUMIFS(DATA!W$3:W$101,DATA!$F$3:$F$101,$A47,DATA!$B$3:$B$101,$C$2) -> 432 | T47: =SUMIFS(DATA!X$3:X$101,DATA!$F$3:$F$101,$A47,DATA!$B$3:$B$101,$C$2) -> 527 | U47: =SUMIFS(DATA!Y$3:Y$101,DATA!$F$3:$F$101,$A47,DATA!$B$3:$B$101,$C$2) -> 625 | V47: =SUMIFS(DATA!Z$3:Z$101,DATA!$F$3:$F$101,$A47,DATA!$B$3:$B$101,$C$2) -> 695 | W47: =SUMIFS(DATA!AA$3:AA$101,DATA!$F$3:$F$101,$A47,DATA!$B$3:$B$101,$C$2) -> 164 | X47: =SUMIFS(DATA!AB$3:AB$101,DATA!$F$3:$F$101,$A47,DATA!$B$3:$B$101,$C$2) -> 167 | Y47: =SUMIFS(DATA!AC$3:AC$101,DATA!$F$3:$F$101,$A47,DATA!$B$3:$B$101,$C$2) -> 175 | Z47: =SUMIFS(DATA!AD$3:AD$101,DATA!$F$3:$F$101,$A47,DATA!$B$3:$B$101,$C$2) -> 180 | AA47: =SUMIFS(DATA!AE$3:AE$101,DATA!$F$3:$F$101,$A47,DATA!$B$3:$B$101,$C$2) -> 185 | AB47: =SUMIFS(DATA!AF$3:AF$101,DATA!$F$3:$F$101,$A47,DATA!$B$3:$B$101,$C$2) -> 188 | AC47: =SUMIFS(DATA!AG$3:AG$101,DATA!$F$3:$F$101,$A47,DATA!$B$3:$B$101,$C$2) -> 192 | AD47: =SUMIFS(DATA!AH$3:AH$101,DATA!$F$3:$F$101,$A47,DATA!$B$3:$B$101,$C$2) -> 196 | AE47: =SUMIFS(DATA!AI$3:AI$101,DATA!$F$3:$F$101,$A47,DATA!$B$3:$B$101,$C$2) -> 198 | AF47: =SUMIFS(DATA!AJ$3:AJ$101,DATA!$F$3:$F$101,$A47,DATA!$B$3:$B$101,$C$2) -> 201 | AG47: =SUMIFS(DATA!AK$3:AK$101,DATA!$F$3:$F$101,$A47,DATA!$B$3:$B$101,$C$2) -> 205 | AH47: =SUMIFS(DATA!AL$3:AL$101,DATA!$F$3:$F$101,$A47,DATA!$B$3:$B$101,$C$2) -> 211 | AI47: =SUMIFS(DATA!AM$3:AM$101,DATA!$F$3:$F$101,$A47,DATA!$B$3:$B$101,$C$2) -> 213 | AJ47: =SUMIFS(DATA!AN$3:AN$101,DATA!$F$3:$F$101,$A47,DATA!$B$3:$B$101,$C$2) -> 213 | AK47: =SUMIFS(DATA!AO$3:AO$101,DATA!$F$3:$F$101,$A47,DATA!$B$3:$B$101,$C$2) -> 213 | AL47: =SUMIFS(DATA!AP$3:AP$101,DATA!$F$3:$F$101,$A47,DATA!$B$3:$B$101,$C$2) -> 208 | AM47: =SUMIFS(DATA!AQ$3:AQ$101,DATA!$F$3:$F$101,$A47,DATA!$B$3:$B$101,$C$2) -> 207 | AN47: =SUMIFS(DATA!AR$3:AR$101,DATA!$F$3:$F$101,$A47,DATA!$B$3:$B$101,$C$2) -> 203 | AO47: =SUMIFS(DATA!AS$3:AS$101,DATA!$F$3:$F$101,$A47,DATA!$B$3:$B$101,$C$2) -> 204 | AP47: =SUMIFS(DATA!AT$3:AT$101,DATA!$F$3:$F$101,$A47,DATA!$B$3:$B$101,$C$2) -> 204 | AQ47: =SUMIFS(DATA!AU$3:AU$101,DATA!$F$3:$F$101,$A47,DATA!$B$3:$B$101,$C$2) -> 205 | AR47: =SUMIFS(DATA!AV$3:AV$101,DATA!$F$3:$F$101,$A47,DATA!$B$3:$B$101,$C$2) -> 205 | AS47: =SUMIFS(DATA!AW$3:AW$101,DATA!$F$3:$F$101,$A47,DATA!$B$3:$B$101,$C$2) -> 203 | AT47: =SUMIFS(DATA!AX$3:AX$101,DATA!$F$3:$F$101,$A47,DATA!$B$3:$B$101,$C$2) -> 201 | AU47: =SUMIFS(DATA!AY$3:AY$101,DATA!$F$3:$F$101,$A47,DATA!$B$3:$B$101,$C$2) -> 198 | AV47: =SUMIFS(DATA!AZ$3:AZ$101,DATA!$F$3:$F$101,$A47,DATA!$B$3:$B$101,$C$2) -> 195 | AW47: =SUMIFS(DATA!BA$3:BA$101,DATA!$F$3:$F$101,$A47,DATA!$B$3:$B$101,$C$2) -> 194 | AX47: =SUMIFS(DATA!BB$3:BB$101,DATA!$F$3:$F$101,$A47,DATA!$B$3:$B$101,$C$2) -> 195 | AY47: =SUMIFS(DATA!BC$3:BC$101,DATA!$F$3:$F$101,$A47,DATA!$B$3:$B$101,$C$2) -> 199 | AZ47: =SUMIFS(DATA!BD$3:BD$101,DATA!$F$3:$F$101,$A47,DATA!$B$3:$B$101,$C$2) -> 196
B48: [Difference] | C48: =C46-C47 -> 1 | D48: =D46-D47 -> -0.365 | E48: -93.14254294 | F48: -111.9520322 | G48: -91.26140391 | H48: -69.14863377 | I48: -56.84134248 | J48: -36.93750913 | K48: -3.605294867 | L48: 11.1144163 | M48: 7.485371925 | N48: 18.13023067 | O48: 33.51263722 | P48: 39.53618116 | Q48: -125.2246517 | R48: -7.373501781 | S48: 25.24478766 | T48: 89.04707588 | U48: 95.19700841 | V48: 121.3637346 | W48: -4.206462734 | X48: -3.890889873 | Y48: -4.972754359 | Z48: -4.995649367 | AA48: -3.09150274 | AB48: -4.866615612 | AC48: -6.901985862 | AD48: -5.796724696 | AE48: -1.682766985 | AF48: -5.502035341 | AG48: -5.373901921 | AH48: -3.616870729 | AI48: -4.167361673 | AJ48: -2.369824867 | AK48: 1.161481357 | AL48: 0.9686448464 | AM48: 0.9289164883 | AN48: 2.036397633 | AO48: 2.471535055 | AP48: 3.42586765 | AQ48: 4.380482493 | AR48: 0.9382024113 | AS48: -2.71831027 | AT48: -2.671339066 | AU48: -0.4921379083 | AV48: -2.488557971 | AW48: -12.1887227 | AX48: -15.87755128 | AY48: -11.77647028 | AZ48: -14.60672567
A50: Net Debt (from SP-080) | B50: [Original] | C50: =SUMIFS(DATA!G$3:G$109,DATA!$F$3:$F$109,$A50,DATA!$B$3:$B$109,$C$2)+C164-C163 -> 9664.9 | D50: =SUMIFS(DATA!H$3:H$109,DATA!$F$3:$F$109,$A50,DATA!$B$3:$B$109,$C$2)+D164-D163 -> 11099.3 | E50: =SUMIFS(DATA!I$3:I$109,DATA!$F$3:$F$109,$A50,DATA!$B$3:$B$109,$C$2)+E164-E163 -> 12578.1 | F50: =SUMIFS(DATA!J$3:J$109,DATA!$F$3:$F$109,$A50,DATA!$B$3:$B$109,$C$2)+F164-F163 -> 13589.3 | G50: =SUMIFS(DATA!K$3:K$109,DATA!$F$3:$F$109,$A50,DATA!$B$3:$B$109,$C$2)+G164-G163 -> 14334.9 | H50: =SUMIFS(DATA!L$3:L$109,DATA!$F$3:$F$109,$A50,DATA!$B$3:$B$109,$C$2)+H164-H163 -> 14710.1 | I50: =SUMIFS(DATA!M$3:M$109,DATA!$F$3:$F$109,$A50,DATA!$B$3:$B$109,$C$2)+I164-I163 -> 14919.91332 | J50: =SUMIFS(DATA!N$3:N$109,DATA!$F$3:$F$109,$A50,DATA!$B$3:$B$109,$C$2)+J164-J163 -> 14975.62414 | K50: =SUMIFS(DATA!O$3:O$109,DATA!$F$3:$F$109,$A50,DATA!$B$3:$B$109,$C$2)+K164-K163 -> 15032.27762 | L50: =SUMIFS(DATA!P$3:P$109,DATA!$F$3:$F$109,$A50,DATA!$B$3:$B$109,$C$2)+L164-L163 -> 15042.3023 | M50: =SUMIFS(DATA!Q$3:Q$109,DATA!$F$3:$F$109,$A50,DATA!$B$3:$B$109,$C$2)+M164-M163 -> 15046.62423 | N50: =SUMIFS(DATA!R$3:R$109,DATA!$F$3:$F$109,$A50,DATA!$B$3:$B$109,$C$2)+N164-N163 -> 15011.42679 | O50: =SUMIFS(DATA!S$3:S$109,DATA!$F$3:$F$109,$A50,DATA!$B$3:$B$109,$C$2)+O164-O163 -> 14911.08413 | P50: =SUMIFS(DATA!T$3:T$109,DATA!$F$3:$F$109,$A50,DATA!$B$3:$B$109,$C$2)+P164-P163 -> 14828.43987 | Q50: =SUMIFS(DATA!U$3:U$109,DATA!$F$3:$F$109,$A50,DATA!$B$3:$B$109,$C$2)+Q164-Q163 -> 14639.78329 | R50: =SUMIFS(DATA!V$3:V$109,DATA!$F$3:$F$109,$A50,DATA!$B$3:$B$109,$C$2)+R164-R163 -> 14581.12286 | S50: =SUMIFS(DATA!W$3:W$109,DATA!$F$3:$F$109,$A50,DATA!$B$3:$B$109,$C$2)+S164-S163 -> 14699.92685 | T50: =SUMIFS(DATA!X$3:X$109,DATA!$F$3:$F$109,$A50,DATA!$B$3:$B$109,$C$2)+T164-T163 -> 14807.48461 | U50: =SUMIFS(DATA!Y$3:Y$109,DATA!$F$3:$F$109,$A50,DATA!$B$3:$B$109,$C$2)+U164-U163 -> 14641.99119 | V50: =SUMIFS(DATA!Z$3:Z$109,DATA!$F$3:$F$109,$A50,DATA!$B$3:$B$109,$C$2)+V164-V163 -> 14222.45428 | W50: =SUMIFS(DATA!AA$3:AA$109,DATA!$F$3:$F$109,$A50,DATA!$B$3:$B$109,$C$2)+W164-W163 -> 14360.75982 | X50: =SUMIFS(DATA!AB$3:AB$109,DATA!$F$3:$F$109,$A50,DATA!$B$3:$B$109,$C$2)+X164-X163 -> 14536.41565 | Y50: =SUMIFS(DATA!AC$3:AC$109,DATA!$F$3:$F$109,$A50,DATA!$B$3:$B$109,$C$2)+Y164-Y163 -> 14665.97871 | Z50: =SUMIFS(DATA!AD$3:AD$109,DATA!$F$3:$F$109,$A50,DATA!$B$3:$B$109,$C$2)+Z164-Z163 -> 14979.60042 | AA50: =SUMIFS(DATA!AE$3:AE$109,DATA!$F$3:$F$109,$A50,DATA!$B$3:$B$109,$C$2)+AA164-AA163 -> 15381.32747 | AB50: =SUMIFS(DATA!AF$3:AF$109,DATA!$F$3:$F$109,$A50,DATA!$B$3:$B$109,$C$2)+AB164-AB163 -> 15556.65437 | AC50: =SUMIFS(DATA!AG$3:AG$109,DATA!$F$3:$F$109,$A50,DATA!$B$3:$B$109,$C$2)+AC164-AC163 -> 15748.09478 | AD50: =SUMIFS(DATA!AH$3:AH$109,DATA!$F$3:$F$109,$A50,DATA!$B$3:$B$109,$C$2)+AD164-AD163 -> 16117.07265 | AE50: =SUMIFS(DATA!AI$3:AI$109,DATA!$F$3:$F$109,$A50,DATA!$B$3:$B$109,$C$2)+AE164-AE163 -> 16525.2618 | AF50: =SUMIFS(DATA!AJ$3:AJ$109,DATA!$F$3:$F$109,$A50,DATA!$B$3:$B$109,$C$2)+AF164-AF163 -> 16600.78597 | AG50: =SUMIFS(DATA!AK$3:AK$109,DATA!$F$3:$F$109,$A50,DATA!$B$3:$B$109,$C$2)+AG164-AG163 -> 16844.92443 | AH50: =SUMIFS(DATA!AL$3:AL$109,DATA!$F$3:$F$109,$A50,DATA!$B$3:$B$109,$C$2)+AH164-AH163 -> 17320.48363 | AI50: =SUMIFS(DATA!AM$3:AM$109,DATA!$F$3:$F$109,$A50,DATA!$B$3:$B$109,$C$2)+AI164-AI163 -> 17181.6844 | AJ50: =SUMIFS(DATA!AN$3:AN$109,DATA!$F$3:$F$109,$A50,DATA!$B$3:$B$109,$C$2)+AJ164-AJ163 -> 17440.94537 | AK50: =SUMIFS(DATA!AO$3:AO$109,DATA!$F$3:$F$109,$A50,DATA!$B$3:$B$109,$C$2)+AK164-AK163 -> 17621.37603 | AL50: =SUMIFS(DATA!AP$3:AP$109,DATA!$F$3:$F$109,$A50,DATA!$B$3:$B$109,$C$2)+AL164-AL163 -> 17510.44004 | AM50: =SUMIFS(DATA!AQ$3:AQ$109,DATA!$F$3:$F$109,$A50,DATA!$B$3:$B$109,$C$2)+AM164-AM163 -> 17310.74704 | AN50: =SUMIFS(DATA!AR$3:AR$109,DATA!$F$3:$F$109,$A50,DATA!$B$3:$B$109,$C$2)+AN164-AN163 -> 17164.85247 | AO50: =SUMIFS(DATA!AS$3:AS$109,DATA!$F$3:$F$109,$A50,DATA!$B$3:$B$109,$C$2)+AO164-AO163 -> 17128.72593 | AP50: =SUMIFS(DATA!AT$3:AT$109,DATA!$F$3:$F$109,$A50,DATA!$B$3:$B$109,$C$2)+AP164-AP163 -> 17174.78233 | AQ50: =SUMIFS(DATA!AU$3:AU$109,DATA!$F$3:$F$109,$A50,DATA!$B$3:$B$109,$C$2)+AQ164-AQ163 -> 17038.16652 | AR50: =SUMIFS(DATA!AV$3:AV$109,DATA!$F$3:$F$109,$A50,DATA!$B$3:$B$109,$C$2)+AR164-AR163 -> 16642.22761 | AS50: =SUMIFS(DATA!AW$3:AW$109,DATA!$F$3:$F$109,$A50,DATA!$B$3:$B$109,$C$2)+AS164-AS163 -> 16248.78601 | AT50: =SUMIFS(DATA!AX$3:AX$109,DATA!$F$3:$F$109,$A50,DATA!$B$3:$B$109,$C$2)+AT164-AT163 -> 16010.29745 | AU50: =SUMIFS(DATA!AY$3:AY$109,DATA!$F$3:$F$109,$A50,DATA!$B$3:$B$109,$C$2)+AU164-AU163 -> 15949.94435 | AV50: =SUMIFS(DATA!AZ$3:AZ$109,DATA!$F$3:$F$109,$A50,DATA!$B$3:$B$109,$C$2)+AV164-AV163 -> 15581.32087 | AW50: =SUMIFS(DATA!BA$3:BA$109,DATA!$F$3:$F$109,$A50,DATA!$B$3:$B$109,$C$2)+AW164-AW163 -> 14828.41166 | AX50: =SUMIFS(DATA!BB$3:BB$109,DATA!$F$3:$F$109,$A50,DATA!$B$3:$B$109,$C$2)+AX164-AX163 -> 14683.40335 | AY50: =SUMIFS(DATA!BC$3:BC$109,DATA!$F$3:$F$109,$A50,DATA!$B$3:$B$109,$C$2)+AY164-AY163 -> 14900.05299 | AZ50: =SUMIFS(DATA!BD$3:BD$109,DATA!$F$3:$F$109,$A50,DATA!$B$3:$B$109,$C$2)+AZ164-AZ163 -> 14320.34448
A51: Long term debt + current and other liabilities - current and other assets | C51: =C89+C91-C80 -> 9651 | D51: 11027 | E51: 12878 | F51: 13886 | G51: 14634 | H51: 14984 | I51: 15168 | J51: 15223 | K51: 15337 | L51: 15500 | M51: 15533 | N51: 15596 | O51: 15724 | P51: 15656 | Q51: 15541 | R51: 15529 | S51: 15789 | T51: 15951 | U51: 15800 | V51: 15247 | W51: 15359 | X51: 15652 | Y51: 15921 | Z51: 16316 | AA51: 16573 | AB51: 16899 | AC51: 17373 | AD51: 17711 | AE51: 17896 | AF51: 18333 | AG51: 18843 | AH51: 19204 | AI51: =AI89+AI91-AI80 -> 19262 | AJ51: 19473 | AK51: 19567 | AL51: 19570 | AM51: 19520 | AN51: 19492 | AO51: 19601 | AP51: 19797 | AQ51: 19807 | AR51: 19956 | AS51: 20097 | AT51: 20039 | AU51: 20043 | AV51: 20112 | AW51: 20320 | AX51: 20790 | AY51: 20851 | AZ51: 20616
B52: [Difference] | C52: =C51-C50 -> -13.9 | D52: =D51-D50 -> -72.3 | E52: 299.9 | F52: 296.7 | G52: 299.1 | H52: 273.9 | I52: 248.0866832 | J52: 247.3758646 | K52: 304.7223843 | L52: 457.6976981 | M52: 486.3757682 | N52: 584.57321 | O52: 812.9158723 | P52: 827.560135 | Q52: 901.2167077 | R52: 947.8771447 | S52: 1089.073152 | T52: 1143.515386 | U52: 1158.008807 | V52: 1024.545719 | W52: 998.2401759 | X52: 1115.584349 | Y52: 1255.021287 | Z52: 1336.399576 | AA52: 1191.672527 | AB52: 1342.34563 | AC52: 1624.905216 | AD52: 1593.927352 | AE52: 1370.738204 | AF52: 1732.21403 | AG52: 1998.075574 | AH52: 1883.516366 | AI52: 2080.315603 | AJ52: 2032.054631 | AK52: 1945.623975 | AL52: 2059.559964 | AM52: 2209.252962 | AN52: 2327.14753 | AO52: 2472.274068 | AP52: 2622.217669 | AQ52: 2768.833483 | AR52: 3313.772391 | AS52: 3848.213987 | AT52: 4028.702555 | AU52: 4093.055653 | AV52: 4530.679129 | AW52: 5491.58834 | AX52: 6106.596647 | AY52: 5950.947012 | AZ52: 6295.655523
A54: Current Year Revenue Increase | B54: [Formula] | C54: =C12/C9 -> 0 | D54: =(D12)/(+C11+D9) -> 0.035 | E54: 0.0338183678 | F54: 0.03426289967 | G54: 0.03447183093 | H54: 0.03530121057 | I54: 0.03600853406 | J54: 0.03540539263 | K54: 0.03681300503 | L54: 0.03685308203 | M54: 0.03750843611 | N54: 0.03781999812 | O54: 0.03811077074 | P54: 0.03838200428 | Q54: 0.03863486895 | R54: 0.0388704605 | S54: 0.03957248235 | T54: 0.03953699132 | U54: 0.03973114893 | V54: 0.03991109538 | W54: -0.2152439892 | X54: 0.01632926965 | Y54: 0.05451879822 | Z54: 0.02294870513 | AA54: 0.02899794226 | AB54: 0.03060740934 | AC54: 0.02395553402 | AD54: 0.03663516966 | AE54: 0.05534631251 | AF54: 0.00411424354 | AG54: 0.03334322467 | AH54: 0.007628915103 | AI54: 0.03476090916 | AJ54: =(AJ12)/(+AI11+AJ9) -> 0.02903106437 | AK54: 0.04526283698 | AL54: -0.002440288698 | AM54: 0.004742215042 | AN54: 0.008854603033 | AO54: 0.02773650299 | AP54: 0.0143151721 | AQ54: 0.01158030499 | AR54: 0.02494938322 | AS54: 0.01097543897 | AT54: 0.01864532129 | AU54: 0.01843068344 | AV54: 0.005093298921 | AW54: 0.007219597234 | AX54: 0.00712615711 | AY54: 0.01650051519 | AZ54: 0.01807384165
A56: Additional General Consumers Revenue Percent Increase | B56: [Original] | C56: =SUMIFS(DATA!G$3:G$101,DATA!$F$3:$F$101,$A56,DATA!$B$3:$B$101,$C$2) -> 0 | D56: =SUMIFS(DATA!H$3:H$101,DATA!$F$3:$F$101,$A56,DATA!$B$3:$B$101,$C$2) -> 0.035 | E56: =SUMIFS(DATA!I$3:I$101,DATA!$F$3:$F$101,$A56,DATA!$B$3:$B$101,$C$2) -> 0.0343 | F56: =SUMIFS(DATA!J$3:J$101,DATA!$F$3:$F$101,$A56,DATA!$B$3:$B$101,$C$2) -> 0.0343 | G56: =SUMIFS(DATA!K$3:K$101,DATA!$F$3:$F$101,$A56,DATA!$B$3:$B$101,$C$2) -> 0.0343 | H56: =SUMIFS(DATA!L$3:L$101,DATA!$F$3:$F$101,$A56,DATA!$B$3:$B$101,$C$2) -> 0.0343 | I56: =SUMIFS(DATA!M$3:M$101,DATA!$F$3:$F$101,$A56,DATA!$B$3:$B$101,$C$2) -> 0.0343 | J56: =SUMIFS(DATA!N$3:N$101,DATA!$F$3:$F$101,$A56,DATA!$B$3:$B$101,$C$2) -> 0.0343 | K56: =SUMIFS(DATA!O$3:O$101,DATA!$F$3:$F$101,$A56,DATA!$B$3:$B$101,$C$2) -> 0.0343 | L56: =SUMIFS(DATA!P$3:P$101,DATA!$F$3:$F$101,$A56,DATA!$B$3:$B$101,$C$2) -> 0.0343 | M56: =SUMIFS(DATA!Q$3:Q$101,DATA!$F$3:$F$101,$A56,DATA!$B$3:$B$101,$C$2) -> 0.0343 | N56: =SUMIFS(DATA!R$3:R$101,DATA!$F$3:$F$101,$A56,DATA!$B$3:$B$101,$C$2) -> 0.0343 | O56: =SUMIFS(DATA!S$3:S$101,DATA!$F$3:$F$101,$A56,DATA!$B$3:$B$101,$C$2) -> 0.0343 | P56: =SUMIFS(DATA!T$3:T$101,DATA!$F$3:$F$101,$A56,DATA!$B$3:$B$101,$C$2) -> 0.0343 | Q56: =SUMIFS(DATA!U$3:U$101,DATA!$F$3:$F$101,$A56,DATA!$B$3:$B$101,$C$2) -> 0.0343 | R56: =SUMIFS(DATA!V$3:V$101,DATA!$F$3:$F$101,$A56,DATA!$B$3:$B$101,$C$2) -> 0.0343 | S56: =SUMIFS(DATA!W$3:W$101,DATA!$F$3:$F$101,$A56,DATA!$B$3:$B$101,$C$2) -> 0.0343 | T56: =SUMIFS(DATA!X$3:X$101,DATA!$F$3:$F$101,$A56,DATA!$B$3:$B$101,$C$2) -> 0.0343 | U56: =SUMIFS(DATA!Y$3:Y$101,DATA!$F$3:$F$101,$A56,DATA!$B$3:$B$101,$C$2) -> 0.0343 | V56: =SUMIFS(DATA!Z$3:Z$101,DATA!$F$3:$F$101,$A56,DATA!$B$3:$B$101,$C$2) -> 0.0343 | W56: =SUMIFS(DATA!AA$3:AA$101,DATA!$F$3:$F$101,$A56,DATA!$B$3:$B$101,$C$2) -> -0.1751 | X56: =SUMIFS(DATA!AB$3:AB$101,DATA!$F$3:$F$101,$A56,DATA!$B$3:$B$101,$C$2) -> 0.0146 | Y56: =SUMIFS(DATA!AC$3:AC$101,DATA!$F$3:$F$101,$A56,DATA!$B$3:$B$101,$C$2) -> 0.0539 | Z56: =SUMIFS(DATA!AD$3:AD$101,DATA!$F$3:$F$101,$A56,DATA!$B$3:$B$101,$C$2) -> 0.0135 | AA56: =SUMIFS(DATA!AE$3:AE$101,DATA!$F$3:$F$101,$A56,DATA!$B$3:$B$101,$C$2) -> 0.0034 | AB56: =SUMIFS(DATA!AF$3:AF$101,DATA!$F$3:$F$101,$A56,DATA!$B$3:$B$101,$C$2) -> 0.0453 | AC56: =SUMIFS(DATA!AG$3:AG$101,DATA!$F$3:$F$101,$A56,DATA!$B$3:$B$101,$C$2) -> 0.0177 | AD56: =SUMIFS(DATA!AH$3:AH$101,DATA!$F$3:$F$101,$A56,DATA!$B$3:$B$101,$C$2) -> 0.0076 | AE56: =SUMIFS(DATA!AI$3:AI$101,DATA!$F$3:$F$101,$A56,DATA!$B$3:$B$101,$C$2) -> 0.0455 | AF56: =SUMIFS(DATA!AJ$3:AJ$101,DATA!$F$3:$F$101,$A56,DATA!$B$3:$B$101,$C$2) -> 0.0249 | AG56: =SUMIFS(DATA!AK$3:AK$101,DATA!$F$3:$F$101,$A56,DATA!$B$3:$B$101,$C$2) -> 0.0308 | AH56: =SUMIFS(DATA!AL$3:AL$101,DATA!$F$3:$F$101,$A56,DATA!$B$3:$B$101,$C$2) -> 0.0051 | AI56: =SUMIFS(DATA!AM$3:AM$101,DATA!$F$3:$F$101,$A56,DATA!$B$3:$B$101,$C$2) -> 0.0353 | AJ56: =SUMIFS(DATA!AN$3:AN$101,DATA!$F$3:$F$101,$A56,DATA!$B$3:$B$101,$C$2) -> 0.0288 | AK56: =SUMIFS(DATA!AO$3:AO$101,DATA!$F$3:$F$101,$A56,DATA!$B$3:$B$101,$C$2) -> 0.0226 | AL56: =SUMIFS(DATA!AP$3:AP$101,DATA!$F$3:$F$101,$A56,DATA!$B$3:$B$101,$C$2) -> 0.0108 | AM56: =SUMIFS(DATA!AQ$3:AQ$101,DATA!$F$3:$F$101,$A56,DATA!$B$3:$B$101,$C$2) -> 0.0017 | AN56: =SUMIFS(DATA!AR$3:AR$101,DATA!$F$3:$F$101,$A56,DATA!$B$3:$B$101,$C$2) -> 0.0099 | AO56: =SUMIFS(DATA!AS$3:AS$101,DATA!$F$3:$F$101,$A56,DATA!$B$3:$B$101,$C$2) -> 0.0269 | AP56: =SUMIFS(DATA!AT$3:AT$101,DATA!$F$3:$F$101,$A56,DATA!$B$3:$B$101,$C$2) -> 0.0143 | AQ56: =SUMIFS(DATA!AU$3:AU$101,DATA!$F$3:$F$101,$A56,DATA!$B$3:$B$101,$C$2) -> 0.0176 | AR56: =SUMIFS(DATA!AV$3:AV$101,DATA!$F$3:$F$101,$A56,DATA!$B$3:$B$101,$C$2) -> 0.0262 | AS56: =SUMIFS(DATA!AW$3:AW$101,DATA!$F$3:$F$101,$A56,DATA!$B$3:$B$101,$C$2) -> 0.0119 | AT56: =SUMIFS(DATA!AX$3:AX$101,DATA!$F$3:$F$101,$A56,DATA!$B$3:$B$101,$C$2) -> 0.0146 | AU56: =SUMIFS(DATA!AY$3:AY$101,DATA!$F$3:$F$101,$A56,DATA!$B$3:$B$101,$C$2) -> 0.0135 | AV56: =SUMIFS(DATA!AZ$3:AZ$101,DATA!$F$3:$F$101,$A56,DATA!$B$3:$B$101,$C$2) -> 0.0078 | AW56: =SUMIFS(DATA!BA$3:BA$101,DATA!$F$3:$F$101,$A56,DATA!$B$3:$B$101,$C$2) -> 0.0162 | AX56: =SUMIFS(DATA!BB$3:BB$101,DATA!$F$3:$F$101,$A56,DATA!$B$3:$B$101,$C$2) -> 0.0153 | AY56: =SUMIFS(DATA!BC$3:BC$101,DATA!$F$3:$F$101,$A56,DATA!$B$3:$B$101,$C$2) -> 0.0158 | AZ56: =SUMIFS(DATA!BD$3:BD$101,DATA!$F$3:$F$101,$A56,DATA!$B$3:$B$101,$C$2) -> 0.0243
A57: Additional General Consumers Revenue Percent Increase | B57: [Formula] | C57: =C56 -> 0 | D57: =D56 -> 0.035 | E57: =IF(E7<=$O$2,$Q$3,E58) -> 0.03348759594 | F57: 0.03348759594 | G57: 0.03348759594 | H57: 0.03348759594 | I57: 0.03348759594 | J57: 0.03348759594 | K57: 0.03348759594 | L57: 0.03348759594 | M57: 0.03348759594 | N57: 0.03348759594 | O57: 0.03348759594 | P57: 0.03348759594 | Q57: 0.03348759594 | R57: 0.03348759594 | S57: 0.03348759594 | T57: 0.03348759594 | U57: 0.03348759594 | V57: 0.03348759594 | W57: -0.220216321 | X57: 0.01185575237 | Y57: 0.05000985161 | Z57: 0.01820128068 | AA57: 0.0241311724 | AB57: 0.02559942764 | AC57: 0.01884387835 | AD57: 0.03116493918 | AE57: 0.04983444022 | AF57: -0.001397527773 | AG57: 0.02774828917 | AH57: 0.002061756975 | AI57: 0.02886426493 | AJ57: 0.02328959207 | AK57: =IF(AK7<=$O$2,$Q$3,AK58) -> 0.03935717979 | AL57: -0.008227873089 | AM57: 0.004742215042 | AN57: 0.008854603033 | AO57: 0.02773650299 | AP57: 0.0143151721 | AQ57: 0.01158030499 | AR57: 0.02494938322 | AS57: 0.01097543897 | AT57: 0.01864532129 | AU57: 0.01843068344 | AV57: 0.005093298921 | AW57: 0.007219597234 | AX57: 0.00712615711 | AY57: 0.01650051519 | AZ57: 0.01807384165
A58: DO NOT ADJUST THIS ROW | E58: 0.0343 | F58: -0.496502614 | G58: 0.05764366368 | H58: 0.05838670286 | I58: 0.09011459882 | J58: -0.003165497934 | K58: -0.3273824807 | L58: 0.01859887184 | M58: -0.01164053411 | N58: 0.01230869152 | O58: 0.002891518219 | P58: -0.2334689948 | Q58: -0.007033246981 | R58: 0.003812252076 | S58: -0.006279668322 | T58: -0.003456795904 | U58: -0.1927352323 | V58: -0.004856185908 | W58: -0.220216321 | X58: 0.01185575237 | Y58: 0.05000985161 | Z58: 0.01820128068 | AA58: 0.0241311724 | AB58: 0.02559942764 | AC58: 0.01884387835 | AD58: 0.03116493918 | AE58: 0.04983444022 | AF58: -0.001397527773 | AG58: 0.02774828917 | AH58: 0.002061756975 | AI58: 0.02886426493 | AJ58: 0.02328959207 | AK58: 0.03935717979 | AL58: -0.008227873089 | AM58: 0.004742215042 | AN58: 0.008854603033 | AO58: 0.02773650299 | AP58: 0.0143151721 | AQ58: 0.01158030499 | AR58: 0.02494938322 | AS58: 0.01097543897 | AT58: 0.01864532129 | AU58: 0.01843068344 | AV58: 0.005093298921 | AW58: 0.007219597234 | AX58: 0.00712615711 | AY58: 0.01650051519 | AZ58: 0.01807384165
A59: Cumulative General Consumers Revenue Percent Increase | B59: [Original] | C59: =SUMIFS(DATA!G$3:G$101,DATA!$F$3:$F$101,$A59,DATA!$B$3:$B$101,$C$2) -> 0 | D59: =SUMIFS(DATA!H$3:H$101,DATA!$F$3:$F$101,$A59,DATA!$B$3:$B$101,$C$2) -> 0.035 | E59: =SUMIFS(DATA!I$3:I$101,DATA!$F$3:$F$101,$A59,DATA!$B$3:$B$101,$C$2) -> 0.0705 | F59: =SUMIFS(DATA!J$3:J$101,DATA!$F$3:$F$101,$A59,DATA!$B$3:$B$101,$C$2) -> 0.1072 | G59: =SUMIFS(DATA!K$3:K$101,DATA!$F$3:$F$101,$A59,DATA!$B$3:$B$101,$C$2) -> 0.1451 | H59: =SUMIFS(DATA!L$3:L$101,DATA!$F$3:$F$101,$A59,DATA!$B$3:$B$101,$C$2) -> 0.1844 | I59: =SUMIFS(DATA!M$3:M$101,DATA!$F$3:$F$101,$A59,DATA!$B$3:$B$101,$C$2) -> 0.2249 | J59: =SUMIFS(DATA!N$3:N$101,DATA!$F$3:$F$101,$A59,DATA!$B$3:$B$101,$C$2) -> 0.2669 | K59: =SUMIFS(DATA!O$3:O$101,DATA!$F$3:$F$101,$A59,DATA!$B$3:$B$101,$C$2) -> 0.3103 | L59: =SUMIFS(DATA!P$3:P$101,DATA!$F$3:$F$101,$A59,DATA!$B$3:$B$101,$C$2) -> 0.3553 | M59: =SUMIFS(DATA!Q$3:Q$101,DATA!$F$3:$F$101,$A59,DATA!$B$3:$B$101,$C$2) -> 0.4017 | N59: =SUMIFS(DATA!R$3:R$101,DATA!$F$3:$F$101,$A59,DATA!$B$3:$B$101,$C$2) -> 0.4497 | O59: =SUMIFS(DATA!S$3:S$101,DATA!$F$3:$F$101,$A59,DATA!$B$3:$B$101,$C$2) -> 0.4994 | P59: =SUMIFS(DATA!T$3:T$101,DATA!$F$3:$F$101,$A59,DATA!$B$3:$B$101,$C$2) -> 0.5508 | Q59: =SUMIFS(DATA!U$3:U$101,DATA!$F$3:$F$101,$A59,DATA!$B$3:$B$101,$C$2) -> 0.604 | R59: =SUMIFS(DATA!V$3:V$101,DATA!$F$3:$F$101,$A59,DATA!$B$3:$B$101,$C$2) -> 0.6589 | S59: =SUMIFS(DATA!W$3:W$101,DATA!$F$3:$F$101,$A59,DATA!$B$3:$B$101,$C$2) -> 0.7158 | T59: =SUMIFS(DATA!X$3:X$101,DATA!$F$3:$F$101,$A59,DATA!$B$3:$B$101,$C$2) -> 0.7746 | U59: =SUMIFS(DATA!Y$3:Y$101,DATA!$F$3:$F$101,$A59,DATA!$B$3:$B$101,$C$2) -> 0.8354 | V59: =SUMIFS(DATA!Z$3:Z$101,DATA!$F$3:$F$101,$A59,DATA!$B$3:$B$101,$C$2) -> 0.8983 | W59: =SUMIFS(DATA!AA$3:AA$101,DATA!$F$3:$F$101,$A59,DATA!$B$3:$B$101,$C$2) -> 0.5659 | X59: =SUMIFS(DATA!AB$3:AB$101,DATA!$F$3:$F$101,$A59,DATA!$B$3:$B$101,$C$2) -> 0.5888 | Y59: =SUMIFS(DATA!AC$3:AC$101,DATA!$F$3:$F$101,$A59,DATA!$B$3:$B$101,$C$2) -> 0.6744 | Z59: =SUMIFS(DATA!AD$3:AD$101,DATA!$F$3:$F$101,$A59,DATA!$B$3:$B$101,$C$2) -> 0.6971 | AA59: =SUMIFS(DATA!AE$3:AE$101,DATA!$F$3:$F$101,$A59,DATA!$B$3:$B$101,$C$2) -> 0.7029 | AB59: =SUMIFS(DATA!AF$3:AF$101,DATA!$F$3:$F$101,$A59,DATA!$B$3:$B$101,$C$2) -> 0.7801 | AC59: =SUMIFS(DATA!AG$3:AG$101,DATA!$F$3:$F$101,$A59,DATA!$B$3:$B$101,$C$2) -> 0.8116 | AD59: =SUMIFS(DATA!AH$3:AH$101,DATA!$F$3:$F$101,$A59,DATA!$B$3:$B$101,$C$2) -> 0.8253 | AE59: =SUMIFS(DATA!AI$3:AI$101,DATA!$F$3:$F$101,$A59,DATA!$B$3:$B$101,$C$2) -> 0.9083 | AF59: =SUMIFS(DATA!AJ$3:AJ$101,DATA!$F$3:$F$101,$A59,DATA!$B$3:$B$101,$C$2) -> 0.9558 | AG59: =SUMIFS(DATA!AK$3:AK$101,DATA!$F$3:$F$101,$A59,DATA!$B$3:$B$101,$C$2) -> 1.016 | AH59: =SUMIFS(DATA!AL$3:AL$101,DATA!$F$3:$F$101,$A59,DATA!$B$3:$B$101,$C$2) -> 1.0263 | AI59: =SUMIFS(DATA!AM$3:AM$101,DATA!$F$3:$F$101,$A59,DATA!$B$3:$B$101,$C$2) -> 1.0978 | AJ59: =SUMIFS(DATA!AN$3:AN$101,DATA!$F$3:$F$101,$A59,DATA!$B$3:$B$101,$C$2) -> 1.1583 | AK59: =SUMIFS(DATA!AO$3:AO$101,DATA!$F$3:$F$101,$A59,DATA!$B$3:$B$101,$C$2) -> 1.2071 | AL59: =SUMIFS(DATA!AP$3:AP$101,DATA!$F$3:$F$101,$A59,DATA!$B$3:$B$101,$C$2) -> 1.2309 | AM59: =SUMIFS(DATA!AQ$3:AQ$101,DATA!$F$3:$F$101,$A59,DATA!$B$3:$B$101,$C$2) -> 1.2348 | AN59: =SUMIFS(DATA!AR$3:AR$101,DATA!$F$3:$F$101,$A59,DATA!$B$3:$B$101,$C$2) -> 1.257 | AO59: =SUMIFS(DATA!AS$3:AS$101,DATA!$F$3:$F$101,$A59,DATA!$B$3:$B$101,$C$2) -> 1.3178 | AP59: =SUMIFS(DATA!AT$3:AT$101,DATA!$F$3:$F$101,$A59,DATA!$B$3:$B$101,$C$2) -> 1.3509 | AQ59: =SUMIFS(DATA!AU$3:AU$101,DATA!$F$3:$F$101,$A59,DATA!$B$3:$B$101,$C$2) -> 1.3922 | AR59: =SUMIFS(DATA!AV$3:AV$101,DATA!$F$3:$F$101,$A59,DATA!$B$3:$B$101,$C$2) -> 1.455 | AS59: =SUMIFS(DATA!AW$3:AW$101,DATA!$F$3:$F$101,$A59,DATA!$B$3:$B$101,$C$2) -> 1.4841 | AT59: =SUMIFS(DATA!AX$3:AX$101,DATA!$F$3:$F$101,$A59,DATA!$B$3:$B$101,$C$2) -> 1.5204 | AU59: =SUMIFS(DATA!AY$3:AY$101,DATA!$F$3:$F$101,$A59,DATA!$B$3:$B$101,$C$2) -> 1.5545 | AV59: =SUMIFS(DATA!AZ$3:AZ$101,DATA!$F$3:$F$101,$A59,DATA!$B$3:$B$101,$C$2) -> 1.5744 | AW59: =SUMIFS(DATA!BA$3:BA$101,DATA!$F$3:$F$101,$A59,DATA!$B$3:$B$101,$C$2) -> 1.6162 | AX59: =SUMIFS(DATA!BB$3:BB$101,DATA!$F$3:$F$101,$A59,DATA!$B$3:$B$101,$C$2) -> 1.6562 | AY59: =SUMIFS(DATA!BC$3:BC$101,DATA!$F$3:$F$101,$A59,DATA!$B$3:$B$101,$C$2) -> 1.6981 | AZ59: =SUMIFS(DATA!BD$3:BD$101,DATA!$F$3:$F$101,$A59,DATA!$B$3:$B$101,$C$2) -> 1.7638
A60: Cumulative General Consumers Revenue Percent Increase | B60: [Formula] | C60: 0 | D60: =(1+C60)*(1+D57)-1 -> 0.035 | E60: =(1+D60)*(1+E57)-1 -> 0.0696596618 | F60: =(1+E60)*(1+F57)-1 -> 0.1054799923 | G60: 0.1424998597 | H60: 0.1807594333 | I60: 0.2203002281 | J60: 0.2611651491 | K60: 0.303398538 | L60: =(1+K60)*(1+L57)-1 -> 0.3470462216 | M60: =(1+L60)*(1+M57)-1 -> 0.3921555612 | N60: =(1+M60)*(1+N57)-1 -> 0.4387755041 | O60: =(1+N60)*(1+O57)-1 -> 0.4869566368 | P60: =(1+O60)*(1+P57)-1 -> 0.5367512399 | Q60: =(1+P60)*(1+Q57)-1 -> 0.5882133445 | R60: =(1+Q60)*(1+R57)-1 -> 0.6413987912 | S60: =(1+R60)*(1+S57)-1 -> 0.6963652907 | T60: =(1+S60)*(1+T57)-1 -> 0.7531724861 | U60: =(1+T60)*(1+U57)-1 -> 0.811882018 | V60: =(1+U60)*(1+V57)-1 -> 0.8725575909 | W60: =(1+V60)*(1+W57)-1 -> 0.4601898473 | X60: =(1+W60)*(1+X57)-1 -> 0.4775014966 | Y60: =(1+X60)*(1+Y57)-1 -> 0.5513911271 | Z60: =(1+Y60)*(1+Z57)-1 -> 0.5796284325 | AA60: =(1+Z60)*(1+AA57)-1 -> 0.6177467185 | AB60: =(1+AA60)*(1+AB57)-1 -> 0.6591601086 | AC60: =(1+AB60)*(1+AC57)-1 -> 0.6904251198 | AD60: 0.7431071159 | AE60: =(1+AD60)*(1+AE57)-1 -> 0.8299738833 | AF60: =(1+AE60)*(1+AF57)-1 -> 0.8274164439 | AG60: =(1+AF60)*(1+AG57)-1 -> 0.8781241238 | AH60: =(1+AG60)*(1+AH57)-1 -> 0.8819963594 | AI60: =(1+AH60)*(1+AI57)-1 -> 0.9363188009 | AJ60: =(1+AI60)*(1+AJ57)-1 -> 0.9814148759 | AK60: =(1+AJ60)*(1+AK57)-1 -> 1.059397777 | AL60: =(1+AK60)*(1+AL57)-1 -> 1.042453314 | AM60: =(1+AL60)*(1+AM57)-1 -> 1.052139067 | AN60: =(1+AM60)*(1+AN57)-1 -> 1.070309943 | AO60: =(1+AN60)*(1+AO57)-1 -> 1.127733101 | AP60: =(1+AO60)*(1+AP57)-1 -> 1.158191967 | AQ60: =(1+AP60)*(1+AQ57)-1 -> 1.183184488 | AR60: =(1+AQ60)*(1+AR57)-1 -> 1.237653595 | AS60: =(1+AR60)*(1+AS57)-1 -> 1.262212825 | AT60: =(1+AS60)*(1+AT57)-1 -> 1.30439251 | AU60: =(1+AT60)*(1+AU57)-1 -> 1.346864039 | AV60: =(1+AU60)*(1+AV57)-1 -> 1.358817319 | AW60: =(1+AV60)*(1+AW57)-1 -> 1.37584703 | AX60: =(1+AW60)*(1+AX57)-1 -> 1.392777689 | AY60: =(1+AX60)*(1+AY57)-1 -> 1.432259754 | AZ60: 1.476220031
A62: Debt Ratio | B62: [Original] | C62: =SUMIFS(DATA!G$3:G$101,DATA!$F$3:$F$101,$A62,DATA!$B$3:$B$101,$C$2) -> 76 | D62: =SUMIFS(DATA!H$3:H$101,DATA!$F$3:$F$101,$A62,DATA!$B$3:$B$101,$C$2) -> 78 | E62: =SUMIFS(DATA!I$3:I$101,DATA!$F$3:$F$101,$A62,DATA!$B$3:$B$101,$C$2) -> 84 | F62: =SUMIFS(DATA!J$3:J$101,DATA!$F$3:$F$101,$A62,DATA!$B$3:$B$101,$C$2) -> 86 | G62: =SUMIFS(DATA!K$3:K$101,DATA!$F$3:$F$101,$A62,DATA!$B$3:$B$101,$C$2) -> 87 | H62: =SUMIFS(DATA!L$3:L$101,DATA!$F$3:$F$101,$A62,DATA!$B$3:$B$101,$C$2) -> 88 | I62: =SUMIFS(DATA!M$3:M$101,DATA!$F$3:$F$101,$A62,DATA!$B$3:$B$101,$C$2) -> 90 | J62: =SUMIFS(DATA!N$3:N$101,DATA!$F$3:$F$101,$A62,DATA!$B$3:$B$101,$C$2) -> 91 | K62: =SUMIFS(DATA!O$3:O$101,DATA!$F$3:$F$101,$A62,DATA!$B$3:$B$101,$C$2) -> 91 | L62: =SUMIFS(DATA!P$3:P$101,DATA!$F$3:$F$101,$A62,DATA!$B$3:$B$101,$C$2) -> 92 | M62: =SUMIFS(DATA!Q$3:Q$101,DATA!$F$3:$F$101,$A62,DATA!$B$3:$B$101,$C$2) -> 91 | N62: =SUMIFS(DATA!R$3:R$101,DATA!$F$3:$F$101,$A62,DATA!$B$3:$B$101,$C$2) -> 91 | O62: =SUMIFS(DATA!S$3:S$101,DATA!$F$3:$F$101,$A62,DATA!$B$3:$B$101,$C$2) -> 90 | P62: =SUMIFS(DATA!T$3:T$101,DATA!$F$3:$F$101,$A62,DATA!$B$3:$B$101,$C$2) -> 89 | Q62: =SUMIFS(DATA!U$3:U$101,DATA!$F$3:$F$101,$A62,DATA!$B$3:$B$101,$C$2) -> 87 | R62: =SUMIFS(DATA!V$3:V$101,DATA!$F$3:$F$101,$A62,DATA!$B$3:$B$101,$C$2) -> 85 | S62: =SUMIFS(DATA!W$3:W$101,DATA!$F$3:$F$101,$A62,DATA!$B$3:$B$101,$C$2) -> 84 | T62: =SUMIFS(DATA!X$3:X$101,DATA!$F$3:$F$101,$A62,DATA!$B$3:$B$101,$C$2) -> 81 | U62: =SUMIFS(DATA!Y$3:Y$101,DATA!$F$3:$F$101,$A62,DATA!$B$3:$B$101,$C$2) -> 78 | V62: =SUMIFS(DATA!Z$3:Z$101,DATA!$F$3:$F$101,$A62,DATA!$B$3:$B$101,$C$2) -> 75 | W62: =SUMIFS(DATA!AA$3:AA$101,DATA!$F$3:$F$101,$A62,DATA!$B$3:$B$101,$C$2) -> 74 | X62: =SUMIFS(DATA!AB$3:AB$101,DATA!$F$3:$F$101,$A62,DATA!$B$3:$B$101,$C$2) -> 74 | Y62: =SUMIFS(DATA!AC$3:AC$101,DATA!$F$3:$F$101,$A62,DATA!$B$3:$B$101,$C$2) -> 74 | Z62: =SUMIFS(DATA!AD$3:AD$101,DATA!$F$3:$F$101,$A62,DATA!$B$3:$B$101,$C$2) -> 73 | AA62: =SUMIFS(DATA!AE$3:AE$101,DATA!$F$3:$F$101,$A62,DATA!$B$3:$B$101,$C$2) -> 73 | AB62: =SUMIFS(DATA!AF$3:AF$101,DATA!$F$3:$F$101,$A62,DATA!$B$3:$B$101,$C$2) -> 73 | AC62: =SUMIFS(DATA!AG$3:AG$101,DATA!$F$3:$F$101,$A62,DATA!$B$3:$B$101,$C$2) -> 72 | AD62: =SUMIFS(DATA!AH$3:AH$101,DATA!$F$3:$F$101,$A62,DATA!$B$3:$B$101,$C$2) -> 72 | AE62: =SUMIFS(DATA!AI$3:AI$101,DATA!$F$3:$F$101,$A62,DATA!$B$3:$B$101,$C$2) -> 72 | AF62: =SUMIFS(DATA!AJ$3:AJ$101,DATA!$F$3:$F$101,$A62,DATA!$B$3:$B$101,$C$2) -> 71 | AG62: =SUMIFS(DATA!AK$3:AK$101,DATA!$F$3:$F$101,$A62,DATA!$B$3:$B$101,$C$2) -> 71 | AH62: =SUMIFS(DATA!AL$3:AL$101,DATA!$F$3:$F$101,$A62,DATA!$B$3:$B$101,$C$2) -> 71 | AI62: =SUMIFS(DATA!AM$3:AM$101,DATA!$F$3:$F$101,$A62,DATA!$B$3:$B$101,$C$2) -> 70 | AJ62: =SUMIFS(DATA!AN$3:AN$101,DATA!$F$3:$F$101,$A62,DATA!$B$3:$B$101,$C$2) -> 70 | AK62: =SUMIFS(DATA!AO$3:AO$101,DATA!$F$3:$F$101,$A62,DATA!$B$3:$B$101,$C$2) -> 69 | AL62: =SUMIFS(DATA!AP$3:AP$101,DATA!$F$3:$F$101,$A62,DATA!$B$3:$B$101,$C$2) -> 68 | AM62: =SUMIFS(DATA!AQ$3:AQ$101,DATA!$F$3:$F$101,$A62,DATA!$B$3:$B$101,$C$2) -> 67 | AN62: =SUMIFS(DATA!AR$3:AR$101,DATA!$F$3:$F$101,$A62,DATA!$B$3:$B$101,$C$2) -> 66 | AO62: =SUMIFS(DATA!AS$3:AS$101,DATA!$F$3:$F$101,$A62,DATA!$B$3:$B$101,$C$2) -> 66 | AP62: =SUMIFS(DATA!AT$3:AT$101,DATA!$F$3:$F$101,$A62,DATA!$B$3:$B$101,$C$2) -> 65 | AQ62: =SUMIFS(DATA!AU$3:AU$101,DATA!$F$3:$F$101,$A62,DATA!$B$3:$B$101,$C$2) -> 64 | AR62: =SUMIFS(DATA!AV$3:AV$101,DATA!$F$3:$F$101,$A62,DATA!$B$3:$B$101,$C$2) -> 64 | AS62: =SUMIFS(DATA!AW$3:AW$101,DATA!$F$3:$F$101,$A62,DATA!$B$3:$B$101,$C$2) -> 63 | AT62: =SUMIFS(DATA!AX$3:AX$101,DATA!$F$3:$F$101,$A62,DATA!$B$3:$B$101,$C$2) -> 62 | AU62: =SUMIFS(DATA!AY$3:AY$101,DATA!$F$3:$F$101,$A62,DATA!$B$3:$B$101,$C$2) -> 61 | AV62: =SUMIFS(DATA!AZ$3:AZ$101,DATA!$F$3:$F$101,$A62,DATA!$B$3:$B$101,$C$2) -> 60 | AW62: =SUMIFS(DATA!BA$3:BA$101,DATA!$F$3:$F$101,$A62,DATA!$B$3:$B$101,$C$2) -> 60 | AX62: =SUMIFS(DATA!BB$3:BB$101,DATA!$F$3:$F$101,$A62,DATA!$B$3:$B$101,$C$2) -> 60 | AY62: =SUMIFS(DATA!BC$3:BC$101,DATA!$F$3:$F$101,$A62,DATA!$B$3:$B$101,$C$2) -> 59 | AZ62: =SUMIFS(DATA!BD$3:BD$101,DATA!$F$3:$F$101,$A62,DATA!$B$3:$B$101,$C$2) -> 58
A63: Debt Ratio | B63: [Formula] | C63: =C50/SUM(C$50+C$44+C$92+C$94+C$96)*100 -> 76.00044036 | D63: =D50/SUM(D$50+D$44+D$92+D$94+D$96)*100 -> 78.1479321 | E63: =E50/SUM(E$50+E$44+E$92+E$94+E$96)*100 -> 84.82901075 | F63: =F50/SUM(F$50+F$44+F$92+F$94+F$96)*100 -> 87.15648461 | G63: 89.04118639 | H63: 90.51683872 | I63: 92.36504925 | J63: 93.63290556 | K63: 94.06918132 | L63: 93.9723194 | M63: 93.66107741 | N63: 92.92180055 | O63: 91.68675628 | P63: 90.39546181 | Q63: 89.46289657 | R63: =R50/SUM(R$50+R$44+R$92+R$94+R$96)*100 -> 87.4584892 | S63: 85.18191396 | T63: 82.30631278 | U63: 78.90531395 | V63: 75.00015252 | W63: 74.51490125 | X63: 74.0818631 | Y63: 73.57752558 | Z63: 73.30969552 | AA63: 73.14358377 | AB63: 72.70004805 | AC63: 72.27892436 | AD63: 72.0827373 | AE63: 71.92202468 | AF63: 71.37158203 | AG63: 71.02341878 | AH63: 70.94672787 | AI63: =AI50/SUM(AI$50+AI$44+AI$92+AI$94+AI$96)*100 -> 70.13390881 | AJ63: 69.81882789 | AK63: 69.40861093 | AL63: 68.67131595 | AM63: 67.83433954 | AN63: 67.07564105 | AO63: 66.46605542 | AP63: 65.96521584 | AQ63: 65.1981867 | AR63: 64.09513728 | AS63: 62.99023195 | AT63: 62.1022013 | AU63: 61.4837621 | AV63: 60.41705611 | AW63: 58.74381215 | AX63: 58.03344582 | AY63: 57.91039674 | AZ63: 56.47674163
A65: Interest Coverage Ratio | B65: [Original] | C65: =SUMIFS(DATA!G$3:G$101,DATA!$F$3:$F$101,$A65,DATA!$B$3:$B$101,$C$2) -> 1.09 | D65: =SUMIFS(DATA!H$3:H$101,DATA!$F$3:$F$101,$A65,DATA!$B$3:$B$101,$C$2) -> 1.11 | E65: =SUMIFS(DATA!I$3:I$101,DATA!$F$3:$F$101,$A65,DATA!$B$3:$B$101,$C$2) -> 0.9 | F65: =SUMIFS(DATA!J$3:J$101,DATA!$F$3:$F$101,$A65,DATA!$B$3:$B$101,$C$2) -> 0.89 | G65: =SUMIFS(DATA!K$3:K$101,DATA!$F$3:$F$101,$A65,DATA!$B$3:$B$101,$C$2) -> 0.87 | H65: =SUMIFS(DATA!L$3:L$101,DATA!$F$3:$F$101,$A65,DATA!$B$3:$B$101,$C$2) -> 0.84 | I65: =SUMIFS(DATA!M$3:M$101,DATA!$F$3:$F$101,$A65,DATA!$B$3:$B$101,$C$2) -> 0.72 | J65: =SUMIFS(DATA!N$3:N$101,DATA!$F$3:$F$101,$A65,DATA!$B$3:$B$101,$C$2) -> 0.8 | K65: =SUMIFS(DATA!O$3:O$101,DATA!$F$3:$F$101,$A65,DATA!$B$3:$B$101,$C$2) -> 0.94 | L65: =SUMIFS(DATA!P$3:P$101,DATA!$F$3:$F$101,$A65,DATA!$B$3:$B$101,$C$2) -> 1.03 | M65: =SUMIFS(DATA!Q$3:Q$101,DATA!$F$3:$F$101,$A65,DATA!$B$3:$B$101,$C$2) -> 1.06 | N65: =SUMIFS(DATA!R$3:R$101,DATA!$F$3:$F$101,$A65,DATA!$B$3:$B$101,$C$2) -> 1.11 | O65: =SUMIFS(DATA!S$3:S$101,DATA!$F$3:$F$101,$A65,DATA!$B$3:$B$101,$C$2) -> 1.19 | P65: =SUMIFS(DATA!T$3:T$101,DATA!$F$3:$F$101,$A65,DATA!$B$3:$B$101,$C$2) -> 1.19 | Q65: =SUMIFS(DATA!U$3:U$101,DATA!$F$3:$F$101,$A65,DATA!$B$3:$B$101,$C$2) -> 1.31 | R65: =SUMIFS(DATA!V$3:V$101,DATA!$F$3:$F$101,$A65,DATA!$B$3:$B$101,$C$2) -> 1.42 | S65: =SUMIFS(DATA!W$3:W$101,DATA!$F$3:$F$101,$A65,DATA!$B$3:$B$101,$C$2) -> 1.49 | T65: =SUMIFS(DATA!X$3:X$101,DATA!$F$3:$F$101,$A65,DATA!$B$3:$B$101,$C$2) -> 1.59 | U65: =SUMIFS(DATA!Y$3:Y$101,DATA!$F$3:$F$101,$A65,DATA!$B$3:$B$101,$C$2) -> 1.71 | V65: =SUMIFS(DATA!Z$3:Z$101,DATA!$F$3:$F$101,$A65,DATA!$B$3:$B$101,$C$2) -> 1.83 | W65: =SUMIFS(DATA!AA$3:AA$101,DATA!$F$3:$F$101,$A65,DATA!$B$3:$B$101,$C$2) -> 1.2 | X65: =SUMIFS(DATA!AB$3:AB$101,DATA!$F$3:$F$101,$A65,DATA!$B$3:$B$101,$C$2) -> 1.2 | Y65: =SUMIFS(DATA!AC$3:AC$101,DATA!$F$3:$F$101,$A65,DATA!$B$3:$B$101,$C$2) -> 1.2 | Z65: =SUMIFS(DATA!AD$3:AD$101,DATA!$F$3:$F$101,$A65,DATA!$B$3:$B$101,$C$2) -> 1.2 | AA65: =SUMIFS(DATA!AE$3:AE$101,DATA!$F$3:$F$101,$A65,DATA!$B$3:$B$101,$C$2) -> 1.2 | AB65: =SUMIFS(DATA!AF$3:AF$101,DATA!$F$3:$F$101,$A65,DATA!$B$3:$B$101,$C$2) -> 1.2 | AC65: =SUMIFS(DATA!AG$3:AG$101,DATA!$F$3:$F$101,$A65,DATA!$B$3:$B$101,$C$2) -> 1.2 | AD65: =SUMIFS(DATA!AH$3:AH$101,DATA!$F$3:$F$101,$A65,DATA!$B$3:$B$101,$C$2) -> 1.2 | AE65: =SUMIFS(DATA!AI$3:AI$101,DATA!$F$3:$F$101,$A65,DATA!$B$3:$B$101,$C$2) -> 1.2 | AF65: =SUMIFS(DATA!AJ$3:AJ$101,DATA!$F$3:$F$101,$A65,DATA!$B$3:$B$101,$C$2) -> 1.2 | AG65: =SUMIFS(DATA!AK$3:AK$101,DATA!$F$3:$F$101,$A65,DATA!$B$3:$B$101,$C$2) -> 1.2 | AH65: =SUMIFS(DATA!AL$3:AL$101,DATA!$F$3:$F$101,$A65,DATA!$B$3:$B$101,$C$2) -> 1.2 | AI65: =SUMIFS(DATA!AM$3:AM$101,DATA!$F$3:$F$101,$A65,DATA!$B$3:$B$101,$C$2) -> 1.2 | AJ65: =SUMIFS(DATA!AN$3:AN$101,DATA!$F$3:$F$101,$A65,DATA!$B$3:$B$101,$C$2) -> 1.2 | AK65: =SUMIFS(DATA!AO$3:AO$101,DATA!$F$3:$F$101,$A65,DATA!$B$3:$B$101,$C$2) -> 1.2 | AL65: =SUMIFS(DATA!AP$3:AP$101,DATA!$F$3:$F$101,$A65,DATA!$B$3:$B$101,$C$2) -> 1.2 | AM65: =SUMIFS(DATA!AQ$3:AQ$101,DATA!$F$3:$F$101,$A65,DATA!$B$3:$B$101,$C$2) -> 1.2 | AN65: =SUMIFS(DATA!AR$3:AR$101,DATA!$F$3:$F$101,$A65,DATA!$B$3:$B$101,$C$2) -> 1.2 | AO65: =SUMIFS(DATA!AS$3:AS$101,DATA!$F$3:$F$101,$A65,DATA!$B$3:$B$101,$C$2) -> 1.2 | AP65: =SUMIFS(DATA!AT$3:AT$101,DATA!$F$3:$F$101,$A65,DATA!$B$3:$B$101,$C$2) -> 1.2 | AQ65: =SUMIFS(DATA!AU$3:AU$101,DATA!$F$3:$F$101,$A65,DATA!$B$3:$B$101,$C$2) -> 1.2 | AR65: =SUMIFS(DATA!AV$3:AV$101,DATA!$F$3:$F$101,$A65,DATA!$B$3:$B$101,$C$2) -> 1.2 | AS65: =SUMIFS(DATA!AW$3:AW$101,DATA!$F$3:$F$101,$A65,DATA!$B$3:$B$101,$C$2) -> 1.2 | AT65: =SUMIFS(DATA!AX$3:AX$101,DATA!$F$3:$F$101,$A65,DATA!$B$3:$B$101,$C$2) -> 1.2 | AU65: =SUMIFS(DATA!AY$3:AY$101,DATA!$F$3:$F$101,$A65,DATA!$B$3:$B$101,$C$2) -> 1.2 | AV65: =SUMIFS(DATA!AZ$3:AZ$101,DATA!$F$3:$F$101,$A65,DATA!$B$3:$B$101,$C$2) -> 1.2 | AW65: =SUMIFS(DATA!BA$3:BA$101,DATA!$F$3:$F$101,$A65,DATA!$B$3:$B$101,$C$2) -> 1.2 | AX65: =SUMIFS(DATA!BB$3:BB$101,DATA!$F$3:$F$101,$A65,DATA!$B$3:$B$101,$C$2) -> 1.2 | AY65: =SUMIFS(DATA!BC$3:BC$101,DATA!$F$3:$F$101,$A65,DATA!$B$3:$B$101,$C$2) -> 1.2 | AZ65: =SUMIFS(DATA!BD$3:BD$101,DATA!$F$3:$F$101,$A65,DATA!$B$3:$B$101,$C$2) -> 1.2
A66: Interest Coverage Ratio (approx) | B66: [Formula approx] | C66: =SUM(C46,C32,C132)/SUM(C32,C132) -> 1.092592593 | D66: 1.107545757 | E66: 0.7639663538 | F66: 0.7345659943 | G66: 0.7617615895 | H66: 0.7623992588 | I66: 0.6572509147 | J66: 0.7599273496 | K66: 0.9331073092 | L66: 1.041580398 | M66: 1.072435172 | N66: 1.131715399 | O66: 1.231793114 | P66: 1.245525113 | Q66: 1.17645505 | R66: 1.424894701 | S66: 1.542023595 | T66: 1.720218133 | U66: 1.845470665 | V66: 2.007266217 | W66: 1.2 | X66: 1.200688227 | Y66: 1.20060388 | Z66: 1.200716759 | AA66: 1.200095163 | AB66: 1.199543624 | AC66: 1.200016322 | AD66: 1.199417817 | AE66: 1.199678248 | AF66: 1.199516102 | AG66: 1.199988182 | AH66: 1.20024249 | AI66: =SUM(AI46,AI32,AI132)/SUM(AI32,AI132) -> 1.200209288 | AJ66: 1.2000961 | AK66: 1.200687004 | AL66: 1.200158265 | AM66: 1.199976124 | AN66: 1.20000888 | AO66: 1.200088965 | AP66: =SUM(AP46,AP32,AP132)/SUM(AP32,AP132) -> 1.200644166 | AQ66: 1.200591979 | AR66: 1.200896097 | AS66: 1.200421228 | AT66: 1.200294882 | AU66: 1.200642455 | AV66: 1.200546028 | AW66: 1.199741253 | AX66: 1.199729312 | AY66: 1.20013626 | AZ66: 1.199881294
A67: Capital Coverage Ratio | B67: [Original] | C67: =SUMIFS(DATA!G$3:G$101,DATA!$F$3:$F$101,$A67,DATA!$B$3:$B$101,$C$2) -> 1.09 | D67: =SUMIFS(DATA!H$3:H$101,DATA!$F$3:$F$101,$A67,DATA!$B$3:$B$101,$C$2) -> 0.9 | E67: =SUMIFS(DATA!I$3:I$101,DATA!$F$3:$F$101,$A67,DATA!$B$3:$B$101,$C$2) -> 0.67 | F67: =SUMIFS(DATA!J$3:J$101,DATA!$F$3:$F$101,$A67,DATA!$B$3:$B$101,$C$2) -> 0.76 | G67: =SUMIFS(DATA!K$3:K$101,DATA!$F$3:$F$101,$A67,DATA!$B$3:$B$101,$C$2) -> 0.96 | H67: =SUMIFS(DATA!L$3:L$101,DATA!$F$3:$F$101,$A67,DATA!$B$3:$B$101,$C$2) -> 1.04 | I67: =SUMIFS(DATA!M$3:M$101,DATA!$F$3:$F$101,$A67,DATA!$B$3:$B$101,$C$2) -> 0.76 | J67: =SUMIFS(DATA!N$3:N$101,DATA!$F$3:$F$101,$A67,DATA!$B$3:$B$101,$C$2) -> 1.12 | K67: =SUMIFS(DATA!O$3:O$101,DATA!$F$3:$F$101,$A67,DATA!$B$3:$B$101,$C$2) -> 1.23 | L67: =SUMIFS(DATA!P$3:P$101,DATA!$F$3:$F$101,$A67,DATA!$B$3:$B$101,$C$2) -> 1.33 | M67: =SUMIFS(DATA!Q$3:Q$101,DATA!$F$3:$F$101,$A67,DATA!$B$3:$B$101,$C$2) -> 1.25 | N67: =SUMIFS(DATA!R$3:R$101,DATA!$F$3:$F$101,$A67,DATA!$B$3:$B$101,$C$2) -> 1.32 | O67: =SUMIFS(DATA!S$3:S$101,DATA!$F$3:$F$101,$A67,DATA!$B$3:$B$101,$C$2) -> 1.48 | P67: =SUMIFS(DATA!T$3:T$101,DATA!$F$3:$F$101,$A67,DATA!$B$3:$B$101,$C$2) -> 1.61 | Q67: =SUMIFS(DATA!U$3:U$101,DATA!$F$3:$F$101,$A67,DATA!$B$3:$B$101,$C$2) -> 2.04 | R67: =SUMIFS(DATA!V$3:V$101,DATA!$F$3:$F$101,$A67,DATA!$B$3:$B$101,$C$2) -> 1.96 | S67: =SUMIFS(DATA!W$3:W$101,DATA!$F$3:$F$101,$A67,DATA!$B$3:$B$101,$C$2) -> 1.95 | T67: =SUMIFS(DATA!X$3:X$101,DATA!$F$3:$F$101,$A67,DATA!$B$3:$B$101,$C$2) -> 2.02 | U67: =SUMIFS(DATA!Y$3:Y$101,DATA!$F$3:$F$101,$A67,DATA!$B$3:$B$101,$C$2) -> 2.12 | V67: =SUMIFS(DATA!Z$3:Z$101,DATA!$F$3:$F$101,$A67,DATA!$B$3:$B$101,$C$2) -> 2.67 | W67: =SUMIFS(DATA!AA$3:AA$101,DATA!$F$3:$F$101,$A67,DATA!$B$3:$B$101,$C$2) -> 1.34 | X67: =SUMIFS(DATA!AB$3:AB$101,DATA!$F$3:$F$101,$A67,DATA!$B$3:$B$101,$C$2) -> 1.16 | Y67: =SUMIFS(DATA!AC$3:AC$101,DATA!$F$3:$F$101,$A67,DATA!$B$3:$B$101,$C$2) -> 1.14 | Z67: =SUMIFS(DATA!AD$3:AD$101,DATA!$F$3:$F$101,$A67,DATA!$B$3:$B$101,$C$2) -> 1.11 | AA67: =SUMIFS(DATA!AE$3:AE$101,DATA!$F$3:$F$101,$A67,DATA!$B$3:$B$101,$C$2) -> 1.08 | AB67: =SUMIFS(DATA!AF$3:AF$101,DATA!$F$3:$F$101,$A67,DATA!$B$3:$B$101,$C$2) -> 1.1 | AC67: =SUMIFS(DATA!AG$3:AG$101,DATA!$F$3:$F$101,$A67,DATA!$B$3:$B$101,$C$2) -> 1.07 | AD67: =SUMIFS(DATA!AH$3:AH$101,DATA!$F$3:$F$101,$A67,DATA!$B$3:$B$101,$C$2) -> 1.02 | AE67: =SUMIFS(DATA!AI$3:AI$101,DATA!$F$3:$F$101,$A67,DATA!$B$3:$B$101,$C$2) -> 1 | AF67: =SUMIFS(DATA!AJ$3:AJ$101,DATA!$F$3:$F$101,$A67,DATA!$B$3:$B$101,$C$2) -> 1.01 | AG67: =SUMIFS(DATA!AK$3:AK$101,DATA!$F$3:$F$101,$A67,DATA!$B$3:$B$101,$C$2) -> 1.09 | AH67: =SUMIFS(DATA!AL$3:AL$101,DATA!$F$3:$F$101,$A67,DATA!$B$3:$B$101,$C$2) -> 1.16 | AI67: =SUMIFS(DATA!AM$3:AM$101,DATA!$F$3:$F$101,$A67,DATA!$B$3:$B$101,$C$2) -> 1.15 | AJ67: =SUMIFS(DATA!AN$3:AN$101,DATA!$F$3:$F$101,$A67,DATA!$B$3:$B$101,$C$2) -> 1.04 | AK67: =SUMIFS(DATA!AO$3:AO$101,DATA!$F$3:$F$101,$A67,DATA!$B$3:$B$101,$C$2) -> 1.27 | AL67: =SUMIFS(DATA!AP$3:AP$101,DATA!$F$3:$F$101,$A67,DATA!$B$3:$B$101,$C$2) -> 1.28 | AM67: =SUMIFS(DATA!AQ$3:AQ$101,DATA!$F$3:$F$101,$A67,DATA!$B$3:$B$101,$C$2) -> 1.3 | AN67: =SUMIFS(DATA!AR$3:AR$101,DATA!$F$3:$F$101,$A67,DATA!$B$3:$B$101,$C$2) -> 1.32 | AO67: =SUMIFS(DATA!AS$3:AS$101,DATA!$F$3:$F$101,$A67,DATA!$B$3:$B$101,$C$2) -> 1.28 | AP67: =SUMIFS(DATA!AT$3:AT$101,DATA!$F$3:$F$101,$A67,DATA!$B$3:$B$101,$C$2) -> 1.3 | AQ67: =SUMIFS(DATA!AU$3:AU$101,DATA!$F$3:$F$101,$A67,DATA!$B$3:$B$101,$C$2) -> 1.3 | AR67: =SUMIFS(DATA!AV$3:AV$101,DATA!$F$3:$F$101,$A67,DATA!$B$3:$B$101,$C$2) -> 1.35 | AS67: =SUMIFS(DATA!AW$3:AW$101,DATA!$F$3:$F$101,$A67,DATA!$B$3:$B$101,$C$2) -> 1.35 | AT67: =SUMIFS(DATA!AX$3:AX$101,DATA!$F$3:$F$101,$A67,DATA!$B$3:$B$101,$C$2) -> 1.35 | AU67: =SUMIFS(DATA!AY$3:AY$101,DATA!$F$3:$F$101,$A67,DATA!$B$3:$B$101,$C$2) -> 1.36 | AV67: =SUMIFS(DATA!AZ$3:AZ$101,DATA!$F$3:$F$101,$A67,DATA!$B$3:$B$101,$C$2) -> 1.36 | AW67: =SUMIFS(DATA!BA$3:BA$101,DATA!$F$3:$F$101,$A67,DATA!$B$3:$B$101,$C$2) -> 1.36 | AX67: =SUMIFS(DATA!BB$3:BB$101,DATA!$F$3:$F$101,$A67,DATA!$B$3:$B$101,$C$2) -> 1.37 | AY67: =SUMIFS(DATA!BC$3:BC$101,DATA!$F$3:$F$101,$A67,DATA!$B$3:$B$101,$C$2) -> 1.38 | AZ67: =SUMIFS(DATA!BD$3:BD$101,DATA!$F$3:$F$101,$A67,DATA!$B$3:$B$101,$C$2) -> 1.4
A68: Capital Coverage Ratio | B68: [Formula] | C68: =C107/C129 -> 1.092378753 | D68: =D107/D129 -> 0.9023941068 | E68: 0.6707317073 | F68: 0.758490566 | G68: 0.9637681159 | H68: 1.044692737 | I68: 0.7573529412 | J68: 1.123563218 | K68: 1.235148515 | L68: 1.338636364 | M68: 1.245614035 | N68: 1.314606742 | O68: 1.482109228 | P68: 1.616 | Q68: 2.044742729 | R68: 1.96484375 | S68: 1.949820789 | T68: 2.02027027 | U68: 2.123397436 | V68: 2.671028037 | W68: 1.338658147 | X68: 1.16066482 | Y68: 1.14119171 | Z68: 1.108776267 | AA68: 1.078823529 | AB68: 1.098544233 | AC68: 1.066098081 | AD68: 1.024120603 | AE68: 0.9953358209 | AF68: 1.008341057 | AG68: 1.095595127 | AH68: 1.156007752 | AI68: 1.147086031 | AJ68: 1.040387722 | AK68: 1.266283525 | AL68: 1.285033365 | AM68: 1.300094967 | AN68: 1.32166509 | AO68: 1.284858854 | AP68: 1.300675676 | AQ68: 1.297004992 | AR68: 1.345306122 | AS68: 1.349358974 | AT68: 1.34827044 | AU68: 1.356481481 | AV68: 1.35530303 | AW68: 1.357355126 | AX68: 1.372720642 | AY68: 1.381531854 | AZ68: 1.396067416
A70: PROJECTED BALANCE SHEET
A72: ASSETS
A74: Plant in Service | C74: =SUMIFS(DATA!G$3:G$101,DATA!$F$3:$F$101,$A74,DATA!$B$3:$B$101,$C$2) -> 15374 | D74: =SUMIFS(DATA!H$3:H$101,DATA!$F$3:$F$101,$A74,DATA!$B$3:$B$101,$C$2) -> 16436 | E74: =SUMIFS(DATA!I$3:I$101,DATA!$F$3:$F$101,$A74,DATA!$B$3:$B$101,$C$2) -> 18685 | F74: =SUMIFS(DATA!J$3:J$101,DATA!$F$3:$F$101,$A74,DATA!$B$3:$B$101,$C$2) -> 19839 | G74: =SUMIFS(DATA!K$3:K$101,DATA!$F$3:$F$101,$A74,DATA!$B$3:$B$101,$C$2) -> 20398 | H74: =SUMIFS(DATA!L$3:L$101,DATA!$F$3:$F$101,$A74,DATA!$B$3:$B$101,$C$2) -> 23980 | I74: =SUMIFS(DATA!M$3:M$101,DATA!$F$3:$F$101,$A74,DATA!$B$3:$B$101,$C$2) -> 24407 | J74: =SUMIFS(DATA!N$3:N$101,DATA!$F$3:$F$101,$A74,DATA!$B$3:$B$101,$C$2) -> 24800 | K74: =SUMIFS(DATA!O$3:O$101,DATA!$F$3:$F$101,$A74,DATA!$B$3:$B$101,$C$2) -> 25342 | L74: =SUMIFS(DATA!P$3:P$101,DATA!$F$3:$F$101,$A74,DATA!$B$3:$B$101,$C$2) -> 25938 | M74: =SUMIFS(DATA!Q$3:Q$101,DATA!$F$3:$F$101,$A74,DATA!$B$3:$B$101,$C$2) -> 26692 | N74: =SUMIFS(DATA!R$3:R$101,DATA!$F$3:$F$101,$A74,DATA!$B$3:$B$101,$C$2) -> 27257 | O74: =SUMIFS(DATA!S$3:S$101,DATA!$F$3:$F$101,$A74,DATA!$B$3:$B$101,$C$2) -> 28038 | P74: =SUMIFS(DATA!T$3:T$101,DATA!$F$3:$F$101,$A74,DATA!$B$3:$B$101,$C$2) -> 28877 | Q74: =SUMIFS(DATA!U$3:U$101,DATA!$F$3:$F$101,$A74,DATA!$B$3:$B$101,$C$2) -> 29539 | R74: =SUMIFS(DATA!V$3:V$101,DATA!$F$3:$F$101,$A74,DATA!$B$3:$B$101,$C$2) -> 30026 | S74: =SUMIFS(DATA!W$3:W$101,DATA!$F$3:$F$101,$A74,DATA!$B$3:$B$101,$C$2) -> 31028 | T74: =SUMIFS(DATA!X$3:X$101,DATA!$F$3:$F$101,$A74,DATA!$B$3:$B$101,$C$2) -> 31581 | U74: =SUMIFS(DATA!Y$3:Y$101,DATA!$F$3:$F$101,$A74,DATA!$B$3:$B$101,$C$2) -> 33575 | V74: =SUMIFS(DATA!Z$3:Z$101,DATA!$F$3:$F$101,$A74,DATA!$B$3:$B$101,$C$2) -> 35016 | W74: =SUMIFS(DATA!AA$3:AA$101,DATA!$F$3:$F$101,$A74,DATA!$B$3:$B$101,$C$2) -> 35698 | X74: =SUMIFS(DATA!AB$3:AB$101,DATA!$F$3:$F$101,$A74,DATA!$B$3:$B$101,$C$2) -> 37132 | Y74: =SUMIFS(DATA!AC$3:AC$101,DATA!$F$3:$F$101,$A74,DATA!$B$3:$B$101,$C$2) -> 37949 | Z74: =SUMIFS(DATA!AD$3:AD$101,DATA!$F$3:$F$101,$A74,DATA!$B$3:$B$101,$C$2) -> 38489 | AA74: =SUMIFS(DATA!AE$3:AE$101,DATA!$F$3:$F$101,$A74,DATA!$B$3:$B$101,$C$2) -> 39811 | AB74: =SUMIFS(DATA!AF$3:AF$101,DATA!$F$3:$F$101,$A74,DATA!$B$3:$B$101,$C$2) -> 41216 | AC74: =SUMIFS(DATA!AG$3:AG$101,DATA!$F$3:$F$101,$A74,DATA!$B$3:$B$101,$C$2) -> 41819 | AD74: =SUMIFS(DATA!AH$3:AH$101,DATA!$F$3:$F$101,$A74,DATA!$B$3:$B$101,$C$2) -> 42813 | AE74: =SUMIFS(DATA!AI$3:AI$101,DATA!$F$3:$F$101,$A74,DATA!$B$3:$B$101,$C$2) -> 44358 | AF74: =SUMIFS(DATA!AJ$3:AJ$101,DATA!$F$3:$F$101,$A74,DATA!$B$3:$B$101,$C$2) -> 46695 | AG74: =SUMIFS(DATA!AK$3:AK$101,DATA!$F$3:$F$101,$A74,DATA!$B$3:$B$101,$C$2) -> 47370 | AH74: =SUMIFS(DATA!AL$3:AL$101,DATA!$F$3:$F$101,$A74,DATA!$B$3:$B$101,$C$2) -> 48166 | AI74: =SUMIFS(DATA!AM$3:AM$101,DATA!$F$3:$F$101,$A74,DATA!$B$3:$B$101,$C$2) -> 50790 | AJ74: =SUMIFS(DATA!AN$3:AN$101,DATA!$F$3:$F$101,$A74,DATA!$B$3:$B$101,$C$2) -> 52041 | AK74: =SUMIFS(DATA!AO$3:AO$101,DATA!$F$3:$F$101,$A74,DATA!$B$3:$B$101,$C$2) -> 52713 | AL74: =SUMIFS(DATA!AP$3:AP$101,DATA!$F$3:$F$101,$A74,DATA!$B$3:$B$101,$C$2) -> 53909 | AM74: =SUMIFS(DATA!AQ$3:AQ$101,DATA!$F$3:$F$101,$A74,DATA!$B$3:$B$101,$C$2) -> 54609 | AN74: =SUMIFS(DATA!AR$3:AR$101,DATA!$F$3:$F$101,$A74,DATA!$B$3:$B$101,$C$2) -> 57300 | AO74: =SUMIFS(DATA!AS$3:AS$101,DATA!$F$3:$F$101,$A74,DATA!$B$3:$B$101,$C$2) -> 58533 | AP74: =SUMIFS(DATA!AT$3:AT$101,DATA!$F$3:$F$101,$A74,DATA!$B$3:$B$101,$C$2) -> 59902 | AQ74: =SUMIFS(DATA!AU$3:AU$101,DATA!$F$3:$F$101,$A74,DATA!$B$3:$B$101,$C$2) -> 61666 | AR74: =SUMIFS(DATA!AV$3:AV$101,DATA!$F$3:$F$101,$A74,DATA!$B$3:$B$101,$C$2) -> 63072 | AS74: =SUMIFS(DATA!AW$3:AW$101,DATA!$F$3:$F$101,$A74,DATA!$B$3:$B$101,$C$2) -> 64431 | AT74: =SUMIFS(DATA!AX$3:AX$101,DATA!$F$3:$F$101,$A74,DATA!$B$3:$B$101,$C$2) -> 66237 | AU74: =SUMIFS(DATA!AY$3:AY$101,DATA!$F$3:$F$101,$A74,DATA!$B$3:$B$101,$C$2) -> 67595 | AV74: =SUMIFS(DATA!AZ$3:AZ$101,DATA!$F$3:$F$101,$A74,DATA!$B$3:$B$101,$C$2) -> 68957 | AW74: =SUMIFS(DATA!BA$3:BA$101,DATA!$F$3:$F$101,$A74,DATA!$B$3:$B$101,$C$2) -> 70797 | AX74: =SUMIFS(DATA!BB$3:BB$101,DATA!$F$3:$F$101,$A74,DATA!$B$3:$B$101,$C$2) -> 72342 | AY74: =SUMIFS(DATA!BC$3:BC$101,DATA!$F$3:$F$101,$A74,DATA!$B$3:$B$101,$C$2) -> 73784 | AZ74: =SUMIFS(DATA!BD$3:BD$101,DATA!$F$3:$F$101,$A74,DATA!$B$3:$B$101,$C$2) -> 76630
A75: Accumulated Depreciation | C75: =SUMIFS(DATA!G$3:G$101,DATA!$F$3:$F$101,$A75,DATA!$B$3:$B$101,$C$2) -> 5173 | D75: =SUMIFS(DATA!H$3:H$101,DATA!$F$3:$F$101,$A75,DATA!$B$3:$B$101,$C$2) -> 5536 | E75: =SUMIFS(DATA!I$3:I$101,DATA!$F$3:$F$101,$A75,DATA!$B$3:$B$101,$C$2) -> 5922 | F75: =SUMIFS(DATA!J$3:J$101,DATA!$F$3:$F$101,$A75,DATA!$B$3:$B$101,$C$2) -> 6377 | G75: =SUMIFS(DATA!K$3:K$101,DATA!$F$3:$F$101,$A75,DATA!$B$3:$B$101,$C$2) -> 6853 | H75: =SUMIFS(DATA!L$3:L$101,DATA!$F$3:$F$101,$A75,DATA!$B$3:$B$101,$C$2) -> 7357 | I75: =SUMIFS(DATA!M$3:M$101,DATA!$F$3:$F$101,$A75,DATA!$B$3:$B$101,$C$2) -> 7897 | J75: =SUMIFS(DATA!N$3:N$101,DATA!$F$3:$F$101,$A75,DATA!$B$3:$B$101,$C$2) -> 8434 | K75: =SUMIFS(DATA!O$3:O$101,DATA!$F$3:$F$101,$A75,DATA!$B$3:$B$101,$C$2) -> 8968 | L75: =SUMIFS(DATA!P$3:P$101,DATA!$F$3:$F$101,$A75,DATA!$B$3:$B$101,$C$2) -> 9515 | M75: =SUMIFS(DATA!Q$3:Q$101,DATA!$F$3:$F$101,$A75,DATA!$B$3:$B$101,$C$2) -> 10075 | N75: =SUMIFS(DATA!R$3:R$101,DATA!$F$3:$F$101,$A75,DATA!$B$3:$B$101,$C$2) -> 10637 | O75: =SUMIFS(DATA!S$3:S$101,DATA!$F$3:$F$101,$A75,DATA!$B$3:$B$101,$C$2) -> 11205 | P75: =SUMIFS(DATA!T$3:T$101,DATA!$F$3:$F$101,$A75,DATA!$B$3:$B$101,$C$2) -> 11790 | Q75: =SUMIFS(DATA!U$3:U$101,DATA!$F$3:$F$101,$A75,DATA!$B$3:$B$101,$C$2) -> 12384 | R75: =SUMIFS(DATA!V$3:V$101,DATA!$F$3:$F$101,$A75,DATA!$B$3:$B$101,$C$2) -> 12978 | S75: =SUMIFS(DATA!W$3:W$101,DATA!$F$3:$F$101,$A75,DATA!$B$3:$B$101,$C$2) -> 13581 | T75: =SUMIFS(DATA!X$3:X$101,DATA!$F$3:$F$101,$A75,DATA!$B$3:$B$101,$C$2) -> 14194 | U75: =SUMIFS(DATA!Y$3:Y$101,DATA!$F$3:$F$101,$A75,DATA!$B$3:$B$101,$C$2) -> 14833 | V75: =SUMIFS(DATA!Z$3:Z$101,DATA!$F$3:$F$101,$A75,DATA!$B$3:$B$101,$C$2) -> 15501 | W75: =SUMIFS(DATA!AA$3:AA$101,DATA!$F$3:$F$101,$A75,DATA!$B$3:$B$101,$C$2) -> 16104 | X75: =SUMIFS(DATA!AB$3:AB$101,DATA!$F$3:$F$101,$A75,DATA!$B$3:$B$101,$C$2) -> 16691 | Y75: =SUMIFS(DATA!AC$3:AC$101,DATA!$F$3:$F$101,$A75,DATA!$B$3:$B$101,$C$2) -> 17311 | Z75: =SUMIFS(DATA!AD$3:AD$101,DATA!$F$3:$F$101,$A75,DATA!$B$3:$B$101,$C$2) -> 17937 | AA75: =SUMIFS(DATA!AE$3:AE$101,DATA!$F$3:$F$101,$A75,DATA!$B$3:$B$101,$C$2) -> 18569 | AB75: =SUMIFS(DATA!AF$3:AF$101,DATA!$F$3:$F$101,$A75,DATA!$B$3:$B$101,$C$2) -> 19255 | AC75: =SUMIFS(DATA!AG$3:AG$101,DATA!$F$3:$F$101,$A75,DATA!$B$3:$B$101,$C$2) -> 19951 | AD75: =SUMIFS(DATA!AH$3:AH$101,DATA!$F$3:$F$101,$A75,DATA!$B$3:$B$101,$C$2) -> 20653 | AE75: =SUMIFS(DATA!AI$3:AI$101,DATA!$F$3:$F$101,$A75,DATA!$B$3:$B$101,$C$2) -> 21392 | AF75: =SUMIFS(DATA!AJ$3:AJ$101,DATA!$F$3:$F$101,$A75,DATA!$B$3:$B$101,$C$2) -> 22144 | AG75: =SUMIFS(DATA!AK$3:AK$101,DATA!$F$3:$F$101,$A75,DATA!$B$3:$B$101,$C$2) -> 22963 | AH75: =SUMIFS(DATA!AL$3:AL$101,DATA!$F$3:$F$101,$A75,DATA!$B$3:$B$101,$C$2) -> 23792 | AI75: =SUMIFS(DATA!AM$3:AM$101,DATA!$F$3:$F$101,$A75,DATA!$B$3:$B$101,$C$2) -> 24657 | AJ75: =SUMIFS(DATA!AN$3:AN$101,DATA!$F$3:$F$101,$A75,DATA!$B$3:$B$101,$C$2) -> 25568 | AK75: =SUMIFS(DATA!AO$3:AO$101,DATA!$F$3:$F$101,$A75,DATA!$B$3:$B$101,$C$2) -> 26497 | AL75: =SUMIFS(DATA!AP$3:AP$101,DATA!$F$3:$F$101,$A75,DATA!$B$3:$B$101,$C$2) -> 27444 | AM75: =SUMIFS(DATA!AQ$3:AQ$101,DATA!$F$3:$F$101,$A75,DATA!$B$3:$B$101,$C$2) -> 28415 | AN75: =SUMIFS(DATA!AR$3:AR$101,DATA!$F$3:$F$101,$A75,DATA!$B$3:$B$101,$C$2) -> 29401 | AO75: =SUMIFS(DATA!AS$3:AS$101,DATA!$F$3:$F$101,$A75,DATA!$B$3:$B$101,$C$2) -> 30474 | AP75: =SUMIFS(DATA!AT$3:AT$101,DATA!$F$3:$F$101,$A75,DATA!$B$3:$B$101,$C$2) -> 31572 | AQ75: =SUMIFS(DATA!AU$3:AU$101,DATA!$F$3:$F$101,$A75,DATA!$B$3:$B$101,$C$2) -> 32679 | AR75: =SUMIFS(DATA!AV$3:AV$101,DATA!$F$3:$F$101,$A75,DATA!$B$3:$B$101,$C$2) -> 33865 | AS75: =SUMIFS(DATA!AW$3:AW$101,DATA!$F$3:$F$101,$A75,DATA!$B$3:$B$101,$C$2) -> 35087 | AT75: =SUMIFS(DATA!AX$3:AX$101,DATA!$F$3:$F$101,$A75,DATA!$B$3:$B$101,$C$2) -> 36344 | AU75: =SUMIFS(DATA!AY$3:AY$101,DATA!$F$3:$F$101,$A75,DATA!$B$3:$B$101,$C$2) -> 37647 | AV75: =SUMIFS(DATA!AZ$3:AZ$101,DATA!$F$3:$F$101,$A75,DATA!$B$3:$B$101,$C$2) -> 38970 | AW75: =SUMIFS(DATA!BA$3:BA$101,DATA!$F$3:$F$101,$A75,DATA!$B$3:$B$101,$C$2) -> 40337 | AX75: =SUMIFS(DATA!BB$3:BB$101,DATA!$F$3:$F$101,$A75,DATA!$B$3:$B$101,$C$2) -> 41751 | AY75: =SUMIFS(DATA!BC$3:BC$101,DATA!$F$3:$F$101,$A75,DATA!$B$3:$B$101,$C$2) -> 43211 | AZ75: =SUMIFS(DATA!BD$3:BD$101,DATA!$F$3:$F$101,$A75,DATA!$B$3:$B$101,$C$2) -> 44729
A77: Net Plant in Service | C77: =C74-C75 -> 10201 | D77: =D74-D75 -> 10900 | E77: 12763 | F77: 13462 | G77: 13545 | H77: 16623 | I77: 16510 | J77: 16366 | K77: 16374 | L77: 16423 | M77: 16617 | N77: 16620 | O77: 16833 | P77: 17087 | Q77: 17155 | R77: 17048 | S77: 17447 | T77: 17387 | U77: 18742 | V77: 19515 | W77: 19594 | X77: 20441 | Y77: 20638 | Z77: 20552 | AA77: 21242 | AB77: 21961 | AC77: 21868 | AD77: 22160 | AE77: 22966 | AF77: 24551 | AG77: 24407 | AH77: 24374 | AI77: 26133 | AJ77: 26473 | AK77: 26216 | AL77: 26465 | AM77: 26194 | AN77: 27899 | AO77: 28059 | AP77: 28330 | AQ77: 28987 | AR77: 29207 | AS77: 29344 | AT77: 29893 | AU77: 29948 | AV77: 29987 | AW77: 30460 | AX77: 30591 | AY77: 30573 | AZ77: 31901
A79: Construction in Progress | C79: =SUMIFS(DATA!G$3:G$101,DATA!$F$3:$F$101,$A79,DATA!$B$3:$B$101,$C$2) -> 2106 | D79: =SUMIFS(DATA!H$3:H$101,DATA!$F$3:$F$101,$A79,DATA!$B$3:$B$101,$C$2) -> 2867 | E79: =SUMIFS(DATA!I$3:I$101,DATA!$F$3:$F$101,$A79,DATA!$B$3:$B$101,$C$2) -> 2331 | F79: =SUMIFS(DATA!J$3:J$101,DATA!$F$3:$F$101,$A79,DATA!$B$3:$B$101,$C$2) -> 2516 | G79: =SUMIFS(DATA!K$3:K$101,DATA!$F$3:$F$101,$A79,DATA!$B$3:$B$101,$C$2) -> 3042 | H79: =SUMIFS(DATA!L$3:L$101,DATA!$F$3:$F$101,$A79,DATA!$B$3:$B$101,$C$2) -> 167 | I79: =SUMIFS(DATA!M$3:M$101,DATA!$F$3:$F$101,$A79,DATA!$B$3:$B$101,$C$2) -> 219 | J79: =SUMIFS(DATA!N$3:N$101,DATA!$F$3:$F$101,$A79,DATA!$B$3:$B$101,$C$2) -> 243 | K79: =SUMIFS(DATA!O$3:O$101,DATA!$F$3:$F$101,$A79,DATA!$B$3:$B$101,$C$2) -> 286 | L79: =SUMIFS(DATA!P$3:P$101,DATA!$F$3:$F$101,$A79,DATA!$B$3:$B$101,$C$2) -> 406 | M79: =SUMIFS(DATA!Q$3:Q$101,DATA!$F$3:$F$101,$A79,DATA!$B$3:$B$101,$C$2) -> 293 | N79: =SUMIFS(DATA!R$3:R$101,DATA!$F$3:$F$101,$A79,DATA!$B$3:$B$101,$C$2) -> 459 | O79: =SUMIFS(DATA!S$3:S$101,DATA!$F$3:$F$101,$A79,DATA!$B$3:$B$101,$C$2) -> 548 | P79: =SUMIFS(DATA!T$3:T$101,DATA!$F$3:$F$101,$A79,DATA!$B$3:$B$101,$C$2) -> 408 | Q79: =SUMIFS(DATA!U$3:U$101,DATA!$F$3:$F$101,$A79,DATA!$B$3:$B$101,$C$2) -> 509 | R79: =SUMIFS(DATA!V$3:V$101,DATA!$F$3:$F$101,$A79,DATA!$B$3:$B$101,$C$2) -> 979 | S79: =SUMIFS(DATA!W$3:W$101,DATA!$F$3:$F$101,$A79,DATA!$B$3:$B$101,$C$2) -> 1282 | T79: =SUMIFS(DATA!X$3:X$101,DATA!$F$3:$F$101,$A79,DATA!$B$3:$B$101,$C$2) -> 2038 | U79: =SUMIFS(DATA!Y$3:Y$101,DATA!$F$3:$F$101,$A79,DATA!$B$3:$B$101,$C$2) -> 1167 | V79: =SUMIFS(DATA!Z$3:Z$101,DATA!$F$3:$F$101,$A79,DATA!$B$3:$B$101,$C$2) -> 545 | W79: =SUMIFS(DATA!AA$3:AA$101,DATA!$F$3:$F$101,$A79,DATA!$B$3:$B$101,$C$2) -> 752 | X79: =SUMIFS(DATA!AB$3:AB$101,DATA!$F$3:$F$101,$A79,DATA!$B$3:$B$101,$C$2) -> 376 | Y79: =SUMIFS(DATA!AC$3:AC$101,DATA!$F$3:$F$101,$A79,DATA!$B$3:$B$101,$C$2) -> 633 | Z79: =SUMIFS(DATA!AD$3:AD$101,DATA!$F$3:$F$101,$A79,DATA!$B$3:$B$101,$C$2) -> 1307 | AA79: =SUMIFS(DATA!AE$3:AE$101,DATA!$F$3:$F$101,$A79,DATA!$B$3:$B$101,$C$2) -> 1070 | AB79: =SUMIFS(DATA!AF$3:AF$101,DATA!$F$3:$F$101,$A79,DATA!$B$3:$B$101,$C$2) -> 877 | AC79: =SUMIFS(DATA!AG$3:AG$101,DATA!$F$3:$F$101,$A79,DATA!$B$3:$B$101,$C$2) -> 1646 | AD79: =SUMIFS(DATA!AH$3:AH$101,DATA!$F$3:$F$101,$A79,DATA!$B$3:$B$101,$C$2) -> 1899 | AE79: =SUMIFS(DATA!AI$3:AI$101,DATA!$F$3:$F$101,$A79,DATA!$B$3:$B$101,$C$2) -> 1489 | AF79: =SUMIFS(DATA!AJ$3:AJ$101,DATA!$F$3:$F$101,$A79,DATA!$B$3:$B$101,$C$2) -> 553 | AG79: =SUMIFS(DATA!AK$3:AK$101,DATA!$F$3:$F$101,$A79,DATA!$B$3:$B$101,$C$2) -> 1425 | AH79: =SUMIFS(DATA!AL$3:AL$101,DATA!$F$3:$F$101,$A79,DATA!$B$3:$B$101,$C$2) -> 2043 | AI79: =SUMIFS(DATA!AM$3:AM$101,DATA!$F$3:$F$101,$A79,DATA!$B$3:$B$101,$C$2) -> 566 | AJ79: =SUMIFS(DATA!AN$3:AN$101,DATA!$F$3:$F$101,$A79,DATA!$B$3:$B$101,$C$2) -> 662 | AK79: =SUMIFS(DATA!AO$3:AO$101,DATA!$F$3:$F$101,$A79,DATA!$B$3:$B$101,$C$2) -> 1239 | AL79: =SUMIFS(DATA!AP$3:AP$101,DATA!$F$3:$F$101,$A79,DATA!$B$3:$B$101,$C$2) -> 1212 | AM79: =SUMIFS(DATA!AQ$3:AQ$101,DATA!$F$3:$F$101,$A79,DATA!$B$3:$B$101,$C$2) -> 1651 | AN79: =SUMIFS(DATA!AR$3:AR$101,DATA!$F$3:$F$101,$A79,DATA!$B$3:$B$101,$C$2) -> 134 | AO79: =SUMIFS(DATA!AS$3:AS$101,DATA!$F$3:$F$101,$A79,DATA!$B$3:$B$101,$C$2) -> 297 | AP79: =SUMIFS(DATA!AT$3:AT$101,DATA!$F$3:$F$101,$A79,DATA!$B$3:$B$101,$C$2) -> 439 | AQ79: =SUMIFS(DATA!AU$3:AU$101,DATA!$F$3:$F$101,$A79,DATA!$B$3:$B$101,$C$2) -> 19 | AR79: =SUMIFS(DATA!AV$3:AV$101,DATA!$F$3:$F$101,$A79,DATA!$B$3:$B$101,$C$2) -> 178 | AS79: =SUMIFS(DATA!AW$3:AW$101,DATA!$F$3:$F$101,$A79,DATA!$B$3:$B$101,$C$2) -> 407 | AT79: =SUMIFS(DATA!AX$3:AX$101,DATA!$F$3:$F$101,$A79,DATA!$B$3:$B$101,$C$2) -> 25 | AU79: =SUMIFS(DATA!AY$3:AY$101,DATA!$F$3:$F$101,$A79,DATA!$B$3:$B$101,$C$2) -> 196 | AV79: =SUMIFS(DATA!AZ$3:AZ$101,DATA!$F$3:$F$101,$A79,DATA!$B$3:$B$101,$C$2) -> 442 | AW79: =SUMIFS(DATA!BA$3:BA$101,DATA!$F$3:$F$101,$A79,DATA!$B$3:$B$101,$C$2) -> 395 | AX79: =SUMIFS(DATA!BB$3:BB$101,DATA!$F$3:$F$101,$A79,DATA!$B$3:$B$101,$C$2) -> 954 | AY79: =SUMIFS(DATA!BC$3:BC$101,DATA!$F$3:$F$101,$A79,DATA!$B$3:$B$101,$C$2) -> 1256 | AZ79: =SUMIFS(DATA!BD$3:BD$101,DATA!$F$3:$F$101,$A79,DATA!$B$3:$B$101,$C$2) -> -89
A80: Current and Other Assets | C80: =SUMIFS(DATA!G$3:G$101,DATA!$F$3:$F$101,$A80,DATA!$B$3:$B$101,$C$2) -> 1869 | D80: =SUMIFS(DATA!H$3:H$101,DATA!$F$3:$F$101,$A80,DATA!$B$3:$B$101,$C$2) -> 1735 | E80: =SUMIFS(DATA!I$3:I$101,DATA!$F$3:$F$101,$A80,DATA!$B$3:$B$101,$C$2) -> 1386 | F80: =SUMIFS(DATA!J$3:J$101,DATA!$F$3:$F$101,$A80,DATA!$B$3:$B$101,$C$2) -> 1570 | G80: =SUMIFS(DATA!K$3:K$101,DATA!$F$3:$F$101,$A80,DATA!$B$3:$B$101,$C$2) -> 1767 | H80: =SUMIFS(DATA!L$3:L$101,DATA!$F$3:$F$101,$A80,DATA!$B$3:$B$101,$C$2) -> 2006 | I80: =SUMIFS(DATA!M$3:M$101,DATA!$F$3:$F$101,$A80,DATA!$B$3:$B$101,$C$2) -> 1784 | J80: =SUMIFS(DATA!N$3:N$101,DATA!$F$3:$F$101,$A80,DATA!$B$3:$B$101,$C$2) -> 1843 | K80: =SUMIFS(DATA!O$3:O$101,DATA!$F$3:$F$101,$A80,DATA!$B$3:$B$101,$C$2) -> 1829 | L80: =SUMIFS(DATA!P$3:P$101,DATA!$F$3:$F$101,$A80,DATA!$B$3:$B$101,$C$2) -> 1450 | M80: =SUMIFS(DATA!Q$3:Q$101,DATA!$F$3:$F$101,$A80,DATA!$B$3:$B$101,$C$2) -> 1470 | N80: =SUMIFS(DATA!R$3:R$101,DATA!$F$3:$F$101,$A80,DATA!$B$3:$B$101,$C$2) -> 1662 | O80: =SUMIFS(DATA!S$3:S$101,DATA!$F$3:$F$101,$A80,DATA!$B$3:$B$101,$C$2) -> 1798 | P80: =SUMIFS(DATA!T$3:T$101,DATA!$F$3:$F$101,$A80,DATA!$B$3:$B$101,$C$2) -> 1741 | Q80: =SUMIFS(DATA!U$3:U$101,DATA!$F$3:$F$101,$A80,DATA!$B$3:$B$101,$C$2) -> 1847 | R80: =SUMIFS(DATA!V$3:V$101,DATA!$F$3:$F$101,$A80,DATA!$B$3:$B$101,$C$2) -> 1964 | S80: =SUMIFS(DATA!W$3:W$101,DATA!$F$3:$F$101,$A80,DATA!$B$3:$B$101,$C$2) -> 2146 | T80: =SUMIFS(DATA!X$3:X$101,DATA!$F$3:$F$101,$A80,DATA!$B$3:$B$101,$C$2) -> 1983 | U80: =SUMIFS(DATA!Y$3:Y$101,DATA!$F$3:$F$101,$A80,DATA!$B$3:$B$101,$C$2) -> 1590 | V80: =SUMIFS(DATA!Z$3:Z$101,DATA!$F$3:$F$101,$A80,DATA!$B$3:$B$101,$C$2) -> 2133 | W80: =SUMIFS(DATA!AA$3:AA$101,DATA!$F$3:$F$101,$A80,DATA!$B$3:$B$101,$C$2) -> 1792 | X80: =SUMIFS(DATA!AB$3:AB$101,DATA!$F$3:$F$101,$A80,DATA!$B$3:$B$101,$C$2) -> 1676 | Y80: =SUMIFS(DATA!AC$3:AC$101,DATA!$F$3:$F$101,$A80,DATA!$B$3:$B$101,$C$2) -> 1469 | Z80: =SUMIFS(DATA!AD$3:AD$101,DATA!$F$3:$F$101,$A80,DATA!$B$3:$B$101,$C$2) -> 1526 | AA80: =SUMIFS(DATA!AE$3:AE$101,DATA!$F$3:$F$101,$A80,DATA!$B$3:$B$101,$C$2) -> 1382 | AB80: =SUMIFS(DATA!AF$3:AF$101,DATA!$F$3:$F$101,$A80,DATA!$B$3:$B$101,$C$2) -> 1221 | AC80: =SUMIFS(DATA!AG$3:AG$101,DATA!$F$3:$F$101,$A80,DATA!$B$3:$B$101,$C$2) -> 1236 | AD80: =SUMIFS(DATA!AH$3:AH$101,DATA!$F$3:$F$101,$A80,DATA!$B$3:$B$101,$C$2) -> 1125 | AE80: =SUMIFS(DATA!AI$3:AI$101,DATA!$F$3:$F$101,$A80,DATA!$B$3:$B$101,$C$2) -> 1076 | AF80: =SUMIFS(DATA!AJ$3:AJ$101,DATA!$F$3:$F$101,$A80,DATA!$B$3:$B$101,$C$2) -> 1001 | AG80: =SUMIFS(DATA!AK$3:AK$101,DATA!$F$3:$F$101,$A80,DATA!$B$3:$B$101,$C$2) -> 928 | AH80: =SUMIFS(DATA!AL$3:AL$101,DATA!$F$3:$F$101,$A80,DATA!$B$3:$B$101,$C$2) -> 989 | AI80: =SUMIFS(DATA!AM$3:AM$101,DATA!$F$3:$F$101,$A80,DATA!$B$3:$B$101,$C$2) -> 1101 | AJ80: =SUMIFS(DATA!AN$3:AN$101,DATA!$F$3:$F$101,$A80,DATA!$B$3:$B$101,$C$2) -> 796 | AK80: =SUMIFS(DATA!AO$3:AO$101,DATA!$F$3:$F$101,$A80,DATA!$B$3:$B$101,$C$2) -> 893 | AL80: =SUMIFS(DATA!AP$3:AP$101,DATA!$F$3:$F$101,$A80,DATA!$B$3:$B$101,$C$2) -> 989 | AM80: =SUMIFS(DATA!AQ$3:AQ$101,DATA!$F$3:$F$101,$A80,DATA!$B$3:$B$101,$C$2) -> 431 | AN80: =SUMIFS(DATA!AR$3:AR$101,DATA!$F$3:$F$101,$A80,DATA!$B$3:$B$101,$C$2) -> 143 | AO80: =SUMIFS(DATA!AS$3:AS$101,DATA!$F$3:$F$101,$A80,DATA!$B$3:$B$101,$C$2) -> 137 | AP80: =SUMIFS(DATA!AT$3:AT$101,DATA!$F$3:$F$101,$A80,DATA!$B$3:$B$101,$C$2) -> 128 | AQ80: =SUMIFS(DATA!AU$3:AU$101,DATA!$F$3:$F$101,$A80,DATA!$B$3:$B$101,$C$2) -> 79 | AR80: =SUMIFS(DATA!AV$3:AV$101,DATA!$F$3:$F$101,$A80,DATA!$B$3:$B$101,$C$2) -> -328 | AS80: =SUMIFS(DATA!AW$3:AW$101,DATA!$F$3:$F$101,$A80,DATA!$B$3:$B$101,$C$2) -> -660 | AT80: =SUMIFS(DATA!AX$3:AX$101,DATA!$F$3:$F$101,$A80,DATA!$B$3:$B$101,$C$2) -> -785 | AU80: =SUMIFS(DATA!AY$3:AY$101,DATA!$F$3:$F$101,$A80,DATA!$B$3:$B$101,$C$2) -> -1172 | AV80: =SUMIFS(DATA!AZ$3:AZ$101,DATA!$F$3:$F$101,$A80,DATA!$B$3:$B$101,$C$2) -> -1241 | AW80: =SUMIFS(DATA!BA$3:BA$101,DATA!$F$3:$F$101,$A80,DATA!$B$3:$B$101,$C$2) -> -1451 | AX80: =SUMIFS(DATA!BB$3:BB$101,DATA!$F$3:$F$101,$A80,DATA!$B$3:$B$101,$C$2) -> -1644 | AY80: =SUMIFS(DATA!BC$3:BC$101,DATA!$F$3:$F$101,$A80,DATA!$B$3:$B$101,$C$2) -> -1905 | AZ80: =SUMIFS(DATA!BD$3:BD$101,DATA!$F$3:$F$101,$A80,DATA!$B$3:$B$101,$C$2) -> -1883
A81: Goodwill and Intangible Assets | C81: =SUMIFS(DATA!G$3:G$101,DATA!$F$3:$F$101,$A81,DATA!$B$3:$B$101,$C$2) -> 180 | D81: =SUMIFS(DATA!H$3:H$101,DATA!$F$3:$F$101,$A81,DATA!$B$3:$B$101,$C$2) -> 165 | E81: =SUMIFS(DATA!I$3:I$101,DATA!$F$3:$F$101,$A81,DATA!$B$3:$B$101,$C$2) -> 150 | F81: =SUMIFS(DATA!J$3:J$101,DATA!$F$3:$F$101,$A81,DATA!$B$3:$B$101,$C$2) -> 134 | G81: =SUMIFS(DATA!K$3:K$101,DATA!$F$3:$F$101,$A81,DATA!$B$3:$B$101,$C$2) -> 123 | H81: =SUMIFS(DATA!L$3:L$101,DATA!$F$3:$F$101,$A81,DATA!$B$3:$B$101,$C$2) -> 113 | I81: =SUMIFS(DATA!M$3:M$101,DATA!$F$3:$F$101,$A81,DATA!$B$3:$B$101,$C$2) -> 105 | J81: =SUMIFS(DATA!N$3:N$101,DATA!$F$3:$F$101,$A81,DATA!$B$3:$B$101,$C$2) -> 98 | K81: =SUMIFS(DATA!O$3:O$101,DATA!$F$3:$F$101,$A81,DATA!$B$3:$B$101,$C$2) -> 92 | L81: =SUMIFS(DATA!P$3:P$101,DATA!$F$3:$F$101,$A81,DATA!$B$3:$B$101,$C$2) -> 88 | M81: =SUMIFS(DATA!Q$3:Q$101,DATA!$F$3:$F$101,$A81,DATA!$B$3:$B$101,$C$2) -> 85 | N81: =SUMIFS(DATA!R$3:R$101,DATA!$F$3:$F$101,$A81,DATA!$B$3:$B$101,$C$2) -> 83 | O81: =SUMIFS(DATA!S$3:S$101,DATA!$F$3:$F$101,$A81,DATA!$B$3:$B$101,$C$2) -> 82 | P81: =SUMIFS(DATA!T$3:T$101,DATA!$F$3:$F$101,$A81,DATA!$B$3:$B$101,$C$2) -> 82 | Q81: =SUMIFS(DATA!U$3:U$101,DATA!$F$3:$F$101,$A81,DATA!$B$3:$B$101,$C$2) -> 81 | R81: =SUMIFS(DATA!V$3:V$101,DATA!$F$3:$F$101,$A81,DATA!$B$3:$B$101,$C$2) -> 80 | S81: =SUMIFS(DATA!W$3:W$101,DATA!$F$3:$F$101,$A81,DATA!$B$3:$B$101,$C$2) -> 79 | T81: =SUMIFS(DATA!X$3:X$101,DATA!$F$3:$F$101,$A81,DATA!$B$3:$B$101,$C$2) -> 78 | U81: =SUMIFS(DATA!Y$3:Y$101,DATA!$F$3:$F$101,$A81,DATA!$B$3:$B$101,$C$2) -> 77 | V81: =SUMIFS(DATA!Z$3:Z$101,DATA!$F$3:$F$101,$A81,DATA!$B$3:$B$101,$C$2) -> 76 | W81: =SUMIFS(DATA!AA$3:AA$101,DATA!$F$3:$F$101,$A81,DATA!$B$3:$B$101,$C$2) -> 76 | X81: =SUMIFS(DATA!AB$3:AB$101,DATA!$F$3:$F$101,$A81,DATA!$B$3:$B$101,$C$2) -> 75 | Y81: =SUMIFS(DATA!AC$3:AC$101,DATA!$F$3:$F$101,$A81,DATA!$B$3:$B$101,$C$2) -> 74 | Z81: =SUMIFS(DATA!AD$3:AD$101,DATA!$F$3:$F$101,$A81,DATA!$B$3:$B$101,$C$2) -> 73 | AA81: =SUMIFS(DATA!AE$3:AE$101,DATA!$F$3:$F$101,$A81,DATA!$B$3:$B$101,$C$2) -> 72 | AB81: =SUMIFS(DATA!AF$3:AF$101,DATA!$F$3:$F$101,$A81,DATA!$B$3:$B$101,$C$2) -> 71 | AC81: =SUMIFS(DATA!AG$3:AG$101,DATA!$F$3:$F$101,$A81,DATA!$B$3:$B$101,$C$2) -> 71 | AD81: =SUMIFS(DATA!AH$3:AH$101,DATA!$F$3:$F$101,$A81,DATA!$B$3:$B$101,$C$2) -> 70 | AE81: =SUMIFS(DATA!AI$3:AI$101,DATA!$F$3:$F$101,$A81,DATA!$B$3:$B$101,$C$2) -> 69 | AF81: =SUMIFS(DATA!AJ$3:AJ$101,DATA!$F$3:$F$101,$A81,DATA!$B$3:$B$101,$C$2) -> 68 | AG81: =SUMIFS(DATA!AK$3:AK$101,DATA!$F$3:$F$101,$A81,DATA!$B$3:$B$101,$C$2) -> 67 | AH81: =SUMIFS(DATA!AL$3:AL$101,DATA!$F$3:$F$101,$A81,DATA!$B$3:$B$101,$C$2) -> 66 | AI81: =SUMIFS(DATA!AM$3:AM$101,DATA!$F$3:$F$101,$A81,DATA!$B$3:$B$101,$C$2) -> 66 | AJ81: =SUMIFS(DATA!AN$3:AN$101,DATA!$F$3:$F$101,$A81,DATA!$B$3:$B$101,$C$2) -> 65 | AK81: =SUMIFS(DATA!AO$3:AO$101,DATA!$F$3:$F$101,$A81,DATA!$B$3:$B$101,$C$2) -> 64 | AL81: =SUMIFS(DATA!AP$3:AP$101,DATA!$F$3:$F$101,$A81,DATA!$B$3:$B$101,$C$2) -> 63 | AM81: =SUMIFS(DATA!AQ$3:AQ$101,DATA!$F$3:$F$101,$A81,DATA!$B$3:$B$101,$C$2) -> 62 | AN81: =SUMIFS(DATA!AR$3:AR$101,DATA!$F$3:$F$101,$A81,DATA!$B$3:$B$101,$C$2) -> 61 | AO81: =SUMIFS(DATA!AS$3:AS$101,DATA!$F$3:$F$101,$A81,DATA!$B$3:$B$101,$C$2) -> 61 | AP81: =SUMIFS(DATA!AT$3:AT$101,DATA!$F$3:$F$101,$A81,DATA!$B$3:$B$101,$C$2) -> 60 | AQ81: =SUMIFS(DATA!AU$3:AU$101,DATA!$F$3:$F$101,$A81,DATA!$B$3:$B$101,$C$2) -> 59 | AR81: =SUMIFS(DATA!AV$3:AV$101,DATA!$F$3:$F$101,$A81,DATA!$B$3:$B$101,$C$2) -> 58 | AS81: =SUMIFS(DATA!AW$3:AW$101,DATA!$F$3:$F$101,$A81,DATA!$B$3:$B$101,$C$2) -> 57 | AT81: =SUMIFS(DATA!AX$3:AX$101,DATA!$F$3:$F$101,$A81,DATA!$B$3:$B$101,$C$2) -> 57 | AU81: =SUMIFS(DATA!AY$3:AY$101,DATA!$F$3:$F$101,$A81,DATA!$B$3:$B$101,$C$2) -> 56 | AV81: =SUMIFS(DATA!AZ$3:AZ$101,DATA!$F$3:$F$101,$A81,DATA!$B$3:$B$101,$C$2) -> 55 | AW81: =SUMIFS(DATA!BA$3:BA$101,DATA!$F$3:$F$101,$A81,DATA!$B$3:$B$101,$C$2) -> 54 | AX81: =SUMIFS(DATA!BB$3:BB$101,DATA!$F$3:$F$101,$A81,DATA!$B$3:$B$101,$C$2) -> 53 | AY81: =SUMIFS(DATA!BC$3:BC$101,DATA!$F$3:$F$101,$A81,DATA!$B$3:$B$101,$C$2) -> 53 | AZ81: =SUMIFS(DATA!BD$3:BD$101,DATA!$F$3:$F$101,$A81,DATA!$B$3:$B$101,$C$2) -> 52
A82: Regulated Assets | C82: =SUMIFS(DATA!G$3:G$101,DATA!$F$3:$F$101,$A82,DATA!$B$3:$B$101,$C$2) -> 231 | D82: =SUMIFS(DATA!H$3:H$101,DATA!$F$3:$F$101,$A82,DATA!$B$3:$B$101,$C$2) -> 225 | E82: =SUMIFS(DATA!I$3:I$101,DATA!$F$3:$F$101,$A82,DATA!$B$3:$B$101,$C$2) -> 0 | F82: =SUMIFS(DATA!J$3:J$101,DATA!$F$3:$F$101,$A82,DATA!$B$3:$B$101,$C$2) -> 0 | G82: =SUMIFS(DATA!K$3:K$101,DATA!$F$3:$F$101,$A82,DATA!$B$3:$B$101,$C$2) -> 0 | H82: =SUMIFS(DATA!L$3:L$101,DATA!$F$3:$F$101,$A82,DATA!$B$3:$B$101,$C$2) -> 0 | I82: =SUMIFS(DATA!M$3:M$101,DATA!$F$3:$F$101,$A82,DATA!$B$3:$B$101,$C$2) -> 0 | J82: =SUMIFS(DATA!N$3:N$101,DATA!$F$3:$F$101,$A82,DATA!$B$3:$B$101,$C$2) -> 0 | K82: =SUMIFS(DATA!O$3:O$101,DATA!$F$3:$F$101,$A82,DATA!$B$3:$B$101,$C$2) -> 0 | L82: =SUMIFS(DATA!P$3:P$101,DATA!$F$3:$F$101,$A82,DATA!$B$3:$B$101,$C$2) -> 0 | M82: =SUMIFS(DATA!Q$3:Q$101,DATA!$F$3:$F$101,$A82,DATA!$B$3:$B$101,$C$2) -> 0 | N82: =SUMIFS(DATA!R$3:R$101,DATA!$F$3:$F$101,$A82,DATA!$B$3:$B$101,$C$2) -> 0 | O82: =SUMIFS(DATA!S$3:S$101,DATA!$F$3:$F$101,$A82,DATA!$B$3:$B$101,$C$2) -> 0 | P82: =SUMIFS(DATA!T$3:T$101,DATA!$F$3:$F$101,$A82,DATA!$B$3:$B$101,$C$2) -> 0 | Q82: =SUMIFS(DATA!U$3:U$101,DATA!$F$3:$F$101,$A82,DATA!$B$3:$B$101,$C$2) -> 0 | R82: =SUMIFS(DATA!V$3:V$101,DATA!$F$3:$F$101,$A82,DATA!$B$3:$B$101,$C$2) -> 0 | S82: =SUMIFS(DATA!W$3:W$101,DATA!$F$3:$F$101,$A82,DATA!$B$3:$B$101,$C$2) -> 0 | T82: =SUMIFS(DATA!X$3:X$101,DATA!$F$3:$F$101,$A82,DATA!$B$3:$B$101,$C$2) -> 0 | U82: =SUMIFS(DATA!Y$3:Y$101,DATA!$F$3:$F$101,$A82,DATA!$B$3:$B$101,$C$2) -> 0 | V82: =SUMIFS(DATA!Z$3:Z$101,DATA!$F$3:$F$101,$A82,DATA!$B$3:$B$101,$C$2) -> 0 | W82: =SUMIFS(DATA!AA$3:AA$101,DATA!$F$3:$F$101,$A82,DATA!$B$3:$B$101,$C$2) -> 0 | X82: =SUMIFS(DATA!AB$3:AB$101,DATA!$F$3:$F$101,$A82,DATA!$B$3:$B$101,$C$2) -> 0 | Y82: =SUMIFS(DATA!AC$3:AC$101,DATA!$F$3:$F$101,$A82,DATA!$B$3:$B$101,$C$2) -> 0 | Z82: =SUMIFS(DATA!AD$3:AD$101,DATA!$F$3:$F$101,$A82,DATA!$B$3:$B$101,$C$2) -> 0 | AA82: =SUMIFS(DATA!AE$3:AE$101,DATA!$F$3:$F$101,$A82,DATA!$B$3:$B$101,$C$2) -> 0 | AB82: =SUMIFS(DATA!AF$3:AF$101,DATA!$F$3:$F$101,$A82,DATA!$B$3:$B$101,$C$2) -> 0 | AC82: =SUMIFS(DATA!AG$3:AG$101,DATA!$F$3:$F$101,$A82,DATA!$B$3:$B$101,$C$2) -> 0 | AD82: =SUMIFS(DATA!AH$3:AH$101,DATA!$F$3:$F$101,$A82,DATA!$B$3:$B$101,$C$2) -> 0 | AE82: =SUMIFS(DATA!AI$3:AI$101,DATA!$F$3:$F$101,$A82,DATA!$B$3:$B$101,$C$2) -> 0 | AF82: =SUMIFS(DATA!AJ$3:AJ$101,DATA!$F$3:$F$101,$A82,DATA!$B$3:$B$101,$C$2) -> 0 | AG82: =SUMIFS(DATA!AK$3:AK$101,DATA!$F$3:$F$101,$A82,DATA!$B$3:$B$101,$C$2) -> 0 | AH82: =SUMIFS(DATA!AL$3:AL$101,DATA!$F$3:$F$101,$A82,DATA!$B$3:$B$101,$C$2) -> 0 | AI82: =SUMIFS(DATA!AM$3:AM$101,DATA!$F$3:$F$101,$A82,DATA!$B$3:$B$101,$C$2) -> 0 | AJ82: =SUMIFS(DATA!AN$3:AN$101,DATA!$F$3:$F$101,$A82,DATA!$B$3:$B$101,$C$2) -> 0 | AK82: =SUMIFS(DATA!AO$3:AO$101,DATA!$F$3:$F$101,$A82,DATA!$B$3:$B$101,$C$2) -> 0 | AL82: =SUMIFS(DATA!AP$3:AP$101,DATA!$F$3:$F$101,$A82,DATA!$B$3:$B$101,$C$2) -> 0 | AM82: =SUMIFS(DATA!AQ$3:AQ$101,DATA!$F$3:$F$101,$A82,DATA!$B$3:$B$101,$C$2) -> 0 | AN82: =SUMIFS(DATA!AR$3:AR$101,DATA!$F$3:$F$101,$A82,DATA!$B$3:$B$101,$C$2) -> 0 | AO82: =SUMIFS(DATA!AS$3:AS$101,DATA!$F$3:$F$101,$A82,DATA!$B$3:$B$101,$C$2) -> 0 | AP82: =SUMIFS(DATA!AT$3:AT$101,DATA!$F$3:$F$101,$A82,DATA!$B$3:$B$101,$C$2) -> 0 | AQ82: =SUMIFS(DATA!AU$3:AU$101,DATA!$F$3:$F$101,$A82,DATA!$B$3:$B$101,$C$2) -> 0 | AR82: =SUMIFS(DATA!AV$3:AV$101,DATA!$F$3:$F$101,$A82,DATA!$B$3:$B$101,$C$2) -> 0 | AS82: =SUMIFS(DATA!AW$3:AW$101,DATA!$F$3:$F$101,$A82,DATA!$B$3:$B$101,$C$2) -> 0 | AT82: =SUMIFS(DATA!AX$3:AX$101,DATA!$F$3:$F$101,$A82,DATA!$B$3:$B$101,$C$2) -> 0 | AU82: =SUMIFS(DATA!AY$3:AY$101,DATA!$F$3:$F$101,$A82,DATA!$B$3:$B$101,$C$2) -> 0 | AV82: =SUMIFS(DATA!AZ$3:AZ$101,DATA!$F$3:$F$101,$A82,DATA!$B$3:$B$101,$C$2) -> 0 | AW82: =SUMIFS(DATA!BA$3:BA$101,DATA!$F$3:$F$101,$A82,DATA!$B$3:$B$101,$C$2) -> 0 | AX82: =SUMIFS(DATA!BB$3:BB$101,DATA!$F$3:$F$101,$A82,DATA!$B$3:$B$101,$C$2) -> 0 | AY82: =SUMIFS(DATA!BC$3:BC$101,DATA!$F$3:$F$101,$A82,DATA!$B$3:$B$101,$C$2) -> 0 | AZ82: =SUMIFS(DATA!BD$3:BD$101,DATA!$F$3:$F$101,$A82,DATA!$B$3:$B$101,$C$2) -> 0
A83: Total Assets | B83: [Formula] | C83: =SUM(C77:C82) -> 14587 | D83: =SUM(D77:D82) -> 15892 | E83: 16630 | F83: 17682 | G83: 18477 | H83: 18909 | I83: 18618 | J83: 18550 | K83: 18581 | L83: 18367 | M83: 18465 | N83: 18824 | O83: 19261 | P83: 19318 | Q83: 19592 | R83: 20071 | S83: 20954 | T83: 21486 | U83: 21576 | V83: =SUM(V77:V82) -> 22269 | W83: 22214 | X83: 22568 | Y83: 22814 | Z83: 23458 | AA83: 23766 | AB83: 24130 | AC83: 24821 | AD83: 25254 | AE83: 25600 | AF83: 26173 | AG83: 26827 | AH83: 27472 | AI83: 27866 | AJ83: 27996 | AK83: 28412 | AL83: 28729 | AM83: 28338 | AN83: 28237 | AO83: 28554 | AP83: 28957 | AQ83: 29144 | AR83: 29115 | AS83: 29148 | AT83: 29190 | AU83: 29028 | AV83: 29243 | AW83: 29458 | AX83: 29954 | AY83: 29977 | AZ83: 29981
A84: Total Assets | B84: [Original] | C84: =SUMIFS(DATA!G$3:G$101,DATA!$F$3:$F$101,$A84,DATA!$B$3:$B$101,$C$2) -> 14587 | D84: =SUMIFS(DATA!H$3:H$101,DATA!$F$3:$F$101,$A84,DATA!$B$3:$B$101,$C$2) -> 15891 | E84: =SUMIFS(DATA!I$3:I$101,DATA!$F$3:$F$101,$A84,DATA!$B$3:$B$101,$C$2) -> 16630 | F84: =SUMIFS(DATA!J$3:J$101,DATA!$F$3:$F$101,$A84,DATA!$B$3:$B$101,$C$2) -> 17682 | G84: =SUMIFS(DATA!K$3:K$101,DATA!$F$3:$F$101,$A84,DATA!$B$3:$B$101,$C$2) -> 18477 | H84: =SUMIFS(DATA!L$3:L$101,DATA!$F$3:$F$101,$A84,DATA!$B$3:$B$101,$C$2) -> 18910 | I84: =SUMIFS(DATA!M$3:M$101,DATA!$F$3:$F$101,$A84,DATA!$B$3:$B$101,$C$2) -> 18618 | J84: =SUMIFS(DATA!N$3:N$101,DATA!$F$3:$F$101,$A84,DATA!$B$3:$B$101,$C$2) -> 18550 | K84: =SUMIFS(DATA!O$3:O$101,DATA!$F$3:$F$101,$A84,DATA!$B$3:$B$101,$C$2) -> 18580 | L84: =SUMIFS(DATA!P$3:P$101,DATA!$F$3:$F$101,$A84,DATA!$B$3:$B$101,$C$2) -> 18366 | M84: =SUMIFS(DATA!Q$3:Q$101,DATA!$F$3:$F$101,$A84,DATA!$B$3:$B$101,$C$2) -> 18465 | N84: =SUMIFS(DATA!R$3:R$101,DATA!$F$3:$F$101,$A84,DATA!$B$3:$B$101,$C$2) -> 18824 | O84: =SUMIFS(DATA!S$3:S$101,DATA!$F$3:$F$101,$A84,DATA!$B$3:$B$101,$C$2) -> 19262 | P84: =SUMIFS(DATA!T$3:T$101,DATA!$F$3:$F$101,$A84,DATA!$B$3:$B$101,$C$2) -> 19318 | Q84: =SUMIFS(DATA!U$3:U$101,DATA!$F$3:$F$101,$A84,DATA!$B$3:$B$101,$C$2) -> 19592 | R84: =SUMIFS(DATA!V$3:V$101,DATA!$F$3:$F$101,$A84,DATA!$B$3:$B$101,$C$2) -> 20071 | S84: =SUMIFS(DATA!W$3:W$101,DATA!$F$3:$F$101,$A84,DATA!$B$3:$B$101,$C$2) -> 20953 | T84: =SUMIFS(DATA!X$3:X$101,DATA!$F$3:$F$101,$A84,DATA!$B$3:$B$101,$C$2) -> 21488 | U84: =SUMIFS(DATA!Y$3:Y$101,DATA!$F$3:$F$101,$A84,DATA!$B$3:$B$101,$C$2) -> 21577 | V84: =SUMIFS(DATA!Z$3:Z$101,DATA!$F$3:$F$101,$A84,DATA!$B$3:$B$101,$C$2) -> 22270 | W84: =SUMIFS(DATA!AA$3:AA$101,DATA!$F$3:$F$101,$A84,DATA!$B$3:$B$101,$C$2) -> 22214 | X84: =SUMIFS(DATA!AB$3:AB$101,DATA!$F$3:$F$101,$A84,DATA!$B$3:$B$101,$C$2) -> 22568 | Y84: =SUMIFS(DATA!AC$3:AC$101,DATA!$F$3:$F$101,$A84,DATA!$B$3:$B$101,$C$2) -> 22814 | Z84: =SUMIFS(DATA!AD$3:AD$101,DATA!$F$3:$F$101,$A84,DATA!$B$3:$B$101,$C$2) -> 23458 | AA84: =SUMIFS(DATA!AE$3:AE$101,DATA!$F$3:$F$101,$A84,DATA!$B$3:$B$101,$C$2) -> 23767 | AB84: =SUMIFS(DATA!AF$3:AF$101,DATA!$F$3:$F$101,$A84,DATA!$B$3:$B$101,$C$2) -> 24129 | AC84: =SUMIFS(DATA!AG$3:AG$101,DATA!$F$3:$F$101,$A84,DATA!$B$3:$B$101,$C$2) -> 24820 | AD84: =SUMIFS(DATA!AH$3:AH$101,DATA!$F$3:$F$101,$A84,DATA!$B$3:$B$101,$C$2) -> 25254 | AE84: =SUMIFS(DATA!AI$3:AI$101,DATA!$F$3:$F$101,$A84,DATA!$B$3:$B$101,$C$2) -> 25599 | AF84: =SUMIFS(DATA!AJ$3:AJ$101,DATA!$F$3:$F$101,$A84,DATA!$B$3:$B$101,$C$2) -> 26173 | AG84: =SUMIFS(DATA!AK$3:AK$101,DATA!$F$3:$F$101,$A84,DATA!$B$3:$B$101,$C$2) -> 26826 | AH84: =SUMIFS(DATA!AL$3:AL$101,DATA!$F$3:$F$101,$A84,DATA!$B$3:$B$101,$C$2) -> 27472 | AI84: =SUMIFS(DATA!AM$3:AM$101,DATA!$F$3:$F$101,$A84,DATA!$B$3:$B$101,$C$2) -> 27866 | AJ84: =SUMIFS(DATA!AN$3:AN$101,DATA!$F$3:$F$101,$A84,DATA!$B$3:$B$101,$C$2) -> 27996 | AK84: =SUMIFS(DATA!AO$3:AO$101,DATA!$F$3:$F$101,$A84,DATA!$B$3:$B$101,$C$2) -> 28412 | AL84: =SUMIFS(DATA!AP$3:AP$101,DATA!$F$3:$F$101,$A84,DATA!$B$3:$B$101,$C$2) -> 28729 | AM84: =SUMIFS(DATA!AQ$3:AQ$101,DATA!$F$3:$F$101,$A84,DATA!$B$3:$B$101,$C$2) -> 28339 | AN84: =SUMIFS(DATA!AR$3:AR$101,DATA!$F$3:$F$101,$A84,DATA!$B$3:$B$101,$C$2) -> 28237 | AO84: =SUMIFS(DATA!AS$3:AS$101,DATA!$F$3:$F$101,$A84,DATA!$B$3:$B$101,$C$2) -> 28554 | AP84: =SUMIFS(DATA!AT$3:AT$101,DATA!$F$3:$F$101,$A84,DATA!$B$3:$B$101,$C$2) -> 28957 | AQ84: =SUMIFS(DATA!AU$3:AU$101,DATA!$F$3:$F$101,$A84,DATA!$B$3:$B$101,$C$2) -> 29144 | AR84: =SUMIFS(DATA!AV$3:AV$101,DATA!$F$3:$F$101,$A84,DATA!$B$3:$B$101,$C$2) -> 29115 | AS84: =SUMIFS(DATA!AW$3:AW$101,DATA!$F$3:$F$101,$A84,DATA!$B$3:$B$101,$C$2) -> 29149 | AT84: =SUMIFS(DATA!AX$3:AX$101,DATA!$F$3:$F$101,$A84,DATA!$B$3:$B$101,$C$2) -> 29189 | AU84: =SUMIFS(DATA!AY$3:AY$101,DATA!$F$3:$F$101,$A84,DATA!$B$3:$B$101,$C$2) -> 29027 | AV84: =SUMIFS(DATA!AZ$3:AZ$101,DATA!$F$3:$F$101,$A84,DATA!$B$3:$B$101,$C$2) -> 29244 | AW84: =SUMIFS(DATA!BA$3:BA$101,DATA!$F$3:$F$101,$A84,DATA!$B$3:$B$101,$C$2) -> 29459 | AX84: =SUMIFS(DATA!BB$3:BB$101,DATA!$F$3:$F$101,$A84,DATA!$B$3:$B$101,$C$2) -> 29955 | AY84: =SUMIFS(DATA!BC$3:BC$101,DATA!$F$3:$F$101,$A84,DATA!$B$3:$B$101,$C$2) -> 29976 | AZ84: =SUMIFS(DATA!BD$3:BD$101,DATA!$F$3:$F$101,$A84,DATA!$B$3:$B$101,$C$2) -> 29981
B85: [Difference] | C85: =C83-C84 -> 0 | D85: =D83-D84 -> 1 | E85: 0 | F85: 0 | G85: 0 | H85: -1 | I85: 0 | J85: 0 | K85: 1 | L85: 1 | M85: 0 | N85: 0 | O85: -1 | P85: 0 | Q85: 0 | R85: 0 | S85: 1 | T85: -2 | U85: -1 | V85: -1 | W85: 0 | X85: 0 | Y85: 0 | Z85: 0 | AA85: -1 | AB85: 1 | AC85: 1 | AD85: 0 | AE85: 1 | AF85: 0 | AG85: 1 | AH85: 0 | AI85: 0 | AJ85: 0 | AK85: 0 | AL85: 0 | AM85: -1 | AN85: 0 | AO85: 0 | AP85: 0 | AQ85: 0 | AR85: 0 | AS85: -1 | AT85: 1 | AU85: 1 | AV85: -1 | AW85: -1 | AX85: -1 | AY85: 1 | AZ85: 0
A87: LIABILITIES AND EQUITY
A89: Long Term Debt | C89: =SUMIFS(DATA!G$3:G$101,DATA!$F$3:$F$101,$A89,DATA!$B$3:$B$101,$C$2) -> 9289 | D89: =SUMIFS(DATA!H$3:H$101,DATA!$F$3:$F$101,$A89,DATA!$B$3:$B$101,$C$2) -> 11260 | E89: =SUMIFS(DATA!I$3:I$101,DATA!$F$3:$F$101,$A89,DATA!$B$3:$B$101,$C$2) -> 12419 | F89: =SUMIFS(DATA!J$3:J$101,DATA!$F$3:$F$101,$A89,DATA!$B$3:$B$101,$C$2) -> 13704 | G89: =SUMIFS(DATA!K$3:K$101,DATA!$F$3:$F$101,$A89,DATA!$B$3:$B$101,$C$2) -> 14404 | H89: =SUMIFS(DATA!L$3:L$101,DATA!$F$3:$F$101,$A89,DATA!$B$3:$B$101,$C$2) -> 14777 | I89: =SUMIFS(DATA!M$3:M$101,DATA!$F$3:$F$101,$A89,DATA!$B$3:$B$101,$C$2) -> 15272 | J89: =SUMIFS(DATA!N$3:N$101,DATA!$F$3:$F$101,$A89,DATA!$B$3:$B$101,$C$2) -> 15038 | K89: =SUMIFS(DATA!O$3:O$101,DATA!$F$3:$F$101,$A89,DATA!$B$3:$B$101,$C$2) -> 15161 | L89: =SUMIFS(DATA!P$3:P$101,DATA!$F$3:$F$101,$A89,DATA!$B$3:$B$101,$C$2) -> 15312 | M89: =SUMIFS(DATA!Q$3:Q$101,DATA!$F$3:$F$101,$A89,DATA!$B$3:$B$101,$C$2) -> 15914 | N89: =SUMIFS(DATA!R$3:R$101,DATA!$F$3:$F$101,$A89,DATA!$B$3:$B$101,$C$2) -> 16116 | O89: =SUMIFS(DATA!S$3:S$101,DATA!$F$3:$F$101,$A89,DATA!$B$3:$B$101,$C$2) -> 15870 | P89: =SUMIFS(DATA!T$3:T$101,DATA!$F$3:$F$101,$A89,DATA!$B$3:$B$101,$C$2) -> 16272 | Q89: =SUMIFS(DATA!U$3:U$101,DATA!$F$3:$F$101,$A89,DATA!$B$3:$B$101,$C$2) -> 16274 | R89: =SUMIFS(DATA!V$3:V$101,DATA!$F$3:$F$101,$A89,DATA!$B$3:$B$101,$C$2) -> 16214 | S89: =SUMIFS(DATA!W$3:W$101,DATA!$F$3:$F$101,$A89,DATA!$B$3:$B$101,$C$2) -> 16565 | T89: =SUMIFS(DATA!X$3:X$101,DATA!$F$3:$F$101,$A89,DATA!$B$3:$B$101,$C$2) -> 16068 | U89: =SUMIFS(DATA!Y$3:Y$101,DATA!$F$3:$F$101,$A89,DATA!$B$3:$B$101,$C$2) -> 16258 | V89: =SUMIFS(DATA!Z$3:Z$101,DATA!$F$3:$F$101,$A89,DATA!$B$3:$B$101,$C$2) -> 16031 | W89: =SUMIFS(DATA!AA$3:AA$101,DATA!$F$3:$F$101,$A89,DATA!$B$3:$B$101,$C$2) -> 13805 | X89: =SUMIFS(DATA!AB$3:AB$101,DATA!$F$3:$F$101,$A89,DATA!$B$3:$B$101,$C$2) -> 14793 | Y89: =SUMIFS(DATA!AC$3:AC$101,DATA!$F$3:$F$101,$A89,DATA!$B$3:$B$101,$C$2) -> 14320 | Z89: =SUMIFS(DATA!AD$3:AD$101,DATA!$F$3:$F$101,$A89,DATA!$B$3:$B$101,$C$2) -> 15321 | AA89: =SUMIFS(DATA!AE$3:AE$101,DATA!$F$3:$F$101,$A89,DATA!$B$3:$B$101,$C$2) -> 14973 | AB89: =SUMIFS(DATA!AF$3:AF$101,DATA!$F$3:$F$101,$A89,DATA!$B$3:$B$101,$C$2) -> 15775 | AC89: =SUMIFS(DATA!AG$3:AG$101,DATA!$F$3:$F$101,$A89,DATA!$B$3:$B$101,$C$2) -> 16677 | AD89: =SUMIFS(DATA!AH$3:AH$101,DATA!$F$3:$F$101,$A89,DATA!$B$3:$B$101,$C$2) -> 16629 | AE89: =SUMIFS(DATA!AI$3:AI$101,DATA!$F$3:$F$101,$A89,DATA!$B$3:$B$101,$C$2) -> 16779 | AF89: =SUMIFS(DATA!AJ$3:AJ$101,DATA!$F$3:$F$101,$A89,DATA!$B$3:$B$101,$C$2) -> 17278 | AG89: =SUMIFS(DATA!AK$3:AK$101,DATA!$F$3:$F$101,$A89,DATA!$B$3:$B$101,$C$2) -> 18227 | AH89: =SUMIFS(DATA!AL$3:AL$101,DATA!$F$3:$F$101,$A89,DATA!$B$3:$B$101,$C$2) -> 18825 | AI89: =SUMIFS(DATA!AM$3:AM$101,DATA!$F$3:$F$101,$A89,DATA!$B$3:$B$101,$C$2) -> 18824 | AJ89: =SUMIFS(DATA!AN$3:AN$101,DATA!$F$3:$F$101,$A89,DATA!$B$3:$B$101,$C$2) -> 19022 | AK89: =SUMIFS(DATA!AO$3:AO$101,DATA!$F$3:$F$101,$A89,DATA!$B$3:$B$101,$C$2) -> 19220 | AL89: =SUMIFS(DATA!AP$3:AP$101,DATA!$F$3:$F$101,$A89,DATA!$B$3:$B$101,$C$2) -> 18819 | AM89: =SUMIFS(DATA!AQ$3:AQ$101,DATA!$F$3:$F$101,$A89,DATA!$B$3:$B$101,$C$2) -> 18292 | AN89: =SUMIFS(DATA!AR$3:AR$101,DATA!$F$3:$F$101,$A89,DATA!$B$3:$B$101,$C$2) -> 18090 | AO89: =SUMIFS(DATA!AS$3:AS$101,DATA!$F$3:$F$101,$A89,DATA!$B$3:$B$101,$C$2) -> 18490 | AP89: =SUMIFS(DATA!AT$3:AT$101,DATA!$F$3:$F$101,$A89,DATA!$B$3:$B$101,$C$2) -> 18639 | AQ89: =SUMIFS(DATA!AU$3:AU$101,DATA!$F$3:$F$101,$A89,DATA!$B$3:$B$101,$C$2) -> 16239 | AR89: =SUMIFS(DATA!AV$3:AV$101,DATA!$F$3:$F$101,$A89,DATA!$B$3:$B$101,$C$2) -> 17038 | AS89: =SUMIFS(DATA!AW$3:AW$101,DATA!$F$3:$F$101,$A89,DATA!$B$3:$B$101,$C$2) -> 15838 | AT89: =SUMIFS(DATA!AX$3:AX$101,DATA!$F$3:$F$101,$A89,DATA!$B$3:$B$101,$C$2) -> 16637 | AU89: =SUMIFS(DATA!AY$3:AY$101,DATA!$F$3:$F$101,$A89,DATA!$B$3:$B$101,$C$2) -> 15629 | AV89: =SUMIFS(DATA!AZ$3:AZ$101,DATA!$F$3:$F$101,$A89,DATA!$B$3:$B$101,$C$2) -> 16029 | AW89: =SUMIFS(DATA!BA$3:BA$101,DATA!$F$3:$F$101,$A89,DATA!$B$3:$B$101,$C$2) -> 16503 | AX89: =SUMIFS(DATA!BB$3:BB$101,DATA!$F$3:$F$101,$A89,DATA!$B$3:$B$101,$C$2) -> 16702 | AY89: =SUMIFS(DATA!BC$3:BC$101,DATA!$F$3:$F$101,$A89,DATA!$B$3:$B$101,$C$2) -> 16302 | AZ89: =SUMIFS(DATA!BD$3:BD$101,DATA!$F$3:$F$101,$A89,DATA!$B$3:$B$101,$C$2) -> 16252
A90: Incremental Long Term Debt | D90: =D89-C89 -> 1971 | E90: =E89-D89 -> 1159 | F90: 1285 | G90: 700 | H90: 373 | I90: 495 | J90: -234 | K90: 123 | L90: 151 | M90: 602 | N90: 202 | O90: -246 | P90: 402 | Q90: 2 | R90: -60 | S90: 351 | T90: -497 | U90: 190 | V90: -227 | W90: -2226 | X90: 988 | Y90: -473 | Z90: 1001 | AA90: -348 | AB90: 802 | AC90: 902 | AD90: -48 | AE90: 150 | AF90: 499 | AG90: 949 | AH90: 598 | AI90: -1 | AJ90: 198 | AK90: 198 | AL90: -401 | AM90: -527 | AN90: -202 | AO90: 400 | AP90: 149 | AQ90: -2400 | AR90: 799 | AS90: -1200 | AT90: 799 | AU90: -1008 | AV90: 400 | AW90: 474 | AX90: 199 | AY90: -400 | AZ90: -50
A91: Current and Other Liabilities | C91: =SUMIFS(DATA!G$3:G$101,DATA!$F$3:$F$101,$A91,DATA!$B$3:$B$101,$C$2) -> 2231 | D91: =SUMIFS(DATA!H$3:H$101,DATA!$F$3:$F$101,$A91,DATA!$B$3:$B$101,$C$2) -> 1502 | E91: =SUMIFS(DATA!I$3:I$101,DATA!$F$3:$F$101,$A91,DATA!$B$3:$B$101,$C$2) -> 1845 | F91: =SUMIFS(DATA!J$3:J$101,DATA!$F$3:$F$101,$A91,DATA!$B$3:$B$101,$C$2) -> 1752 | G91: =SUMIFS(DATA!K$3:K$101,DATA!$F$3:$F$101,$A91,DATA!$B$3:$B$101,$C$2) -> 1997 | H91: =SUMIFS(DATA!L$3:L$101,DATA!$F$3:$F$101,$A91,DATA!$B$3:$B$101,$C$2) -> 2213 | I91: =SUMIFS(DATA!M$3:M$101,DATA!$F$3:$F$101,$A91,DATA!$B$3:$B$101,$C$2) -> 1680 | J91: =SUMIFS(DATA!N$3:N$101,DATA!$F$3:$F$101,$A91,DATA!$B$3:$B$101,$C$2) -> 2028 | K91: =SUMIFS(DATA!O$3:O$101,DATA!$F$3:$F$101,$A91,DATA!$B$3:$B$101,$C$2) -> 2005 | L91: =SUMIFS(DATA!P$3:P$101,DATA!$F$3:$F$101,$A91,DATA!$B$3:$B$101,$C$2) -> 1638 | M91: =SUMIFS(DATA!Q$3:Q$101,DATA!$F$3:$F$101,$A91,DATA!$B$3:$B$101,$C$2) -> 1089 | N91: =SUMIFS(DATA!R$3:R$101,DATA!$F$3:$F$101,$A91,DATA!$B$3:$B$101,$C$2) -> 1142 | O91: =SUMIFS(DATA!S$3:S$101,DATA!$F$3:$F$101,$A91,DATA!$B$3:$B$101,$C$2) -> 1652 | P91: =SUMIFS(DATA!T$3:T$101,DATA!$F$3:$F$101,$A91,DATA!$B$3:$B$101,$C$2) -> 1125 | Q91: =SUMIFS(DATA!U$3:U$101,DATA!$F$3:$F$101,$A91,DATA!$B$3:$B$101,$C$2) -> 1114 | R91: =SUMIFS(DATA!V$3:V$101,DATA!$F$3:$F$101,$A91,DATA!$B$3:$B$101,$C$2) -> 1279 | S91: =SUMIFS(DATA!W$3:W$101,DATA!$F$3:$F$101,$A91,DATA!$B$3:$B$101,$C$2) -> 1370 | T91: =SUMIFS(DATA!X$3:X$101,DATA!$F$3:$F$101,$A91,DATA!$B$3:$B$101,$C$2) -> 1866 | U91: =SUMIFS(DATA!Y$3:Y$101,DATA!$F$3:$F$101,$A91,DATA!$B$3:$B$101,$C$2) -> 1132 | V91: =SUMIFS(DATA!Z$3:Z$101,DATA!$F$3:$F$101,$A91,DATA!$B$3:$B$101,$C$2) -> 1349 | W91: =SUMIFS(DATA!AA$3:AA$101,DATA!$F$3:$F$101,$A91,DATA!$B$3:$B$101,$C$2) -> 3346 | X91: =SUMIFS(DATA!AB$3:AB$101,DATA!$F$3:$F$101,$A91,DATA!$B$3:$B$101,$C$2) -> 2535 | Y91: =SUMIFS(DATA!AC$3:AC$101,DATA!$F$3:$F$101,$A91,DATA!$B$3:$B$101,$C$2) -> 3070 | Z91: =SUMIFS(DATA!AD$3:AD$101,DATA!$F$3:$F$101,$A91,DATA!$B$3:$B$101,$C$2) -> 2521 | AA91: =SUMIFS(DATA!AE$3:AE$101,DATA!$F$3:$F$101,$A91,DATA!$B$3:$B$101,$C$2) -> 2982 | AB91: =SUMIFS(DATA!AF$3:AF$101,DATA!$F$3:$F$101,$A91,DATA!$B$3:$B$101,$C$2) -> 2345 | AC91: =SUMIFS(DATA!AG$3:AG$101,DATA!$F$3:$F$101,$A91,DATA!$B$3:$B$101,$C$2) -> 1932 | AD91: =SUMIFS(DATA!AH$3:AH$101,DATA!$F$3:$F$101,$A91,DATA!$B$3:$B$101,$C$2) -> 2207 | AE91: =SUMIFS(DATA!AI$3:AI$101,DATA!$F$3:$F$101,$A91,DATA!$B$3:$B$101,$C$2) -> 2193 | AF91: =SUMIFS(DATA!AJ$3:AJ$101,DATA!$F$3:$F$101,$A91,DATA!$B$3:$B$101,$C$2) -> 2056 | AG91: =SUMIFS(DATA!AK$3:AK$101,DATA!$F$3:$F$101,$A91,DATA!$B$3:$B$101,$C$2) -> 1544 | AH91: =SUMIFS(DATA!AL$3:AL$101,DATA!$F$3:$F$101,$A91,DATA!$B$3:$B$101,$C$2) -> 1368 | AI91: =SUMIFS(DATA!AM$3:AM$101,DATA!$F$3:$F$101,$A91,DATA!$B$3:$B$101,$C$2) -> 1539 | AJ91: =SUMIFS(DATA!AN$3:AN$101,DATA!$F$3:$F$101,$A91,DATA!$B$3:$B$101,$C$2) -> 1247 | AK91: =SUMIFS(DATA!AO$3:AO$101,DATA!$F$3:$F$101,$A91,DATA!$B$3:$B$101,$C$2) -> 1240 | AL91: =SUMIFS(DATA!AP$3:AP$101,DATA!$F$3:$F$101,$A91,DATA!$B$3:$B$101,$C$2) -> 1740 | AM91: =SUMIFS(DATA!AQ$3:AQ$101,DATA!$F$3:$F$101,$A91,DATA!$B$3:$B$101,$C$2) -> 1659 | AN91: =SUMIFS(DATA!AR$3:AR$101,DATA!$F$3:$F$101,$A91,DATA!$B$3:$B$101,$C$2) -> 1545 | AO91: =SUMIFS(DATA!AS$3:AS$101,DATA!$F$3:$F$101,$A91,DATA!$B$3:$B$101,$C$2) -> 1248 | AP91: =SUMIFS(DATA!AT$3:AT$101,DATA!$F$3:$F$101,$A91,DATA!$B$3:$B$101,$C$2) -> 1286 | AQ91: =SUMIFS(DATA!AU$3:AU$101,DATA!$F$3:$F$101,$A91,DATA!$B$3:$B$101,$C$2) -> 3647 | AR91: =SUMIFS(DATA!AV$3:AV$101,DATA!$F$3:$F$101,$A91,DATA!$B$3:$B$101,$C$2) -> 2590 | AS91: =SUMIFS(DATA!AW$3:AW$101,DATA!$F$3:$F$101,$A91,DATA!$B$3:$B$101,$C$2) -> 3599 | AT91: =SUMIFS(DATA!AX$3:AX$101,DATA!$F$3:$F$101,$A91,DATA!$B$3:$B$101,$C$2) -> 2617 | AU91: =SUMIFS(DATA!AY$3:AY$101,DATA!$F$3:$F$101,$A91,DATA!$B$3:$B$101,$C$2) -> 3242 | AV91: =SUMIFS(DATA!AZ$3:AZ$101,DATA!$F$3:$F$101,$A91,DATA!$B$3:$B$101,$C$2) -> 2842 | AW91: =SUMIFS(DATA!BA$3:BA$101,DATA!$F$3:$F$101,$A91,DATA!$B$3:$B$101,$C$2) -> 2366 | AX91: =SUMIFS(DATA!BB$3:BB$101,DATA!$F$3:$F$101,$A91,DATA!$B$3:$B$101,$C$2) -> 2444 | AY91: =SUMIFS(DATA!BC$3:BC$101,DATA!$F$3:$F$101,$A91,DATA!$B$3:$B$101,$C$2) -> 2644 | AZ91: =SUMIFS(DATA!BD$3:BD$101,DATA!$F$3:$F$101,$A91,DATA!$B$3:$B$101,$C$2) -> 2481
A92: Contributions in Aid of Construction | C92: =SUMIFS(DATA!G$3:G$101,DATA!$F$3:$F$101,$A92,DATA!$B$3:$B$101,$C$2) -> 325 | D92: =SUMIFS(DATA!H$3:H$101,DATA!$F$3:$F$101,$A92,DATA!$B$3:$B$101,$C$2) -> 334 | E92: =SUMIFS(DATA!I$3:I$101,DATA!$F$3:$F$101,$A92,DATA!$B$3:$B$101,$C$2) -> 339 | F92: =SUMIFS(DATA!J$3:J$101,DATA!$F$3:$F$101,$A92,DATA!$B$3:$B$101,$C$2) -> 344 | G92: =SUMIFS(DATA!K$3:K$101,DATA!$F$3:$F$101,$A92,DATA!$B$3:$B$101,$C$2) -> 348 | H92: =SUMIFS(DATA!L$3:L$101,DATA!$F$3:$F$101,$A92,DATA!$B$3:$B$101,$C$2) -> 358 | I92: =SUMIFS(DATA!M$3:M$101,DATA!$F$3:$F$101,$A92,DATA!$B$3:$B$101,$C$2) -> 364 | J92: =SUMIFS(DATA!N$3:N$101,DATA!$F$3:$F$101,$A92,DATA!$B$3:$B$101,$C$2) -> 371 | K92: =SUMIFS(DATA!O$3:O$101,DATA!$F$3:$F$101,$A92,DATA!$B$3:$B$101,$C$2) -> 378 | L92: =SUMIFS(DATA!P$3:P$101,DATA!$F$3:$F$101,$A92,DATA!$B$3:$B$101,$C$2) -> 385 | M92: =SUMIFS(DATA!Q$3:Q$101,DATA!$F$3:$F$101,$A92,DATA!$B$3:$B$101,$C$2) -> 392 | N92: =SUMIFS(DATA!R$3:R$101,DATA!$F$3:$F$101,$A92,DATA!$B$3:$B$101,$C$2) -> 400 | O92: =SUMIFS(DATA!S$3:S$101,DATA!$F$3:$F$101,$A92,DATA!$B$3:$B$101,$C$2) -> 407 | P92: =SUMIFS(DATA!T$3:T$101,DATA!$F$3:$F$101,$A92,DATA!$B$3:$B$101,$C$2) -> 415 | Q92: =SUMIFS(DATA!U$3:U$101,DATA!$F$3:$F$101,$A92,DATA!$B$3:$B$101,$C$2) -> 422 | R92: =SUMIFS(DATA!V$3:V$101,DATA!$F$3:$F$101,$A92,DATA!$B$3:$B$101,$C$2) -> 430 | S92: =SUMIFS(DATA!W$3:W$101,DATA!$F$3:$F$101,$A92,DATA!$B$3:$B$101,$C$2) -> 438 | T92: =SUMIFS(DATA!X$3:X$101,DATA!$F$3:$F$101,$A92,DATA!$B$3:$B$101,$C$2) -> 446 | U92: =SUMIFS(DATA!Y$3:Y$101,DATA!$F$3:$F$101,$A92,DATA!$B$3:$B$101,$C$2) -> 455 | V92: =SUMIFS(DATA!Z$3:Z$101,DATA!$F$3:$F$101,$A92,DATA!$B$3:$B$101,$C$2) -> 463 | W92: =SUMIFS(DATA!AA$3:AA$101,DATA!$F$3:$F$101,$A92,DATA!$B$3:$B$101,$C$2) -> 472 | X92: =SUMIFS(DATA!AB$3:AB$101,DATA!$F$3:$F$101,$A92,DATA!$B$3:$B$101,$C$2) -> 482 | Y92: =SUMIFS(DATA!AC$3:AC$101,DATA!$F$3:$F$101,$A92,DATA!$B$3:$B$101,$C$2) -> 492 | Z92: =SUMIFS(DATA!AD$3:AD$101,DATA!$F$3:$F$101,$A92,DATA!$B$3:$B$101,$C$2) -> 502 | AA92: =SUMIFS(DATA!AE$3:AE$101,DATA!$F$3:$F$101,$A92,DATA!$B$3:$B$101,$C$2) -> 512 | AB92: =SUMIFS(DATA!AF$3:AF$101,DATA!$F$3:$F$101,$A92,DATA!$B$3:$B$101,$C$2) -> 522 | AC92: =SUMIFS(DATA!AG$3:AG$101,DATA!$F$3:$F$101,$A92,DATA!$B$3:$B$101,$C$2) -> 533 | AD92: =SUMIFS(DATA!AH$3:AH$101,DATA!$F$3:$F$101,$A92,DATA!$B$3:$B$101,$C$2) -> 543 | AE92: =SUMIFS(DATA!AI$3:AI$101,DATA!$F$3:$F$101,$A92,DATA!$B$3:$B$101,$C$2) -> 554 | AF92: =SUMIFS(DATA!AJ$3:AJ$101,DATA!$F$3:$F$101,$A92,DATA!$B$3:$B$101,$C$2) -> 565 | AG92: =SUMIFS(DATA!AK$3:AK$101,DATA!$F$3:$F$101,$A92,DATA!$B$3:$B$101,$C$2) -> 577 | AH92: =SUMIFS(DATA!AL$3:AL$101,DATA!$F$3:$F$101,$A92,DATA!$B$3:$B$101,$C$2) -> 588 | AI92: =SUMIFS(DATA!AM$3:AM$101,DATA!$F$3:$F$101,$A92,DATA!$B$3:$B$101,$C$2) -> 600 | AJ92: =SUMIFS(DATA!AN$3:AN$101,DATA!$F$3:$F$101,$A92,DATA!$B$3:$B$101,$C$2) -> 611 | AK92: =SUMIFS(DATA!AO$3:AO$101,DATA!$F$3:$F$101,$A92,DATA!$B$3:$B$101,$C$2) -> 622 | AL92: =SUMIFS(DATA!AP$3:AP$101,DATA!$F$3:$F$101,$A92,DATA!$B$3:$B$101,$C$2) -> 634 | AM92: =SUMIFS(DATA!AQ$3:AQ$101,DATA!$F$3:$F$101,$A92,DATA!$B$3:$B$101,$C$2) -> 645 | AN92: =SUMIFS(DATA!AR$3:AR$101,DATA!$F$3:$F$101,$A92,DATA!$B$3:$B$101,$C$2) -> 656 | AO92: =SUMIFS(DATA!AS$3:AS$101,DATA!$F$3:$F$101,$A92,DATA!$B$3:$B$101,$C$2) -> 666 | AP92: =SUMIFS(DATA!AT$3:AT$101,DATA!$F$3:$F$101,$A92,DATA!$B$3:$B$101,$C$2) -> 677 | AQ92: =SUMIFS(DATA!AU$3:AU$101,DATA!$F$3:$F$101,$A92,DATA!$B$3:$B$101,$C$2) -> 700 | AR92: =SUMIFS(DATA!AV$3:AV$101,DATA!$F$3:$F$101,$A92,DATA!$B$3:$B$101,$C$2) -> 722 | AS92: =SUMIFS(DATA!AW$3:AW$101,DATA!$F$3:$F$101,$A92,DATA!$B$3:$B$101,$C$2) -> 745 | AT92: =SUMIFS(DATA!AX$3:AX$101,DATA!$F$3:$F$101,$A92,DATA!$B$3:$B$101,$C$2) -> 768 | AU92: =SUMIFS(DATA!AY$3:AY$101,DATA!$F$3:$F$101,$A92,DATA!$B$3:$B$101,$C$2) -> 791 | AV92: =SUMIFS(DATA!AZ$3:AZ$101,DATA!$F$3:$F$101,$A92,DATA!$B$3:$B$101,$C$2) -> 813 | AW92: =SUMIFS(DATA!BA$3:BA$101,DATA!$F$3:$F$101,$A92,DATA!$B$3:$B$101,$C$2) -> 836 | AX92: =SUMIFS(DATA!BB$3:BB$101,DATA!$F$3:$F$101,$A92,DATA!$B$3:$B$101,$C$2) -> 859 | AY92: =SUMIFS(DATA!BC$3:BC$101,DATA!$F$3:$F$101,$A92,DATA!$B$3:$B$101,$C$2) -> 881 | AZ92: =SUMIFS(DATA!BD$3:BD$101,DATA!$F$3:$F$101,$A92,DATA!$B$3:$B$101,$C$2) -> 904
A93: [All Cases 2015 Retained Earnings Adj.] | E93: -257
A94: Retained Earnings | B94: [Formula] | C94: 2442 | D94: =C94+D46+D93 -> 2506.635 | E94: 2091.492457 | F94: 1894.540425 | G94: 1697.279021 | H94: 1494.130387 | I94: 1196.289045 | J94: 989.3515356 | K94: 931.7462407 | L94: 966.860657 | M94: 1028.346029 | N94: 1142.47626 | O94: 1342.988897 | P94: 1555.525078 | Q94: 1705.300426 | R94: 2062.926924 | S94: 2520.171712 | T94: 3136.218788 | U94: 3856.415796 | V94: 4672.779531 | W94: 4832.573068 | X94: 4995.682178 | Y94: 5165.709424 | Z94: 5340.713775 | AA94: 5522.622272 | AB94: 5705.755656 | AC94: 5890.85367 | AD94: 6081.056946 | AE94: 6277.374179 | AF94: 6472.872143 | AG94: 6672.498241 | AH94: 6879.881371 | AI94: 7088.714009 | AJ94: =AI94+AJ46+AJ93 -> 7299.344184 | AK94: 7513.505666 | AL94: 7722.47431 | AM94: 7930.403227 | AN94: 8135.439625 | AO94: 8341.91116 | AP94: 8549.337027 | AQ94: 8758.71751 | AR94: 8964.655712 | AS94: 9164.937402 | AT94: 9363.266063 | AU94: 9560.773925 | AV94: 9753.285367 | AW94: 9935.096644 | AX94: 10114.21909 | AY94: 10301.44262 | AZ94: 10482.8359
A95: Retained Earnings | B95: [Original] | C95: =SUMIFS(DATA!G$3:G$101,DATA!$F$3:$F$101,$A95,DATA!$B$3:$B$101,$C$2) -> 2443 | D95: =SUMIFS(DATA!H$3:H$101,DATA!$F$3:$F$101,$A95,DATA!$B$3:$B$101,$C$2) -> 2508 | E95: =SUMIFS(DATA!I$3:I$101,DATA!$F$3:$F$101,$A95,DATA!$B$3:$B$101,$C$2) -> 2186 | F95: =SUMIFS(DATA!J$3:J$101,DATA!$F$3:$F$101,$A95,DATA!$B$3:$B$101,$C$2) -> 2101 | G95: =SUMIFS(DATA!K$3:K$101,DATA!$F$3:$F$101,$A95,DATA!$B$3:$B$101,$C$2) -> 1995 | H95: =SUMIFS(DATA!L$3:L$101,DATA!$F$3:$F$101,$A95,DATA!$B$3:$B$101,$C$2) -> 1860 | I95: =SUMIFS(DATA!M$3:M$101,DATA!$F$3:$F$101,$A95,DATA!$B$3:$B$101,$C$2) -> 1620 | J95: =SUMIFS(DATA!N$3:N$101,DATA!$F$3:$F$101,$A95,DATA!$B$3:$B$101,$C$2) -> 1449 | K95: =SUMIFS(DATA!O$3:O$101,DATA!$F$3:$F$101,$A95,DATA!$B$3:$B$101,$C$2) -> 1396 | L95: =SUMIFS(DATA!P$3:P$101,DATA!$F$3:$F$101,$A95,DATA!$B$3:$B$101,$C$2) -> 1420 | M95: =SUMIFS(DATA!Q$3:Q$101,DATA!$F$3:$F$101,$A95,DATA!$B$3:$B$101,$C$2) -> 1474 | N95: =SUMIFS(DATA!R$3:R$101,DATA!$F$3:$F$101,$A95,DATA!$B$3:$B$101,$C$2) -> 1570 | O95: =SUMIFS(DATA!S$3:S$101,DATA!$F$3:$F$101,$A95,DATA!$B$3:$B$101,$C$2) -> 1737 | P95: =SUMIFS(DATA!T$3:T$101,DATA!$F$3:$F$101,$A95,DATA!$B$3:$B$101,$C$2) -> 1910 | Q95: =SUMIFS(DATA!U$3:U$101,DATA!$F$3:$F$101,$A95,DATA!$B$3:$B$101,$C$2) -> 2186 | R95: =SUMIFS(DATA!V$3:V$101,DATA!$F$3:$F$101,$A95,DATA!$B$3:$B$101,$C$2) -> 2550 | S95: =SUMIFS(DATA!W$3:W$101,DATA!$F$3:$F$101,$A95,DATA!$B$3:$B$101,$C$2) -> 2983 | T95: =SUMIFS(DATA!X$3:X$101,DATA!$F$3:$F$101,$A95,DATA!$B$3:$B$101,$C$2) -> 3510 | U95: =SUMIFS(DATA!Y$3:Y$101,DATA!$F$3:$F$101,$A95,DATA!$B$3:$B$101,$C$2) -> 4136 | V95: =SUMIFS(DATA!Z$3:Z$101,DATA!$F$3:$F$101,$A95,DATA!$B$3:$B$101,$C$2) -> 4831 | W95: =SUMIFS(DATA!AA$3:AA$101,DATA!$F$3:$F$101,$A95,DATA!$B$3:$B$101,$C$2) -> 4995 | X95: =SUMIFS(DATA!AB$3:AB$101,DATA!$F$3:$F$101,$A95,DATA!$B$3:$B$101,$C$2) -> 5162 | Y95: =SUMIFS(DATA!AC$3:AC$101,DATA!$F$3:$F$101,$A95,DATA!$B$3:$B$101,$C$2) -> 5337 | Z95: =SUMIFS(DATA!AD$3:AD$101,DATA!$F$3:$F$101,$A95,DATA!$B$3:$B$101,$C$2) -> 5518 | AA95: =SUMIFS(DATA!AE$3:AE$101,DATA!$F$3:$F$101,$A95,DATA!$B$3:$B$101,$C$2) -> 5703 | AB95: =SUMIFS(DATA!AF$3:AF$101,DATA!$F$3:$F$101,$A95,DATA!$B$3:$B$101,$C$2) -> 5891 | AC95: =SUMIFS(DATA!AG$3:AG$101,DATA!$F$3:$F$101,$A95,DATA!$B$3:$B$101,$C$2) -> 6083 | AD95: =SUMIFS(DATA!AH$3:AH$101,DATA!$F$3:$F$101,$A95,DATA!$B$3:$B$101,$C$2) -> 6279 | AE95: =SUMIFS(DATA!AI$3:AI$101,DATA!$F$3:$F$101,$A95,DATA!$B$3:$B$101,$C$2) -> 6477 | AF95: =SUMIFS(DATA!AJ$3:AJ$101,DATA!$F$3:$F$101,$A95,DATA!$B$3:$B$101,$C$2) -> 6677 | AG95: =SUMIFS(DATA!AK$3:AK$101,DATA!$F$3:$F$101,$A95,DATA!$B$3:$B$101,$C$2) -> 6883 | AH95: =SUMIFS(DATA!AL$3:AL$101,DATA!$F$3:$F$101,$A95,DATA!$B$3:$B$101,$C$2) -> 7093 | AI95: =SUMIFS(DATA!AM$3:AM$101,DATA!$F$3:$F$101,$A95,DATA!$B$3:$B$101,$C$2) -> 7306 | AJ95: =SUMIFS(DATA!AN$3:AN$101,DATA!$F$3:$F$101,$A95,DATA!$B$3:$B$101,$C$2) -> 7519 | AK95: =SUMIFS(DATA!AO$3:AO$101,DATA!$F$3:$F$101,$A95,DATA!$B$3:$B$101,$C$2) -> 7732 | AL95: =SUMIFS(DATA!AP$3:AP$101,DATA!$F$3:$F$101,$A95,DATA!$B$3:$B$101,$C$2) -> 7940 | AM95: =SUMIFS(DATA!AQ$3:AQ$101,DATA!$F$3:$F$101,$A95,DATA!$B$3:$B$101,$C$2) -> 8147 | AN95: =SUMIFS(DATA!AR$3:AR$101,DATA!$F$3:$F$101,$A95,DATA!$B$3:$B$101,$C$2) -> 8350 | AO95: =SUMIFS(DATA!AS$3:AS$101,DATA!$F$3:$F$101,$A95,DATA!$B$3:$B$101,$C$2) -> 8554 | AP95: =SUMIFS(DATA!AT$3:AT$101,DATA!$F$3:$F$101,$A95,DATA!$B$3:$B$101,$C$2) -> 8758 | AQ95: =SUMIFS(DATA!AU$3:AU$101,DATA!$F$3:$F$101,$A95,DATA!$B$3:$B$101,$C$2) -> 8962 | AR95: =SUMIFS(DATA!AV$3:AV$101,DATA!$F$3:$F$101,$A95,DATA!$B$3:$B$101,$C$2) -> 9167 | AS95: =SUMIFS(DATA!AW$3:AW$101,DATA!$F$3:$F$101,$A95,DATA!$B$3:$B$101,$C$2) -> 9371 | AT95: =SUMIFS(DATA!AX$3:AX$101,DATA!$F$3:$F$101,$A95,DATA!$B$3:$B$101,$C$2) -> 9571 | AU95: =SUMIFS(DATA!AY$3:AY$101,DATA!$F$3:$F$101,$A95,DATA!$B$3:$B$101,$C$2) -> 9769 | AV95: =SUMIFS(DATA!AZ$3:AZ$101,DATA!$F$3:$F$101,$A95,DATA!$B$3:$B$101,$C$2) -> 9964 | AW95: =SUMIFS(DATA!BA$3:BA$101,DATA!$F$3:$F$101,$A95,DATA!$B$3:$B$101,$C$2) -> 10158 | AX95: =SUMIFS(DATA!BB$3:BB$101,DATA!$F$3:$F$101,$A95,DATA!$B$3:$B$101,$C$2) -> 10354 | AY95: =SUMIFS(DATA!BC$3:BC$101,DATA!$F$3:$F$101,$A95,DATA!$B$3:$B$101,$C$2) -> 10552 | AZ95: =SUMIFS(DATA!BD$3:BD$101,DATA!$F$3:$F$101,$A95,DATA!$B$3:$B$101,$C$2) -> 10748
A96: Accumulated Other Comprehensive Income | C96: =SUMIFS(DATA!G$3:G$101,DATA!$F$3:$F$101,$A96,DATA!$B$3:$B$101,$C$2) -> 299 | D96: =SUMIFS(DATA!H$3:H$101,DATA!$F$3:$F$101,$A96,DATA!$B$3:$B$101,$C$2) -> 287 | E96: =SUMIFS(DATA!I$3:I$101,DATA!$F$3:$F$101,$A96,DATA!$B$3:$B$101,$C$2) -> -159 | F96: =SUMIFS(DATA!J$3:J$101,DATA!$F$3:$F$101,$A96,DATA!$B$3:$B$101,$C$2) -> -219 | G96: =SUMIFS(DATA!K$3:K$101,DATA!$F$3:$F$101,$A96,DATA!$B$3:$B$101,$C$2) -> -267 | H96: =SUMIFS(DATA!L$3:L$101,DATA!$F$3:$F$101,$A96,DATA!$B$3:$B$101,$C$2) -> -298 | I96: =SUMIFS(DATA!M$3:M$101,DATA!$F$3:$F$101,$A96,DATA!$B$3:$B$101,$C$2) -> -317 | J96: =SUMIFS(DATA!N$3:N$101,DATA!$F$3:$F$101,$A96,DATA!$B$3:$B$101,$C$2) -> -337 | K96: =SUMIFS(DATA!O$3:O$101,DATA!$F$3:$F$101,$A96,DATA!$B$3:$B$101,$C$2) -> -360 | L96: =SUMIFS(DATA!P$3:P$101,DATA!$F$3:$F$101,$A96,DATA!$B$3:$B$101,$C$2) -> -388 | M96: =SUMIFS(DATA!Q$3:Q$101,DATA!$F$3:$F$101,$A96,DATA!$B$3:$B$101,$C$2) -> -404 | N96: =SUMIFS(DATA!R$3:R$101,DATA!$F$3:$F$101,$A96,DATA!$B$3:$B$101,$C$2) -> -404 | O96: =SUMIFS(DATA!S$3:S$101,DATA!$F$3:$F$101,$A96,DATA!$B$3:$B$101,$C$2) -> -404 | P96: =SUMIFS(DATA!T$3:T$101,DATA!$F$3:$F$101,$A96,DATA!$B$3:$B$101,$C$2) -> -404 | Q96: =SUMIFS(DATA!U$3:U$101,DATA!$F$3:$F$101,$A96,DATA!$B$3:$B$101,$C$2) -> -404 | R96: =SUMIFS(DATA!V$3:V$101,DATA!$F$3:$F$101,$A96,DATA!$B$3:$B$101,$C$2) -> -404 | S96: =SUMIFS(DATA!W$3:W$101,DATA!$F$3:$F$101,$A96,DATA!$B$3:$B$101,$C$2) -> -404 | T96: =SUMIFS(DATA!X$3:X$101,DATA!$F$3:$F$101,$A96,DATA!$B$3:$B$101,$C$2) -> -404 | U96: =SUMIFS(DATA!Y$3:Y$101,DATA!$F$3:$F$101,$A96,DATA!$B$3:$B$101,$C$2) -> -404 | V96: =SUMIFS(DATA!Z$3:Z$101,DATA!$F$3:$F$101,$A96,DATA!$B$3:$B$101,$C$2) -> -404 | W96: =SUMIFS(DATA!AA$3:AA$101,DATA!$F$3:$F$101,$A96,DATA!$B$3:$B$101,$C$2) -> -404 | X96: =SUMIFS(DATA!AB$3:AB$101,DATA!$F$3:$F$101,$A96,DATA!$B$3:$B$101,$C$2) -> -404 | Y96: =SUMIFS(DATA!AC$3:AC$101,DATA!$F$3:$F$101,$A96,DATA!$B$3:$B$101,$C$2) -> -404 | Z96: =SUMIFS(DATA!AD$3:AD$101,DATA!$F$3:$F$101,$A96,DATA!$B$3:$B$101,$C$2) -> -404 | AA96: =SUMIFS(DATA!AE$3:AE$101,DATA!$F$3:$F$101,$A96,DATA!$B$3:$B$101,$C$2) -> -404 | AB96: =SUMIFS(DATA!AF$3:AF$101,DATA!$F$3:$F$101,$A96,DATA!$B$3:$B$101,$C$2) -> -404 | AC96: =SUMIFS(DATA!AG$3:AG$101,DATA!$F$3:$F$101,$A96,DATA!$B$3:$B$101,$C$2) -> -404 | AD96: =SUMIFS(DATA!AH$3:AH$101,DATA!$F$3:$F$101,$A96,DATA!$B$3:$B$101,$C$2) -> -404 | AE96: =SUMIFS(DATA!AI$3:AI$101,DATA!$F$3:$F$101,$A96,DATA!$B$3:$B$101,$C$2) -> -404 | AF96: =SUMIFS(DATA!AJ$3:AJ$101,DATA!$F$3:$F$101,$A96,DATA!$B$3:$B$101,$C$2) -> -404 | AG96: =SUMIFS(DATA!AK$3:AK$101,DATA!$F$3:$F$101,$A96,DATA!$B$3:$B$101,$C$2) -> -404 | AH96: =SUMIFS(DATA!AL$3:AL$101,DATA!$F$3:$F$101,$A96,DATA!$B$3:$B$101,$C$2) -> -404 | AI96: =SUMIFS(DATA!AM$3:AM$101,DATA!$F$3:$F$101,$A96,DATA!$B$3:$B$101,$C$2) -> -404 | AJ96: =SUMIFS(DATA!AN$3:AN$101,DATA!$F$3:$F$101,$A96,DATA!$B$3:$B$101,$C$2) -> -404 | AK96: =SUMIFS(DATA!AO$3:AO$101,DATA!$F$3:$F$101,$A96,DATA!$B$3:$B$101,$C$2) -> -404 | AL96: =SUMIFS(DATA!AP$3:AP$101,DATA!$F$3:$F$101,$A96,DATA!$B$3:$B$101,$C$2) -> -404 | AM96: =SUMIFS(DATA!AQ$3:AQ$101,DATA!$F$3:$F$101,$A96,DATA!$B$3:$B$101,$C$2) -> -404 | AN96: =SUMIFS(DATA!AR$3:AR$101,DATA!$F$3:$F$101,$A96,DATA!$B$3:$B$101,$C$2) -> -404 | AO96: =SUMIFS(DATA!AS$3:AS$101,DATA!$F$3:$F$101,$A96,DATA!$B$3:$B$101,$C$2) -> -404 | AP96: =SUMIFS(DATA!AT$3:AT$101,DATA!$F$3:$F$101,$A96,DATA!$B$3:$B$101,$C$2) -> -404 | AQ96: =SUMIFS(DATA!AU$3:AU$101,DATA!$F$3:$F$101,$A96,DATA!$B$3:$B$101,$C$2) -> -404 | AR96: =SUMIFS(DATA!AV$3:AV$101,DATA!$F$3:$F$101,$A96,DATA!$B$3:$B$101,$C$2) -> -404 | AS96: =SUMIFS(DATA!AW$3:AW$101,DATA!$F$3:$F$101,$A96,DATA!$B$3:$B$101,$C$2) -> -404 | AT96: =SUMIFS(DATA!AX$3:AX$101,DATA!$F$3:$F$101,$A96,DATA!$B$3:$B$101,$C$2) -> -404 | AU96: =SUMIFS(DATA!AY$3:AY$101,DATA!$F$3:$F$101,$A96,DATA!$B$3:$B$101,$C$2) -> -404 | AV96: =SUMIFS(DATA!AZ$3:AZ$101,DATA!$F$3:$F$101,$A96,DATA!$B$3:$B$101,$C$2) -> -404 | AW96: =SUMIFS(DATA!BA$3:BA$101,DATA!$F$3:$F$101,$A96,DATA!$B$3:$B$101,$C$2) -> -404 | AX96: =SUMIFS(DATA!BB$3:BB$101,DATA!$F$3:$F$101,$A96,DATA!$B$3:$B$101,$C$2) -> -404 | AY96: =SUMIFS(DATA!BC$3:BC$101,DATA!$F$3:$F$101,$A96,DATA!$B$3:$B$101,$C$2) -> -404 | AZ96: =SUMIFS(DATA!BD$3:BD$101,DATA!$F$3:$F$101,$A96,DATA!$B$3:$B$101,$C$2) -> -404
A97: Total Liabilities and Equity | B97: [Formula] | C97: =SUM(C89:C92,C94,C96) -> 14586 | D97: =SUM(D89:D92,D94,D96) -> 17860.635 | E97: 17694.49246 | F97: 18760.54042 | G97: 18879.27902 | H97: 18917.13039 | I97: 18690.28904 | J97: 17855.35154 | K97: 18238.74624 | L97: 18064.86066 | M97: 18621.34603 | N97: 18598.47626 | O97: 18621.9889 | P97: 19365.52508 | Q97: 19113.30043 | R97: 19521.92692 | S97: 20840.17171 | T97: 20615.21879 | U97: 21487.4158 | V97: =SUM(V89:V92,V94,V96) -> 21884.77953 | W97: 19825.57307 | X97: 23389.68218 | Y97: 22170.70942 | Z97: 24281.71377 | AA97: 23237.62227 | AB97: 24745.75566 | AC97: 25530.85367 | AD97: 25008.05695 | AE97: 25549.37418 | AF97: 26466.87214 | AG97: 27565.49824 | AH97: 27854.88137 | AI97: 27646.71401 | AJ97: 27973.34418 | AK97: 28389.50567 | AL97: 28110.47431 | AM97: 27595.40323 | AN97: 27820.43962 | AO97: 28741.91116 | AP97: 28896.33703 | AQ97: 26540.71751 | AR97: 29709.65571 | AS97: 27742.9374 | AT97: 29780.26606 | AU97: 27810.77392 | AV97: 29433.28537 | AW97: 29710.09664 | AX97: 29914.21909 | AY97: 29324.44262 | AZ97: 29665.8359
A98: Total Liabilities and Equity | B98: [Original] | C98: =SUMIFS(DATA!G$3:G$101,DATA!$F$3:$F$101,$A98,DATA!$B$3:$B$101,$C$2) -> 14587 | D98: =SUMIFS(DATA!H$3:H$101,DATA!$F$3:$F$101,$A98,DATA!$B$3:$B$101,$C$2) -> 15891 | E98: =SUMIFS(DATA!I$3:I$101,DATA!$F$3:$F$101,$A98,DATA!$B$3:$B$101,$C$2) -> 16630 | F98: =SUMIFS(DATA!J$3:J$101,DATA!$F$3:$F$101,$A98,DATA!$B$3:$B$101,$C$2) -> 17682 | G98: =SUMIFS(DATA!K$3:K$101,DATA!$F$3:$F$101,$A98,DATA!$B$3:$B$101,$C$2) -> 18477 | H98: =SUMIFS(DATA!L$3:L$101,DATA!$F$3:$F$101,$A98,DATA!$B$3:$B$101,$C$2) -> 18910 | I98: =SUMIFS(DATA!M$3:M$101,DATA!$F$3:$F$101,$A98,DATA!$B$3:$B$101,$C$2) -> 18618 | J98: =SUMIFS(DATA!N$3:N$101,DATA!$F$3:$F$101,$A98,DATA!$B$3:$B$101,$C$2) -> 18550 | K98: =SUMIFS(DATA!O$3:O$101,DATA!$F$3:$F$101,$A98,DATA!$B$3:$B$101,$C$2) -> 18580 | L98: =SUMIFS(DATA!P$3:P$101,DATA!$F$3:$F$101,$A98,DATA!$B$3:$B$101,$C$2) -> 18366 | M98: =SUMIFS(DATA!Q$3:Q$101,DATA!$F$3:$F$101,$A98,DATA!$B$3:$B$101,$C$2) -> 18465 | N98: =SUMIFS(DATA!R$3:R$101,DATA!$F$3:$F$101,$A98,DATA!$B$3:$B$101,$C$2) -> 18824 | O98: =SUMIFS(DATA!S$3:S$101,DATA!$F$3:$F$101,$A98,DATA!$B$3:$B$101,$C$2) -> 19262 | P98: =SUMIFS(DATA!T$3:T$101,DATA!$F$3:$F$101,$A98,DATA!$B$3:$B$101,$C$2) -> 19318 | Q98: =SUMIFS(DATA!U$3:U$101,DATA!$F$3:$F$101,$A98,DATA!$B$3:$B$101,$C$2) -> 19592 | R98: =SUMIFS(DATA!V$3:V$101,DATA!$F$3:$F$101,$A98,DATA!$B$3:$B$101,$C$2) -> 20071 | S98: =SUMIFS(DATA!W$3:W$101,DATA!$F$3:$F$101,$A98,DATA!$B$3:$B$101,$C$2) -> 20953 | T98: =SUMIFS(DATA!X$3:X$101,DATA!$F$3:$F$101,$A98,DATA!$B$3:$B$101,$C$2) -> 21488 | U98: =SUMIFS(DATA!Y$3:Y$101,DATA!$F$3:$F$101,$A98,DATA!$B$3:$B$101,$C$2) -> 21577 | V98: =SUMIFS(DATA!Z$3:Z$101,DATA!$F$3:$F$101,$A98,DATA!$B$3:$B$101,$C$2) -> 22270 | W98: =SUMIFS(DATA!AA$3:AA$101,DATA!$F$3:$F$101,$A98,DATA!$B$3:$B$101,$C$2) -> 22214 | X98: =SUMIFS(DATA!AB$3:AB$101,DATA!$F$3:$F$101,$A98,DATA!$B$3:$B$101,$C$2) -> 22568 | Y98: =SUMIFS(DATA!AC$3:AC$101,DATA!$F$3:$F$101,$A98,DATA!$B$3:$B$101,$C$2) -> 22814 | Z98: =SUMIFS(DATA!AD$3:AD$101,DATA!$F$3:$F$101,$A98,DATA!$B$3:$B$101,$C$2) -> 23458 | AA98: =SUMIFS(DATA!AE$3:AE$101,DATA!$F$3:$F$101,$A98,DATA!$B$3:$B$101,$C$2) -> 23767 | AB98: =SUMIFS(DATA!AF$3:AF$101,DATA!$F$3:$F$101,$A98,DATA!$B$3:$B$101,$C$2) -> 24129 | AC98: =SUMIFS(DATA!AG$3:AG$101,DATA!$F$3:$F$101,$A98,DATA!$B$3:$B$101,$C$2) -> 24820 | AD98: =SUMIFS(DATA!AH$3:AH$101,DATA!$F$3:$F$101,$A98,DATA!$B$3:$B$101,$C$2) -> 25254 | AE98: =SUMIFS(DATA!AI$3:AI$101,DATA!$F$3:$F$101,$A98,DATA!$B$3:$B$101,$C$2) -> 25599 | AF98: =SUMIFS(DATA!AJ$3:AJ$101,DATA!$F$3:$F$101,$A98,DATA!$B$3:$B$101,$C$2) -> 26173 | AG98: =SUMIFS(DATA!AK$3:AK$101,DATA!$F$3:$F$101,$A98,DATA!$B$3:$B$101,$C$2) -> 26826 | AH98: =SUMIFS(DATA!AL$3:AL$101,DATA!$F$3:$F$101,$A98,DATA!$B$3:$B$101,$C$2) -> 27472 | AI98: =SUMIFS(DATA!AM$3:AM$101,DATA!$F$3:$F$101,$A98,DATA!$B$3:$B$101,$C$2) -> 27866 | AJ98: =SUMIFS(DATA!AN$3:AN$101,DATA!$F$3:$F$101,$A98,DATA!$B$3:$B$101,$C$2) -> 27996 | AK98: =SUMIFS(DATA!AO$3:AO$101,DATA!$F$3:$F$101,$A98,DATA!$B$3:$B$101,$C$2) -> 28412 | AL98: =SUMIFS(DATA!AP$3:AP$101,DATA!$F$3:$F$101,$A98,DATA!$B$3:$B$101,$C$2) -> 28729 | AM98: =SUMIFS(DATA!AQ$3:AQ$101,DATA!$F$3:$F$101,$A98,DATA!$B$3:$B$101,$C$2) -> 28339 | AN98: =SUMIFS(DATA!AR$3:AR$101,DATA!$F$3:$F$101,$A98,DATA!$B$3:$B$101,$C$2) -> 28237 | AO98: =SUMIFS(DATA!AS$3:AS$101,DATA!$F$3:$F$101,$A98,DATA!$B$3:$B$101,$C$2) -> 28554 | AP98: =SUMIFS(DATA!AT$3:AT$101,DATA!$F$3:$F$101,$A98,DATA!$B$3:$B$101,$C$2) -> 28957 | AQ98: =SUMIFS(DATA!AU$3:AU$101,DATA!$F$3:$F$101,$A98,DATA!$B$3:$B$101,$C$2) -> 29144 | AR98: =SUMIFS(DATA!AV$3:AV$101,DATA!$F$3:$F$101,$A98,DATA!$B$3:$B$101,$C$2) -> 29115 | AS98: =SUMIFS(DATA!AW$3:AW$101,DATA!$F$3:$F$101,$A98,DATA!$B$3:$B$101,$C$2) -> 29149 | AT98: =SUMIFS(DATA!AX$3:AX$101,DATA!$F$3:$F$101,$A98,DATA!$B$3:$B$101,$C$2) -> 29189 | AU98: =SUMIFS(DATA!AY$3:AY$101,DATA!$F$3:$F$101,$A98,DATA!$B$3:$B$101,$C$2) -> 29027 | AV98: =SUMIFS(DATA!AZ$3:AZ$101,DATA!$F$3:$F$101,$A98,DATA!$B$3:$B$101,$C$2) -> 29244 | AW98: =SUMIFS(DATA!BA$3:BA$101,DATA!$F$3:$F$101,$A98,DATA!$B$3:$B$101,$C$2) -> 29459 | AX98: =SUMIFS(DATA!BB$3:BB$101,DATA!$F$3:$F$101,$A98,DATA!$B$3:$B$101,$C$2) -> 29955 | AY98: =SUMIFS(DATA!BC$3:BC$101,DATA!$F$3:$F$101,$A98,DATA!$B$3:$B$101,$C$2) -> 29976 | AZ98: =SUMIFS(DATA!BD$3:BD$101,DATA!$F$3:$F$101,$A98,DATA!$B$3:$B$101,$C$2) -> 29981
B99: [Difference] | C99: =C97-C98 -> -1 | D99: =D97-D98 -> 1969.635 | E99: =E97-E98 -> 1064.492457 | F99: =F97-F98 -> 1078.540425 | G99: =G97-G98 -> 402.279021 | H99: =H97-H98 -> 7.130387188 | I99: =I97-I98 -> 72.28904471 | J99: =J97-J98 -> -694.6484644 | K99: =K97-K98 -> -341.2537593 | L99: =L97-L98 -> -301.139343 | M99: =M97-M98 -> 156.3460289 | N99: =N97-N98 -> -225.5237404 | O99: =O97-O98 -> -640.0111032 | P99: =P97-P98 -> 47.52507799 | Q99: =Q97-Q98 -> -478.6995738 | R99: =R97-R98 -> -549.0730755 | S99: =S97-S98 -> -112.8282879 | T99: =T97-T98 -> -872.781212 | U99: =U97-U98 -> -89.5842036 | V99: =V97-V98 -> -385.220469 | W99: =W97-W98 -> -2388.426932 | X99: =X97-X98 -> 821.6821784 | Y99: =Y97-Y98 -> -643.290576 | Z99: =Z97-Z98 -> 823.7137746 | AA99: =AA97-AA98 -> -529.3777281 | AB99: =AB97-AB98 -> 616.7556563 | AC99: =AC97-AC98 -> 710.8536704 | AD99: =AD97-AD98 -> -245.9430543 | AE99: =AE97-AE98 -> -49.62582125 | AF99: =AF97-AF98 -> 293.8721434 | AG99: =AG97-AG98 -> 739.4982415 | AH99: =AH97-AH98 -> 382.8813708 | AI99: =AI97-AI98 -> -219.2859909 | AJ99: =AJ97-AJ98 -> -22.65581578 | AK99: =AK97-AK98 -> -22.49433442 | AL99: =AL97-AL98 -> -618.5256896 | AM99: =AM97-AM98 -> -743.5967731 | AN99: =AN97-AN98 -> -416.5603755 | AO99: =AO97-AO98 -> 187.9111596 | AP99: =AP97-AP98 -> -60.66297275 | AQ99: =AQ97-AQ98 -> -2603.28249 | AR99: =AR97-AR98 -> 594.6557122 | AS99: =AS97-AS98 -> -1406.062598 | AT99: =AT97-AT98 -> 591.2660628 | AU99: =AU97-AU98 -> -1216.226075 | AV99: =AV97-AV98 -> 189.2853669 | AW99: =AW97-AW98 -> 251.0966442 | AX99: =AX97-AX98 -> -40.78090703 | AY99: =AY97-AY98 -> -651.5573773 | AZ99: =AZ97-AZ98 -> -315.164103
C101: 2013 | D101: 2014 | E101: 2015 | F101: 2016 | G101: 2017 | H101: 2018 | I101: 2019 | J101: 2020 | K101: 2021 | L101: 2022 | M101: 2023 | N101: 2024 | O101: 2025 | P101: 2026 | Q101: 2027 | R101: 2028 | S101: 2029 | T101: 2030 | U101: 2031 | V101: 2032 | W101: 2033 | X101: 2034 | Y101: 2035 | Z101: 2036 | AA101: 2037 | AB101: 2038 | AC101: 2039 | AD101: 2040 | AE101: 2041 | AF101: 2042 | AG101: 2043 | AH101: 2044 | AI101: 2045 | AJ101: 2046 | AK101: 2047 | AL101: 2048 | AM101: 2049 | AN101: 2050 | AO101: 2051 | AP101: 2052 | AQ101: 2053 | AR101: 2054 | AS101: 2055 | AT101: 2056 | AU101: 2057 | AV101: 2058 | AW101: 2059 | AX101: 2060 | AY101: 2061 | AZ101: 2062
A102: OPERATING ACTIVITIES
A103: Cash Receipts from Customers | C103: =SUMIFS(DATA!G$3:G$101,DATA!$F$3:$F$101,$A103,DATA!$B$3:$B$101,$C$2) -> 1692 | D103: =SUMIFS(DATA!H$3:H$101,DATA!$F$3:$F$101,$A103,DATA!$B$3:$B$101,$C$2) -> 1768 | E103: =SUMIFS(DATA!I$3:I$101,DATA!$F$3:$F$101,$A103,DATA!$B$3:$B$101,$C$2) -> 1821 | F103: =SUMIFS(DATA!J$3:J$101,DATA!$F$3:$F$101,$A103,DATA!$B$3:$B$101,$C$2) -> 1928 | G103: =SUMIFS(DATA!K$3:K$101,DATA!$F$3:$F$101,$A103,DATA!$B$3:$B$101,$C$2) -> 2014 | H103: =SUMIFS(DATA!L$3:L$101,DATA!$F$3:$F$101,$A103,DATA!$B$3:$B$101,$C$2) -> 2120 | I103: =SUMIFS(DATA!M$3:M$101,DATA!$F$3:$F$101,$A103,DATA!$B$3:$B$101,$C$2) -> 2192 | J103: =SUMIFS(DATA!N$3:N$101,DATA!$F$3:$F$101,$A103,DATA!$B$3:$B$101,$C$2) -> 2270 | K103: =SUMIFS(DATA!O$3:O$101,DATA!$F$3:$F$101,$A103,DATA!$B$3:$B$101,$C$2) -> 2409 | L103: =SUMIFS(DATA!P$3:P$101,DATA!$F$3:$F$101,$A103,DATA!$B$3:$B$101,$C$2) -> 2516 | M103: =SUMIFS(DATA!Q$3:Q$101,DATA!$F$3:$F$101,$A103,DATA!$B$3:$B$101,$C$2) -> 2611 | N103: =SUMIFS(DATA!R$3:R$101,DATA!$F$3:$F$101,$A103,DATA!$B$3:$B$101,$C$2) -> 2709 | O103: =SUMIFS(DATA!S$3:S$101,DATA!$F$3:$F$101,$A103,DATA!$B$3:$B$101,$C$2) -> 2820 | P103: =SUMIFS(DATA!T$3:T$101,DATA!$F$3:$F$101,$A103,DATA!$B$3:$B$101,$C$2) -> 2856 | Q103: =SUMIFS(DATA!U$3:U$101,DATA!$F$3:$F$101,$A103,DATA!$B$3:$B$101,$C$2) -> 2961 | R103: =SUMIFS(DATA!V$3:V$101,DATA!$F$3:$F$101,$A103,DATA!$B$3:$B$101,$C$2) -> 3074 | S103: =SUMIFS(DATA!W$3:W$101,DATA!$F$3:$F$101,$A103,DATA!$B$3:$B$101,$C$2) -> 3194 | T103: =SUMIFS(DATA!X$3:X$101,DATA!$F$3:$F$101,$A103,DATA!$B$3:$B$101,$C$2) -> 3321 | U103: =SUMIFS(DATA!Y$3:Y$101,DATA!$F$3:$F$101,$A103,DATA!$B$3:$B$101,$C$2) -> 3491 | V103: =SUMIFS(DATA!Z$3:Z$101,DATA!$F$3:$F$101,$A103,DATA!$B$3:$B$101,$C$2) -> 3674 | W103: =SUMIFS(DATA!AA$3:AA$101,DATA!$F$3:$F$101,$A103,DATA!$B$3:$B$101,$C$2) -> 3113 | X103: =SUMIFS(DATA!AB$3:AB$101,DATA!$F$3:$F$101,$A103,DATA!$B$3:$B$101,$C$2) -> 3170 | Y103: =SUMIFS(DATA!AC$3:AC$101,DATA!$F$3:$F$101,$A103,DATA!$B$3:$B$101,$C$2) -> 3349 | Z103: =SUMIFS(DATA!AD$3:AD$101,DATA!$F$3:$F$101,$A103,DATA!$B$3:$B$101,$C$2) -> 3421 | AA103: =SUMIFS(DATA!AE$3:AE$101,DATA!$F$3:$F$101,$A103,DATA!$B$3:$B$101,$C$2) -> 3476 | AB103: =SUMIFS(DATA!AF$3:AF$101,DATA!$F$3:$F$101,$A103,DATA!$B$3:$B$101,$C$2) -> 3679 | AC103: =SUMIFS(DATA!AG$3:AG$101,DATA!$F$3:$F$101,$A103,DATA!$B$3:$B$101,$C$2) -> 3765 | AD103: =SUMIFS(DATA!AH$3:AH$101,DATA!$F$3:$F$101,$A103,DATA!$B$3:$B$101,$C$2) -> 3833 | AE103: =SUMIFS(DATA!AI$3:AI$101,DATA!$F$3:$F$101,$A103,DATA!$B$3:$B$101,$C$2) -> 4061 | AF103: =SUMIFS(DATA!AJ$3:AJ$101,DATA!$F$3:$F$101,$A103,DATA!$B$3:$B$101,$C$2) -> 4191 | AG103: =SUMIFS(DATA!AK$3:AK$101,DATA!$F$3:$F$101,$A103,DATA!$B$3:$B$101,$C$2) -> 4355 | AH103: =SUMIFS(DATA!AL$3:AL$101,DATA!$F$3:$F$101,$A103,DATA!$B$3:$B$101,$C$2) -> 4432 | AI103: =SUMIFS(DATA!AM$3:AM$101,DATA!$F$3:$F$101,$A103,DATA!$B$3:$B$101,$C$2) -> 4648 | AJ103: =SUMIFS(DATA!AN$3:AN$101,DATA!$F$3:$F$101,$A103,DATA!$B$3:$B$101,$C$2) -> 4816 | AK103: =SUMIFS(DATA!AO$3:AO$101,DATA!$F$3:$F$101,$A103,DATA!$B$3:$B$101,$C$2) -> 4966 | AL103: =SUMIFS(DATA!AP$3:AP$101,DATA!$F$3:$F$101,$A103,DATA!$B$3:$B$101,$C$2) -> 5060 | AM103: =SUMIFS(DATA!AQ$3:AQ$101,DATA!$F$3:$F$101,$A103,DATA!$B$3:$B$101,$C$2) -> 5088 | AN103: =SUMIFS(DATA!AR$3:AR$101,DATA!$F$3:$F$101,$A103,DATA!$B$3:$B$101,$C$2) -> 5142 | AO103: =SUMIFS(DATA!AS$3:AS$101,DATA!$F$3:$F$101,$A103,DATA!$B$3:$B$101,$C$2) -> 5277 | AP103: =SUMIFS(DATA!AT$3:AT$101,DATA!$F$3:$F$101,$A103,DATA!$B$3:$B$101,$C$2) -> 5354 | AQ103: =SUMIFS(DATA!AU$3:AU$101,DATA!$F$3:$F$101,$A103,DATA!$B$3:$B$101,$C$2) -> 5448 | AR103: =SUMIFS(DATA!AV$3:AV$101,DATA!$F$3:$F$101,$A103,DATA!$B$3:$B$101,$C$2) -> 5588 | AS103: =SUMIFS(DATA!AW$3:AW$101,DATA!$F$3:$F$101,$A103,DATA!$B$3:$B$101,$C$2) -> 5657 | AT103: =SUMIFS(DATA!AX$3:AX$101,DATA!$F$3:$F$101,$A103,DATA!$B$3:$B$101,$C$2) -> 5741 | AU103: =SUMIFS(DATA!AY$3:AY$101,DATA!$F$3:$F$101,$A103,DATA!$B$3:$B$101,$C$2) -> 5820 | AV103: =SUMIFS(DATA!AZ$3:AZ$101,DATA!$F$3:$F$101,$A103,DATA!$B$3:$B$101,$C$2) -> 5869 | AW103: =SUMIFS(DATA!BA$3:BA$101,DATA!$F$3:$F$101,$A103,DATA!$B$3:$B$101,$C$2) -> 5966 | AX103: =SUMIFS(DATA!BB$3:BB$101,DATA!$F$3:$F$101,$A103,DATA!$B$3:$B$101,$C$2) -> 6058 | AY103: =SUMIFS(DATA!BC$3:BC$101,DATA!$F$3:$F$101,$A103,DATA!$B$3:$B$101,$C$2) -> 6154 | AZ103: =SUMIFS(DATA!BD$3:BD$101,DATA!$F$3:$F$101,$A103,DATA!$B$3:$B$101,$C$2) -> 6302
A104: Cash Paid to Suppliers and Employees | C104: =SUMIFS(DATA!G$3:G$101,DATA!$F$3:$F$101,$A104,DATA!$B$3:$B$101,$C$2) -> -782 | D104: =SUMIFS(DATA!H$3:H$101,DATA!$F$3:$F$101,$A104,DATA!$B$3:$B$101,$C$2) -> -822 | E104: =SUMIFS(DATA!I$3:I$101,DATA!$F$3:$F$101,$A104,DATA!$B$3:$B$101,$C$2) -> -898 | F104: =SUMIFS(DATA!J$3:J$101,DATA!$F$3:$F$101,$A104,DATA!$B$3:$B$101,$C$2) -> -926 | G104: =SUMIFS(DATA!K$3:K$101,DATA!$F$3:$F$101,$A104,DATA!$B$3:$B$101,$C$2) -> -952 | H104: =SUMIFS(DATA!L$3:L$101,DATA!$F$3:$F$101,$A104,DATA!$B$3:$B$101,$C$2) -> -981 | I104: =SUMIFS(DATA!M$3:M$101,DATA!$F$3:$F$101,$A104,DATA!$B$3:$B$101,$C$2) -> -1000 | J104: =SUMIFS(DATA!N$3:N$101,DATA!$F$3:$F$101,$A104,DATA!$B$3:$B$101,$C$2) -> -1011 | K104: =SUMIFS(DATA!O$3:O$101,DATA!$F$3:$F$101,$A104,DATA!$B$3:$B$101,$C$2) -> -1033 | L104: =SUMIFS(DATA!P$3:P$101,DATA!$F$3:$F$101,$A104,DATA!$B$3:$B$101,$C$2) -> -1060 | M104: =SUMIFS(DATA!Q$3:Q$101,DATA!$F$3:$F$101,$A104,DATA!$B$3:$B$101,$C$2) -> -1102 | N104: =SUMIFS(DATA!R$3:R$101,DATA!$F$3:$F$101,$A104,DATA!$B$3:$B$101,$C$2) -> -1138 | O104: =SUMIFS(DATA!S$3:S$101,DATA!$F$3:$F$101,$A104,DATA!$B$3:$B$101,$C$2) -> -1170 | P104: =SUMIFS(DATA!T$3:T$101,DATA!$F$3:$F$101,$A104,DATA!$B$3:$B$101,$C$2) -> -1169 | Q104: =SUMIFS(DATA!U$3:U$101,DATA!$F$3:$F$101,$A104,DATA!$B$3:$B$101,$C$2) -> -1191 | R104: =SUMIFS(DATA!V$3:V$101,DATA!$F$3:$F$101,$A104,DATA!$B$3:$B$101,$C$2) -> -1227 | S104: =SUMIFS(DATA!W$3:W$101,DATA!$F$3:$F$101,$A104,DATA!$B$3:$B$101,$C$2) -> -1283 | T104: =SUMIFS(DATA!X$3:X$101,DATA!$F$3:$F$101,$A104,DATA!$B$3:$B$101,$C$2) -> -1322 | U104: =SUMIFS(DATA!Y$3:Y$101,DATA!$F$3:$F$101,$A104,DATA!$B$3:$B$101,$C$2) -> -1336 | V104: =SUMIFS(DATA!Z$3:Z$101,DATA!$F$3:$F$101,$A104,DATA!$B$3:$B$101,$C$2) -> -1429 | W104: =SUMIFS(DATA!AA$3:AA$101,DATA!$F$3:$F$101,$A104,DATA!$B$3:$B$101,$C$2) -> -1480 | X104: =SUMIFS(DATA!AB$3:AB$101,DATA!$F$3:$F$101,$A104,DATA!$B$3:$B$101,$C$2) -> -1532 | Y104: =SUMIFS(DATA!AC$3:AC$101,DATA!$F$3:$F$101,$A104,DATA!$B$3:$B$101,$C$2) -> -1597 | Z104: =SUMIFS(DATA!AD$3:AD$101,DATA!$F$3:$F$101,$A104,DATA!$B$3:$B$101,$C$2) -> -1645 | AA104: =SUMIFS(DATA!AE$3:AE$101,DATA!$F$3:$F$101,$A104,DATA!$B$3:$B$101,$C$2) -> -1679 | AB104: =SUMIFS(DATA!AF$3:AF$101,DATA!$F$3:$F$101,$A104,DATA!$B$3:$B$101,$C$2) -> -1782 | AC104: =SUMIFS(DATA!AG$3:AG$101,DATA!$F$3:$F$101,$A104,DATA!$B$3:$B$101,$C$2) -> -1845 | AD104: =SUMIFS(DATA!AH$3:AH$101,DATA!$F$3:$F$101,$A104,DATA!$B$3:$B$101,$C$2) -> -1897 | AE104: =SUMIFS(DATA!AI$3:AI$101,DATA!$F$3:$F$101,$A104,DATA!$B$3:$B$101,$C$2) -> -2013 | AF104: =SUMIFS(DATA!AJ$3:AJ$101,DATA!$F$3:$F$101,$A104,DATA!$B$3:$B$101,$C$2) -> -2111 | AG104: =SUMIFS(DATA!AK$3:AK$101,DATA!$F$3:$F$101,$A104,DATA!$B$3:$B$101,$C$2) -> -2196 | AH104: =SUMIFS(DATA!AL$3:AL$101,DATA!$F$3:$F$101,$A104,DATA!$B$3:$B$101,$C$2) -> -2248 | AI104: =SUMIFS(DATA!AM$3:AM$101,DATA!$F$3:$F$101,$A104,DATA!$B$3:$B$101,$C$2) -> -2370 | AJ104: =SUMIFS(DATA!AN$3:AN$101,DATA!$F$3:$F$101,$A104,DATA!$B$3:$B$101,$C$2) -> -2481 | AK104: =SUMIFS(DATA!AO$3:AO$101,DATA!$F$3:$F$101,$A104,DATA!$B$3:$B$101,$C$2) -> -2582 | AL104: =SUMIFS(DATA!AP$3:AP$101,DATA!$F$3:$F$101,$A104,DATA!$B$3:$B$101,$C$2) -> -2674 | AM104: =SUMIFS(DATA!AQ$3:AQ$101,DATA!$F$3:$F$101,$A104,DATA!$B$3:$B$101,$C$2) -> -2674 | AN104: =SUMIFS(DATA!AR$3:AR$101,DATA!$F$3:$F$101,$A104,DATA!$B$3:$B$101,$C$2) -> -2722 | AO104: =SUMIFS(DATA!AS$3:AS$101,DATA!$F$3:$F$101,$A104,DATA!$B$3:$B$101,$C$2) -> -2771 | AP104: =SUMIFS(DATA!AT$3:AT$101,DATA!$F$3:$F$101,$A104,DATA!$B$3:$B$101,$C$2) -> -2822 | AQ104: =SUMIFS(DATA!AU$3:AU$101,DATA!$F$3:$F$101,$A104,DATA!$B$3:$B$101,$C$2) -> -2874 | AR104: =SUMIFS(DATA!AV$3:AV$101,DATA!$F$3:$F$101,$A104,DATA!$B$3:$B$101,$C$2) -> -2924 | AS104: =SUMIFS(DATA!AW$3:AW$101,DATA!$F$3:$F$101,$A104,DATA!$B$3:$B$101,$C$2) -> -2975 | AT104: =SUMIFS(DATA!AX$3:AX$101,DATA!$F$3:$F$101,$A104,DATA!$B$3:$B$101,$C$2) -> -3027 | AU104: =SUMIFS(DATA!AY$3:AY$101,DATA!$F$3:$F$101,$A104,DATA!$B$3:$B$101,$C$2) -> -3079 | AV104: =SUMIFS(DATA!AZ$3:AZ$101,DATA!$F$3:$F$101,$A104,DATA!$B$3:$B$101,$C$2) -> -3133 | AW104: =SUMIFS(DATA!BA$3:BA$101,DATA!$F$3:$F$101,$A104,DATA!$B$3:$B$101,$C$2) -> -3189 | AX104: =SUMIFS(DATA!BB$3:BB$101,DATA!$F$3:$F$101,$A104,DATA!$B$3:$B$101,$C$2) -> -3247 | AY104: =SUMIFS(DATA!BC$3:BC$101,DATA!$F$3:$F$101,$A104,DATA!$B$3:$B$101,$C$2) -> -3304 | AZ104: =SUMIFS(DATA!BD$3:BD$101,DATA!$F$3:$F$101,$A104,DATA!$B$3:$B$101,$C$2) -> -3360
A105: Interest Paid | C105: =SUMIFS(DATA!G$3:G$101,DATA!$F$3:$F$101,$A105,DATA!$B$3:$B$101,$C$2) -> -465 | D105: =SUMIFS(DATA!H$3:H$101,DATA!$F$3:$F$101,$A105,DATA!$B$3:$B$101,$C$2) -> -473 | E105: =SUMIFS(DATA!I$3:I$101,DATA!$F$3:$F$101,$A105,DATA!$B$3:$B$101,$C$2) -> -562 | F105: =SUMIFS(DATA!J$3:J$101,DATA!$F$3:$F$101,$A105,DATA!$B$3:$B$101,$C$2) -> -626 | G105: =SUMIFS(DATA!K$3:K$101,DATA!$F$3:$F$101,$A105,DATA!$B$3:$B$101,$C$2) -> -694 | H105: =SUMIFS(DATA!L$3:L$101,DATA!$F$3:$F$101,$A105,DATA!$B$3:$B$101,$C$2) -> -804 | I105: =SUMIFS(DATA!M$3:M$101,DATA!$F$3:$F$101,$A105,DATA!$B$3:$B$101,$C$2) -> -924 | J105: =SUMIFS(DATA!N$3:N$101,DATA!$F$3:$F$101,$A105,DATA!$B$3:$B$101,$C$2) -> -905 | K105: =SUMIFS(DATA!O$3:O$101,DATA!$F$3:$F$101,$A105,DATA!$B$3:$B$101,$C$2) -> -912 | L105: =SUMIFS(DATA!P$3:P$101,DATA!$F$3:$F$101,$A105,DATA!$B$3:$B$101,$C$2) -> -900 | M105: =SUMIFS(DATA!Q$3:Q$101,DATA!$F$3:$F$101,$A105,DATA!$B$3:$B$101,$C$2) -> -886 | N105: =SUMIFS(DATA!R$3:R$101,DATA!$F$3:$F$101,$A105,DATA!$B$3:$B$101,$C$2) -> -883 | O105: =SUMIFS(DATA!S$3:S$101,DATA!$F$3:$F$101,$A105,DATA!$B$3:$B$101,$C$2) -> -883 | P105: =SUMIFS(DATA!T$3:T$101,DATA!$F$3:$F$101,$A105,DATA!$B$3:$B$101,$C$2) -> -901 | Q105: =SUMIFS(DATA!U$3:U$101,DATA!$F$3:$F$101,$A105,DATA!$B$3:$B$101,$C$2) -> -881 | R105: =SUMIFS(DATA!V$3:V$101,DATA!$F$3:$F$101,$A105,DATA!$B$3:$B$101,$C$2) -> -874 | S105: =SUMIFS(DATA!W$3:W$101,DATA!$F$3:$F$101,$A105,DATA!$B$3:$B$101,$C$2) -> -864 | T105: =SUMIFS(DATA!X$3:X$101,DATA!$F$3:$F$101,$A105,DATA!$B$3:$B$101,$C$2) -> -844 | U105: =SUMIFS(DATA!Y$3:Y$101,DATA!$F$3:$F$101,$A105,DATA!$B$3:$B$101,$C$2) -> -874 | V105: =SUMIFS(DATA!Z$3:Z$101,DATA!$F$3:$F$101,$A105,DATA!$B$3:$B$101,$C$2) -> -833 | W105: =SUMIFS(DATA!AA$3:AA$101,DATA!$F$3:$F$101,$A105,DATA!$B$3:$B$101,$C$2) -> -820 | X105: =SUMIFS(DATA!AB$3:AB$101,DATA!$F$3:$F$101,$A105,DATA!$B$3:$B$101,$C$2) -> -824 | Y105: =SUMIFS(DATA!AC$3:AC$101,DATA!$F$3:$F$101,$A105,DATA!$B$3:$B$101,$C$2) -> -896 | Z105: =SUMIFS(DATA!AD$3:AD$101,DATA!$F$3:$F$101,$A105,DATA!$B$3:$B$101,$C$2) -> -899 | AA105: =SUMIFS(DATA!AE$3:AE$101,DATA!$F$3:$F$101,$A105,DATA!$B$3:$B$101,$C$2) -> -909 | AB105: =SUMIFS(DATA!AF$3:AF$101,DATA!$F$3:$F$101,$A105,DATA!$B$3:$B$101,$C$2) -> -941 | AC105: =SUMIFS(DATA!AG$3:AG$101,DATA!$F$3:$F$101,$A105,DATA!$B$3:$B$101,$C$2) -> -943 | AD105: =SUMIFS(DATA!AH$3:AH$101,DATA!$F$3:$F$101,$A105,DATA!$B$3:$B$101,$C$2) -> -945 | AE105: =SUMIFS(DATA!AI$3:AI$101,DATA!$F$3:$F$101,$A105,DATA!$B$3:$B$101,$C$2) -> -1007 | AF105: =SUMIFS(DATA!AJ$3:AJ$101,DATA!$F$3:$F$101,$A105,DATA!$B$3:$B$101,$C$2) -> -1020 | AG105: =SUMIFS(DATA!AK$3:AK$101,DATA!$F$3:$F$101,$A105,DATA!$B$3:$B$101,$C$2) -> -1020 | AH105: =SUMIFS(DATA!AL$3:AL$101,DATA!$F$3:$F$101,$A105,DATA!$B$3:$B$101,$C$2) -> -1022 | AI105: =SUMIFS(DATA!AM$3:AM$101,DATA!$F$3:$F$101,$A105,DATA!$B$3:$B$101,$C$2) -> -1078 | AJ105: =SUMIFS(DATA!AN$3:AN$101,DATA!$F$3:$F$101,$A105,DATA!$B$3:$B$101,$C$2) -> -1089 | AK105: =SUMIFS(DATA!AO$3:AO$101,DATA!$F$3:$F$101,$A105,DATA!$B$3:$B$101,$C$2) -> -1104 | AL105: =SUMIFS(DATA!AP$3:AP$101,DATA!$F$3:$F$101,$A105,DATA!$B$3:$B$101,$C$2) -> -1092 | AM105: =SUMIFS(DATA!AQ$3:AQ$101,DATA!$F$3:$F$101,$A105,DATA!$B$3:$B$101,$C$2) -> -1094 | AN105: =SUMIFS(DATA!AR$3:AR$101,DATA!$F$3:$F$101,$A105,DATA!$B$3:$B$101,$C$2) -> -1066 | AO105: =SUMIFS(DATA!AS$3:AS$101,DATA!$F$3:$F$101,$A105,DATA!$B$3:$B$101,$C$2) -> -1043 | AP105: =SUMIFS(DATA!AT$3:AT$101,DATA!$F$3:$F$101,$A105,DATA!$B$3:$B$101,$C$2) -> -1040 | AQ105: =SUMIFS(DATA!AU$3:AU$101,DATA!$F$3:$F$101,$A105,DATA!$B$3:$B$101,$C$2) -> -1071 | AR105: =SUMIFS(DATA!AV$3:AV$101,DATA!$F$3:$F$101,$A105,DATA!$B$3:$B$101,$C$2) -> -1065 | AS105: =SUMIFS(DATA!AW$3:AW$101,DATA!$F$3:$F$101,$A105,DATA!$B$3:$B$101,$C$2) -> -1043 | AT105: =SUMIFS(DATA!AX$3:AX$101,DATA!$F$3:$F$101,$A105,DATA!$B$3:$B$101,$C$2) -> -1042 | AU105: =SUMIFS(DATA!AY$3:AY$101,DATA!$F$3:$F$101,$A105,DATA!$B$3:$B$101,$C$2) -> -1025 | AV105: =SUMIFS(DATA!AZ$3:AZ$101,DATA!$F$3:$F$101,$A105,DATA!$B$3:$B$101,$C$2) -> -987 | AW105: =SUMIFS(DATA!BA$3:BA$101,DATA!$F$3:$F$101,$A105,DATA!$B$3:$B$101,$C$2) -> -999 | AX105: =SUMIFS(DATA!BB$3:BB$101,DATA!$F$3:$F$101,$A105,DATA!$B$3:$B$101,$C$2) -> -976 | AY105: =SUMIFS(DATA!BC$3:BC$101,DATA!$F$3:$F$101,$A105,DATA!$B$3:$B$101,$C$2) -> -962 | AZ105: =SUMIFS(DATA!BD$3:BD$101,DATA!$F$3:$F$101,$A105,DATA!$B$3:$B$101,$C$2) -> -1002
